Workbook

Sheet LDC Info
AA3: Algoma Power Inc.
AA4: Atikokan Hydro Inc.
AA5: Attawapiskat Power Corporation
AA6: Bluewater Power Distribution Corporation
AA7: Brant County Power Inc.
AA8: Brantford Power Inc.
AA9: Burlington Hydro Inc.
AA10: Cambridge and North Dumfries Hydro Inc.
AA11: Canadian Niagara Power Inc.
AA12: Centre Wellington Hydro Ltd.
AA13: Chapleau Public Utilities Corporation
D14: Utility Name | E14: Innpower Corporation | AA14: COLLUS PowerStream Corp.
AA15: Cooperative Hydro Embrun Inc.
D16: Assigned EB Number | E16: EB-2016-0086 | AA16: E.L.K. Energy Inc.
AA17: Enersource Hydro Mississauga Inc.
D18: Name of Contact and Title | E18: Brenda Pinke | AA18: Entegrus Powerlines Inc.
AA19: EnWin Utilities Ltd.
D20: Phone Number | E20: 705-431-6870 Ext 262 | AA20: Erie Thames Powerlines Corporation
AA21: Espanola Regional Hydro Distribution Corporation
D22: Email Address | E22: brendap@innpower.ca | AA22: Essex Powerlines Corporation
AA23: Festival Hydro Inc.
D24: Test Year | E24: 2017 | AA24: Fort Albany Power Corporation
AA25: Fort Frances Power Corporation
D26: Bridge Year | E26: =IF(ISBLANK(E24), "", E24-1) -> 2016 | AA26: Greater Sudbury Hydro Inc.
AA27: Grimsby Power Inc.
D28: Last Rebasing Year | E28: 2013 | AA28: Guelph Hydro Electric Systems Inc.
AA29: Haldimand County Hydro Inc.
A30: Identify the accounting standard used for the test year | AA30: Halton Hills Hydro Inc.
E31: MIFRS | AA31: Hearst Power Distribution Company Limited
AA32: Horizon Utilities Corporation
A33: Did you update your depreciation and capitalization policies? | AA33: Hydro 2000 Inc.
E34: No | AA34: Hydro Hawkesbury Inc.
AA35: Hydro One Brampton Networks Inc.
A36: When did you update your depreciation and capitalization policies? | AA36: Hydro One Networks Inc.
E37: 2001-01-01 | F37: 2012 | AA37: Hydro One Remote Communities Inc.
AA38: Hydro Ottawa Limited
A39: Identify the year that the applicant has adopted or is expected to adopt IFRS for financial reporting purposes | AA39: Innpower Corporation
E40: 2015 or Later | AA40: Kashechewan Power Corporation
AA41: Kenora Hydro Electric Corporation Ltd.
AA42: Kingston Hydro Corporation
A43: Are you applying for cost recovery for the test and/or future year(s) for Green Energy initiatives? | AA43: Kitchener-Wilmot Hydro Inc.
E44: No | AA44: Lakefront Utilities Inc.
AA45: Lakeland Power Distribution Ltd.
A46: ="Is " & E14 & " an embedded distributor?" -> Is Innpower Corporation an embedded distributor? | E46: No | AA46: London Hydro Inc.
AA47: Midland Power Utility Corporation
AA48: Milton Hydro Distribution Inc.
B49: Notes | AA49: Newmarket-Tay Power Distribution Ltd.
AA50: Niagara Peninsula Energy Inc.
C51: Pale green cells represent input cells. | AA51: Niagara-on-the-Lake Hydro Inc.
AA52: Norfolk Power Distribution Inc.
C53: Pale blue cells represent drop-down lists. The applicant should select the appropriate item from the drop-down list. | AA53: North Bay Hydro Distribution Limited
AA54: Northern Ontario Wires Inc.
C55: White cells contain fixed values, automatically generated values or formulae. | AA55: Oakville Hydro Electricity Distribution Inc.
AA56: Orangeville Hydro Limited
AA57: Orillia Power Distribution Corporation
AA58: Oshawa PUC Networks Inc.
AA59: Ottawa River Power Corporation
AA60: Peterborough Distribution Incorporated
AA61: PowerStream Inc.
AA62: PUC Distribution Inc.
AA63: Renfrew Hydro Inc.
AA64: Rideau St. Lawrence Distribution Inc.
AA65: Sioux Lookout Hydro Inc.
AA66: St. Thomas Energy Inc.
AA67: Thunder Bay Hydro Electricity Distribution Inc.
AA68: Tillsonburg Hydro Inc.
AA69: Toronto Hydro-Electric System Limited
AA70: Veridian Connections Inc.
AA71: Wasaga Distribution Inc.
AA72: Waterloo North Hydro Inc.
AA73: Welland Hydro-Electric System Corp.
AA74: Wellington North Power Inc.
AA75: West Coast Huron Energy Inc.
AA76: Westario Power Inc.
AA77: Whitby Hydro Electric Corporation
AA78: Woodstock Hydro Services Inc.

Sheet Index
A15: 1 | B15: LDC Information Sheet | E15: 28 | F15: App.2-G: Service Reliability Indicators
A16: 2 | B16: Index | E16: 29 | F16: App.2-H: Other Operating Revenue
A17: 3 | B17: Cost of Service Application Flowchart | E17: 30 | F17: App.2-I: Load Forecast CDM Adjustment Workform
A18: 4 | B18: List of Key References | E18: 31 | F18: App.2-IA: Actual and Forecast Load and Customer Data
A19: 5 | B19: App.2-AA: Capital Projects Table | E19: 32 | F19: App.2-JA: OM&A Summary Analysis
A20: 6 | B20: App.2-AB: Capital Expenditures | E20: 33 | F20: App.2-JB: Recoverable OM&A Cost Driver Table
A21: 7 | B21: App. 2-AC: Customer Engagement Worksheet | E21: 34 | F21: App.2-JC: OM&A Programs Table
A22: 8 | B22: App.2-B: General Accounting Instructions | E22: 35 | F22: App.2-K: Employee Costs
A23: 9 | B23: App.2-BA: Fixed Asset Continuity Schedule | E23: 36 | F23: App.2-L: Recoverable OM&A Cost per Customer and per FTE
A24: 10 | B24: Appendix 2-BB: Service Life Comparison | E24: 37 | F24: App.2-M: Regulatory Costs Schedule
A25: 11 | B25: App.2-CA: 2012 Depreciation and Amortization Expense (Old CGAAP) | E25: 38 | F25: App.2-N: Shared Servcies and Corporate Cost Allocation
A26: 12 | B26: App.2-CB: 2012 Depreciation and Amortization Expense (New CGAAP) | E26: 39 | F26: App.2-OA: Capital Structure and Cost of Capital
A27: 13 | B27: App.2-CC: 2013 Depreciation and Amortization Expense (New CGAAP) | E27: 40 | F27: App.2-OB: Debt Instruments
A28: 14 | B28: App.2-CD: 2014 Depreciation and Amortization Expense (MIFRS) | E28: 41 | F28: App.2-P: Cost Allocation
A29: 15 | B29: App.2-CE: 2015 Depreciation and Amortization Expense (MIFRS) | E29: 42 | F29: App.2-PA: New Rate Design Policy For Residential Customers
A30: 16 | B30: App.2-CF: 2015 Depreciation and Amortization Expense (MIFRS) | E30: 43 | F30: App.2-Q: Cost of Serving Embedded Distributor(s)
A31: 17 | B31: App.2-CG: 2013 Depreciation and Amortization Expense (Old CGAAP) | E31: 44 | F31: App.2-R: Loss Factors
A32: 18 | B32: App.2-CH: 2013 Depreciation and Amortization Expense (New CGAAP) | E32: 45 | F32: App.2-S: Stranded Meter Treatment
A33: 19 | B33: App.2-CI: 2014 Depreciation and Amortization Expense (MIFRS) | E33: 46 | F33: App.2-TA: Account 1592, PILs and Tax Variances
A34: 20 | B34: App.2-CJ: 2015 Depreciation and Amortization Expense (MIFRS) | E34: 47 | F34: App.2-TB: Account 1592, HST-OVAT Input Tax Credits
A35: 21 | B35: App.2-CK: 2016 Depreciation and Amortization Expense (MIFRS) | E35: 48 | F35: App.2-U: One-Time Incremental IFRS Transition Costs
A36: 22 | B36: App.2-D: Overhead Expenses | E36: 49 | F36: App.2-V: Revenue Reconciliation
A37: 23 | B37: App.2-EA: Account 1575 PP&E Deferral Account (2015 IFRS Adopters) | E37: 50 | F37: App.2-W: Bill Impacts
A38: 24 | B38: App.2-EB: Account 1576 - Accounting Changes Under CGAAP (2012 Changes) | E38: 51 | F38: App.2-Y: Transition to MIFRS Summary Impact
A39: 25 | B39: App.2-EC: Account 1576 - Accounting Changes Under CGAAP (2013 Changes) | E39: 52 | F39: App. 2-Z: Tariff Schedule
A40: 26 | B40: App.2-FA: Renewable Generation Connection Investment Summary
A41: 27 | B41: App.2-FB: Calculation of Renewable Generation Connection Direct Benefits/Provincial Amount: Renewable Enabling Improvement Investments
A42: 28 | B42: App.2-FC: Calculation of Renewable Generation Connection Direct Benefits/Provincial Amount: Renewable Expansion Investments

Sheet COS Flowchart
B4: Cost of Service Rate Application Schematic
B6: The Cost of Service Rate Application Schematic is a flowchart appended to Chapter 2 of the Filing Requirements as a guide for the components of an application and how demand and costs interrelate to derive the revenue requirement and then how the revenue requirement is allocated between classes and through fixed/variable splits to derive rates that will be compensatory for the annual revenue requirement, based on the the forecasted demand. There is no form to be filled out; therefore, this Schedule is not required to be filed.

Sheet List of Key References
B3: List of Key References
A5: A list of key references for understanding the Filing Requirements has been embedded in the document below. To access the list of references and associated hyperlinks double-click the icon below.

Sheet App.2-AA_Capital Projects
C1: File Number: | D1: =EBNUMBER -> EB-2016-0086
C2: Exhibit: | D2: 2
C3: Tab:
C4: Schedule:
C5: Page:
C7: Date: | D7: 2016-05-20
A9: Appendix 2-AA
A10: Capital Projects Table
A11: Totals are Net of Contibutions
A13: Projects | B13: 2016 Bridge | C13: =TestYear & " Test Year" -> 2017 Test Year | D13: 2018 | E13: 2019 | F13: 2020 | G13: 2021
A14: Reporting Basis
A15: SYSTEM ACCESS
A16: BASE | B16: 799431 | C16: 1251376 | D16: 1242920 | E16: 1257772 | F16: 1274109 | G16: 1292080
A17: DB001 Meters | B17: 147500
A18: IBR & 5 SR | B18: 415364
A19: Metering | C19: 230000 | D19: 270000 | E19: 250000 | F19: 250000 | G19: 250000
A20: Intersection Widening IBR & Yonge St. | C20: 272430
A21: Road Widening IBR between Yonge St & 20 SR | D21: 471300
A22: Road Widening IBR between Yonge St & 10 SR | E22: 86985
A23: Road Widening IBR between Hwy 400 & 10 SR | F23: 74333
A24: Road Widening IBR between Hwy 27 & 5 SR | G24: 471300
A25: Contributions System Access | B25: 3790270 | C25: 5561525 | D25: 9626225 | E25: 9675905 | F25: 10009484 | G25: 10666010
A26: Sub-Total System Access | B26: =SUM(B16:B24) -> 1362295 | C26: 1753806 | D26: 1984220 | E26: 1594757 | F26: 1598442 | G26: 2013380
A27: SYSTEM RENEWAL
A28: BASE | B28: 137500 | C28: 116885 | D28: 122725 | E28: 128861 | F28: 135304 | G28: 148834
A29: Substandard Transformer Rehab | B29: 109505.1 | C29: 85000 | D29: 30000 | E29: 31500 | F29: 33075
A30: Pole Replacement Program | B30: 200913.5 | C30: 126470 | D30: 148500 | E30: 155925 | F30: 163721 | G30: 171907
A31: Infrastructure Replacements and Betterments | B31: 143098.2 | C31: 150253 | D31: 157766 | E31: 165654 | F31: 173936 | G31: 182633
A32: Line Reclosure Refurbishments - 4 Year Cycle | B32: 15185.5 | C32: 15945 | D32: 16742 | E32: 17579 | F32: 18458 | G32: 19381
A33: DS Oil Re-inhibit Treatment | B33: 26215.5 | C33: 27527 | D33: 57806 | E33: 60696 | F33: 30000
A34: Padmounted Transformer and Switchgear Replacements and Painting | B34: 83256 | C34: 43710 | D34: 45895 | E34: 48190 | F34: 50599 | G34: 53129
A35: Station rehab | B35: 199280 | C35: 104300 | D35: 109853 | E35: 115346 | F35: 242226 | G35: 115680
A36: Ewart Street Rebuild - Phased Approach | B36: 101790 | C36: 105000 | D36: 50000 | E36: 52500 | F36: 56700 | G36: 131274
A37: Transformers | B37: 120000 | C37: 100000 | D37: 110000 | E37: 121000 | F37: 133100 | G37: 146410
A38: Reliability Rebuild: Subtransmission - Lockhart Road | C38: 170650 | D38: 89933 | E38: 294429 | F38: 203060 | G38: 213214
A39: Reliability Rebuild: Subtransmission - 5 SideRoad | C39: 75000 | E39: 550000 | F39: 225000 | G39: 225000
A40: Reliability Rebuild: Distribution - Cookstown | C40: 50000 | D40: 52500 | E40: 55125 | F40: 200880 | G40: 156000
A41: Reliability Rebuild: Distribution - Lefroy | C41: 22500 | D41: 47250 | E41: 49613 | F41: 52093 | G41: 54697
A42: Reliability Rebuild: Distribution - Alcona | C42: 22500 | D42: 47250 | E42: 49613 | F42: 52093 | G42: 54697
A43: Everton Back Lot Conversion - Phased Approach | E43: 155000 | F43: 135000
A44: Reliability Rebuild: Distribution - Phased Approach | D44: 22500 | F44: 75000
A45: Reliability Rebuild: Distribution - Strathallan Woods Phased Approach | D45: 31500 | E45: 33075 | F45: 34728 | G45: 36465
A46: Sandy Cove: U/G Cable Replacement Phased Approach | E46: 700000 | F46: 250000 | G46: 250000
A47: Parkview Rear Lot: 1 Phase Relocate to Street Front - Phased Approach | E47: 135000 | F47: 135000
A48: Degrassi Cove: U/G Converstion | G48: 150000
A49: Contributions System Renewal | B49: 0
A50: Sub-Total System Renewal | B50: =SUM(B28:B48) -> 1136743.8 | C50: 1215740 | D50: 1140220 | E50: 2919106 | F50: 2399973 | G50: 2109321
A51: SYSTEM SERVICE
A52: Stroud DS Automation | B52: 164590
A53: Repoling: McKay Rd - 5 SR to 10 SR | B53: 400041 | C53: 273427
A54: Cedar Point DS Transformer Upgrade | B54: 1578016
A55: Repoling: 5 SR - McKay Road to Salem Rd | B55: 362573
A56: Distribution SCADA controlled load interrupting gang switch | C56: 75000 | D56: 78750 | E56: 82688 | F56: 86821 | G56: 91162
A57: Repoling: BBP - Friday Harbour DS to FH Development (North) | C57: 362570
A58: Repoling: Lockhart Road - Huronia to Stroud DS | C58: 618932
A59: Sandy Cove DS | C59: 125000
A60: Repoling: Mapleview Dr - Prince William Way to Seline Crescent | C60: 837831
A61: DS Transformer Oil Containment | C61: 45000 | E61: 49613 | F61: 52093 | G61: 54698
A62: Subtransmission SCADA Controlled Switches | E62: 148500 | F62: 155925
A63: SCADA PME Morotized Switch Gear | E63: 165000 | F63: 173250 | G63: 181913
A64: Capacitor Intelilink to SCADA | E64: 65000 | F64: 65000
A65: Friday Harbour DS | D65: 2750000
A66: Repoling: 5 SR - 5th Line to IBR | E66: 315000 | F66: 330750 | G66: 347288
A67: Repoling: 20 SR - 5th Line to 4th Line | F67: 219940 | G67: 230937
A68: 400 Corridor Voltage Conversion & Servicing | E68: 250000 | F68: 262500 | G68: 275625
A69: Alcona South Voltage Conversion | E69: 200000 | F69: 210000 | G69: 220500
A72: Contributions System Service | B72: 0
A73: Sub-Total System Service | B73: =SUM(B52:B72) -> 2505220 | C73: 2337760 | D73: 2828750 | E73: 1275801 | F73: 1556279 | G73: 1402123
A74: GENERAL PLANT
A75: IT Hardware | B75: 130000
A76: IT Software | B76: 115000
A77: Furniture and Equipment | B77: 15000
A78: Buildings and Fixtures | B78: 15000
A79: Finance IT | B79: 122000
A80: Engineering IT | B80: 121500
A81: Fleet Tools | B81: 15000
A82: Stores Equipment | B82: 5000
A83: Tools, Shop and Garage Equipment | B83: 23000
A84: Measurement and Testing Equipment | B84: 15000
A85: Distribution Fault Current Indicators | B85: 41002.4
A86: System Supervisory | B86: 43000
A87: IT Hardware | C87: 165000 | D87: 150000 | E87: 150000 | F87: 150000 | G87: 150000
A88: IT Software | C88: 95000 | D88: 95000 | E88: 95000 | F88: 95000 | G88: 95000
A89: Furniture and Equipment | C89: 15000 | D89: 15000 | E89: 15000 | F89: 15000 | G89: 15000
A90: Buildings and Fixtures | C90: 15000 | D90: 15000 | E90: 15000 | F90: 15000 | G90: 15000
A91: Finance IT | C91: 77000 | D91: 50000 | E91: 60000 | F91: 50000 | G91: 50000
A92: Engineering IT | C92: 167325 | D92: 145516 | E92: 119000 | F92: 100000 | G92: 105000
A93: Fleet Tools | C93: 15750 | D93: 16538 | E93: 17364 | F93: 18232 | G93: 19144
A94: Stores Equipment | C94: 5250 | D94: 5513 | E94: 5788 | F94: 6077 | G94: 6381
A95: Tools, Shop and Garage Equipment | C95: 24150 | D95: 25358 | E95: 26625 | F95: 27956 | G95: 29354
A96: Measurement and Testing Equipment | C96: 28000 | D96: 30800 | E96: 32340 | F96: 33957 | G96: 35654
A97: Distribution Fault Current Indicators | C97: 18760 | E97: 15000 | F97: 15750 | G97: 16537
A98: System Supervisory | C98: 32400 | D98: 47408 | E98: 49778 | F98: 52266 | G98: 54880
A99: Measuring Tools & Equipment IT & Meter | C99: 23000
A100: Replacement Double Bucket Truck - 1993 Altec | C100: 373500
A101: Fleet Vehicle Replacement: 1-2006 Ford 1/2 Ton | C101: 45000
A102: Tech Vehicle - Ford Escape 2009 (#89) Replacement | D102: 45000
A103: Locator Vehicle Mini-Van (x2) | C103: 63000
A104: Tehnologist Vehicle - NEW | C104: 43500
A105: Inspector Vehicle - NEW | C105: 43500
A106: RBD - New Crew | C106: 250000
A107: Tech Vehicle - Ford Escape 2008 Replacement (#85) | D107: 45675
A108: Meter Tech Vehicle - NEW | D108: 45675
A109: Inspector Vehicle - NEW | D109: 45675
A110: Tech Vehicle - Ford Escape 2009 & 2010 Replacement (#88 & 95) | E110: 95918
A111: Fleet Vehicle Replacement: 2005 1/2 Ton (#87) | F111: 51750
A112: Tech Vehicle - Ford Escape 2008 Replacement (#92) | F112: 49329
A113: Fleet Vehicle Replacement: 2011 -1/2 To (#96) | G113: 54337
A114: Fleet Vehicle Replacement: 2011 - 1 Ton (#101) | G114: 60000
A115: 65' Double Bucket - New Crew | D115: 400000
A116: 1 Ton Pickup Truck - New Crew | D116: 45000
A117: Clothing for 3 Men | D117: 10000
A118: Tools for 3 Men | D118: 15000
A119: Tooling for Bucket & RBD | D119: 150000
A120: 100 Travellers | D120: 5000
A121: Additional Spider System | D121: 20000
A122: Tension Machines | E122: 200000
A123: Sub Total Contributions | B123: =B25+B49+B72 -> 3790270 | C123: 5561525 | D123: 9626225 | E123: 9675905 | F123: 10009484 | G123: 10666010
A124: Sub-Total General Plant | B124: =SUM(B75:B122) -> 660502.4 | C124: 1500135 | D124: 1423158 | E124: 896813 | F124: 680317 | G124: 706287
A125: Sub-Total System Service | B125: =B73 -> 2505220 | C125: 2337760 | D125: 2828750 | E125: 1275801 | F125: 1556279 | G125: 1402123
A126: Sub-Total System Renewal | B126: =B50 -> 1136743.8 | C126: 1215740 | D126: 1140220 | E126: 2919106 | F126: 2399973 | G126: 2109321
A127: Sub-Total System Access | B127: =B26 -> 1362295 | C127: 1753806 | D127: 1984220 | E127: 1594757 | F127: 1598442 | G127: 2013380
A128: Miscellaneous
A129: Total | B129: =SUM(B124:B127) -> 5664761.2 | C129: 6807441 | D129: 7376348 | E129: 6686477 | F129: 6235011 | G129: 6231111
A130: Less Renewable Generation Facility Assets and Other Non-Rate-Regulated Utility Assets (input as negative)
A131: Total | B131: =B129+B130 -> 5664761.2 | C131: 6807441 | D131: 7376348 | E131: 6686477 | F131: 6235011 | G131: 6231111
A133: Notes:
A135: 1 Please provide a breakdown of the major components of each capital project undertaken in each year. Please ensure that all projects below the materiality threshold are included in the miscellaneous line. Add more projects as required.
A136: 2 The applicant should group projects appropriately and avoid presentations that result in classification of significant components of the capital budget in the miscellaneous category.

Sheet App.2-AB_Capital Expenditures
A1: 0 | S1: File Number: | U1: =EBNUMBER -> EB-2016-0086
S2: Exhibit:
S3: Tab:
S4: Schedule:
S5: Page:
S7: Date: | U7: 2016-05-20
A9: Appendix 2-AB
A10: Table 2 - Capital Expenditure Summary from Chapter 5 Consolidated Distribution System Plan Filing Requirements
A11: (Net of Contributions)
A12: First year of Forecast Period: | B12: =TestYear -> 2017
A13: CATEGORY | B13: Historical Period (previous plan1 & actual) | Q13: Forecast Period (planned)
B14: 2012 | E14: =H14-1 -> 2013 | H14: =K14-1 -> 2014 | K14: =N14-1 -> 2015 | N14: =Q14-1 -> 2016 | Q14: =B12 -> 2017 | R14: =Q14+1 -> 2018 | S14: =R14+1 -> 2019 | T14: 2020 | U14: 2021
B15: Plan | C15: Actual | D15: Var | E15: Plan | F15: Actual | G15: Var | H15: Plan | I15: Actual | J15: Var | K15: Plan | L15: Actual | M15: Var | N15: Plan | O15: Actual2 | P15: Var
B16: $ '000 | D16: % | E16: $ '000 | G16: % | H16: $ '000 | J16: % | K16: $ '000 | M16: % | N16: $ '000 | P16: % | Q16: $ '000
A17: System Access | C17: 1750 | D17: =IF(ISERROR((C17-B17)/B17),"--",(C17-B17)/B17) -> -- | F17: 974 | G17: =IF(ISERROR((F17-E17)/E17),"--",(F17-E17)/E17) -> -- | I17: 1263 | J17: =IF(ISERROR((I17-H17)/H17),"--",(I17-H17)/H17) -> -- | L17: 896 | M17: =IF(ISERROR((L17-K17)/K17),"--",(L17-K17)/K17) -> -- | N17: 5152.6 | O17: 5153 | P17: =IF(ISERROR((O17-N17)/N17),"--",(O17-N17)/N17) -> 7.763071071e-05 | Q17: 1754 | R17: 1984 | S17: 1595 | T17: 1598 | U17: 2013
A18: System Renewal | C18: 654 | D18: =IF(ISERROR((C18-B18)/B18),"--",(C18-B18)/B18) -> -- | F18: 987 | G18: =IF(ISERROR((F18-E18)/E18),"--",(F18-E18)/E18) -> -- | I18: 697 | J18: =IF(ISERROR((I18-H18)/H18),"--",(I18-H18)/H18) -> -- | L18: 883 | M18: =IF(ISERROR((L18-K18)/K18),"--",(L18-K18)/K18) -> -- | N18: 1136.7 | O18: 1137 | P18: =IF(ISERROR((O18-N18)/N18),"--",(O18-N18)/N18) -> 0.0002639218791 | Q18: 1216 | R18: 1140 | S18: 2919 | T18: 2400 | U18: 2109
A19: System Service | C19: 586 | D19: -- | F19: 1377 | G19: -- | I19: 2819 | J19: -- | L19: 2561 | M19: -- | N19: 2505.2 | O19: 2505.2 | P19: 0 | Q19: 2338 | R19: 2829 | S19: 1276 | T19: 1556 | U19: 1402
A20: General Plant | C20: 828 | D20: -- | F20: 1348 | G20: -- | I20: 253 | J20: -- | L20: 13197 | M20: -- | N20: 660.5 | O20: 661 | P20: 0.000757002271 | Q20: 1500 | R20: 1423 | S20: 897 | T20: 680 | U20: 706
A21: TOTAL EXPENDITURE | B21: =SUM(B17:B20) -> 0 | C21: =SUM(C17:C20) -> 3818 | D21: -- | E21: =SUM(E17:E20) -> 0 | F21: =SUM(F17:F20) -> 4686 | G21: -- | H21: 0 | I21: =SUM(I17:I20) -> 5032 | J21: -- | K21: 0 | L21: 0 | M21: -- | N21: 9455 | O21: 9456.2 | P21: 0.0001269169751 | Q21: 6808 | R21: 7376 | S21: 6687 | T21: 6234 | U21: =SUM(U17:U20) -> 6230
A22: System O&M | C22: 0 | D22: -- | F22: 0 | G22: -- | I22: 0 | J22: -- | L22: 0 | M22: -- | O22: 2098.7 | P22: -- | Q22: 2636 | R22: 2636 | S22: 2636 | T22: 2636 | U22: 2636
A25: (Excluding Contributions)
A26: First year of Forecast Period: | B26: =TestYear -> 2017
A27: CATEGORY | B27: Historical Period (previous plan1 & actual) | Q27: Forecast Period (planned)
B28: 2012 | E28: =H28-1 -> 2013 | H28: =K28-1 -> 2014 | K28: =N28-1 -> 2015 | N28: =Q28-1 -> 2016 | Q28: =B26 -> 2017 | R28: =Q28+1 -> 2018 | S28: =R28+1 -> 2019 | T28: =S28+1 -> 2020 | U28: =T28+1 -> 2021
B29: Plan | C29: Actual | D29: Var | E29: Plan | F29: Actual | G29: Var | H29: Plan | I29: Actual | J29: Var | K29: Plan | L29: Actual | M29: Var | N29: Plan | O29: Actual2 | P29: Var
B30: $ '000 | D30: % | E30: $ '000 | G30: % | H30: $ '000 | J30: % | K30: $ '000 | M30: % | N30: $ '000 | P30: % | Q30: $ '000
A31: System Access | C31: 3394 | F31: 1468 | I31: 2669 | L31: 896 | N31: 1362 | Q31: 1753.9 | R31: 1984 | S31: 1594.7 | T31: 1598.4 | U31: 2013.4
A32: System Renewal | C32: 654.3 | D32: -- | F32: 837.7 | G32: -- | I32: 697.1 | J32: -- | L32: 1985.5 | M32: -- | N32: 1136.7 | P32: -1 | Q32: 1215.7 | R32: 1140.2 | S32: 2919.1 | T32: 2400 | U32: 2109.3
A33: System Service | C33: 586 | D33: -- | F33: 1525.9 | G33: -- | I33: 2818.8 | J33: -- | L33: 1446.1 | M33: -- | N33: 2505.2 | P33: -1 | Q33: 2337.8 | R33: 2828.8 | S33: 1275.8 | T33: 1556.3 | U33: 1402.1
A34: General Plant | C34: 827.5 | D34: -- | F34: 1348.5 | G34: -- | I34: 252.7 | J34: -- | L34: 13209.4 | M34: -- | N34: 660.5 | P34: -1 | Q34: 1500.1 | R34: 1423.2 | S34: 896.8 | T34: 680.3 | U34: 706.3
A35: TOTAL EXPENDITURE | B35: =SUM(B31:B34) -> 0 | C35: =SUM(C31:C34) -> 5461.8 | D35: =IF(ISERROR((C35-B35)/B35),"--",(C35-B35)/B35) -> -- | E35: =SUM(E31:E34) -> 0 | F35: 5180.1 | G35: =IF(ISERROR((F35-E35)/E35),"--",(F35-E35)/E35) -> -- | H35: =SUM(H31:H34) -> 0 | I35: 6437.6 | J35: =IF(ISERROR((I35-H35)/H35),"--",(I35-H35)/H35) -> -- | K35: =SUM(K31:K34) -> 0 | L35: 17537 | M35: =IF(ISERROR((L35-K35)/K35),"--",(L35-K35)/K35) -> -- | N35: =SUM(N31:N34) -> 5664.4 | O35: 0 | P35: =IF(ISERROR((O35-N35)/N35),"--",(O35-N35)/N35) -> -1 | Q35: =SUM(Q31:Q34) -> 6807.5 | R35: 7376.2 | S35: 6686.4 | T35: 6235 | U35: =SUM(U31:U34) -> 6231.1
A38: Notes to the Table:
A39: 1. Historical “previous plan” data is not required unless a plan has previously been filed
A40: 2. Indicate the number of months of 'actual' data included in the last year of the Historical Period (normally a 'bridge' year):
A42: Explanatory Notes on Variances (complete only if applicable)
A43: Notes on shifts in forecast vs. historical budgets by category
A46: Notes on year over year Plan vs. Actual variances for Total Expenditures
A49: Notes on Plan vs. Actual variance trends for individual expenditure categories

Sheet App. 2-AC_Customer Engagement
B1: File Number: | C1: =EBNUMBER -> EB-2016-0086
B2: Exhibit:
B3: Tab:
B4: Schedule:
B5: Page:
B7: Date: | C7: 2016-06-03
A9: Appendix 2-AC
A10: Customer Engagement Activities Summary
A12: Provide a list of customer engagement activities | B12: Provide a list of customer needs and preferences identified through each engagement activity | C12: Actions taken to respond to identified needs and preferences. If no action was taken, explain why.
A13: Annual Community Events (2013-2015) -Celebrate Lake Simcoe -Innisfil Family Day -Innisfil Farmers Market -Innisfil Pitch-in Day -Innisfil Summerfest -Sandycove Acres Home Show -Wing Ding Fest | B13: 1. Promotion of CDM programs, conservation tips, energy efficiency prizes. 2. Understanding bills. 3. Renewable energy. 4. Collect feedback from customers (ex. New administrative facility) | C13: Annual Community Events are primarily a CDM function, needs identified that are unable to be met by CDM and/or support staff are directed to the appropriate internal department. Response to customer within two business days.
A14: In-Office Customer Engagement (2013-2015) | B14: On average InnPower services 6,000 walk-in customers annually. Common customer inquiries are around: 1. Understanding bills and establishing payment arrangements 2. CDM, FIT and microFIT Program information 3. E-Billing/Customer Connect | C14: Front desk staff explain bills and accept payments, address customer inquiries or connect customer with appropriate department. Where possible staff from applicable department can be made available to address customer needs immediately, otherwise response is communicated through a phone call, email and/or scheduled appointment.
A15: CDM On-Site Visits (2013-2015) -InnPower Roving Energy Manager (REM) -InnPower CDM Representative | B15: 1. REM customer energy assessments, recommend efficiency improvement opportunities. 2. Assistance in prioritizing efficiency projects, understanding costs, benefits, incentive funding availabe, payback periods, etc. 3. Support with saveONenergy applications. 4. Connect customer with appropriate department should needs outside of CDM need to be addressed. | C15: CDM program information made available on InnPower website. CDM staff available to provide support to customers from recommendation of energy efficiency projects, saveONenergy application submission and saveONenergy incentive payment approval.
A16: Customer Education Literature (2013-2015) | B16: 1. CDM Program, conservation tips, renewable energy information. 2. Electrical safety information. 3. Industry informational material (IESO/OPA, OEB, MOE, etc.) | C16: Relevant literature available in customer service area.
A17: E-Billing/Customer Connect - Online Account Services (2013-2015) | B17: Online access to customer bills and consumption information. | C17: Information related to Customer Connect and E-Billing is actively communicated to walk-in customers via front desk staff. Additionally Customer Connect is communicated through Customer Service staff, CDM staff, bill messaging, community events, etc.. Front Desk and Customer Service staff able to assist customers.
A18: InnPower Public Open House (2015) | B18: 1.Desire to understand the need for, and impacts of new InnPower administrative facility. 2. Facility/departmental tours, overview of departmental functions. 3. Staff available from all departments to address questions. 4. General awareness, conservation and safety information. | C18: Public Open House was held in response to rising levels of interest from customers around InnPower, and new administrative facility. Event aimed to educate customers and showcase high levels of service and reliability provided by InnPower to our community.
A19: Ontario Electricity Support Program (OESP) (2015) | B19: Support required with OESP application submissions. | C19: Hosted a series of 5 information sessions on OESP in the community and at InnPower's administrative facility providing overview of bill impacts to all customers, instruction and support with OESP applications. OESP information communicated through InnPower website, Customer Service staff, bill messaging.
A20: saveONenergy Regional Symposium (2014) | B20: General information on saveONenergy for Business | C20: Collaborative Symposium with neighbouring LDCs and IESO. Included CDM program information, case studies, opportunitiy to engage with LDC staff.
A21: 2017 Rate Overview Session Mrch 9, 2016 | B21: Overview of COS process and projected capital and OM&A budgets | C21: Reviewed key drivers and asked attendees to complete survey
A45: Note: Use "ALT-ENTER" to go to the next line within a cell

Sheet App.2-B_Acct Instructions
A1: General Instructions to MIFRS Appendices
A2: Types of Schedules to File
A4: The purpose of this tab is to provide general instructions. The specific instructions to each appendix are listed in footnotes of each appendix.
A6: The typical applicant is expected to have made capitalization and depreciation policy changes under CGAAP as permitted by the Board on January 1, 2012 or mandated by the Board by January 1, 2013, and adopted IFRS for reporting purposes on January 1, 2015 (transition date January 1, 2014). In general, applicants under the two scenarios should provide the following information in the appendices:
E9: Accounting Policy Changes in 2012 and Adopted IFRS in 2015 | F9: Accounting Policy Changes in 2013 and Adopted IFRS in 2015
E10: (Date of Transition to IFRS 2014)
A11: Information to be filed in 2016 CoS Application | B11: 2016 | C11: Test | E11: MIFRS | F11: MIFRS
B12: 2015 | C12: Bridge | E12: MIFRS | F12: MIFRS
B13: 2014 | C13: Historical | E13: MIFRS and Revised CGAAP* | F13: MIFRS and Revised CGAAP*
B14: 2013 | C14: Historical | E14: Revised CGAAP | F14: CGAAP and Revised CGAAP
B15: 2012 | C15: Historical | E15: CGAAP and Revised CGAAP | F15: CGAAP
B16: 2011 and Prior | C16: Historical | E16: CGAAP | F16: CGAAP
A18: 1) For the year that the applicant implemented changes to its capitalization and depreciation policies (2012 or 2013), the applicant must file two appendices, one before and one after the policy changes.
A21: 2) For the transition year (2014), the applicant may file two appendices, one under Revised CGAAP and one under MIFRS, depending on the materiality of impacts. See the specific instructions under each appendix below for further details.
A26: Appendix 2-BA - Fixed Asset Schedule
A28: Applicants are to provide Appendix 2-BA in accordance with the years and corresponding accounting standards noted in the above table to provide a year over year continuity in fixed assets.
A29: *For the transition year (2014), the applicant should file two appendices, one under Revised CGAAP and one under MIFRS if the change between Revised CGAAP and MIFRS is material. If the change from the accounting standards is not material, the applicant may choose to only provide one appendix under MIFRS. However, the applicant must also indicate the fixed asset net book value balance under Revised CGAAP, the total dollar value of the change and explain why it is not material.
A33: Regulatory Gross Assets of Property, Plant and Equipment
A35: For an applicant that adopted IFRS on January 1, 2015 for financial reporting purposes, the applicant must establish the continuity of historic cost by using the December 31, 2013 regulatory gross assets of property, plant and equipment as the opening January 1, 2014 regulatory gross assets. The applicant must provide schedules (including Appendix 2-BA, Fixed Asset Continuity Schedule) which must identify the following details to substantiate the continuity of historic cost for regulatory purposes:
A38: · December 31, 2013 regulatory gross assets of property, plant and equipment, by asset class; and
A39: · January 1, 2014 regulatory gross assets of property, plant and equipment, by asset class.
A41: Accumulated Depreciation
A43: For an applicant that adopted IFRS on January 1, 2015 for financial reporting purposes, the applicant must establish the continuity of historic cost by using the December 31, 2013 regulatory accumulated depreciation as the opening January 1, 2014 regulatory accumulated depreciation. The applicant must provide schedules (including Appendix 2-BA, Fixed Asset Continuity Schedule) which must identify the following details to substantiate the continuity of historic cost for regulatory purposes:
A46: · December 31, 2013 regulatory accumulated depreciation, by asset class; and
A47: · January 1, 2014 regulatory accumulated depreciation, by asset class.
A49: Appendix 2-C - Depreciation and Amortization
A51: Applicants are to provide Appendix 2-C starting in the year capitalization and depreciation policy changes were implemented in accordance with the years and corresponding accounting standards listed in the above table.
A52: If an applicant changed capitalization and depreciation policies effective January 1, 2012 and adopted IFRS for reporting purposes effective January 1, 2015, the applicant must complete Appendix 2-CA to 2-CF (inclusive).
A53: If an applicant changed capitalization and depreciation policies effective January 1, 2013 and adopted IFRS for reporting purposes effective January 1, 2015, the applicant must complete Appendix 2-CG to 2-CK (inclusive).
A54: *Depreciation accounting policy changes were mandated by the Board by January 1, 2013. These accounting changes should be implemented consistent with the Board’s regulatory accounting policies as set out for MIFRS as contained in the Report of the Board, Transition to International Financial Reporting Standards (EB-2008-0408), the Depreciation Study for Use by Electricity Distributors (EB-2010-0178) and the Revised 2012 Accounting Procedures Handbook for Electricity Distributors. In general, no further changes to an applicant's depreciation policy (i.e. assets' service lives) are expected after the Board mandated changes by January 1, 2013. The set of Appendix CA to CK assumes this to be the case. If the applicant has made any changes to its depreciation policy subsequent to the Board mandated changes, applicants must identify the change, explain the nature of the change, the reason for the change, quantify the impact of the change, and quantify the depreciation expense before and after the change.
A56: Appendix 2-E - Account 1575, IFRS-CGAAP Transitional PP&E Amounts (2-EA), Account 1576, Accounting Changes Under CGAAP (2-EB, 2-EC)
A58: If an applicant changed capitalization and depreciation policies effective January 1, 2012 and adopted IFRS for reporting purposes effective January 1, 2015, the applicant must complete Appendix 2-EA and 2-EB. If the applicant did not make any further PP&E accounting policy changes beyond the capitalization and depreciation policy changes as permitted by the Board on January 1, 2012 (i.e. no further changes made on transition to IFRS), the applicant must indicate this and does not need to complete Appendix 2-EA.
A60: If an applicant changed capitalization and depreciation policies effective January 1, 2013 and adopted IFRS for reporting purposes effective January 1, 2015, the applicant must complete Appendix 2-EA and 2-EC. If the applicant did not make any further PP&E accounting policy changes beyond the capitalization and depreciation policy changes as mandated by the Board by January 1, 2013 (i.e. no further changes made on transition to IFRS), the applicant must indicate this and does not need to complete Appendix 2-EA.
A62: Please refer to section 2.12.4 and 2.12.5 of the Filing Requirements for further details.
A64: Appendix 2-YA - Summary of Impacts to Revenue Requirement from Transition to MIFRS
A66: For applicants adopting MIFRS, the applicants must provide a summary of the dollar impacts of MIFRS to each component of the revenue requirement (e.g. rate base, operating costs, etc), including the overall impact on the proposed revenue requirement. Accordingly, the applicants must identify financial differences and resulting revenue requirement impacts arising from the adoption of MIFRS as compared to CGAAP prior to capitalization and depreciation policy changes.

Sheet Sheet1

Sheet App.2-BA_Fixed Asset Cont
L1: File Number: | M1: =EBNUMBER -> EB-2016-0086
L2: Exhibit:
L3: Tab:
L4: Schedule:
L5: Page:
L7: Date: | M7: 2016-05-20
A9: Appendix 2-BA
A10: Fixed Asset Continuity Schedule 1
E12: Accounting Standard | F12: CGAAP
E13: Year | F13: 2013
D15: Cost | J15: Accumulated Depreciation
A16: CCA Class 2 | B16: OEB Account 3 | C16: Description 3 | D16: Opening Balance | E16: Additions 4 | F16: Disposals | G16: Closing Balance | I16: Opening Balance | J16: Additions | K16: Disposals | L16: Closing Balance | M16: Net Book Value
A17: 12 | B17: 1611 | C17: Computer Software (Formally known as Account 1925) | D17: ='[2]2.6 Fixed Asset Cont Stmt'!$D16 -> 463501.72 | E17: ='[2]2.6 Fixed Asset Cont Stmt'!$E16 -> 177249.6 | F17: ='[2]2.6 Fixed Asset Cont Stmt'!$F16 -> 0 | G17: =D17+E17+F17 -> 640751.32 | I17: ='[2]2.6 Fixed Asset Cont Stmt'!$I$16 -> -342235.44 | J17: ='[2]2.6 Fixed Asset Cont Stmt'!$J$16 -> -95944.42 | K17: ='[2]2.6 Fixed Asset Cont Stmt'!$K$16 -> 0 | L17: =I17+J17+K17 -> -438179.86 | M17: =G17+L17 -> 202571.46
A18: CEC | B18: 1612 | C18: Land Rights (Formally known as Account 1906) | D18: ='[2]2.6 Fixed Asset Cont Stmt'!$D17 -> 982510.18 | E18: ='[2]2.6 Fixed Asset Cont Stmt'!$E17 -> 0 | F18: ='[2]2.6 Fixed Asset Cont Stmt'!$F17 -> 0 | G18: =D18+E18+F18 -> 982510.18 | I18: ='[2]2.6 Fixed Asset Cont Stmt'!$I$17 -> -572921.02 | J18: ='[2]2.6 Fixed Asset Cont Stmt'!$J$17 -> -15126 | K18: ='[2]2.6 Fixed Asset Cont Stmt'!$K$17 -> 0 | L18: =I18+J18+K18 -> -588047.02 | M18: =G18+L18 -> 394463.16
A19: N/A | B19: 1805 | C19: Land | D19: ='[2]2.6 Fixed Asset Cont Stmt'!$D18 -> 792971.28 | E19: ='[2]2.6 Fixed Asset Cont Stmt'!$E18 -> 179065.56 | F19: ='[2]2.6 Fixed Asset Cont Stmt'!$F18 -> 0 | G19: =D19+E19+F19 -> 972036.84 | I19: ='[2]2.6 Fixed Asset Cont Stmt'!$I$18 -> 0 | J19: ='[2]2.6 Fixed Asset Cont Stmt'!$J$18 -> 0 | K19: ='[2]2.6 Fixed Asset Cont Stmt'!$K$18 -> 0 | L19: =I19+J19+K19 -> 0 | M19: =G19+L19 -> 972036.84
A20: 47 | B20: 1808 | C20: Buildings | D20: ='[2]2.6 Fixed Asset Cont Stmt'!$D19 -> 0 | E20: ='[2]2.6 Fixed Asset Cont Stmt'!$E19 -> 0 | F20: ='[2]2.6 Fixed Asset Cont Stmt'!$F19 -> 0 | G20: =D20+E20+F20 -> 0 | I20: ='[2]2.6 Fixed Asset Cont Stmt'!$I$19 -> 0 | J20: ='[2]2.6 Fixed Asset Cont Stmt'!$J$19 -> 0 | K20: ='[2]2.6 Fixed Asset Cont Stmt'!$K$19 -> 0 | L20: =I20+J20+K20 -> 0 | M20: =G20+L20 -> 0
A21: 13 | B21: 1810 | C21: Leasehold Improvements | D21: ='[2]2.6 Fixed Asset Cont Stmt'!$D20 -> 86252 | E21: ='[2]2.6 Fixed Asset Cont Stmt'!$E20 -> 0 | F21: ='[2]2.6 Fixed Asset Cont Stmt'!$F20 -> 0 | G21: 86252 | I21: =-'[2]2.6 Fixed Asset Cont Stmt'!$I20 -> 86252 | J21: =-'[2]2.6 Fixed Asset Cont Stmt'!$J20 -> 0 | K21: =-'[2]2.6 Fixed Asset Cont Stmt'!$K20 -> 0 | L21: 86252 | M21: 172504
A22: 47 | B22: 1815 | C22: Transformer Station Equipment >50 kV | D22: ='[2]2.6 Fixed Asset Cont Stmt'!$D21 -> 0 | E22: ='[2]2.6 Fixed Asset Cont Stmt'!$E21 -> 0 | F22: ='[2]2.6 Fixed Asset Cont Stmt'!$F21 -> 0 | G22: 0 | I22: =-'[2]2.6 Fixed Asset Cont Stmt'!$I21 -> 0 | J22: =-'[2]2.6 Fixed Asset Cont Stmt'!$J21 -> 0 | K22: =-'[2]2.6 Fixed Asset Cont Stmt'!$K21 -> 0 | L22: 0 | M22: 0
A23: 47 | B23: 1820 | C23: Distribution Station Equipment <50 kV | D23: ='[2]2.6 Fixed Asset Cont Stmt'!$D22 -> 4311364.45 | E23: ='[2]2.6 Fixed Asset Cont Stmt'!$E22 -> 164417.71 | F23: ='[2]2.6 Fixed Asset Cont Stmt'!$F22 -> 0 | G23: 4475782.16 | I23: =-'[2]2.6 Fixed Asset Cont Stmt'!$I22 -> 2413615.15 | J23: =-'[2]2.6 Fixed Asset Cont Stmt'!$J22 -> 85926.76 | K23: =-'[2]2.6 Fixed Asset Cont Stmt'!$K22 -> 0 | L23: 2499541.91 | M23: 6975324.07
A24: 47 | B24: 1825 | C24: Storage Battery Equipment | D24: ='[2]2.6 Fixed Asset Cont Stmt'!$D23 -> 0 | E24: ='[2]2.6 Fixed Asset Cont Stmt'!$E23 -> 0 | F24: ='[2]2.6 Fixed Asset Cont Stmt'!$F23 -> 0 | G24: 0 | I24: =-'[2]2.6 Fixed Asset Cont Stmt'!$I23 -> 0 | J24: =-'[2]2.6 Fixed Asset Cont Stmt'!$J23 -> 0 | K24: =-'[2]2.6 Fixed Asset Cont Stmt'!$K23 -> 0 | L24: 0 | M24: 0
A25: 47 | B25: 1830 | C25: Poles, Towers & Fixtures | D25: ='[2]2.6 Fixed Asset Cont Stmt'!$D24 -> 10110986.04 | E25: ='[2]2.6 Fixed Asset Cont Stmt'!$E24 -> 1112471.55 | F25: ='[2]2.6 Fixed Asset Cont Stmt'!$F24 -> -92325.18 | G25: 11131132.41 | I25: =-'[2]2.6 Fixed Asset Cont Stmt'!$I24 -> 4379463.64 | J25: =-'[2]2.6 Fixed Asset Cont Stmt'!$J24 -> 196350.05 | K25: =-'[2]2.6 Fixed Asset Cont Stmt'!$K24 -> -70398.08 | L25: 4505415.61 | M25: 15636548.02
A26: 47 | B26: 1835 | C26: Overhead Conductors & Devices | D26: ='[2]2.6 Fixed Asset Cont Stmt'!$D25 -> 14057885.67 | E26: ='[2]2.6 Fixed Asset Cont Stmt'!$E25 -> 1403523.4 | F26: ='[2]2.6 Fixed Asset Cont Stmt'!$F25 -> -50073.4 | G26: 15411335.67 | I26: =-'[2]2.6 Fixed Asset Cont Stmt'!$I25 -> 7537250.03 | J26: =-'[2]2.6 Fixed Asset Cont Stmt'!$J25 -> 188425.3 | K26: =-'[2]2.6 Fixed Asset Cont Stmt'!$K25 -> -38213.61 | L26: 7687461.72 | M26: =G26+L26 -> 23098797.39
A27: 47 | B27: 1840 | C27: Underground Conduit | D27: ='[2]2.6 Fixed Asset Cont Stmt'!$D26 -> 2440333.38 | E27: ='[2]2.6 Fixed Asset Cont Stmt'!$E26 -> 20539.09 | F27: ='[2]2.6 Fixed Asset Cont Stmt'!$F26 -> 0 | G27: 2460872.47 | I27: =-'[2]2.6 Fixed Asset Cont Stmt'!$I26 -> 549272.55 | J27: =-'[2]2.6 Fixed Asset Cont Stmt'!$J26 -> 66667.86 | K27: =-'[2]2.6 Fixed Asset Cont Stmt'!$K26 -> 0 | L27: 615940.41 | M27: 3076812.88
A28: 47 | B28: 1845 | C28: Underground Conductors & Devices | D28: ='[2]2.6 Fixed Asset Cont Stmt'!$D27 -> 12037278.92 | E28: ='[2]2.6 Fixed Asset Cont Stmt'!$E27 -> 51561.65 | F28: ='[2]2.6 Fixed Asset Cont Stmt'!$F27 -> -18175.07 | G28: 12070665.5 | I28: =-'[2]2.6 Fixed Asset Cont Stmt'!$I27 -> 4579031.38 | J28: =-'[2]2.6 Fixed Asset Cont Stmt'!$J27 -> 243721.91 | K28: =-'[2]2.6 Fixed Asset Cont Stmt'!$K27 -> -8257.87 | L28: 4814495.42 | M28: 16885160.92
A29: 47 | B29: 1850 | C29: Line Transformers | D29: ='[2]2.6 Fixed Asset Cont Stmt'!$D28+'[2]2.6 Fixed Asset Cont Stmt'!$D$29 -> 9075682.21 | E29: ='[2]2.6 Fixed Asset Cont Stmt'!$E28+'[2]2.6 Fixed Asset Cont Stmt'!$E$29 -> 341028.34 | F29: ='[2]2.6 Fixed Asset Cont Stmt'!$F28+'[2]2.6 Fixed Asset Cont Stmt'!$F$29 -> -24519.52 | G29: 9392191.03 | I29: =-'[2]2.6 Fixed Asset Cont Stmt'!$I28-'[2]2.6 Fixed Asset Cont Stmt'!$I$29 -> 5680623.15 | J29: =-'[2]2.6 Fixed Asset Cont Stmt'!$J28-'[2]2.6 Fixed Asset Cont Stmt'!$J$29 -> 136314.89 | K29: =-'[2]2.6 Fixed Asset Cont Stmt'!$K28-'[2]2.6 Fixed Asset Cont Stmt'!$K$29 -> -64833.17 | L29: 5752104.87 | M29: 15144295.9
A30: 47 | B30: 1855 | C30: Services (Overhead & Underground) | D30: ='[2]2.6 Fixed Asset Cont Stmt'!$D30 -> 4238781.24 | E30: ='[2]2.6 Fixed Asset Cont Stmt'!$E30 -> 228275.51 | F30: ='[2]2.6 Fixed Asset Cont Stmt'!$F30 -> 0 | G30: 4467056.75 | I30: =-'[2]2.6 Fixed Asset Cont Stmt'!$I30 -> 1824389.14 | J30: =-'[2]2.6 Fixed Asset Cont Stmt'!$J30 -> 72190.61 | K30: =-'[2]2.6 Fixed Asset Cont Stmt'!$K30 -> 0 | L30: 1896579.75 | M30: 6363636.5
A31: 47 | B31: 1860 | C31: Meters | D31: ='[2]2.6 Fixed Asset Cont Stmt'!$D31 -> 2446555.35 | E31: ='[2]2.6 Fixed Asset Cont Stmt'!$E31 -> 126985.75 | F31: ='[2]2.6 Fixed Asset Cont Stmt'!$F31 -> -18761.58 | G31: 2554779.52 | I31: =-'[2]2.6 Fixed Asset Cont Stmt'!$I31 -> 570645.44 | J31: =-'[2]2.6 Fixed Asset Cont Stmt'!$J31 -> 182147.8 | K31: =-'[2]2.6 Fixed Asset Cont Stmt'!$K31 -> -16357.7 | L31: 736435.54 | M31: 3291215.06
A32: 47 | B32: 1860 | C32: Meters (Smart Meters) | D32: ='[2]2.6 Fixed Asset Cont Stmt'!$D32 -> 0 | E32: ='[2]2.6 Fixed Asset Cont Stmt'!$E32 -> 0 | F32: ='[2]2.6 Fixed Asset Cont Stmt'!$F32 -> 0 | G32: 0 | I32: ='[2]2.6 Fixed Asset Cont Stmt'!$I$32 -> 0 | J32: ='[2]2.6 Fixed Asset Cont Stmt'!$J$32 -> 0 | K32: ='[2]2.6 Fixed Asset Cont Stmt'!$K$32 -> 0 | L32: 0 | M32: 0
A33: N/A | B33: 1905 | C33: Land | D33: ='[2]2.6 Fixed Asset Cont Stmt'!$D33 -> 863610.64 | E33: ='[2]2.6 Fixed Asset Cont Stmt'!$E33 -> 1015496.3 | F33: ='[2]2.6 Fixed Asset Cont Stmt'!$F33 -> -662561.64 | G33: 1216545.3 | I33: ='[2]2.6 Fixed Asset Cont Stmt'!$I$33 -> 0 | J33: ='[2]2.6 Fixed Asset Cont Stmt'!$J$33 -> 0 | K33: ='[2]2.6 Fixed Asset Cont Stmt'!$K$33 -> 0 | L33: 0 | M33: 1216545.3
A34: 47 | B34: 1908 | C34: Buildings & Fixtures | D34: ='[2]2.6 Fixed Asset Cont Stmt'!$D34 -> 744088.66 | E34: ='[2]2.6 Fixed Asset Cont Stmt'!$E34 -> 4303.58 | F34: ='[2]2.6 Fixed Asset Cont Stmt'!$F34 -> 0 | G34: 748392.24 | I34: =-'[2]2.6 Fixed Asset Cont Stmt'!$I34 -> 285190.46 | J34: =-'[2]2.6 Fixed Asset Cont Stmt'!$J34 -> 11324.18 | K34: =-'[2]2.6 Fixed Asset Cont Stmt'!$K34 -> 0 | L34: 296514.64 | M34: 1044906.88
A35: 13 | B35: 1910 | C35: Leasehold Improvements | D35: ='[2]2.6 Fixed Asset Cont Stmt'!$D35 -> 0 | E35: ='[2]2.6 Fixed Asset Cont Stmt'!$E35 -> 0 | F35: ='[2]2.6 Fixed Asset Cont Stmt'!$F35 -> 0 | G35: 0 | I35: ='[2]2.6 Fixed Asset Cont Stmt'!$I$35 -> 0 | J35: ='[2]2.6 Fixed Asset Cont Stmt'!$J$35 -> 0 | K35: ='[2]2.6 Fixed Asset Cont Stmt'!$K$35 -> 0 | L35: 0 | M35: 0
A36: 8 | B36: 1915 | C36: Office Furniture & Equipment (10 years) | D36: ='[2]2.6 Fixed Asset Cont Stmt'!$D36 -> 314602.76 | E36: ='[2]2.6 Fixed Asset Cont Stmt'!$E36 -> 12060 | F36: ='[2]2.6 Fixed Asset Cont Stmt'!$F36 -> 0 | G36: 326662.76 | I36: ='[2]2.6 Fixed Asset Cont Stmt'!$I$36 -> -247407.11 | J36: ='[2]2.6 Fixed Asset Cont Stmt'!$J$36 -> -14563.45 | K36: ='[2]2.6 Fixed Asset Cont Stmt'!$K$36 -> 0 | L36: -261970.56 | M36: 64692.2
A37: 8 | B37: 1915 | C37: Office Furniture & Equipment (8 years) | D37: ='[2]2.6 Fixed Asset Cont Stmt'!$D37 -> 0 | E37: ='[2]2.6 Fixed Asset Cont Stmt'!$E37 -> 0 | F37: ='[2]2.6 Fixed Asset Cont Stmt'!$F37 -> 0 | G37: 0 | I37: =-'[2]2.6 Fixed Asset Cont Stmt'!$I37 -> 0 | J37: =-'[2]2.6 Fixed Asset Cont Stmt'!$J37 -> 0 | K37: =-'[2]2.6 Fixed Asset Cont Stmt'!$K37 -> 0 | L37: 0 | M37: 0
A38: 10 | B38: 1920 | C38: Computer Equipment - Hardware | D38: ='[2]2.6 Fixed Asset Cont Stmt'!$D$39 -> 570318.02 | E38: ='[2]2.6 Fixed Asset Cont Stmt'!$E$39 -> 61163.5 | F38: ='[2]2.6 Fixed Asset Cont Stmt'!$F$39 -> -33392.05 | G38: 598089.47 | I38: ='[2]2.6 Fixed Asset Cont Stmt'!$I$39 -> -387788.75 | J38: ='[2]2.6 Fixed Asset Cont Stmt'!$J$39 -> -66218.02 | K38: ='[2]2.6 Fixed Asset Cont Stmt'!$K$39 -> 33174.01 | L38: -420832.76 | M38: 177256.71
A39: 45 | B39: 1920 | C39: Computer Equip.-Hardware(Post Mar. 22/04) | D39: ='[2]2.6 Fixed Asset Cont Stmt'!$D$40 -> 0 | E39: ='[2]2.6 Fixed Asset Cont Stmt'!$E$40 -> 0 | F39: ='[2]2.6 Fixed Asset Cont Stmt'!$F$40 -> 0 | G39: 0 | I39: ='[2]2.6 Fixed Asset Cont Stmt'!$I$40 -> 0 | J39: ='[2]2.6 Fixed Asset Cont Stmt'!$J$40 -> 0 | K39: ='[2]2.6 Fixed Asset Cont Stmt'!$K$40 -> 0 | L39: 0 | M39: 0
A40: 45.1 | B40: 1920 | C40: Computer Equip.-Hardware(Post Mar. 19/07) | D40: ='[2]2.6 Fixed Asset Cont Stmt'!$D$41 -> 0 | E40: ='[2]2.6 Fixed Asset Cont Stmt'!$E$41 -> 0 | F40: ='[2]2.6 Fixed Asset Cont Stmt'!$F$41 -> 0 | G40: 0 | I40: ='[2]2.6 Fixed Asset Cont Stmt'!$I$41 -> 0 | J40: ='[2]2.6 Fixed Asset Cont Stmt'!$J$41 -> 0 | K40: ='[2]2.6 Fixed Asset Cont Stmt'!$K$41 -> 0 | L40: 0 | M40: 0
A41: 10 | B41: 1930 | C41: Transportation Equipment | D41: ='[2]2.6 Fixed Asset Cont Stmt'!$D42 -> 1167493.23 | E41: ='[2]2.6 Fixed Asset Cont Stmt'!$E42 -> 65100.15 | F41: ='[2]2.6 Fixed Asset Cont Stmt'!$F42 -> 0 | G41: 1232593.38 | I41: =-'[2]2.6 Fixed Asset Cont Stmt'!$I42 -> 598070.48 | J41: =-'[2]2.6 Fixed Asset Cont Stmt'!$J42 -> 144358.04 | K41: =-'[2]2.6 Fixed Asset Cont Stmt'!$K42 -> 0 | L41: 742428.52 | M41: 1975021.9
A42: 8 | B42: 1935 | C42: Stores Equipment | D42: ='[2]2.6 Fixed Asset Cont Stmt'!$D43 -> 36284.95 | E42: ='[2]2.6 Fixed Asset Cont Stmt'!$E43 -> 0 | F42: ='[2]2.6 Fixed Asset Cont Stmt'!$F43 -> 0 | G42: 36284.95 | I42: =-'[2]2.6 Fixed Asset Cont Stmt'!$I43 -> 20437.29 | J42: =-'[2]2.6 Fixed Asset Cont Stmt'!$J43 -> 2445.36 | K42: =-'[2]2.6 Fixed Asset Cont Stmt'!$K43 -> 0 | L42: 22882.65 | M42: 59167.6
A43: 8 | B43: 1940 | C43: Tools, Shop & Garage Equipment | D43: ='[2]2.6 Fixed Asset Cont Stmt'!$D44 -> 500835 | E43: ='[2]2.6 Fixed Asset Cont Stmt'!$E44 -> 8336.94 | F43: ='[2]2.6 Fixed Asset Cont Stmt'!$F44 -> 0 | G43: 509171.94 | I43: =-'[2]2.6 Fixed Asset Cont Stmt'!$I44 -> 225010.46 | J43: =-'[2]2.6 Fixed Asset Cont Stmt'!$J44 -> 37618.38 | K43: =-'[2]2.6 Fixed Asset Cont Stmt'!$K44 -> 0 | L43: 262628.84 | M43: 771800.78
A44: 8 | B44: 1945 | C44: Measurement & Testing Equipment | D44: ='[2]2.6 Fixed Asset Cont Stmt'!$D45 -> 40374.72 | E44: ='[2]2.6 Fixed Asset Cont Stmt'!$E45 -> 5794.24 | F44: ='[2]2.6 Fixed Asset Cont Stmt'!$F45 -> 0 | G44: 46168.96 | I44: =-'[2]2.6 Fixed Asset Cont Stmt'!$I45 -> 17081.9 | J44: =-'[2]2.6 Fixed Asset Cont Stmt'!$J45 -> 3486.3 | K44: =-'[2]2.6 Fixed Asset Cont Stmt'!$K45 -> 0 | L44: 20568.2 | M44: 66737.16
A45: 8 | B45: 1950 | C45: Power Operated Equipment | D45: ='[2]2.6 Fixed Asset Cont Stmt'!$D46 -> 0 | E45: ='[2]2.6 Fixed Asset Cont Stmt'!$E46 -> 0 | F45: ='[2]2.6 Fixed Asset Cont Stmt'!$F46 -> 0 | G45: 0 | I45: ='[2]2.6 Fixed Asset Cont Stmt'!$I$46 -> 0 | J45: ='[2]2.6 Fixed Asset Cont Stmt'!$J$46 -> 0 | K45: ='[2]2.6 Fixed Asset Cont Stmt'!$K$46 -> 0 | L45: 0 | M45: 0
A46: 8 | B46: 1955 | C46: Communications Equipment | D46: ='[2]2.6 Fixed Asset Cont Stmt'!$D47 -> 0 | E46: ='[2]2.6 Fixed Asset Cont Stmt'!$E47 -> 0 | F46: ='[2]2.6 Fixed Asset Cont Stmt'!$F47 -> 0 | G46: 0 | I46: ='[2]2.6 Fixed Asset Cont Stmt'!$I$47 -> 0 | J46: ='[2]2.6 Fixed Asset Cont Stmt'!$J$47 -> 0 | K46: ='[2]2.6 Fixed Asset Cont Stmt'!$K$47 -> 0 | L46: 0 | M46: 0
A47: 8 | B47: 1955 | C47: Communication Equipment (Smart Meters) | D47: ='[2]2.6 Fixed Asset Cont Stmt'!$D48 -> 0 | E47: ='[2]2.6 Fixed Asset Cont Stmt'!$E48 -> 0 | F47: ='[2]2.6 Fixed Asset Cont Stmt'!$F48 -> 0 | G47: 0 | I47: ='[2]2.6 Fixed Asset Cont Stmt'!$I$48 -> 0 | J47: ='[2]2.6 Fixed Asset Cont Stmt'!$J$48 -> 0 | K47: ='[2]2.6 Fixed Asset Cont Stmt'!$K$48 -> 0 | L47: 0 | M47: 0
A48: 8 | B48: 1960 | C48: Miscellaneous Equipment | D48: ='[2]2.6 Fixed Asset Cont Stmt'!$D49 -> 0 | E48: ='[2]2.6 Fixed Asset Cont Stmt'!$E49 -> 0 | F48: ='[2]2.6 Fixed Asset Cont Stmt'!$F49 -> 0 | G48: 0 | I48: ='[2]2.6 Fixed Asset Cont Stmt'!$I$49 -> 0 | J48: ='[2]2.6 Fixed Asset Cont Stmt'!$J$49 -> 0 | K48: ='[2]2.6 Fixed Asset Cont Stmt'!$K$49 -> 0 | L48: 0 | M48: 0
A49: 47 | B49: 1970 | C49: Load Management Controls Customer Premises | D49: ='[2]2.6 Fixed Asset Cont Stmt'!$D50 -> 0 | E49: ='[2]2.6 Fixed Asset Cont Stmt'!$E50 -> 0 | F49: ='[2]2.6 Fixed Asset Cont Stmt'!$F50 -> 0 | G49: 0 | I49: ='[2]2.6 Fixed Asset Cont Stmt'!$I$50 -> 0 | J49: ='[2]2.6 Fixed Asset Cont Stmt'!$J$50 -> 0 | K49: ='[2]2.6 Fixed Asset Cont Stmt'!$K$50 -> 0 | L49: 0 | M49: 0
A50: 47 | B50: 1975 | C50: Load Management Controls Utility Premises | D50: ='[2]2.6 Fixed Asset Cont Stmt'!$D51 -> 0 | E50: ='[2]2.6 Fixed Asset Cont Stmt'!$E51 -> 0 | F50: ='[2]2.6 Fixed Asset Cont Stmt'!$F51 -> 0 | G50: 0 | I50: ='[2]2.6 Fixed Asset Cont Stmt'!$I$51 -> 0 | J50: ='[2]2.6 Fixed Asset Cont Stmt'!$J$51 -> 0 | K50: ='[2]2.6 Fixed Asset Cont Stmt'!$K$51 -> 0 | L50: 0 | M50: 0
A51: 47 | B51: 1980 | C51: System Supervisor Equipment | D51: ='[2]2.6 Fixed Asset Cont Stmt'!$D52 -> 1692883.1 | E51: ='[2]2.6 Fixed Asset Cont Stmt'!$E52 -> 202625.3 | F51: ='[2]2.6 Fixed Asset Cont Stmt'!$F52 -> 0 | G51: 1895508.4 | I51: =-'[2]2.6 Fixed Asset Cont Stmt'!$I52 -> 887493.9 | J51: =-'[2]2.6 Fixed Asset Cont Stmt'!$J52 -> 112506.33 | K51: =-'[2]2.6 Fixed Asset Cont Stmt'!$K52 -> 0 | L51: 1000000.23 | M51: 2895508.63
A52: 47 | B52: 1985 | C52: Miscellaneous Fixed Assets | D52: ='[2]2.6 Fixed Asset Cont Stmt'!$D53 -> 0 | E52: ='[2]2.6 Fixed Asset Cont Stmt'!$E53 -> 0 | F52: ='[2]2.6 Fixed Asset Cont Stmt'!$F53 -> 0 | G52: 0 | I52: ='[2]2.6 Fixed Asset Cont Stmt'!$I$53 -> 0 | J52: ='[2]2.6 Fixed Asset Cont Stmt'!$J$53 -> 0 | K52: ='[2]2.6 Fixed Asset Cont Stmt'!$K$53 -> 0 | L52: 0 | M52: 0
A53: 47 | B53: 1990 | C53: Other Tangible Property | D53: ='[2]2.6 Fixed Asset Cont Stmt'!$D54 -> 0 | E53: ='[2]2.6 Fixed Asset Cont Stmt'!$E54 -> 0 | F53: ='[2]2.6 Fixed Asset Cont Stmt'!$F54 -> 0 | G53: 0 | I53: ='[2]2.6 Fixed Asset Cont Stmt'!$I$54 -> 0 | J53: ='[2]2.6 Fixed Asset Cont Stmt'!$J$54 -> 0 | K53: ='[2]2.6 Fixed Asset Cont Stmt'!$K$54 -> 0 | L53: 0 | M53: 0
A54: 47 | B54: 1995 | C54: Contributions & Grants | D54: ='[2]2.6 Fixed Asset Cont Stmt'!$D55 -> -9364011.73 | E54: ='[2]2.6 Fixed Asset Cont Stmt'!$E55 -> -428862.62 | F54: ='[2]2.6 Fixed Asset Cont Stmt'!$F55 -> 0 | G54: -9792874.35 | I54: =-'[2]2.6 Fixed Asset Cont Stmt'!$I55 -> -1793095.54 | J54: =-'[2]2.6 Fixed Asset Cont Stmt'!$J55 -> -243767.61 | K54: =-'[2]2.6 Fixed Asset Cont Stmt'!$K55 -> 0 | L54: -2036863.15 | M54: -11829737.5
A55: 47 | B55: 2440 | C55: Deferred Revenue5
G56: 0 | L56: 0 | M56: 0
C57: Sub-Total | D57: =SUM(D17:D56) -> 57610581.79 | E57: =SUM(E17:E56) -> 4751135.55 | F57: =SUM(F17:F56) -> -899808.44 | G57: =SUM(G17:G56) -> 61461908.9 | I57: =SUM(I17:I56) -> 26310379.11 | J57: =SUM(J17:J56) -> 1047864.27 | K57: =SUM(K17:K56) -> -164886.42 | L57: =SUM(L17:L56) -> 27193356.96 | M57: =SUM(M17:M56) -> 88655265.86
C58: Less Socialized Renewable Energy Generation Investments (input as negative) | D58: ='[2]2.6 Fixed Asset Cont Stmt'!$D$68 -> 0 | E58: ='[2]2.6 Fixed Asset Cont Stmt'!$E$68 -> 0 | F58: ='[2]2.6 Fixed Asset Cont Stmt'!$F$68 -> 0 | G58: =D58+E58+F58 -> 0 | I58: ='[2]2.6 Fixed Asset Cont Stmt'!$I$68 -> 0 | J58: ='[2]2.6 Fixed Asset Cont Stmt'!$J$68 -> 0 | K58: ='[2]2.6 Fixed Asset Cont Stmt'!$K$68 -> 0 | L58: =I58+J58+K58 -> 0 | M58: =G58+L58 -> 0
C59: Less Other Non Rate-Regulated Utility Assets (input as negative) | D59: ='[2]2.6 Fixed Asset Cont Stmt'!$D$69 -> 0 | E59: ='[2]2.6 Fixed Asset Cont Stmt'!$E$69 -> 0 | F59: ='[2]2.6 Fixed Asset Cont Stmt'!$F$69 -> 0 | G59: 0 | I59: ='[2]2.6 Fixed Asset Cont Stmt'!$I$69 -> 0 | J59: ='[2]2.6 Fixed Asset Cont Stmt'!$J$69 -> 0 | K59: ='[2]2.6 Fixed Asset Cont Stmt'!$K$69 -> 0 | L59: 0 | M59: 0
C60: Total PP&E | D60: =SUM(D57:D59) -> 57610581.79 | E60: =SUM(E57:E59) -> 4751135.55 | F60: -899808.44 | G60: 61461908.9 | I60: =SUM(I57:I59) -> 26310379.11 | J60: 1047864.27 | K60: -164886.42 | L60: 27193356.96 | M60: 88655265.86
C61: Depreciation Expense adj. from gain or loss on the retirement of assets (pool of like assets), if applicable6
C62: Total | J62: =J60+J61 -> 1047864.27
I64: Less: Fully Allocated Depreciation
A65: 10 | C65: Transportation | I65: Transportation | K65: ='[2]2.6 Fixed Asset Cont Stmt'!$J$75 -> -144358.04
A66: 8 | C66: Stores Equipment | I66: Stores Equipment
I67: Net Depreciation | K67: =J62-K65-K66 -> 1192222.31
A69: Notes:
A71: 1 | B71: Tables in the format outlined above covering all fixed asset accounts should be submitted for the Test Year, Bridge Year and all relevant historical years. At a minimum , the applicant must provide data for the earlier of: 1) all historical years back to its last rebasing; or 2) at least three years of historical actuals, in addition to Bridge Year and Test Year forecasts.
A74: 2 | B74: The "CCA Class" for fixed assets should agree with the CCA Class used for tax purposes in Tax Returns. Fixed Assets sub-components may be used where the underlying asset components are classified under multiple CCA Classes for tax purposes. If an applicant uses any different classes from those shown in the table, an explanation should be provided. (also see note 3).
A77: 3 | B77: The table may need to be customized for a utility's asset categories or for any new asset accounts announced or authorized by the Board.
A79: 4 | B79: The additions in column (E) must not include construction work in progress (CWIP).
A81: 5 | B81: Effective on the date of IFRS adoption, customer contributions will no longer be recorded in Account 1995 Contributions & Grants, but will be recorded in Account 2440, Deferred Revenues.
A83: 6 | B83: Where a distributor for general financial reporting purposes under IFRS has accounted for the amount of gain or loss on the retirement of assets in a pool of like assets as a charge or credit to income, for reporting and rate application filings, the distributor shall reclassify such gains and losses as depreciation expense, and disclose the amount separately.
L87: File Number: | M87: =EBNUMBER -> EB-2016-0086
L88: Exhibit:
L89: Tab:
L90: Schedule:
L91: Page:
L93: Date:
A95: Appendix 2-BA
A96: Fixed Asset Continuity Schedule 1
E98: Accounting Standard | F98: CGAAP
E99: Year | F99: 2014
D101: Cost | J101: Accumulated Depreciation
A102: CCA Class 2 | B102: OEB Account 3 | C102: Description 3 | D102: Opening Balance | E102: Additions 4 | F102: Disposals | G102: Closing Balance | I102: Opening Balance | J102: Additions | K102: Disposals | L102: Closing Balance | M102: Net Book Value
A103: 12 | B103: 1611 | C103: Computer Software (Formally known as Account 1925) | D103: ='[2]2.6 Fixed Asset Cont Stmt'!$D$86 -> 202571.46 | E103: ='[2]2.6 Fixed Asset Cont Stmt'!$E$86 -> 198584.75 | F103: ='[2]2.6 Fixed Asset Cont Stmt'!$F$86 -> 0 | G103: =D103+E103+F103 -> 401156.21 | I103: ='[2]2.6 Fixed Asset Cont Stmt'!$I$86 -> 0 | J103: ='[2]2.6 Fixed Asset Cont Stmt'!$J$86 -> -133980.8 | K103: ='[2]2.6 Fixed Asset Cont Stmt'!$K$86 -> 0 | L103: =I103+J103+K103 -> -133980.8 | M103: =G103+L103 -> 267175.41
A104: CEC | B104: 1612 | C104: Land Rights (Formally known as Account 1906) | D104: ='[2]2.6 Fixed Asset Cont Stmt'!$D$87 -> 394463.16 | E104: ='[2]2.6 Fixed Asset Cont Stmt'!$E$87 -> 0 | F104: ='[2]2.6 Fixed Asset Cont Stmt'!$F$87 -> 0 | G104: =D104+E104+F104 -> 394463.16 | I104: ='[2]2.6 Fixed Asset Cont Stmt'!$I$87 -> 0 | J104: ='[2]2.6 Fixed Asset Cont Stmt'!$J$87 -> -15126 | K104: ='[2]2.6 Fixed Asset Cont Stmt'!$K$87 -> 0 | L104: =I104+J104+K104 -> -15126 | M104: =G104+L104 -> 379337.16
A105: N/A | B105: 1805 | C105: Land | D105: ='[2]2.6 Fixed Asset Cont Stmt'!$D$88 -> 972036.84 | E105: ='[2]2.6 Fixed Asset Cont Stmt'!$E$88 -> 0 | F105: ='[2]2.6 Fixed Asset Cont Stmt'!$F$88 -> 0 | G105: =D105+E105+F105 -> 972036.84 | I105: ='[2]2.6 Fixed Asset Cont Stmt'!$I$88 -> 0 | J105: ='[2]2.6 Fixed Asset Cont Stmt'!$J$88 -> 0 | K105: ='[2]2.6 Fixed Asset Cont Stmt'!$K$88 -> 0 | L105: =I105+J105+K105 -> 0 | M105: =G105+L105 -> 972036.84
A106: 47 | B106: 1808 | C106: Buildings | D106: ='[2]2.6 Fixed Asset Cont Stmt'!$D$89 -> 0 | E106: ='[2]2.6 Fixed Asset Cont Stmt'!$E$89 -> 0 | F106: ='[2]2.6 Fixed Asset Cont Stmt'!$F$89 -> 0 | G106: =D106+E106+F106 -> 0 | I106: ='[2]2.6 Fixed Asset Cont Stmt'!$I$89 -> 0 | J106: ='[2]2.6 Fixed Asset Cont Stmt'!$J$89 -> 0 | K106: ='[2]2.6 Fixed Asset Cont Stmt'!$K$89 -> 0 | L106: =I106+J106+K106 -> 0 | M106: =G106+L106 -> 0
A107: 13 | B107: 1810 | C107: Leasehold Improvements | D107: ='[2]2.6 Fixed Asset Cont Stmt'!$D$90 -> 0 | E107: ='[2]2.6 Fixed Asset Cont Stmt'!$E$90 -> 0 | F107: ='[2]2.6 Fixed Asset Cont Stmt'!$F$90 -> 0 | G107: 0 | I107: ='[2]2.6 Fixed Asset Cont Stmt'!$I$90 -> 0 | J107: ='[2]2.6 Fixed Asset Cont Stmt'!$J$90 -> 0 | K107: ='[2]2.6 Fixed Asset Cont Stmt'!$K$90 -> 0 | L107: 0 | M107: 0
A108: 47 | B108: 1815 | C108: Transformer Station Equipment >50 kV | D108: ='[2]2.6 Fixed Asset Cont Stmt'!$D$91 -> 0 | E108: ='[2]2.6 Fixed Asset Cont Stmt'!$E$91 -> 0 | F108: ='[2]2.6 Fixed Asset Cont Stmt'!$F$91 -> 0 | G108: 0 | I108: ='[2]2.6 Fixed Asset Cont Stmt'!$I$91 -> 0 | J108: ='[2]2.6 Fixed Asset Cont Stmt'!$J$91 -> 0 | K108: ='[2]2.6 Fixed Asset Cont Stmt'!$K$91 -> 0 | L108: 0 | M108: 0
A109: 47 | B109: 1820 | C109: Distribution Station Equipment <50 kV | D109: ='[2]2.6 Fixed Asset Cont Stmt'!$D$92 -> 1976240.25 | E109: ='[2]2.6 Fixed Asset Cont Stmt'!$E$92 -> 2895486.45 | F109: ='[2]2.6 Fixed Asset Cont Stmt'!$F$92 -> -162802.38 | G109: 4708924.32 | I109: ='[2]2.6 Fixed Asset Cont Stmt'!$I$92 -> 0 | J109: ='[2]2.6 Fixed Asset Cont Stmt'!$J$92 -> -133796.77 | K109: ='[2]2.6 Fixed Asset Cont Stmt'!$K$92 -> 0 | L109: -133796.77 | M109: 4575127.55
A110: 47 | B110: 1825 | C110: Storage Battery Equipment | D110: ='[2]2.6 Fixed Asset Cont Stmt'!$D$93 -> 0 | E110: ='[2]2.6 Fixed Asset Cont Stmt'!$E$93 -> 0 | F110: ='[2]2.6 Fixed Asset Cont Stmt'!$F$93 -> 0 | G110: 0 | I110: ='[2]2.6 Fixed Asset Cont Stmt'!$I$93 -> 0 | J110: ='[2]2.6 Fixed Asset Cont Stmt'!$J$93 -> 0 | K110: ='[2]2.6 Fixed Asset Cont Stmt'!$K$93 -> 0 | L110: 0 | M110: 0
A111: 47 | B111: 1830 | C111: Poles, Towers & Fixtures | D111: ='[2]2.6 Fixed Asset Cont Stmt'!$D$94 -> 6625716.8 | E111: ='[2]2.6 Fixed Asset Cont Stmt'!$E$94 -> 576010.85 | F111: ='[2]2.6 Fixed Asset Cont Stmt'!$F$94 -> -11013.24 | G111: 7190714.41 | I111: ='[2]2.6 Fixed Asset Cont Stmt'!$I$94 -> 0 | J111: ='[2]2.6 Fixed Asset Cont Stmt'!$J$94 -> -214178.88 | K111: ='[2]2.6 Fixed Asset Cont Stmt'!$K$94 -> 0 | L111: -214178.88 | M111: 6976535.53
A112: 47 | B112: 1835 | C112: Overhead Conductors & Devices | D112: ='[2]2.6 Fixed Asset Cont Stmt'!$D$95 -> 7723873.95 | E112: ='[2]2.6 Fixed Asset Cont Stmt'!$E$95 -> 724698.04 | F112: ='[2]2.6 Fixed Asset Cont Stmt'!$F$95 -> -8975.88 | G112: 8439596.11 | I112: ='[2]2.6 Fixed Asset Cont Stmt'!$I$95 -> 0 | J112: ='[2]2.6 Fixed Asset Cont Stmt'!$J$95 -> -206930.88 | K112: ='[2]2.6 Fixed Asset Cont Stmt'!$K$95 -> 0 | L112: -206930.88 | M112: =G112+L112 -> 8232665.23
A113: 47 | B113: 1840 | C113: Underground Conduit | D113: ='[2]2.6 Fixed Asset Cont Stmt'!$D$96 -> 1844932.06 | E113: ='[2]2.6 Fixed Asset Cont Stmt'!$E$96 -> 320502.08 | F113: ='[2]2.6 Fixed Asset Cont Stmt'!$F$96 -> 0 | G113: 2165434.14 | I113: ='[2]2.6 Fixed Asset Cont Stmt'!$I$96 -> 0 | J113: ='[2]2.6 Fixed Asset Cont Stmt'!$J$96 -> -70930.88 | K113: ='[2]2.6 Fixed Asset Cont Stmt'!$K$96 -> 0 | L113: -70930.88 | M113: =G113+L113 -> 2094503.26
A114: 47 | B114: 1845 | C114: Underground Conductors & Devices | D114: ='[2]2.6 Fixed Asset Cont Stmt'!$D$97 -> 7256170.08 | E114: ='[2]2.6 Fixed Asset Cont Stmt'!$E$97 -> 279956.42 | F114: ='[2]2.6 Fixed Asset Cont Stmt'!$F$97 -> -6673.96 | G114: 7529452.54 | I114: ='[2]2.6 Fixed Asset Cont Stmt'!$I$97 -> 0 | J114: ='[2]2.6 Fixed Asset Cont Stmt'!$J$97 -> -247482.95 | K114: ='[2]2.6 Fixed Asset Cont Stmt'!$K$97 -> 0 | L114: -247482.95 | M114: 7281969.59
A115: 47 | B115: 1850 | C115: Line Transformers | D115: ='[2]2.6 Fixed Asset Cont Stmt'!$D$98 -> 3640086.16 | E115: ='[2]2.6 Fixed Asset Cont Stmt'!$E$98 -> 556533.29 | F115: ='[2]2.6 Fixed Asset Cont Stmt'!$F$98 -> -70900.95 | G115: 4125718.5 | I115: ='[2]2.6 Fixed Asset Cont Stmt'!$I$98 -> 0 | J115: ='[2]2.6 Fixed Asset Cont Stmt'!$J$98 -> -146575.75 | K115: ='[2]2.6 Fixed Asset Cont Stmt'!$K$98 -> 0 | L115: -146575.75 | M115: 3979142.75
A116: 47 | B116: 1855 | C116: Services (Overhead & Underground) | D116: ='[2]2.6 Fixed Asset Cont Stmt'!$D$99 -> 2570477 | E116: ='[2]2.6 Fixed Asset Cont Stmt'!$E$99 -> 519763.79 | F116: ='[2]2.6 Fixed Asset Cont Stmt'!$F$99 -> -2092.14 | G116: 3088148.65 | I116: ='[2]2.6 Fixed Asset Cont Stmt'!$I$99 -> 0 | J116: ='[2]2.6 Fixed Asset Cont Stmt'!$J$99 -> -81169.09 | K116: ='[2]2.6 Fixed Asset Cont Stmt'!$K$99 -> 0 | L116: -81169.09 | M116: 3006979.56
A117: 47 | B117: 1860 | C117: Meters | D117: ='[2]2.6 Fixed Asset Cont Stmt'!$D$100 -> 1818343.98 | E117: ='[2]2.6 Fixed Asset Cont Stmt'!$E$100 -> 131826.75 | F117: ='[2]2.6 Fixed Asset Cont Stmt'!$F$100 -> -46365 | G117: 1903805.73 | I117: ='[2]2.6 Fixed Asset Cont Stmt'!$I$100 -> 0 | J117: ='[2]2.6 Fixed Asset Cont Stmt'!$J$100 -> -176031.72 | K117: ='[2]2.6 Fixed Asset Cont Stmt'!$K$100 -> 0 | L117: -176031.72 | M117: 1727774.01
A118: 47 | B118: 1860 | C118: Meters (Smart Meters) | D118: ='[2]2.6 Fixed Asset Cont Stmt'!$D$101 -> 0 | E118: ='[2]2.6 Fixed Asset Cont Stmt'!$E$101 -> 0 | F118: ='[2]2.6 Fixed Asset Cont Stmt'!$F$101 -> 0 | G118: 0 | I118: ='[2]2.6 Fixed Asset Cont Stmt'!$I$101 -> 0 | J118: ='[2]2.6 Fixed Asset Cont Stmt'!$J$101 -> 0 | K118: ='[2]2.6 Fixed Asset Cont Stmt'!$K$101 -> 0 | L118: 0 | M118: 0
A119: N/A | B119: 1905 | C119: Land | D119: ='[2]2.6 Fixed Asset Cont Stmt'!$D$102 -> 1216545.3 | E119: ='[2]2.6 Fixed Asset Cont Stmt'!$E$102 -> 0 | F119: ='[2]2.6 Fixed Asset Cont Stmt'!$F$102 -> 0 | G119: 1216545.3 | I119: ='[2]2.6 Fixed Asset Cont Stmt'!$I$102 -> 0 | J119: ='[2]2.6 Fixed Asset Cont Stmt'!$J$102 -> 0 | K119: ='[2]2.6 Fixed Asset Cont Stmt'!$K$102 -> 0 | L119: 0 | M119: 1216545.3
A120: 47 | B120: 1908 | C120: Buildings & Fixtures | D120: ='[2]2.6 Fixed Asset Cont Stmt'!$D$103 -> 451877.6 | E120: ='[2]2.6 Fixed Asset Cont Stmt'!$F$103 -> 0 | F120: ='[2]2.6 Fixed Asset Cont Stmt'!$F$103 -> 0 | G120: 451877.6 | I120: ='[2]2.6 Fixed Asset Cont Stmt'!$I$103 -> 0 | J120: ='[2]2.6 Fixed Asset Cont Stmt'!$J$103 -> -11367.21 | K120: ='[2]2.6 Fixed Asset Cont Stmt'!$K$103 -> 0 | L120: -11367.21 | M120: 440510.39
A121: 13 | B121: 1910 | C121: Leasehold Improvements | D121: ='[2]2.6 Fixed Asset Cont Stmt'!$D$104 -> 0 | E121: ='[2]2.6 Fixed Asset Cont Stmt'!$F$104 -> 0 | F121: ='[2]2.6 Fixed Asset Cont Stmt'!$F$104 -> 0 | G121: 0 | I121: ='[2]2.6 Fixed Asset Cont Stmt'!$I$104 -> 0 | J121: ='[2]2.6 Fixed Asset Cont Stmt'!$J$104 -> 0 | K121: ='[2]2.6 Fixed Asset Cont Stmt'!$K$104 -> 0 | L121: 0 | M121: 0
A122: 8 | B122: 1915 | C122: Office Furniture & Equipment (10 years) | D122: ='[2]2.6 Fixed Asset Cont Stmt'!$D$105 -> 64692.2 | E122: ='[2]2.6 Fixed Asset Cont Stmt'!$E$105 -> 9292 | F122: ='[2]2.6 Fixed Asset Cont Stmt'!$F$105 -> 0 | G122: 73984.2 | I122: ='[2]2.6 Fixed Asset Cont Stmt'!$I$105 -> 0 | J122: ='[2]2.6 Fixed Asset Cont Stmt'!$J$105 -> -14034 | K122: ='[2]2.6 Fixed Asset Cont Stmt'!$K$105 -> 0 | L122: -14034 | M122: 59950.2
A123: 8 | B123: 1915 | C123: Office Furniture & Equipment (8 years) | D123: ='[2]2.6 Fixed Asset Cont Stmt'!$D$106 -> 0 | E123: ='[2]2.6 Fixed Asset Cont Stmt'!$E$106 -> 0 | F123: ='[2]2.6 Fixed Asset Cont Stmt'!$F$106 -> 0 | G123: 0 | I123: ='[2]2.6 Fixed Asset Cont Stmt'!$I$106 -> 0 | J123: ='[2]2.6 Fixed Asset Cont Stmt'!$J$106 -> 0 | K123: ='[2]2.6 Fixed Asset Cont Stmt'!$K$106 -> 0 | L123: 0 | M123: 0
A124: 10 | B124: 1920 | C124: Computer Equipment - Hardware | D124: ='[2]2.6 Fixed Asset Cont Stmt'!$D$108 -> 177256.71 | E124: ='[2]2.6 Fixed Asset Cont Stmt'!$E$108 -> 80063.46 | F124: ='[2]2.6 Fixed Asset Cont Stmt'!$F$108 -> 0 | G124: 257320.17 | I124: ='[2]2.6 Fixed Asset Cont Stmt'!$I$108 -> 0 | J124: ='[2]2.6 Fixed Asset Cont Stmt'!$J$108 -> -70671.01 | K124: ='[2]2.6 Fixed Asset Cont Stmt'!$K$108 -> 0 | L124: -70671.01 | M124: 186649.16
A125: 45 | B125: 1920 | C125: Computer Equip.-Hardware(Post Mar. 22/04) | D125: ='[2]2.6 Fixed Asset Cont Stmt'!$D$109 -> 0 | E125: ='[2]2.6 Fixed Asset Cont Stmt'!$E$109 -> 0 | F125: ='[2]2.6 Fixed Asset Cont Stmt'!$F$109 -> 0 | G125: 0 | I125: ='[2]2.6 Fixed Asset Cont Stmt'!$I$109 -> 0 | J125: ='[2]2.6 Fixed Asset Cont Stmt'!$J$109 -> 0 | K125: ='[2]2.6 Fixed Asset Cont Stmt'!$K$109 -> 0 | L125: 0 | M125: 0
A126: 45.1 | B126: 1920 | C126: Computer Equip.-Hardware(Post Mar. 19/07) | D126: ='[2]2.6 Fixed Asset Cont Stmt'!$D$110 -> 0 | E126: ='[2]2.6 Fixed Asset Cont Stmt'!$E$110 -> 0 | F126: ='[2]2.6 Fixed Asset Cont Stmt'!$F$110 -> 0 | G126: 0 | I126: ='[2]2.6 Fixed Asset Cont Stmt'!$I$110 -> 0 | J126: ='[2]2.6 Fixed Asset Cont Stmt'!$J$110 -> 0 | K126: ='[2]2.6 Fixed Asset Cont Stmt'!$K$110 -> 0 | L126: 0 | M126: 0
A127: 10 | B127: 1930 | C127: Transportation Equipment | D127: ='[2]2.6 Fixed Asset Cont Stmt'!$D$111 -> 490164.86 | E127: ='[2]2.6 Fixed Asset Cont Stmt'!$E$111 -> 3267.67 | F127: ='[2]2.6 Fixed Asset Cont Stmt'!$F$111 -> 0 | G127: 493432.53 | I127: ='[2]2.6 Fixed Asset Cont Stmt'!$I$111 -> 0 | J127: ='[2]2.6 Fixed Asset Cont Stmt'!$J$111 -> -139931.45 | K127: ='[2]2.6 Fixed Asset Cont Stmt'!$K$111 -> 0 | L127: -139931.45 | M127: 353501.08
A128: 8 | B128: 1935 | C128: Stores Equipment | D128: ='[2]2.6 Fixed Asset Cont Stmt'!$D$112 -> 13402.3 | E128: ='[2]2.6 Fixed Asset Cont Stmt'!$E$112 -> 4787.59 | F128: ='[2]2.6 Fixed Asset Cont Stmt'!$F$112 -> 0 | G128: 18189.89 | I128: ='[2]2.6 Fixed Asset Cont Stmt'!$I$112 -> 0 | J128: ='[2]2.6 Fixed Asset Cont Stmt'!$J$112 -> -2588.65 | K128: ='[2]2.6 Fixed Asset Cont Stmt'!$K$112 -> 0 | L128: -2588.65 | M128: 15601.24
A129: 8 | B129: 1940 | C129: Tools, Shop & Garage Equipment | D129: ='[2]2.6 Fixed Asset Cont Stmt'!$D$113 -> 246543.1 | E129: ='[2]2.6 Fixed Asset Cont Stmt'!$E$113 -> 17552.58 | F129: ='[2]2.6 Fixed Asset Cont Stmt'!$F$113 -> 0 | G129: 264095.68 | I129: ='[2]2.6 Fixed Asset Cont Stmt'!$I$113 -> 0 | J129: ='[2]2.6 Fixed Asset Cont Stmt'!$J$113 -> -38485.83 | K129: ='[2]2.6 Fixed Asset Cont Stmt'!$K$113 -> 0 | L129: -38485.83 | M129: 225609.85
A130: 8 | B130: 1945 | C130: Measurement & Testing Equipment | D130: ='[2]2.6 Fixed Asset Cont Stmt'!$D$114 -> 25600.76 | E130: ='[2]2.6 Fixed Asset Cont Stmt'!$E$114 -> 4066.7 | F130: ='[2]2.6 Fixed Asset Cont Stmt'!$F$114 -> 0 | G130: 29667.46 | I130: ='[2]2.6 Fixed Asset Cont Stmt'!$I$114 -> 0 | J130: ='[2]2.6 Fixed Asset Cont Stmt'!$J$114 -> -3979.35 | K130: ='[2]2.6 Fixed Asset Cont Stmt'!$K$114 -> 0 | L130: -3979.35 | M130: 25688.11
A131: 8 | B131: 1950 | C131: Power Operated Equipment | D131: ='[2]2.6 Fixed Asset Cont Stmt'!$D$115 -> 0 | E131: ='[2]2.6 Fixed Asset Cont Stmt'!$E$115 -> 0 | F131: ='[2]2.6 Fixed Asset Cont Stmt'!$F$115 -> 0 | G131: 0 | I131: ='[2]2.6 Fixed Asset Cont Stmt'!$I$115 -> 0 | J131: ='[2]2.6 Fixed Asset Cont Stmt'!$J$115 -> 0 | K131: ='[2]2.6 Fixed Asset Cont Stmt'!$K$115 -> 0 | L131: 0 | M131: 0
A132: 8 | B132: 1955 | C132: Communications Equipment | D132: ='[2]2.6 Fixed Asset Cont Stmt'!$D$116 -> 0 | E132: ='[2]2.6 Fixed Asset Cont Stmt'!$E$116 -> 0 | F132: ='[2]2.6 Fixed Asset Cont Stmt'!$F$116 -> 0 | G132: 0 | I132: ='[2]2.6 Fixed Asset Cont Stmt'!$I$116 -> 0 | J132: ='[2]2.6 Fixed Asset Cont Stmt'!$J$116 -> 0 | K132: ='[2]2.6 Fixed Asset Cont Stmt'!$K$116 -> 0 | L132: 0 | M132: 0
A133: 8 | B133: 1955 | C133: Communication Equipment (Smart Meters) | D133: ='[2]2.6 Fixed Asset Cont Stmt'!$D$117 -> 0 | E133: ='[2]2.6 Fixed Asset Cont Stmt'!$E$117 -> 0 | F133: ='[2]2.6 Fixed Asset Cont Stmt'!$F$117 -> 0 | G133: 0 | I133: ='[2]2.6 Fixed Asset Cont Stmt'!$I$117 -> 0 | J133: ='[2]2.6 Fixed Asset Cont Stmt'!$J$117 -> 0 | K133: ='[2]2.6 Fixed Asset Cont Stmt'!$K$117 -> 0 | L133: 0 | M133: 0
A134: 8 | B134: 1960 | C134: Miscellaneous Equipment | D134: ='[2]2.6 Fixed Asset Cont Stmt'!$D$118 -> 0 | E134: ='[2]2.6 Fixed Asset Cont Stmt'!$E$118 -> 0 | F134: ='[2]2.6 Fixed Asset Cont Stmt'!$F$118 -> 0 | G134: 0 | I134: ='[2]2.6 Fixed Asset Cont Stmt'!$I$118 -> 0 | J134: ='[2]2.6 Fixed Asset Cont Stmt'!$J$118 -> 0 | K134: ='[2]2.6 Fixed Asset Cont Stmt'!$K$118 -> 0 | L134: 0 | M134: 0
A135: 47 | B135: 1970 | C135: Load Management Controls Customer Premises | D135: ='[2]2.6 Fixed Asset Cont Stmt'!$D$119 -> 0 | E135: ='[2]2.6 Fixed Asset Cont Stmt'!$E$119 -> 0 | F135: ='[2]2.6 Fixed Asset Cont Stmt'!$F$119 -> 0 | G135: 0 | I135: ='[2]2.6 Fixed Asset Cont Stmt'!$I$119 -> 0 | J135: ='[2]2.6 Fixed Asset Cont Stmt'!$J$119 -> 0 | K135: ='[2]2.6 Fixed Asset Cont Stmt'!$K$119 -> 0 | L135: 0 | M135: 0
A136: 47 | B136: 1975 | C136: Load Management Controls Utility Premises | D136: ='[2]2.6 Fixed Asset Cont Stmt'!$D$120 -> 0 | E136: ='[2]2.6 Fixed Asset Cont Stmt'!$E$120 -> 0 | F136: ='[2]2.6 Fixed Asset Cont Stmt'!$F$120 -> 0 | G136: 0 | I136: ='[2]2.6 Fixed Asset Cont Stmt'!$I$120 -> 0 | J136: ='[2]2.6 Fixed Asset Cont Stmt'!$J$120 -> 0 | K136: ='[2]2.6 Fixed Asset Cont Stmt'!$K$120 -> 0 | L136: 0 | M136: 0
A137: 47 | B137: 1980 | C137: System Supervisor Equipment | D137: ='[2]2.6 Fixed Asset Cont Stmt'!$D$121 -> 895508.17 | E137: ='[2]2.6 Fixed Asset Cont Stmt'!$E$121 -> 125462.03 | F137: ='[2]2.6 Fixed Asset Cont Stmt'!$F$121 -> 0 | G137: 1020970.2 | I137: ='[2]2.6 Fixed Asset Cont Stmt'!$I$121 -> 0 | J137: ='[2]2.6 Fixed Asset Cont Stmt'!$J$121 -> -118906.41 | K137: ='[2]2.6 Fixed Asset Cont Stmt'!$K$121 -> 0 | L137: -118906.41 | M137: 902063.79
A138: 47 | B138: 1985 | C138: Miscellaneous Fixed Assets | D138: ='[2]2.6 Fixed Asset Cont Stmt'!$D$122 -> 0 | E138: ='[2]2.6 Fixed Asset Cont Stmt'!$E$122 -> 0 | F138: ='[2]2.6 Fixed Asset Cont Stmt'!$F$122 -> 0 | G138: 0 | I138: ='[2]2.6 Fixed Asset Cont Stmt'!$I$122 -> 0 | J138: ='[2]2.6 Fixed Asset Cont Stmt'!$J$122 -> 0 | K138: ='[2]2.6 Fixed Asset Cont Stmt'!$K$122 -> 0 | L138: 0 | M138: 0
A139: 47 | B139: 1990 | C139: Other Tangible Property | D139: ='[2]2.6 Fixed Asset Cont Stmt'!$D$123 -> 0 | E139: ='[2]2.6 Fixed Asset Cont Stmt'!$E$123 -> 0 | F139: ='[2]2.6 Fixed Asset Cont Stmt'!$F$123 -> 0 | G139: 0 | I139: ='[2]2.6 Fixed Asset Cont Stmt'!$I$123 -> 0 | J139: ='[2]2.6 Fixed Asset Cont Stmt'!$J$123 -> 0 | K139: ='[2]2.6 Fixed Asset Cont Stmt'!$K$123 -> 0 | L139: 0 | M139: 0
A140: 47 | B140: 1995 | C140: Contributions & Grants | D140: ='[2]2.6 Fixed Asset Cont Stmt'!$D$124 -> -7756011.2 | E140: ='[2]2.6 Fixed Asset Cont Stmt'!$E$124 -> -1416471.4 | F140: ='[2]2.6 Fixed Asset Cont Stmt'!$F$124 -> 3868.57 | G140: -9168614.03 | I140: ='[2]2.6 Fixed Asset Cont Stmt'!$I$124 -> 0 | J140: ='[2]2.6 Fixed Asset Cont Stmt'!$J$124 -> 268928.62 | K140: ='[2]2.6 Fixed Asset Cont Stmt'!$K$124 -> 0 | L140: 268928.62 | M140: -8899685.41
A141: 47 | B141: 2440 | C141: Deferred Revenue5
G142: =D142+E142+F142 -> 0 | L142: =I142+J142+K142 -> 0 | M142: =G142+L142 -> 0
C143: Sub-Total | D143: =SUM(D103:D142) -> 30850491.54 | E143: =SUM(E103:E142) -> 5031383.05 | F143: =SUM(F103:F142) -> -304954.98 | G143: =SUM(G103:G142) -> 35576919.61 | I143: =SUM(I103:I142) -> 0 | J143: =SUM(J103:J142) -> -1557239.01 | K143: =SUM(K103:K142) -> 0 | L143: =SUM(L103:L142) -> -1557239.01 | M143: =SUM(M103:M142) -> 34019680.6
C144: Less Socialized Renewable Energy Generation Investments (input as negative) | G144: =D144+E144+F144 -> 0 | L144: =I144+J144+K144 -> 0 | M144: =G144+L144 -> 0
C145: Less Other Non Rate-Regulated Utility Assets (input as negative) | G145: 0 | L145: 0 | M145: 0
C146: Total PP&E | D146: =SUM(D143:D145) -> 30850491.54 | E146: =SUM(E143:E145) -> 5031383.05 | F146: -304954.98 | G146: 35576919.61 | I146: =SUM(I143:I145) -> 0 | J146: -1557239.01 | K146: 0 | L146: -1557239.01 | M146: 34019680.6
C147: Depreciation Expense adj. from gain or loss on the retirement of assets (pool of like assets), if applicable6
C148: Total | J148: =J146+J147 -> -1557239.01
I150: Less: Fully Allocated Depreciation
A151: 10 | C151: Transportation | I151: Transportation | K151: ='[2]2.6 Fixed Asset Cont Stmt'!$J$75 -> -144358.04
A152: 8 | C152: Stores Equipment | I152: Stores Equipment
I153: Net Depreciation | K153: =J148-K151-K152 -> -1412880.97
A155: Notes:
A157: 1 | B157: Tables in the format outlined above covering all fixed asset accounts should be submitted for the Test Year, Bridge Year and all relevant historical years. At a minimum , the applicant must provide data for the earlier of: 1) all historical years back to its last rebasing; or 2) at least three years of historical actuals, in addition to Bridge Year and Test Year forecasts.
A160: 2 | B160: The "CCA Class" for fixed assets should agree with the CCA Class used for tax purposes in Tax Returns. Fixed Assets sub-components may be used where the underlying asset components are classified under multiple CCA Classes for tax purposes. If an applicant uses any different classes from those shown in the table, an explanation should be provided. (also see note 3).
A163: 3 | B163: The table may need to be customized for a utility's asset categories or for any new asset accounts announced or authorized by the Board.
A165: 4 | B165: The additions in column (E) must not include construction work in progress (CWIP).
A167: 5 | B167: Effective on the date of IFRS adoption, customer contributions will no longer be recorded in Account 1995 Contributions & Grants, but will be recorded in Account 2440, Deferred Revenues.
A169: 6 | B169: Where a distributor for general financial reporting purposes under IFRS has accounted for the amount of gain or loss on the retirement of assets in a pool of like assets as a charge or credit to income, for reporting and rate application filings, the distributor shall reclassify such gains and losses as depreciation expense, and disclose the amount separately.
E173: Year | F173: 2014 | G173: IFRS
D175: Cost | J175: Accumulated Depreciation
A176: CCA Class | B176: OEB | C176: Description | D176: Opening Balance | E176: Additions | F176: Disposals | G176: Closing Balance | I176: Opening Balance | J176: Additions | K176: Disposals | L176: Closing Balance | M176: Net Book Value
A177: 12 | B177: 1611 | C177: Computer Software (Formally known as Account 1925) | D177: 202571.46 | E177: 198584.75 | F177: 0 | G177: 401156.21 | I177: 0 | J177: -133980.8 | K177: 0 | L177: -133980.8 | M177: 267175.41
A178: CEC | B178: 1612 | C178: Land Rights (Formally known as Account 1906 and 1806) | D178: 394463.16 | E178: 0 | F178: 0 | G178: 394463.16 | I178: 0 | J178: -15126 | K178: 0 | L178: -15126 | M178: 379337.16
A179: N/A | B179: 1805 | C179: Land | D179: 972036.84 | E179: 0 | F179: 0 | G179: 972036.84 | I179: 0 | J179: 0 | K179: 0 | L179: 0 | M179: 972036.84
A180: 47 | B180: 1808 | C180: Buildings | D180: 0 | E180: 0 | F180: 0 | G180: 0 | I180: 0 | J180: 0 | K180: 0 | L180: 0 | M180: 0
A181: 13 | B181: 1810 | C181: Leasehold Improvements | D181: 0 | E181: 0 | F181: 0 | G181: 0 | I181: 0 | J181: 0 | K181: 0 | L181: 0 | M181: 0
A182: 47 | B182: 1815 | C182: Transformer Station Equipment >50 kV | D182: 0 | E182: 0 | F182: 0 | G182: 0 | I182: 0 | J182: 0 | K182: 0 | L182: 0 | M182: 0
A183: 47 | B183: 1820 | C183: Distribution Station Equipment <50 kV | D183: 1976240.25 | E183: 2895486.45 | F183: -162802.38 | G183: 4708924.32 | I183: 0 | J183: -133796.77 | K183: 0 | L183: -133796.77 | M183: 4575127.55
A184: 47 | B184: 1825 | C184: Storage Battery Equipment | D184: 0 | E184: 0 | F184: 0 | G184: 0 | I184: 0 | J184: 0 | K184: 0 | L184: 0 | M184: 0
A185: 47 | B185: 1830 | C185: Poles, Towers & Fixtures | D185: 6625716.8 | E185: 576010.85 | F185: -11013.24 | G185: 7190714.41 | I185: 0 | J185: -214178.88 | K185: 0 | L185: -214178.88 | M185: 6976535.53
A186: 47 | B186: 1835 | C186: Overhead Conductors & Devices | D186: 7723873.95 | E186: 724698.04 | F186: -8975.88 | G186: 8439596.11 | I186: 0 | J186: -206930.88 | K186: 0 | L186: -206930.88 | M186: 8232665.23
A187: 47 | B187: 1840 | C187: Underground Conduit | D187: 1844932.06 | E187: 320502.08 | F187: 0 | G187: 2165434.14 | I187: 0 | J187: -70930.88 | K187: 0 | L187: -70930.88 | M187: 2094503.26
A188: 47 | B188: 1845 | C188: Underground Conductors & Devices | D188: 7256170.08 | E188: 279956.42 | F188: -6673.96 | G188: 7529452.54 | I188: 0 | J188: -247482.95 | K188: 0 | L188: -247482.95 | M188: 7281969.59
A189: 47 | B189: 1850 | C189: Line Transformers | D189: 3640086.16 | E189: 556533.29 | F189: -70900.95 | G189: 4125718.5 | I189: 0 | J189: -146575.75 | K189: 0 | L189: -146575.75 | M189: 3979142.75
A190: 47 | B190: 1855 | C190: Services (Overhead & Underground) | D190: 2570477 | E190: 519763.79 | F190: -2092.14 | G190: 3088148.65 | I190: 0 | J190: -81169.09 | K190: 0 | L190: -81169.09 | M190: 3006979.56
A191: 47 | B191: 1860 | C191: Meters | D191: 1818343.98 | E191: 131826.75 | F191: -46365 | G191: 1903805.73 | I191: 0 | J191: -176031.72 | K191: 0 | L191: -176031.72 | M191: 1727774.01
A192: 47 | B192: 1860 | C192: Meters (Smart Meters) | D192: 0 | E192: 0 | F192: 0 | G192: 0 | I192: 0 | J192: 0 | K192: 0 | L192: 0 | M192: 0
A193: N/A | B193: 1905 | C193: Land | D193: 1216545.3 | E193: 0 | F193: 0 | G193: 1216545.3 | I193: 0 | J193: 0 | K193: 0 | L193: 0 | M193: 1216545.3
A194: 47 | B194: 1908 | C194: Buildings & Fixtures | D194: 451877.6 | E194: 0 | F194: 0 | G194: 451877.6 | I194: 0 | J194: -11367.21 | K194: 0 | L194: -11367.21 | M194: 440510.39
A195: 13 | B195: 1910 | C195: Leasehold Improvements | D195: 0 | E195: 0 | F195: 0 | G195: 0 | I195: 0 | J195: 0 | K195: 0 | L195: 0 | M195: 0
A196: 8 | B196: 1915 | C196: Office Furniture & Equipment (10 years) | D196: 64692.2 | E196: 9292 | F196: 0 | G196: 73984.2 | I196: 0 | J196: -14034 | K196: 0 | L196: -14034 | M196: 59950.2
A197: 8 | B197: 1915 | C197: Office Furniture & Equipment (8 years) | D197: 0 | E197: 0 | F197: 0 | G197: 0 | I197: 0 | J197: 0 | K197: 0 | L197: 0 | M197: 0
A198: 8 | B198: 1915 | C198: Office Furniture & Equipment (5 years) | D198: 0 | E198: 0 | F198: 0 | G198: 0 | I198: 0 | J198: 0 | K198: 0 | L198: 0 | M198: 0
A199: 10 | B199: 1920 | C199: Computer Equipment - Hardware | D199: 177256.71 | E199: 80063.46 | F199: 0 | G199: 257320.17 | I199: 0 | J199: -70671.01 | K199: 0 | L199: -70671.01 | M199: 186649.16
A200: 45 | B200: 1920 | C200: Computer Equip.-Hardware(Post Mar. 22/04) | D200: 0 | E200: 0 | F200: 0 | G200: 0 | I200: 0 | J200: 0 | K200: 0 | L200: 0 | M200: 0
A201: 45.1 | B201: 1920 | C201: Computer Equip.-Hardware(Post Mar. 19/07) | D201: 0 | E201: 0 | F201: 0 | G201: 0 | I201: 0 | J201: 0 | K201: 0 | L201: 0 | M201: 0
A202: 10 | B202: 1930 | C202: Transportation Equipment | D202: 490164.86 | E202: 3267.67 | F202: 0 | G202: 493432.53 | I202: 0 | J202: -139931.45 | K202: 0 | L202: -139931.45 | M202: 353501.08
A203: 8 | B203: 1935 | C203: Stores Equipment | D203: 13402.3 | E203: 4787.59 | F203: 0 | G203: 18189.89 | I203: 0 | J203: -2588.65 | K203: 0 | L203: -2588.65 | M203: 15601.24
A204: 8 | B204: 1940 | C204: Tools, Shop & Garage Equipment | D204: 246543.1 | E204: 17552.58 | F204: 0 | G204: 264095.68 | I204: 0 | J204: -38485.83 | K204: 0 | L204: -38485.83 | M204: 225609.85
A205: 8 | B205: 1945 | C205: Measurement & Testing Equipment | D205: 25600.76 | E205: 4066.7 | F205: 0 | G205: 29667.46 | I205: 0 | J205: -3979.35 | K205: 0 | L205: -3979.35 | M205: 25688.11
A206: 8 | B206: 1950 | C206: Power Operated Equipment | D206: 0 | E206: 0 | F206: 0 | G206: 0 | I206: 0 | J206: 0 | K206: 0 | L206: 0 | M206: 0
A207: 8 | B207: 1955 | C207: Communications Equipment | D207: 0 | E207: 0 | F207: 0 | G207: 0 | I207: 0 | J207: 0 | K207: 0 | L207: 0 | M207: 0
A208: 8 | B208: 1955 | C208: Communication Equipment (Smart Meters) | D208: 0 | E208: 0 | F208: 0 | G208: 0 | I208: 0 | J208: 0 | K208: 0 | L208: 0 | M208: 0
A209: 8 | B209: 1960 | C209: Miscellaneous Equipment | D209: 0 | E209: 0 | F209: 0 | G209: 0 | I209: 0 | J209: 0 | K209: 0 | L209: 0 | M209: 0
A210: 47 | B210: 1970 | C210: Load Management Controls Customer Premises | D210: 0 | E210: 0 | F210: 0 | G210: 0 | I210: 0 | J210: 0 | K210: 0 | L210: 0 | M210: 0
A211: 47 | B211: 1975 | C211: Load Management Controls Utility Premises | D211: 0 | E211: 0 | F211: 0 | G211: 0 | I211: 0 | J211: 0 | K211: 0 | L211: 0 | M211: 0
A212: 47 | B212: 1980 | C212: System Supervisor Equipment | D212: 895508.17 | E212: 125462.03 | F212: 0 | G212: 1020970.2 | I212: 0 | J212: -118906.41 | K212: 0 | L212: -118906.41 | M212: 902063.79
A213: 47 | B213: 1985 | C213: Miscellaneous Fixed Assets | D213: 0 | E213: 0 | F213: 0 | G213: 0 | I213: 0 | J213: 0 | K213: 0 | L213: 0 | M213: 0
A214: 47 | B214: 1990 | C214: Other Tangible Property | D214: 0 | E214: 0 | F214: 0 | G214: 0 | I214: 0 | J214: 0 | K214: 0 | L214: 0 | M214: 0
A215: 47 | B215: 1995 | C215: Contributions & Grants | D215: -7756011.2 | E215: -1416471.4 | F215: 3868.57 | G215: -9168614.03 | I215: 0 | J215: 268928.62 | K215: 0 | L215: 268928.62 | M215: -8899685.41
B216: etc. | D216: 0 | E216: 0 | F216: 0 | G216: 0 | I216: 0 | J216: 0 | K216: 0 | L216: 0 | M216: 0
B217: etc. | D217: 0 | E217: 0 | F217: 0 | G217: 0 | I217: 0 | J217: 0 | K217: 0 | L217: 0 | M217: 0
B218: etc. | D218: 0 | E218: 0 | F218: 0 | G218: 0 | I218: 0 | J218: 0 | K218: 0 | L218: 0 | M218: 0
B219: etc. | D219: 0 | E219: 0 | F219: 0 | G219: 0 | I219: 0 | J219: 0 | K219: 0 | L219: 0 | M219: 0
B220: etc. | D220: 0 | E220: 0 | F220: 0 | G220: 0 | I220: 0 | J220: 0 | K220: 0 | L220: 0 | M220: 0
B221: etc. | D221: 0 | E221: 0 | F221: 0 | G221: 0 | I221: 0 | J221: 0 | K221: 0 | L221: 0 | M221: 0
B222: etc. | D222: 0 | E222: 0 | F222: 0 | G222: 0 | I222: 0 | J222: 0 | K222: 0 | L222: 0 | M222: 0
B223: etc. | D223: 0 | E223: 0 | F223: 0 | G223: 0 | I223: 0 | J223: 0 | K223: 0 | L223: 0 | M223: 0
B224: etc. | D224: 0 | E224: 0 | F224: 0 | G224: 0 | I224: 0 | J224: 0 | K224: 0 | L224: 0 | M224: 0
B225: etc. | D225: 0 | E225: 0 | F225: 0 | G225: 0 | I225: 0 | J225: 0 | K225: 0 | L225: 0 | M225: 0
B226: etc. | D226: 0 | E226: 0 | F226: 0 | G226: 0 | I226: 0 | J226: 0 | K226: 0 | L226: 0 | M226: 0
D227: 0 | E227: 0 | F227: 0 | G227: 0 | I227: 0 | J227: 0 | K227: 0 | L227: 0 | M227: 0
C228: Sub-Total | D228: 30850491.54 | E228: 5031383.05 | F228: -304954.98 | G228: 35576919.61 | I228: 0 | J228: -1557239.01 | K228: 0 | L228: -1557239.01 | M228: 34019680.6
C229: Less Socialized Renewable Energy Generation Investments (input as negative)Less Socialized Renewable Energy Generation Investments (input as negative) | G229: 0 | L229: 0 | M229: 0
C230: Less Other Non Rate-Regulated Utility Assets (input as negative)Less Other Non Rate-Regulated Utility Assets (input as negative) | G230: 0 | L230: 0 | M230: 0
C231: Total PP&E | D231: 30850491.54 | E231: 5031383.05 | F231: -304954.98 | G231: 35576919.61 | I231: 0 | J231: -1557239.01 | K231: 0 | L231: -1557239.01 | M231: 34019680.6
C232: Depreciation Expense adj. from gain or loss on the retirement of assets (pool of like assets) | M232: 12381851
C233: Total | J233: -1557239.01 | M233: 46401531.6
M234: 0.2300000042
G235: Less: Fully Allocated Depreciation
... 481 more rows

Sheet Appendix 2-BB Service Life
M1: File Number: | O1: 0
M2: Exhibit:
M3: Tab:
M4: Schedule:
M5: Page:
M7: Date: | O7: 2016-05-20
A9: Appendix 2-BB
A10: Service Life Comparison
A11: Table F-1 from Kinetrics Report1
C15: Asset Details | F15: Useful Life | J15: USoA Account Number | K15: USoA Account Description | L15: Current | N15: Proposed | P15: Outside Range of Min, Max TUL?
A16: Parent* | B16: # | C16: Category| Component | Type | F16: MIN UL | G16: TUL | H16: MAX UL | L16: Years | M16: Rate | N16: Years | O16: Rate | P16: Below Min TUL | Q16: Above Max TUL
A17: OH | B17: 1 | C17: Fully Dressed Wood Poles | D17: Overall | F17: 35 | G17: 45 | H17: 75 | J17: 1830 | K17: Poles,Towers and Fixtures | L17: 25 | M17: 0.04 | N17: 40 | O17: =IF(ISERROR(1/N17), "", 1/N17) -> 0.025 | P17: =IF(ISBLANK(N17),"",IF(N17<F17,"Yes","No")) -> No | Q17: =IF(ISBLANK(N17),"",IF(N17>H17,"Yes","No")) -> No
D18: Cross Arm | E18: Wood | F18: 20 | G18: 40 | H18: 55 | J18: 1830 | K18: Poles,Towers and Fixtures | L18: 25 | M18: 0.04 | N18: 40 | O18: 0.025 | P18: =IF(ISBLANK(N18),"",IF(N18<F18,"Yes","No")) -> No | Q18: =IF(ISBLANK(N18),"",IF(N18>H18,"Yes","No")) -> No
E19: Steel | F19: 30 | G19: 70 | H19: 95 | J19: 1830 | K19: Poles,Towers and Fixtures | L19: 25 | M19: 0.04 | N19: 40 | O19: 0.025 | P19: No | Q19: No
B20: 2 | C20: Fully Dressed Concrete Poles | D20: Overall | F20: 50 | G20: 60 | H20: 80 | J20: 1830 | K20: Poles,Towers and Fixtures | L20: 25 | M20: 0.04 | N20: 40 | O20: 0.025 | P20: Yes | Q20: No
D21: Cross Arm | E21: Wood | F21: 20 | G21: 40 | H21: 55 | J21: 1830 | K21: Poles,Towers and Fixtures | L21: 25 | M21: 0.04 | N21: 40 | O21: 0.025 | P21: No | Q21: No
E22: Steel | F22: 30 | G22: 70 | H22: 95 | J22: 1830 | K22: Poles,Towers and Fixtures | L22: 25 | M22: 0.04 | N22: 40 | O22: 0.025 | P22: No | Q22: No
B23: 3 | C23: Fully Dressed Steel Poles | D23: Overall | F23: 60 | G23: 60 | H23: 80 | J23: N/A | M23: =IF(ISERROR(1/L23), "", 1/L23) ->  | O23: =IF(ISERROR(1/N23), "", 1/N23) -> 
D24: Cross Arm | E24: Wood | F24: 20 | G24: 40 | H24: 55 | J24: N/A
E25: Steel | F25: 30 | G25: 70 | H25: 95 | J25: N/A
B26: 4 | C26: OH Line Switch | F26: 30 | G26: 45 | H26: 55 | J26: 1835 | K26: Overhead Conductors & Devices | L26: 25 | M26: 0.04 | N26: 40 | O26: 0.025 | P26: No | Q26: No
B27: 5 | C27: OH Line Switch Motor | F27: 15 | G27: 25 | H27: 25 | J27: 1835 | K27: Overhead Conductors & Devices | L27: 25 | M27: =IF(ISERROR(1/L27), "", 1/L27) -> 0.04 | N27: 20 | O27: =IF(ISERROR(1/N27), "", 1/N27) -> 0.05 | P27: No | Q27: No
B28: 6 | C28: OH Line Switch RTU | F28: 15 | G28: 20 | H28: 20 | J28: 1835 | K28: Overhead Conductors & Devices | L28: 25 | M28: 0.04 | N28: 20 | O28: 0.05 | P28: No | Q28: No
B29: 7 | C29: OH Integral Switches | F29: 35 | G29: 45 | H29: 60 | J29: 1835 | K29: Overhead Conductors & Devices | L29: 25 | M29: 0.04 | N29: 40 | O29: 0.025 | P29: No | Q29: No
B30: 8 | C30: OH Conductors | F30: 50 | G30: 60 | H30: 75 | J30: 1835 | K30: Overhead Conductors & Devices | L30: 25 | M30: 0.04 | N30: 60 | O30: 0.01666666667 | P30: No | Q30: No
B31: 9 | C31: OH Transformers & Voltage Regulators | F31: 30 | G31: 40 | H31: 60 | J31: 1850 | K31: Line Transformers | L31: 25 | M31: 0.04 | N31: 40 | O31: 0.025 | P31: No | Q31: No
B32: 10 | C32: OH Shunt Capacitor Banks | F32: 25 | G32: 30 | H32: 40 | J32: N/A
B33: 11 | C33: Reclosers | F33: 25 | G33: 40 | H33: 55 | J33: N/A
A34: TS & MS | B34: 12 | C34: Power Transformers | D34: Overall | F34: 30 | G34: 45 | H34: 60 | J34: 1850 | K34: Line Transformers | L34: 25 | M34: 0.04 | N34: 40 | O34: 0.025 | P34: No | Q34: No
D35: Bushing | F35: 10 | G35: 20 | H35: 30
D36: Tap Changer | F36: 20 | G36: 30 | H36: 60
B37: 13 | C37: Station Service Transformer | F37: 30 | G37: 45 | H37: 55
B38: 14 | C38: Station Grounding Transformer | F38: 30 | G38: 40 | H38: 40
B39: 15 | C39: Station DC System | D39: Overall | F39: 10 | G39: 20 | H39: 30
D40: Battery Bank | F40: 10 | G40: 15 | H40: 15 | J40: 1820 | K40: Distribution Station Equipment | L40: 30 | M40: 0.03333333333 | N40: 20 | O40: 0.05 | P40: No | Q40: Yes
D41: Charger | F41: 20 | G41: 20 | H41: 30 | J41: 1820 | K41: Distribution Station Equipment | L41: 30 | M41: 0.03333333333 | N41: 20 | O41: 0.05 | P41: No | Q41: No
B42: 16 | C42: Station Metal Clad Switchgear | D42: Overall | F42: 30 | G42: 40 | H42: 60 | J42: 1820 | K42: Distribution Station Equipment | L42: 25 | M42: 0.04 | N42: 40 | O42: 0.025 | P42: No | Q42: No
D43: Removable Breaker | F43: 25 | G43: 40 | H43: 60
B44: 17 | C44: Station Independent Breakers | F44: 35 | G44: 45 | H44: 65
B45: 18 | C45: Station Switch | F45: 30 | G45: 50 | H45: 60
B46: 19 | C46: Electromechanical Relays | F46: 25 | G46: 35 | H46: 50
B47: 20 | C47: Solid State Relays | F47: 10 | G47: 30 | H47: 45 | J47: 1820 | K47: Distribtion Station Equipment | L47: 25 | M47: 0.04 | N47: 30 | O47: 0.03333333333 | P47: No | Q47: No
B48: 21 | C48: Digital & Numeric Relays | F48: 15 | G48: 20 | H48: 20
B49: 22 | C49: Rigid Busbars | F49: 30 | G49: 55 | H49: 60
B50: 23 | C50: Steel Structure | F50: 35 | G50: 50 | H50: 90
A51: UG | B51: 24 | C51: Primary Paper Insulated Lead Covered (PILC) Cables | F51: 60 | G51: 65 | H51: 75 | J51: N/A
B52: 25 | C52: Primary Ethylene-Propylene Rubber (EPR) Cables | F52: 20 | G52: 25 | H52: 25 | J52: 1845 | K52: Underground Conductors & Devices | L52: 25 | M52: 0.04 | N52: 40 | O52: 0.025 | P52: No | Q52: Yes
B53: 26 | C53: Primary Non-Tree Retardant (TR) Cross Linked Polyethylene (XLPE) Cables Direct Buried | F53: 20 | G53: 25 | H53: 30 | J53: 1845 | K53: Underground Conductors & Devices | L53: 25 | M53: 0.04 | N53: 40 | O53: 0.025 | P53: No | Q53: Yes
B54: 27 | C54: Primary Non-TR XLPE Cables in Duct | F54: 20 | G54: 25 | H54: 30 | J54: 1845 | K54: Underground Conductors & Devices | L54: 25 | M54: 0.04 | N54: 40 | O54: 0.025 | P54: No | Q54: Yes
B55: 30 | C55: Secondary PILC Cables | F55: 70 | G55: 75 | H55: 80 | J55: N/A
B56: 31 | C56: Secondary Cables Direct Buried | F56: 25 | G56: 35 | H56: 40 | J56: 1855 | K56: Service | L56: 25 | M56: 0.04 | N56: 40 | O56: 0.025 | P56: No | Q56: No
B57: 32 | C57: Secondary Cables in Duct | F57: 35 | G57: 40 | H57: 60 | J57: 1855 | K57: Service | L57: 25 | M57: 0.04
B58: 33 | C58: Network Tranformers | D58: Overall | F58: 20 | G58: 35 | H58: 50 | J58: N/A
D59: Protector | F59: 20 | G59: 35 | H59: 40 | J59: N/A
B60: 34 | C60: Pad-Mounted Transformers | F60: 25 | G60: 40 | H60: 45 | J60: 1850 | K60: Line Transformers | L60: 25 | M60: 0.04 | N60: 40 | O60: 0.025 | P60: No | Q60: No
B61: 35 | C61: Submersible/Vault Transformers | F61: 25 | G61: 35 | H61: 45 | J61: 1850 | K61: Line Transformers | L61: 25 | M61: 0.04 | N61: 40 | O61: 0.025 | P61: No | Q61: No
B62: 36 | C62: UG Foundation | F62: 35 | G62: 55 | H62: 70 | J62: 1840 | K62: Underground Conduit | L62: 25 | M62: 0.04 | N62: 60 | O62: 0.01666666667 | P62: No | Q62: No
B63: 37 | C63: UG Vaults | D63: Overall | F63: 40 | G63: 60 | H63: 80 | J63: N/A
D64: Roof | F64: 20 | G64: 30 | H64: 45 | J64: N/A
B65: 38 | C65: UG Vault Switches | F65: 20 | G65: 35 | H65: 50 | J65: 1845 | K65: Underground Conductors & Devices | L65: 25 | M65: 0.04 | N65: 30 | O65: 0.03333333333 | P65: No | Q65: No
B66: 39 | C66: Pad-Mounted Switchgear | F66: 20 | G66: 30 | H66: 45 | J66: 1845 | K66: Underground Conductors & Devices | L66: 25 | M66: 0.04 | N66: 30 | O66: 0.03333333333 | P66: No | Q66: No
B67: 40 | C67: Ducts | F67: 30 | G67: 50 | H67: 85 | J67: 1840 | K67: Underground Conduit | L67: 25 | M67: 0.04 | N67: 60 | O67: 0.01666666667 | P67: No | Q67: No
B68: 41 | C68: Concrete Encased Duct Banks | F68: 35 | G68: 55 | H68: 80 | J68: 1840 | K68: Underground Conduit | L68: 25 | M68: 0.04 | N68: 60 | O68: 0.01666666667 | P68: No | Q68: No
B69: 42 | C69: Cable Chambers | F69: 50 | G69: 60 | H69: 80 | J69: 1840 | K69: Underground Conduit | L69: 25 | M69: 0.04 | N69: 60 | O69: 0.01666666667 | P69: No | Q69: No
A70: S | B70: 43 | C70: Remote SCADA | F70: 15 | G70: 20 | H70: 30
A73: Table F-2 from Kinetrics Report1
C75: Asset Details | F75: Useful Life Range | J75: USoA Account Number | K75: USoA Account Description | L75: Current | N75: Proposed | P75: Outside Range of Min, Max TUL?
B76: # | C76: Category| Component | Type | L76: Years | M76: Rate | N76: Years | O76: Rate | P76: Below Min Range | Q76: Above Max Range
B77: 1 | C77: Office Equipment | F77: 5 | G77: 15 | J77: 1915 | K77: Office Furniture & Equipment | L77: 10 | M77: =IF(ISERROR(1/L77), "", 1/L77) -> 0.1 | N77: 10 | O77: =IF(ISERROR(1/N77), "", 1/N77) -> 0.1 | P77: =IF(ISBLANK(N77),"",IF(N77<F77,"Yes","No")) -> No | Q77: =IF(ISBLANK(N77),"",IF(N77>G77,"Yes","No")) -> No
B78: 2 | C78: Vehicles | D78: Trucks & Buckets | F78: 5 | G78: 15 | J78: 1930 | K78: Transportation Equipment | L78: 8 | M78: =IF(ISERROR(1/L78), "", 1/L78) -> 0.125 | N78: 15 | O78: =IF(ISERROR(1/N78), "", 1/N78) -> 0.06666666667 | P78: =IF(ISBLANK(N78),"",IF(N78<F78,"Yes","No")) -> No | Q78: =IF(ISBLANK(N78),"",IF(N78>G78,"Yes","No")) -> No
D79: Trailers | F79: 5 | G79: 20 | J79: 1930 | K79: Transportation Equipment | L79: 8 | M79: 0.125 | N79: 20 | O79: 0.05 | P79: No | Q79: No
D80: Vans | F80: 5 | G80: 10 | J80: 1930 | K80: Transportation Equipment | L80: 5 | M80: 0.2 | N80: 12 | O80: 0.08333333333 | P80: No | Q80: Yes
B81: 3 | C81: Administrative Buildings | F81: 50 | G81: 75 | J81: 200/201 | K81: Building & Fixtures | L81: 1950-05-01 | M81: 5.43951262e-05 | N81: 1950-05-01 | O81: 5.43951262e-05 | P81: No | Q81: Yes
B82: 4 | C82: Leasehold Improvements | F82: Lease dependent | J82: N/A | L82: 0 | N82: 0
B83: 5 | C83: Station Buildings | D83: Station Buildings | F83: 50 | G83: 75 | J83: 1808 | K83: Building & Fixtures | L83: 50 | M83: 0.02 | N83: 50 | O83: 0.02 | P83: No | Q83: No
D84: Parking | F84: 25 | G84: 30 | J84: 1808 | K84: Building & Fixtures | L84: 30 | M84: 0.03333333333 | N84: 30 | O84: 0.03333333333 | P84: No | Q84: No
D85: Fence | F85: 25 | G85: 60 | J85: 1808 | K85: Building & Fixtures | L85: 25 | M85: 0.04 | N85: 25 | O85: 0.04 | P85: No | Q85: No
D86: Roof | F86: 20 | G86: 30 | J86: 1808 | K86: Building & Fixtures | L86: 20 | M86: 0.05 | N86: 20 | O86: 0.05 | P86: No | Q86: No
B87: 6 | C87: Computer Equipment | D87: Hardware | F87: 3 | G87: 5 | J87: 1920 | K87: Computer Equipment - Hardware | L87: 5 | M87: 0.2 | N87: 5 | O87: 0.2 | P87: No | Q87: No
D88: Software | F88: 2 | G88: 5 | J88: 1925 | K88: Computer Equipment - Software | L88: 5 | M88: 0.2 | N88: 5 | O88: 0.2 | P88: No | Q88: No
B89: 7 | C89: Equipment | D89: Power Operated | F89: 5 | G89: 10 | J89: N/A
D90: Stores | F90: 5 | G90: 10 | J90: 1935 | K90: Stores Equipment | L90: 10 | M90: 0.1 | N90: 10 | O90: 0.1 | P90: No | Q90: No
D91: Tools, Shop, Garage Equipment | F91: 5 | G91: 10 | J91: 1940 | K91: Tools, Shops Garage Equipment | L91: 10 | M91: 0.1 | N91: 10 | O91: 0.1 | P91: No | Q91: No
D92: Measurement & Testing Equipment | F92: 5 | G92: 10 | J92: 1945 | K92: Measurement and Testing Equipment | L92: 10 | M92: 0.1 | N92: 10 | O92: 0.1 | P92: No | Q92: No
B93: 8 | C93: Communication | D93: Towers | F93: 60 | G93: 70 | J93: 1955 | K93: Communication Equipment | L93: 10 | M93: 0.1 | N93: 10 | O93: 0.1 | P93: Yes | Q93: No
D94: Wireless | F94: 2 | G94: 10 | J94: 1955 | K94: Communication Equipment | L94: 10 | M94: 0.1 | N94: 10 | O94: 0.1 | P94: No | Q94: No
B95: 9 | C95: Residential Energy Meters | F95: 25 | G95: 35 | J95: 1860 | K95: Meters | L95: 25 | M95: 0.04 | N95: 15 | O95: 0.06666666667 | P95: Yes | Q95: No
B96: 10 | C96: Industrial/Commercial Energy Meters | F96: 25 | G96: 35 | J96: 1860 | K96: Meters | N96: 20 | O96: 0.05 | P96: Yes | Q96: No
B97: 11 | C97: Wholesale Energy Meters | F97: 15 | G97: 30 | J97: N/A
B98: 12 | C98: Current & Potential Transformer (CT & PT) | F98: 35 | G98: 50 | J98: 1860 | K98: Meters | N98: 45 | O98: 0.02222222222 | P98: No | Q98: No
B99: 13 | C99: Smart Meters | F99: 5 | G99: 15 | J99: 1860 | K99: Meters | L99: 15 | M99: 0.06666666667 | N99: 15 | O99: 0.06666666667 | P99: No | Q99: No
B100: 14 | C100: Repeaters - Smart Metering | F100: 10 | G100: 15 | J100: 1915 | K100: Office Furniture & Equipment | L100: 5 | M100: 0.2 | N100: 5 | O100: 0.2 | P100: Yes | Q100: No
B101: 15 | C101: Data Collectors - Smart Metering | F101: 15 | G101: 20 | J101: 1915 | K101: Office Furniture & Equipment | L101: 5 | M101: 0.2 | N101: 5 | O101: 0.2 | P101: Yes | Q101: No
A104: * TS & MS = Transformer and Municipal Stations UG = Underground Systems S = Monitoring and Control Systems
A106: Note 1: | B106: Tables F-1 and F-2 above are to be used as a reference in order to complete columns J, K, L and N.
B107: See pages 17-19 of Kinetrics Report

Sheet App.2-CA_OldCGAAP_DepExp_2012
K1: File Number: | L1: =EBNUMBER -> EB-2016-0086
K2: Exhibit:
K3: Tab:
K4: Schedule:
K5: Page:
K7: Date: | L7: 42510
A9: Appendix 2-CA
A10: Depreciation and Amortization Expense
B11: Assumes the applicant made capitalization and depreciation expense accounting policy changes under CGAAP effective January 1, 2012 and has adopted IFRS for financial reporting purposes effective January 1, 2015.
C13: Year | D13: 2012 | E13: New CGAAP
A15: Account | B15: Description | C15: Opening Regulatory Gross PP&E as at Jan 1, 2012 | D15: Less Fully Depreciated | E15: Net for Depreciation | F15: Additions | G15: Total for Depreciation 1 | H15: Years | I15: Depreciation Rate | J15: Depreciation Expense | K15: 2012 Depreciation Expense per Appendix 2-BA Fixed Assets, Column J (l) | L15: Variance 2
C16: (a) | D16: (b) | E16: (c) | F16: (d) | G16: (e) = (c) + ½ x (d) | H16: (f) | I16: (g) = 1 / (f) | J16: (h) = (e) / (f) | L16: (m) = (h) - (l)
A17: 1611 | B17: Computer Software (Formally known as Account 1925) | E17: =C17-D17 -> 0 | G17: =E17+0.5*F17 -> 0 | I17: =IF(H17=0,0,1/H17) -> 0 | J17: =IF(H17=0,0,G17/H17) -> 0 | L17: =IF(ISERROR(+J17-K17), 0, +J17-K17) -> 0
A18: 1612 | B18: Land Rights (Formally known as Account 1906) | E18: =C18-D18 -> 0 | G18: =E18+0.5*F18 -> 0 | I18: 0 | J18: 0 | L18: 0
A19: 1805 | B19: Land | E19: 0 | G19: 0 | I19: 0 | J19: 0 | L19: 0
A20: 1808 | B20: Buildings | E20: 0 | G20: 0 | I20: 0 | J20: 0 | L20: 0
A21: 1810 | B21: Leasehold Improvements | E21: 0 | G21: 0 | I21: 0 | J21: 0 | L21: 0
A22: 1815 | B22: Transformer Station Equipment >50 kV | E22: 0 | G22: 0 | I22: 0 | J22: 0 | L22: 0
A23: 1820 | B23: Distribution Station Equipment <50 kV | E23: 0 | G23: 0 | I23: 0 | J23: 0 | L23: 0
A24: 1825 | B24: Storage Battery Equipment | E24: 0 | G24: 0 | I24: 0 | J24: 0 | L24: 0
A25: 1830 | B25: Poles, Towers & Fixtures | E25: 0 | G25: 0 | I25: 0 | J25: 0 | L25: 0
A26: 1835 | B26: Overhead Conductors & Devices | E26: 0 | G26: 0 | I26: 0 | J26: 0 | L26: 0
A27: 1840 | B27: Underground Conduit | E27: 0 | G27: 0 | I27: 0 | J27: 0 | L27: 0
A28: 1845 | B28: Underground Conductors & Devices | E28: 0 | G28: 0 | I28: 0 | J28: 0 | L28: 0
A29: 1850 | B29: Line Transformers | E29: 0 | G29: 0 | I29: 0 | J29: 0 | L29: 0
A30: 1855 | B30: Services (Overhead & Underground) | E30: 0 | G30: 0 | I30: 0 | J30: 0 | L30: 0
A31: 1860 | B31: Meters | E31: 0 | G31: 0 | I31: 0 | J31: 0 | L31: 0
A32: 1860 | B32: Meters (Smart Meters) | E32: 0 | G32: 0 | I32: 0 | J32: 0 | L32: 0
A33: 1905 | B33: Land | E33: 0 | G33: 0 | I33: 0 | J33: 0 | L33: 0
A34: 1908 | B34: Buildings & Fixtures | E34: 0 | G34: 0 | I34: 0 | J34: 0 | L34: 0
A35: 1910 | B35: Leasehold Improvements | E35: 0 | G35: 0 | I35: 0 | J35: 0 | L35: 0
A36: 1915 | B36: Office Furniture & Equipment (10 years) | E36: 0 | G36: 0 | I36: 0 | J36: 0 | L36: 0
A37: 1915 | B37: Office Furniture & Equipment (5 years) | E37: 0 | G37: 0 | I37: 0 | J37: 0 | L37: 0
A38: 1920 | B38: Computer Equipment - Hardware | E38: 0 | G38: 0 | I38: 0 | J38: 0 | L38: 0
A39: 1920 | B39: Computer Equip.-Hardware(Post Mar. 22/04) | E39: 0 | G39: 0 | I39: 0 | J39: 0 | L39: 0
A40: 1920 | B40: Computer Equip.-Hardware(Post Mar. 19/07) | E40: 0 | G40: 0 | I40: 0 | J40: 0 | L40: 0
A41: 1930 | B41: Transportation Equipment | E41: 0 | G41: 0 | I41: 0 | J41: 0 | L41: 0
A42: 1935 | B42: Stores Equipment | E42: 0 | G42: 0 | I42: 0 | J42: 0 | L42: 0
A43: 1940 | B43: Tools, Shop & Garage Equipment | E43: 0 | G43: 0 | I43: 0 | J43: 0 | L43: 0
A44: 1945 | B44: Measurement & Testing Equipment | E44: 0 | G44: 0 | I44: 0 | J44: 0 | L44: 0
A45: 1950 | B45: Power Operated Equipment | E45: 0 | G45: 0 | I45: 0 | J45: 0 | L45: 0
A46: 1955 | B46: Communications Equipment | E46: 0 | G46: 0 | I46: 0 | J46: 0 | L46: 0
A47: 1955 | B47: Communication Equipment (Smart Meters) | E47: 0 | G47: 0 | I47: 0 | J47: 0 | L47: 0
A48: 1960 | B48: Miscellaneous Equipment | E48: 0 | G48: 0 | I48: 0 | J48: 0 | L48: 0
A49: 1970 | B49: Load Management Controls Customer Premises | E49: 0 | G49: 0 | I49: 0 | J49: 0 | L49: 0
A50: 1975 | B50: Load Management Controls Utility Premises | E50: 0 | G50: 0 | I50: 0 | J50: 0 | L50: 0
A51: 1980 | B51: System Supervisor Equipment | E51: 0 | G51: 0 | I51: 0 | J51: 0 | L51: 0
A52: 1985 | B52: Miscellaneous Fixed Assets | E52: 0 | G52: 0 | I52: 0 | J52: 0 | L52: 0
A53: 1990 | B53: Other Tangible Property | E53: 0 | G53: 0 | I53: 0 | J53: 0 | L53: 0
A54: 1995 | B54: Contributions & Grants | E54: 0 | G54: 0 | I54: 0 | J54: 0 | L54: 0
B55: Total | C55: =SUM(C17:C54) -> 0 | D55: =SUM(D17:D54) -> 0 | E55: =SUM(E17:E54) -> 0 | F55: =SUM(F17:F54) -> 0 | G55: =SUM(G17:G54) -> 0 | J55: =SUM(J17:J54) -> 0 | K55: =SUM(K17:K54) -> 0 | L55: =SUM(L17:L54) -> 0
A57: Notes:
A59: 1 | B59: Board policy of the "half-year" rule - the applicant must ensure that additions in the year attract a half-year depreciation expense in the first year. Deviations from this standard practice must be supported in the application.
A60: 2 | B60: The applicant must provide an explanation of material variances in evidence.
A62: General | B62: Applicants must provide a breakdown of depreciation and amortization expense in the above format for all relevant accounts. Asset Retirement Obligations (AROs), depreciation and accretion expense should be disclosed separately consistent with the Notes of historical Audited Financial Statements.

Sheet App.2-CB_NewCGAAP_DepExp_2012
N1: File Number: | O1: =EBNUMBER -> EB-2016-0086
N2: Exhibit:
N3: Tab:
N4: Schedule:
N5: Page:
N7: Date: | O7: 2016-05-20
A9: Appendix 2-CB
A10: Depreciation and Amortization Expense
A11: Assumes the applicant made capitalization and depreciation expense accounting policy changes under CGAAP effective January 1, 2012 and has adopted IFRS for financial reporting purposes effective January 1, 2015.
C13: Year | D13: 2012 | E13: Revised CGAAP
A15: Account | B15: Description | C15: Opening NBV as at Jan 1, 2012 5 | D15: Additions | E15: Average Remaining Life of Opening NBV 4 | F15: Years (new additions only) 3 | G15: Depreciation Rate on New Additions | H15: Depreciation Expense on Opening NBV | I15: Depreciation Expense on Additions 1 | J15: 2012 Depreciation Expense | K15: 2012 Depreciation Expense per Appendix 2-BA Fixed Assets, Column J (l) | L15: Variance 2 | M15: Depreciation Expense on 2012 Full Year Additions | N15: Less Depreciation Expense on Assets Fully Depreciated during the year (o) | O15: 2012 Full Year Depreciation 6
C16: (a) | D16: (d) | E16: (i) | F16: (f) | G16: (g) = 1 / (f) | H16: (j) = (a) / (i) | I16: (h)=((d)*0.5)/(f) | J16: (k) = (j) + (h) | L16: (m) = (k) - (l) | M16: (n) = (d)/(f) | O16: (p) = (j) + (n) - (o)
A17: 1611 | B17: Computer Software (Formally known as Account 1925) | C17: ='[13]App.2-CG_MIFRS_DepExp_2012'!$C$16 -> 119195 | D17: ='[13]App.2-CG_MIFRS_DepExp_2012'!$D$16 -> 99903 | E17: ='[13]App.2-CG_MIFRS_DepExp_2012'!$E$16 -> 1.78183 | F17: ='[13]App.2-CG_MIFRS_DepExp_2012'!$F$16 -> 3 | G17: =IF(F17=0,0,1/F17) -> 0.3333333333 | H17: =IF(E17=0,0,+C17/E17) -> 66894.70937 | I17: =IF(F17=0,0,+(D17*0.5)/F17) -> 16650.5 | J17: =IF(ISERROR(+H17+I17), 0, +H17+I17) -> 83545.20937 | K17: ='[13]App.2-CG_MIFRS_DepExp_2012'!$K$16 -> 103253 | L17: =IF(ISERROR(+J17-K17), 0, +J17-K17) -> -19707.79063 | M17: =IF(F17=0,0,+(D17)/F17) -> 33301 | N17: ='[13]App.2-CG_MIFRS_DepExp_2012'!$N$16 -> 32550 | O17: =IF(ISERROR(+M17+H17-N17), 0, +M17+H17-N17) -> 67645.70937
A18: 1612 | B18: Land Rights (Formally known as Account 1906) | C18: ='[13]App.2-CG_MIFRS_DepExp_2012'!$C$19 -> 424717 | D18: ='[13]App.2-CG_MIFRS_DepExp_2012'!$D$19 -> -195 | E18: 28.56 | F18: ='[13]App.2-CG_MIFRS_DepExp_2012'!$F$19 -> 50 | G18: 0.02 | H18: 14871.04342 | I18: -1.95 | J18: 14869.09342 | K18: ='[13]App.2-CG_MIFRS_DepExp_2012'!$K$19 -> 14935 | L18: -65.90658263 | M18: -3.9 | N18: ='[13]App.2-CG_MIFRS_DepExp_2012'!$N$19 -> 297 | O18: =IF(ISERROR(+M18+H18-N18), 0, +M18+H18-N18) -> 14570.14342
A19: 1805 | B19: Land | C19: ='[13]App.2-CG_MIFRS_DepExp_2012'!$C$18 -> 273770 | D19: ='[13]App.2-CG_MIFRS_DepExp_2012'!$D$18 -> 0 | G19: 0 | H19: 0 | I19: 0 | J19: 0 | L19: 0 | M19: 0 | O19: 0
A20: 1808 | B20: Buildings | C20: ='[13]App.2-CG_MIFRS_DepExp_2012'!$C$20 -> 0 | D20: - | G20: 0 | H20: 0 | I20: 0 | J20: 0 | K20: - | L20: 0 | M20: 0 | N20: - | O20: 0
A21: 1810 | B21: Leasehold Improvements | C21: ='[13]App.2-CG_MIFRS_DepExp_2012'!$C$21 -> 51752 | D21: ='[13]App.2-CG_MIFRS_DepExp_2012'!$D$21 -> 0 | E21: ='[13]App.2-CG_MIFRS_DepExp_2012'!$E$21 -> 15.625 | F21: ='[13]App.2-CG_MIFRS_DepExp_2012'!$F$21 -> 25 | G21: 0.04 | H21: 3312.128 | I21: 0 | J21: 3312.128 | K21: ='[13]App.2-CG_MIFRS_DepExp_2012'!$K$21 -> 51752 | L21: -48439.872 | M21: 0 | O21: 3312.128
A22: 1815 | B22: Transformer Station Equipment >50 kV | C22: ='[13]App.2-CG_MIFRS_DepExp_2012'!$C$22 -> 0 | D22: - | G22: 0 | H22: 0 | I22: 0 | J22: 0 | K22: - | L22: 0 | M22: 0 | O22: 0
A23: 1820 | B23: Distribution Station Equipment <50 kV | C23: ='[13]App.2-CG_MIFRS_DepExp_2012'!$C$23 -> 2035685 | D23: ='[13]App.2-CG_MIFRS_DepExp_2012'!$D$23 -> -47197 | E23: ='[13]App.2-CG_MIFRS_DepExp_2012'!$E$23 -> 22.51 | F23: ='[13]App.2-CG_MIFRS_DepExp_2012'!$F$23 -> 40 | G23: 0.025 | H23: 90434.69569 | I23: -589.9625 | J23: 89844.73319 | K23: ='[13]App.2-CG_MIFRS_DepExp_2012'!$K$23 -> 90740 | L23: -895.2668092 | M23: -1179.925 | O23: 89254.77069
A24: 1825 | B24: Storage Battery Equipment | C24: - | D24: - | G24: 0 | H24: 0 | I24: 0 | J24: 0 | L24: 0 | M24: 0 | O24: 0
A25: 1830 | B25: Poles, Towers & Fixtures | C25: ='[13]App.2-CG_MIFRS_DepExp_2012'!$C$25 -> 4791235 | D25: ='[13]App.2-CG_MIFRS_DepExp_2012'!$D$25 -> 1161036 | E25: ='[13]App.2-CG_MIFRS_DepExp_2012'!$E$25 -> 27.5374 | F25: ='[13]App.2-CG_MIFRS_DepExp_2012'!$F$25 -> 45 | G25: 0.02222222222 | H25: 173990.1007 | I25: 12900.4 | J25: 186890.5007 | K25: ='[13]App.2-CG_MIFRS_DepExp_2012'!$K$25 -> 169153 | L25: 17737.50074 | M25: 25800.8 | O25: 199790.9007
A26: 1835 | B26: Overhead Conductors & Devices | C26: ='[13]App.2-CG_MIFRS_DepExp_2012'!$C$26 -> 5716025 | D26: ='[13]App.2-CG_MIFRS_DepExp_2012'!$D$26 -> 1013377 | E26: ='[13]App.2-CG_MIFRS_DepExp_2012'!$E$26 -> 41.88 | F26: ='[13]App.2-CG_MIFRS_DepExp_2012'!$F$26 -> 60 | G26: 0.01666666667 | H26: 136485.7927 | I26: 8444.808333 | J26: 144930.6011 | K26: ='[13]App.2-CG_MIFRS_DepExp_2012'!$K$26 -> 168676 | L26: -23745.39893 | M26: 16889.61667 | O26: 153375.4094
A27: 1840 | B27: Underground Conduit | C27: ='[13]App.2-CG_MIFRS_DepExp_2012'!$C$27 -> 1547804 | D27: ='[13]App.2-CG_MIFRS_DepExp_2012'!$D$27 -> 404762 | E27: ='[13]App.2-CG_MIFRS_DepExp_2012'!$E$27 -> 32.0595 | F27: ='[13]App.2-CG_MIFRS_DepExp_2012'!$F$27 -> 40 | G27: 0.025 | H27: 48279.10604 | I27: 5059.525 | J27: 53338.63104 | K27: ='[13]App.2-CG_MIFRS_DepExp_2012'!$K$27 -> 61506 | L27: -8167.368963 | M27: 10119.05 | O27: 58398.15604
A28: 1845 | B28: Underground Conductors & Devices | C28: ='[13]App.2-CG_MIFRS_DepExp_2012'!$C$28 -> 7382140 | D28: ='[13]App.2-CG_MIFRS_DepExp_2012'!$D$28 -> 316123 | E28: ='[13]App.2-CG_MIFRS_DepExp_2012'!$E$28 -> 23.78195 | F28: ='[13]App.2-CG_MIFRS_DepExp_2012'!$F$28 -> 40 | G28: 0.025 | H28: 310409.3651 | I28: 3951.5375 | J28: 314360.9026 | K28: ='[13]App.2-CG_MIFRS_DepExp_2012'!$K$28 -> 240015 | L28: 74345.90259 | M28: 7903.075 | O28: 318312.4401
A29: 1850 | B29: Line Transformers | C29: ='[13]App.2-CG_MIFRS_DepExp_2012'!$C$29 -> 3014840 | D29: ='[13]App.2-CG_MIFRS_DepExp_2012'!$D$29 -> 581801 | E29: ='[13]App.2-CG_MIFRS_DepExp_2012'!$E$29 -> 15.087 | F29: ='[13]App.2-CG_MIFRS_DepExp_2012'!$F$29 -> 40 | G29: 0.025 | H29: 199830.3175 | I29: 7272.5125 | J29: 207102.83 | K29: ='[13]App.2-CG_MIFRS_DepExp_2012'!$K$29 -> 127228 | L29: 79874.82999 | M29: 14545.025 | O29: 214375.3425
A30: 1855 | B30: Services (Overhead & Underground) | C30: ='[13]App.2-CG_MIFRS_DepExp_2012'!$C$30 -> 2259956 | D30: ='[13]App.2-CG_MIFRS_DepExp_2012'!$D$30 -> 221645 | E30: ='[13]App.2-CG_MIFRS_DepExp_2012'!$E$30 -> 29.0944 | F30: ='[13]App.2-CG_MIFRS_DepExp_2012'!$F$30 -> 50 | G30: 0.02 | H30: 77676.6663 | I30: 2216.45 | J30: 79893.1163 | K30: ='[13]App.2-CG_MIFRS_DepExp_2012'!$K$30 -> 67209 | L30: 12684.1163 | M30: 4432.9 | O30: 82109.5663
A31: 1860 | B31: Meters | C31: ='[13]App.2-CG_MIFRS_DepExp_2012'!$C$31 -> 220222 | D31: ='[13]App.2-CG_MIFRS_DepExp_2012'!$D$31 -> 0 | E31: ='[13]App.2-CG_MIFRS_DepExp_2012'!$E$31 -> 19.166 | F31: ='[13]App.2-CG_MIFRS_DepExp_2012'!$F$31 -> 25 | G31: 0.04 | H31: 11490.24314 | I31: 0 | J31: 11490.24314 | K31: ='[13]App.2-CG_MIFRS_DepExp_2012'!$K$31 -> 8917.24 | L31: 2573.003139 | M31: 0 | O31: 11490.24314
A32: 1860 | B32: Meters (Smart Meters) | C32: ='[13]App.2-CG_MIFRS_DepExp_2012'!$C$32 -> 1834786 | D32: ='[13]App.2-CG_MIFRS_DepExp_2012'!$D$32 -> 61343 | E32: ='[13]App.2-CG_MIFRS_DepExp_2012'!$E$32 -> 12.7286 | F32: ='[13]App.2-CG_MIFRS_DepExp_2012'!$F$32 -> 15 | G32: 0.06666666667 | H32: 144146.7247 | I32: 2044.766667 | J32: 146191.4914 | K32: ='[13]App.2-CG_MIFRS_DepExp_2012'!$K$32 -> 189557.76 | L32: -43366.26863 | M32: 4089.533333 | O32: 148236.258
A33: 1905 | B33: Land | C33: ='[13]App.2-CG_MIFRS_DepExp_2012'!$C$34 -> 201049 | D33: ='[13]App.2-CG_MIFRS_DepExp_2012'!$D$34 -> 0 | F33: ='[13]App.2-CG_MIFRS_DepExp_2012'!$F$33 -> 0 | G33: 0 | H33: 0 | I33: 0 | J33: 0 | L33: 0 | M33: 0 | O33: 0
A34: 1908 | B34: Buildings & Fixtures | C34: ='[13]App.2-CG_MIFRS_DepExp_2012'!$C$35 -> 465719 | D34: ='[13]App.2-CG_MIFRS_DepExp_2012'!$D$35 -> -1995543 | E34: ='[13]App.2-CG_MIFRS_DepExp_2012'!$E$35 -> 16.275 | F34: ='[13]App.2-CG_MIFRS_DepExp_2012'!$F$35 -> 50 | G34: 0.02 | H34: 28615.60676 | I34: -19955.43 | J34: 8660.176759 | K34: ='[13]App.2-CG_MIFRS_DepExp_2012'!$K$35 -> 11279 | L34: -2618.823241 | M34: -39910.86 | O34: -11295.25324
A35: 1910 | B35: Leasehold Improvements | C35: - | D35: - | G35: 0 | H35: 0 | I35: 0 | J35: 0 | L35: 0 | M35: 0 | O35: 0
A36: 1915 | B36: Office Furniture & Equipment (10 years) | C36: ='[13]App.2-CG_MIFRS_DepExp_2012'!$C$37 -> 76007 | D36: ='[13]App.2-CG_MIFRS_DepExp_2012'!$D$37 -> 5948 | E36: ='[13]App.2-CG_MIFRS_DepExp_2012'!$E$37 -> 6.7495 | F36: ='[13]App.2-CG_MIFRS_DepExp_2012'!$F$37 -> 10 | G36: 0.1 | H36: 11261.13045 | I36: 297.4 | J36: 11558.53045 | K36: ='[13]App.2-CG_MIFRS_DepExp_2012'!$K$37 -> 14760 | L36: -3201.469546 | M36: 594.8 | O36: 11855.93045
A37: 1915 | B37: Office Furniture & Equipment (5 years) | C37: - | D37: - | G37: 0 | H37: 0 | I37: 0 | J37: 0 | L37: 0 | M37: 0 | O37: 0
A38: 1920 | B38: Computer Equipment - Hardware | C38: ='[13]App.2-CG_MIFRS_DepExp_2012'!$C$39 -> 115225 | D38: ='[13]App.2-CG_MIFRS_DepExp_2012'!$D$39 -> 143665 | E38: ='[13]App.2-CG_MIFRS_DepExp_2012'!$E$39 -> 2.28555 | F38: ='[13]App.2-CG_MIFRS_DepExp_2012'!$F$39 -> 5 | G38: 0.2 | H38: 50414.56105 | I38: 14366.5 | J38: 64781.06105 | K38: ='[13]App.2-CG_MIFRS_DepExp_2012'!$K$39 -> 76124 | L38: -11342.93895 | M38: 28733 | N38: ='[13]App.2-CG_MIFRS_DepExp_2012'!$N$39 -> 12533 | O38: 66614.56105
A39: 1920 | B39: Computer Equip.-Hardware(Post Mar. 22/04) | C39: - | D39: - | G39: 0 | H39: 0 | I39: 0 | J39: 0 | L39: 0 | M39: 0 | O39: 0
A40: 1920 | B40: Computer Equip.-Hardware(Post Mar. 19/07) | C40: - | D40: - | G40: 0 | H40: 0 | I40: 0 | J40: 0 | L40: 0 | M40: 0 | O40: 0
A41: 1930 | B41: Transportation Equipment | C41: ='[13]App.2-CG_MIFRS_DepExp_2012'!$C$42 -> 714062 | D41: ='[13]App.2-CG_MIFRS_DepExp_2012'!$D$42 -> -4702 | E41: ='[13]App.2-CG_MIFRS_DepExp_2012'!$E$42 -> 4.46846 | F41: ='[13]App.2-CG_MIFRS_DepExp_2012'!$F$42 -> 5 | G41: 0.2 | H41: 159800.4682 | I41: -470.2 | J41: 159330.2682 | K41: ='[13]App.2-CG_MIFRS_DepExp_2012'!$K$42 -> 139936 | L41: 19394.26817 | M41: -940.4 | O41: 158860.0682
A42: 1935 | B42: Stores Equipment | C42: ='[13]App.2-CG_MIFRS_DepExp_2012'!$C$43 -> 13652 | D42: ='[13]App.2-CG_MIFRS_DepExp_2012'!$D$43 -> 4461 | E42: ='[13]App.2-CG_MIFRS_DepExp_2012'!$E$43 -> 7.785 | F42: ='[13]App.2-CG_MIFRS_DepExp_2012'!$F$43 -> 10 | G42: 0.1 | H42: 1753.628773 | I42: 223.05 | J42: 1976.678773 | K42: ='[13]App.2-CG_MIFRS_DepExp_2012'!$K$43 -> 2264 | L42: -287.3212267 | M42: 446.1 | O42: 2199.728773
A43: 1940 | B43: Tools, Shop & Garage Equipment | C43: ='[13]App.2-CG_MIFRS_DepExp_2012'!$C$44 -> 299447 | D43: ='[13]App.2-CG_MIFRS_DepExp_2012'!$D$44 -> 13151 | E43: ='[13]App.2-CG_MIFRS_DepExp_2012'!$E$44 -> 9.7342 | F43: ='[13]App.2-CG_MIFRS_DepExp_2012'!$F$44 -> 10 | G43: 0.1 | H43: 30762.36363 | I43: 657.55 | J43: 31419.91363 | K43: ='[13]App.2-CG_MIFRS_DepExp_2012'!$K$44 -> 36773 | L43: -5353.086375 | M43: 1315.1 | O43: 32077.46363
A44: 1945 | B44: Measurement & Testing Equipment | C44: ='[13]App.2-CG_MIFRS_DepExp_2012'!$C$45 -> 18771 | D44: ='[13]App.2-CG_MIFRS_DepExp_2012'!$D$45 -> 7378 | E44: ='[13]App.2-CG_MIFRS_DepExp_2012'!$E$45 -> 8.51 | F44: ='[13]App.2-CG_MIFRS_DepExp_2012'!$F$45 -> 10 | G44: 0.1 | H44: 2205.757932 | I44: 368.9 | J44: 2574.657932 | K44: ='[13]App.2-CG_MIFRS_DepExp_2012'!$K$45 -> 2856 | L44: -281.3420682 | M44: 737.8 | O44: 2943.557932
A45: 1950 | B45: Power Operated Equipment | C45: - | D45: - | G45: 0 | H45: 0 | I45: 0 | J45: 0 | L45: 0 | M45: 0 | O45: 0
A46: 1955 | B46: Communications Equipment | C46: - | D46: - | G46: 0 | H46: 0 | I46: 0 | J46: 0 | L46: 0 | M46: 0 | O46: 0
A47: 1955 | B47: Communication Equipment (Smart Meters) | C47: - | D47: - | G47: 0 | H47: 0 | I47: 0 | J47: 0 | L47: 0 | M47: 0 | O47: 0
A48: 1960 | B48: Miscellaneous Equipment | C48: - | D48: - | G48: 0 | H48: 0 | I48: 0 | J48: 0 | L48: 0 | M48: 0 | O48: 0
A49: 1970 | B49: Load Management Controls Customer Premises | C49: - | D49: - | G49: 0 | H49: 0 | I49: 0 | J49: 0 | L49: 0 | M49: 0 | O49: 0
A50: 1975 | B50: Load Management Controls Utility Premises | C50: - | D50: - | G50: 0 | H50: 0 | I50: 0 | J50: 0 | L50: 0 | M50: 0 | O50: 0
A51: 1980 | B51: System Supervisor Equipment | C51: ='[13]App.2-CG_MIFRS_DepExp_2012'!$C$51 -> 618334 | D51: ='[13]App.2-CG_MIFRS_DepExp_2012'!$D$51 -> 285490 | E51: ='[13]App.2-CG_MIFRS_DepExp_2012'!$E$51 -> 7.2741 | F51: ='[13]App.2-CG_MIFRS_DepExp_2012'!$F$51 -> 15 | G51: 0.06666666667 | H51: 85004.88033 | I51: 9516.333333 | J51: 94521.21366 | K51: ='[13]App.2-CG_MIFRS_DepExp_2012'!$K$51 -> 98435 | L51: -3913.786338 | M51: 19032.66667 | O51: 104037.547
A52: 1985 | B52: Miscellaneous Fixed Assets | C52: - | D52: - | G52: 0 | H52: 0 | I52: 0 | J52: 0 | L52: 0 | M52: 0 | O52: 0
A53: 1990 | B53: Other Tangible Property-1875 Street Lighting | C53: ='[13]App.2-CG_MIFRS_DepExp_2012'!$C$33 -> 4976 | G53: 0 | H53: 0 | I53: 0 | J53: 0 | L53: 0 | M53: 0 | O53: 0
A54: 1995 | B54: Contributions & Grants | C54: ='[13]App.2-CG_MIFRS_DepExp_2012'!$C$53 -> -6144728 | D54: ='[13]App.2-CG_MIFRS_DepExp_2012'!$D$53 -> -1688744 | E54: ='[13]App.2-CG_MIFRS_DepExp_2012'!$E$53 -> 29.275 | F54: ='[13]App.2-CG_MIFRS_DepExp_2012'!$F$53 -> 35 | G54: 0.02857142857 | H54: -209896.772 | I54: -24124.91429 | J54: -234021.6863 | K54: ='[13]App.2-CG_MIFRS_DepExp_2012'!$K$53 -> -222877 | L54: -11144.68628 | M54: -48249.82857 | O54: -258146.6006
B55: Total | C55: =SUM(C17:C54) -> 26054641 | D55: =SUM(D17:D54) -> 583702 | H55: =SUM(H17:H54) -> 1437742.518 | I55: 38827.77655 | J55: 1476570.294 | K55: 1452492 | L55: 24078.29436 | M55: 77655.5531 | N55: 45380 | O55: 1470018.071
A57: Notes:
A59: 1 | B59: Board policy of the "half-year" rule - the applicant must ensure that additions in the year attract a half-year depreciation expense in the first year. Deviations from this standard practice must be supported in the application.
A60: 2 | B60: The applicant must provide an explanation of material variances in evidence.
A61: 3 | B61: The applicant should ensure that the years for new additions of assets are the asset useful lives determined by management in accordance with the Board's regulatory accounting policies. The capitalization and depreciation expense accounting changes should be implemented consistent with the Board’s regulatory accounting policies as set out for modified IFRS as contained in the Report of the Board, Transition to International Financial Reporting Standards, EB-2008-0408, the Kinectrics Report, and the Revised 2012 Accounting Procedures Handbook for Electricity Distributors (“APH”).
A62: 4 | B62: A recalculation should be performed to determine the average remaining life of opening balance of assets (i.e. excluding 2012 additions) under the change in policies under CGAAP. For example, Asset A had a useful life of 20 years under CGAAP without the change in policies. On January 1, 2012, the effective date of the changes in policies, Asset A was 3 years depreciated. As a result, Asset A would have a remaining service life of 17 years (20 years less 3 years) as of January 1, 2012. Due to making the change in policies under CGAAP, management re-assessed the asset useful lives and concluded that the revised useful life of Asset A is now 30 years. Therefore, the average remaining useful life of the opening balance of Asset A is determined to be 27 years (30 years less 3 years) under the revised CGAAP as of January 1, 2012.
A63: 5 | B63: NBV must exclude assets still on the books but which have been fully amortized or depreciated.
A64: 6 | B64: This column refers to the calculated full year depreciation but excludes the depreciation expense on assets fully depreciated during the year. This column is used for the purpose of calculating depreciation expense in the following year on the next worksheet.
A66: General: | B66: Applicants must provide a breakdown of depreciation and amortization expense in the above format for all relevant accounts. Asset Retirement Obligations (AROs), depreciation and accretion expense should be disclosed separately consistent with the Notes of historical Audited Financial Statements.

Sheet App.2-CC_NewCGAAP_DepExp_2013
J1: File Number: | K1: =EBNUMBER -> EB-2016-0086
J2: Exhibit:
J3: Tab:
J4: Schedule:
J5: Page:
J7: Date: | K7: 2016-05-20
A9: Appendix 2-CC
A10: Depreciation and Amortization Expense
A11: Assumes the applicant made capitalization and depreciation expense accounting policy changes under CGAAP effective January 1, 2012 and has adopted IFRS for financial reporting purposes effective January 1, 2015.
C13: 2013 | D13: Revised CGAAP
A15: Account | B15: Description | C15: Additions | D15: Years (new additions only) | E15: Depreciation Rate on New Additions | F15: 2013 Depreciation Expense 1 | G15: 2013 Depreciation Expense per Apppendix 2-BA Fixed Assets, Column J (l) | H15: Variance 2 | I15: Depreciation Expense on 2013 Full Year Additions | J15: Less Depreciation Expense on Assets Fully Depreciated during the year (o) | K15: 2013 Full Year Depreciation 3
C16: (d) | D16: (f) | E16: (g) = 1 / (f) | F16: (h)=2012 Full Year Deprecation + ((d)*0.5)/(f) | H16: (m) = (h) - (l) | I16: (n)=((d))/(f) | K16: (p) = 2012 Full Year Depreciation + (n) - (o)
A17: 1611 | B17: Computer Software (Formally known as Account 1925) | C17: ='[14]FA Continuity 2013'!$E$50 -> 177249.6 | D17: 5 | E17: =IF(D17=0,0,1/D17) -> 0.2 | F17: =IF(D17=0,+'App.2-CB_NewCGAAP_DepExp_2012'!O17,+'App.2-CB_NewCGAAP_DepExp_2012'!O17+((C17*0.5)/D17)) -> 85370.66937 | G17: ='[14]FA Continuity 2013'!$J$50 -> -95944.42 | H17: =IF(ISERROR(+F17-G17), 0, +F17-G17) -> 181315.0894 | I17: =IF(D17=0,0,+(C17)/D17) -> 35449.92 | K17: =IF(ISERROR(+I17+'App.2-CB_NewCGAAP_DepExp_2012'!O17-J17), 0, +I17+'App.2-CB_NewCGAAP_DepExp_2012'!O17-J17) -> 103095.6294
A18: 1612 | B18: Land Rights (Formally known as Account 1906) | D18: 5 | E18: 0.2 | F18: =IF(D18=0,+'App.2-CB_NewCGAAP_DepExp_2012'!O18,+'App.2-CB_NewCGAAP_DepExp_2012'!O18+((C18*0.5)/D18)) -> 14570.14342 | H18: 14570.14342 | I18: 0 | K18: =IF(ISERROR(+I18+'App.2-CB_NewCGAAP_DepExp_2012'!O18-J18), 0, +I18+'App.2-CB_NewCGAAP_DepExp_2012'!O18-J18) -> 14570.14342
A19: 1805 | B19: Land | C19: ='[14]FA Continuity 2013'!$E$11 -> 179065.56 | D19: 0 | E19: 0 | F19: =IF(D19=0,+'App.2-CB_NewCGAAP_DepExp_2012'!O19,+'App.2-CB_NewCGAAP_DepExp_2012'!O19+((C19*0.5)/D19)) -> 0 | G19: ='[14]FA Continuity 2013'!$J$11 -> 0 | H19: 0 | I19: 0 | K19: =IF(ISERROR(+I19+'App.2-CB_NewCGAAP_DepExp_2012'!O19-J19), 0, +I19+'App.2-CB_NewCGAAP_DepExp_2012'!O19-J19) -> 0
A20: 1808 | B20: Buildings | D20: 10 | E20: 0.1 | F20: =IF(D20=0,+'App.2-CB_NewCGAAP_DepExp_2012'!O20,+'App.2-CB_NewCGAAP_DepExp_2012'!O20+((C20*0.5)/D20)) -> 0 | H20: 0 | I20: 0 | K20: =IF(ISERROR(+I20+'App.2-CB_NewCGAAP_DepExp_2012'!O20-J20), 0, +I20+'App.2-CB_NewCGAAP_DepExp_2012'!O20-J20) -> 0
A21: 1810 | B21: Leasehold Improvements | C21: ='[14]FA Continuity 2013'!$E$13 -> 0 | E21: 0 | F21: =IF(D21=0,+'App.2-CB_NewCGAAP_DepExp_2012'!O21,+'App.2-CB_NewCGAAP_DepExp_2012'!O21+((C21*0.5)/D21)) -> 3312.128 | H21: 3312.128 | I21: 0 | K21: =IF(ISERROR(+I21+'App.2-CB_NewCGAAP_DepExp_2012'!O21-J21), 0, +I21+'App.2-CB_NewCGAAP_DepExp_2012'!O21-J21) -> 3312.128
A22: 1815 | B22: Transformer Station Equipment >50 kV | E22: 0 | F22: =IF(D22=0,+'App.2-CB_NewCGAAP_DepExp_2012'!O22,+'App.2-CB_NewCGAAP_DepExp_2012'!O22+((C22*0.5)/D22)) -> 0 | H22: 0 | I22: 0 | K22: =IF(ISERROR(+I22+'App.2-CB_NewCGAAP_DepExp_2012'!O22-J22), 0, +I22+'App.2-CB_NewCGAAP_DepExp_2012'!O22-J22) -> 0
A23: 1820 | B23: Distribution Station Equipment <50 kV | C23: ='[14]FA Continuity 2013'!$E$14 -> 164417.71 | D23: 40 | E23: 0.025 | F23: =IF(D23=0,+'App.2-CB_NewCGAAP_DepExp_2012'!O23,+'App.2-CB_NewCGAAP_DepExp_2012'!O23+((C23*0.5)/D23)) -> 91309.99207 | G23: ='[14]FA Continuity 2013'!$J$14 -> -85926.76 | H23: 177236.7521 | I23: 4110.44275 | K23: =IF(ISERROR(+I23+'App.2-CB_NewCGAAP_DepExp_2012'!O23-J23), 0, +I23+'App.2-CB_NewCGAAP_DepExp_2012'!O23-J23) -> 93365.21344
A24: 1825 | B24: Storage Battery Equipment | E24: 0 | F24: =IF(D24=0,+'App.2-CB_NewCGAAP_DepExp_2012'!O24,+'App.2-CB_NewCGAAP_DepExp_2012'!O24+((C24*0.5)/D24)) -> 0 | H24: 0 | I24: 0 | K24: =IF(ISERROR(+I24+'App.2-CB_NewCGAAP_DepExp_2012'!O24-J24), 0, +I24+'App.2-CB_NewCGAAP_DepExp_2012'!O24-J24) -> 0
A25: 1830 | B25: Poles, Towers & Fixtures | C25: ='[14]FA Continuity 2013'!$E$18 -> 1112471.55 | D25: 40 | E25: 0.025 | F25: =IF(D25=0,+'App.2-CB_NewCGAAP_DepExp_2012'!O25,+'App.2-CB_NewCGAAP_DepExp_2012'!O25+((C25*0.5)/D25)) -> 213696.7951 | G25: =196350 -> 196350 | H25: 17346.79511 | I25: 27811.78875 | K25: =IF(ISERROR(+I25+'App.2-CB_NewCGAAP_DepExp_2012'!O25-J25), 0, +I25+'App.2-CB_NewCGAAP_DepExp_2012'!O25-J25) -> 227602.6895
A26: 1835 | B26: Overhead Conductors & Devices | C26: ='[14]FA Continuity 2013'!$E$21 -> 1403523.4 | D26: 60 | E26: 0.01666666667 | F26: =IF(D26=0,+'App.2-CB_NewCGAAP_DepExp_2012'!O26,+'App.2-CB_NewCGAAP_DepExp_2012'!O26+((C26*0.5)/D26)) -> 165071.4377 | G26: ='[14]FA Continuity 2013'!$J$21 -> -188425.3 | H26: 353496.7377 | I26: 23392.05667 | K26: =IF(ISERROR(+I26+'App.2-CB_NewCGAAP_DepExp_2012'!O26-J26), 0, +I26+'App.2-CB_NewCGAAP_DepExp_2012'!O26-J26) -> 176767.4661
A27: 1840 | B27: Underground Conduit | C27: ='[14]FA Continuity 2013'!$E$26 -> 20539.09 | D27: 60 | E27: 0.01666666667 | F27: =IF(D27=0,+'App.2-CB_NewCGAAP_DepExp_2012'!O27,+'App.2-CB_NewCGAAP_DepExp_2012'!O27+((C27*0.5)/D27)) -> 58569.31512 | G27: ='[14]FA Continuity 2013'!$J$26 -> -66667.86 | H27: 125237.1751 | I27: 342.3181667 | K27: =IF(ISERROR(+I27+'App.2-CB_NewCGAAP_DepExp_2012'!O27-J27), 0, +I27+'App.2-CB_NewCGAAP_DepExp_2012'!O27-J27) -> 58740.4742
A28: 1845 | B28: Underground Conductors & Devices | C28: ='[14]FA Continuity 2013'!$E$29 -> 51561.65 | D28: 40 | E28: 0.025 | F28: =IF(D28=0,+'App.2-CB_NewCGAAP_DepExp_2012'!O28,+'App.2-CB_NewCGAAP_DepExp_2012'!O28+((C28*0.5)/D28)) -> 318956.9607 | G28: ='[14]FA Continuity 2013'!$J$29 -> -243721.91 | H28: 562678.8707 | I28: 1289.04125 | K28: =IF(ISERROR(+I28+'App.2-CB_NewCGAAP_DepExp_2012'!O28-J28), 0, +I28+'App.2-CB_NewCGAAP_DepExp_2012'!O28-J28) -> 319601.4813
A29: 1850 | B29: Line Transformers | C29: 341028 | D29: 40 | E29: 0.025 | F29: =IF(D29=0,+'App.2-CB_NewCGAAP_DepExp_2012'!O29,+'App.2-CB_NewCGAAP_DepExp_2012'!O29+((C29*0.5)/D29)) -> 218638.1925 | G29: -136315 | H29: 354953.1925 | I29: 8525.7 | K29: =IF(ISERROR(+I29+'App.2-CB_NewCGAAP_DepExp_2012'!O29-J29), 0, +I29+'App.2-CB_NewCGAAP_DepExp_2012'!O29-J29) -> 222901.0425
A30: 1855 | B30: Services (Overhead & Underground) | C30: ='[14]FA Continuity 2013'!$E$37 -> 228275.51 | D30: 40 | E30: 0.025 | F30: =IF(D30=0,+'App.2-CB_NewCGAAP_DepExp_2012'!O30,+'App.2-CB_NewCGAAP_DepExp_2012'!O30+((C30*0.5)/D30)) -> 84963.01018 | G30: ='[14]FA Continuity 2013'!$J$37 -> -72190.61 | H30: 157153.6202 | I30: 5706.88775 | K30: =IF(ISERROR(+I30+'App.2-CB_NewCGAAP_DepExp_2012'!O30-J30), 0, +I30+'App.2-CB_NewCGAAP_DepExp_2012'!O30-J30) -> 87816.45405
A31: 1860 | B31: Meters | C31: ='[14]FA Continuity 2013'!$E$39 -> 126985.75 | D31: 25 | E31: 0.04 | F31: =IF(D31=0,+'App.2-CB_NewCGAAP_DepExp_2012'!O31,+'App.2-CB_NewCGAAP_DepExp_2012'!O31+((C31*0.5)/D31)) -> 14029.95814 | G31: ='[14]FA Continuity 2013'!$J$39 -> -182147.8 | H31: 196177.7581 | I31: 5079.43 | K31: =IF(ISERROR(+I31+'App.2-CB_NewCGAAP_DepExp_2012'!O31-J31), 0, +I31+'App.2-CB_NewCGAAP_DepExp_2012'!O31-J31) -> 16569.67314
A32: 1861 | B32: Meters (Smart Meters) | D32: 15 | E32: 0.06666666667 | F32: =IF(D32=0,+'App.2-CB_NewCGAAP_DepExp_2012'!O32,+'App.2-CB_NewCGAAP_DepExp_2012'!O32+((C32*0.5)/D32)) -> 148236.258 | H32: 148236.258 | I32: 0 | K32: =IF(ISERROR(+I32+'App.2-CB_NewCGAAP_DepExp_2012'!O32-J32), 0, +I32+'App.2-CB_NewCGAAP_DepExp_2012'!O32-J32) -> 148236.258
A33: 1905 | B33: Land | C33: ='[14]FA Continuity 2013'!$E$43 -> 1015496.3 | D33: 0 | E33: 0 | F33: =IF(D33=0,+'App.2-CB_NewCGAAP_DepExp_2012'!O33,+'App.2-CB_NewCGAAP_DepExp_2012'!O33+((C33*0.5)/D33)) -> 0 | G33: - | H33: 0 | I33: 0 | K33: =IF(ISERROR(+I33+'App.2-CB_NewCGAAP_DepExp_2012'!O33-J33), 0, +I33+'App.2-CB_NewCGAAP_DepExp_2012'!O33-J33) -> 0
A34: 1908 | B34: Buildings & Fixtures | C34: ='[14]FA Continuity 2013'!$E$45 -> 4303.58 | E34: 0 | F34: =IF(D34=0,+'App.2-CB_NewCGAAP_DepExp_2012'!O34,+'App.2-CB_NewCGAAP_DepExp_2012'!O34+((C34*0.5)/D34)) -> -11295.25324 | G34: ='[14]FA Continuity 2013'!$J$45 -> -11324.18 | H34: 28.92675883 | I34: 0 | K34: =IF(ISERROR(+I34+'App.2-CB_NewCGAAP_DepExp_2012'!O34-J34), 0, +I34+'App.2-CB_NewCGAAP_DepExp_2012'!O34-J34) -> -11295.25324
A35: 1910 | B35: Leasehold Improvements | E35: 0 | F35: =IF(D35=0,+'App.2-CB_NewCGAAP_DepExp_2012'!O35,+'App.2-CB_NewCGAAP_DepExp_2012'!O35+((C35*0.5)/D35)) -> 0 | H35: 0 | I35: 0 | K35: =IF(ISERROR(+I35+'App.2-CB_NewCGAAP_DepExp_2012'!O35-J35), 0, +I35+'App.2-CB_NewCGAAP_DepExp_2012'!O35-J35) -> 0
A36: 1915 | B36: Office Furniture & Equipment (10 years) | C36: ='[14]FA Continuity 2013'!$E$47 -> 12060 | D36: 5 | E36: 0.2 | F36: =IF(D36=0,+'App.2-CB_NewCGAAP_DepExp_2012'!O36,+'App.2-CB_NewCGAAP_DepExp_2012'!O36+((C36*0.5)/D36)) -> 13061.93045 | G36: ='[14]FA Continuity 2013'!$J$47 -> -14563.45 | H36: 27625.38045 | I36: 2412 | K36: =IF(ISERROR(+I36+'App.2-CB_NewCGAAP_DepExp_2012'!O36-J36), 0, +I36+'App.2-CB_NewCGAAP_DepExp_2012'!O36-J36) -> 14267.93045
A37: 1915 | B37: Office Furniture & Equipment (5 years) | D37: 5 | E37: 0.2 | F37: =IF(D37=0,+'App.2-CB_NewCGAAP_DepExp_2012'!O37,+'App.2-CB_NewCGAAP_DepExp_2012'!O37+((C37*0.5)/D37)) -> 0 | H37: 0 | I37: 0 | K37: =IF(ISERROR(+I37+'App.2-CB_NewCGAAP_DepExp_2012'!O37-J37), 0, +I37+'App.2-CB_NewCGAAP_DepExp_2012'!O37-J37) -> 0
A38: 1920 | B38: Computer Equipment - Hardware | C38: ='[14]FA Continuity 2013'!$E$48 -> 61163.5 | D38: 5 | E38: 0.2 | F38: =IF(D38=0,+'App.2-CB_NewCGAAP_DepExp_2012'!O38,+'App.2-CB_NewCGAAP_DepExp_2012'!O38+((C38*0.5)/D38)) -> 72730.91105 | G38: ='[14]FA Continuity 2013'!$J$48 -> -66218.02 | H38: 138948.931 | I38: 12232.7 | K38: =IF(ISERROR(+I38+'App.2-CB_NewCGAAP_DepExp_2012'!O38-J38), 0, +I38+'App.2-CB_NewCGAAP_DepExp_2012'!O38-J38) -> 78847.26105
A39: 1920 | B39: Computer Equip.-Hardware(Post Mar. 22/04) | E39: 0 | F39: =IF(D39=0,+'App.2-CB_NewCGAAP_DepExp_2012'!O39,+'App.2-CB_NewCGAAP_DepExp_2012'!O39+((C39*0.5)/D39)) -> 0 | H39: 0 | I39: 0 | K39: =IF(ISERROR(+I39+'App.2-CB_NewCGAAP_DepExp_2012'!O39-J39), 0, +I39+'App.2-CB_NewCGAAP_DepExp_2012'!O39-J39) -> 0
A40: 1920 | B40: Computer Equip.-Hardware(Post Mar. 19/07) | E40: 0 | F40: =IF(D40=0,+'App.2-CB_NewCGAAP_DepExp_2012'!O40,+'App.2-CB_NewCGAAP_DepExp_2012'!O40+((C40*0.5)/D40)) -> 0 | H40: 0 | I40: 0 | K40: =IF(ISERROR(+I40+'App.2-CB_NewCGAAP_DepExp_2012'!O40-J40), 0, +I40+'App.2-CB_NewCGAAP_DepExp_2012'!O40-J40) -> 0
A41: 1930 | B41: Transportation Equipment | C41: ='[14]FA Continuity 2013'!$E$51 -> 65100.15 | D41: 5 | E41: 0.2 | F41: =IF(D41=0,+'App.2-CB_NewCGAAP_DepExp_2012'!O41,+'App.2-CB_NewCGAAP_DepExp_2012'!O41+((C41*0.5)/D41)) -> 165370.0832 | G41: ='[14]FA Continuity 2013'!$J$51 -> -144358.04 | H41: 309728.1232 | I41: 13020.03 | K41: =IF(ISERROR(+I41+'App.2-CB_NewCGAAP_DepExp_2012'!O41-J41), 0, +I41+'App.2-CB_NewCGAAP_DepExp_2012'!O41-J41) -> 171880.0982
A42: 1935 | B42: Stores Equipment | C42: ='[14]FA Continuity 2013'!$E$52 -> 0 | E42: 0 | F42: =IF(D42=0,+'App.2-CB_NewCGAAP_DepExp_2012'!O42,+'App.2-CB_NewCGAAP_DepExp_2012'!O42+((C42*0.5)/D42)) -> 2199.728773 | G42: ='[14]FA Continuity 2013'!$J$52 -> -2445.36 | H42: 4645.088773 | I42: 0 | K42: =IF(ISERROR(+I42+'App.2-CB_NewCGAAP_DepExp_2012'!O42-J42), 0, +I42+'App.2-CB_NewCGAAP_DepExp_2012'!O42-J42) -> 2199.728773
A43: 1940 | B43: Tools, Shop & Garage Equipment | C43: ='[14]FA Continuity 2013'!$E$53 -> 8336.94 | D43: 10 | E43: 0.1 | F43: =IF(D43=0,+'App.2-CB_NewCGAAP_DepExp_2012'!O43,+'App.2-CB_NewCGAAP_DepExp_2012'!O43+((C43*0.5)/D43)) -> 32494.31063 | G43: ='[14]FA Continuity 2013'!$J$53 -> -37618.38 | H43: 70112.69063 | I43: 833.694 | K43: =IF(ISERROR(+I43+'App.2-CB_NewCGAAP_DepExp_2012'!O43-J43), 0, +I43+'App.2-CB_NewCGAAP_DepExp_2012'!O43-J43) -> 32911.15763
A44: 1945 | B44: Measurement & Testing Equipment | C44: ='[14]FA Continuity 2013'!$E$54 -> 5794.24 | D44: 10 | E44: 0.1 | F44: =IF(D44=0,+'App.2-CB_NewCGAAP_DepExp_2012'!O44,+'App.2-CB_NewCGAAP_DepExp_2012'!O44+((C44*0.5)/D44)) -> 3233.269932 | G44: ='[14]FA Continuity 2013'!$J$54 -> -3486.3 | H44: 6719.569932 | I44: 579.424 | K44: =IF(ISERROR(+I44+'App.2-CB_NewCGAAP_DepExp_2012'!O44-J44), 0, +I44+'App.2-CB_NewCGAAP_DepExp_2012'!O44-J44) -> 3522.981932
A45: 1950 | B45: Power Operated Equipment | E45: 0 | F45: =IF(D45=0,+'App.2-CB_NewCGAAP_DepExp_2012'!O45,+'App.2-CB_NewCGAAP_DepExp_2012'!O45+((C45*0.5)/D45)) -> 0 | H45: 0 | I45: 0 | K45: =IF(ISERROR(+I45+'App.2-CB_NewCGAAP_DepExp_2012'!O45-J45), 0, +I45+'App.2-CB_NewCGAAP_DepExp_2012'!O45-J45) -> 0
A46: 1955 | B46: Communications Equipment | D46: 10 | E46: 0.1 | F46: =IF(D46=0,+'App.2-CB_NewCGAAP_DepExp_2012'!O46,+'App.2-CB_NewCGAAP_DepExp_2012'!O46+((C46*0.5)/D46)) -> 0 | H46: 0 | I46: 0 | K46: =IF(ISERROR(+I46+'App.2-CB_NewCGAAP_DepExp_2012'!O46-J46), 0, +I46+'App.2-CB_NewCGAAP_DepExp_2012'!O46-J46) -> 0
A47: 1955 | B47: Communication Equipment (Smart Meters) | D47: 10 | E47: 0.1 | F47: =IF(D47=0,+'App.2-CB_NewCGAAP_DepExp_2012'!O47,+'App.2-CB_NewCGAAP_DepExp_2012'!O47+((C47*0.5)/D47)) -> 0 | H47: 0 | I47: 0 | K47: =IF(ISERROR(+I47+'App.2-CB_NewCGAAP_DepExp_2012'!O47-J47), 0, +I47+'App.2-CB_NewCGAAP_DepExp_2012'!O47-J47) -> 0
A48: 1960 | B48: Miscellaneous Equipment | D48: 15 | E48: 0.06666666667 | F48: =IF(D48=0,+'App.2-CB_NewCGAAP_DepExp_2012'!O48,+'App.2-CB_NewCGAAP_DepExp_2012'!O48+((C48*0.5)/D48)) -> 0 | H48: 0 | I48: 0 | K48: =IF(ISERROR(+I48+'App.2-CB_NewCGAAP_DepExp_2012'!O48-J48), 0, +I48+'App.2-CB_NewCGAAP_DepExp_2012'!O48-J48) -> 0
A49: 1970 | B49: Load Management Controls Customer Premises | E49: 0 | F49: =IF(D49=0,+'App.2-CB_NewCGAAP_DepExp_2012'!O49,+'App.2-CB_NewCGAAP_DepExp_2012'!O49+((C49*0.5)/D49)) -> 0 | H49: 0 | I49: 0 | K49: =IF(ISERROR(+I49+'App.2-CB_NewCGAAP_DepExp_2012'!O49-J49), 0, +I49+'App.2-CB_NewCGAAP_DepExp_2012'!O49-J49) -> 0
A50: 1975 | B50: Load Management Controls Utility Premises | E50: 0 | F50: =IF(D50=0,+'App.2-CB_NewCGAAP_DepExp_2012'!O50,+'App.2-CB_NewCGAAP_DepExp_2012'!O50+((C50*0.5)/D50)) -> 0 | H50: 0 | I50: 0 | K50: =IF(ISERROR(+I50+'App.2-CB_NewCGAAP_DepExp_2012'!O50-J50), 0, +I50+'App.2-CB_NewCGAAP_DepExp_2012'!O50-J50) -> 0
A51: 1980 | B51: System Supervisor Equipment | C51: ='[14]FA Continuity 2013'!$E$58 -> 202625.3 | D51: 15 | E51: 0.06666666667 | F51: =IF(D51=0,+'App.2-CB_NewCGAAP_DepExp_2012'!O51,+'App.2-CB_NewCGAAP_DepExp_2012'!O51+((C51*0.5)/D51)) -> 110791.7237 | G51: ='[14]FA Continuity 2013'!$J$58 -> -112506.33 | H51: 223298.0537 | I51: 13508.35333 | K51: =IF(ISERROR(+I51+'App.2-CB_NewCGAAP_DepExp_2012'!O51-J51), 0, +I51+'App.2-CB_NewCGAAP_DepExp_2012'!O51-J51) -> 117545.9003
A52: 1985 | B52: Miscellaneous Fixed Assets | E52: 0 | F52: =IF(D52=0,+'App.2-CB_NewCGAAP_DepExp_2012'!O52,+'App.2-CB_NewCGAAP_DepExp_2012'!O52+((C52*0.5)/D52)) -> 0 | H52: 0 | I52: 0 | K52: =IF(ISERROR(+I52+'App.2-CB_NewCGAAP_DepExp_2012'!O52-J52), 0, +I52+'App.2-CB_NewCGAAP_DepExp_2012'!O52-J52) -> 0
A53: 1990 | B53: Other Tangible Property | E53: 0 | F53: =IF(D53=0,+'App.2-CB_NewCGAAP_DepExp_2012'!O53,+'App.2-CB_NewCGAAP_DepExp_2012'!O53+((C53*0.5)/D53)) -> 0 | H53: 0 | I53: 0 | K53: =IF(ISERROR(+I53+'App.2-CB_NewCGAAP_DepExp_2012'!O53-J53), 0, +I53+'App.2-CB_NewCGAAP_DepExp_2012'!O53-J53) -> 0
A54: 1995 | B54: Contributions & Grants | C54: ='[14]FA Continuity 2013'!$E$63 -> -428862.62 | E54: 0 | F54: =IF(D54=0,+'App.2-CB_NewCGAAP_DepExp_2012'!O54,+'App.2-CB_NewCGAAP_DepExp_2012'!O54+((C54*0.5)/D54)) -> -258146.6006 | G54: ='[14]FA Continuity 2013'!$J$63 -> 243767.61 | H54: -501914.2106 | I54: 0 | K54: =IF(ISERROR(+I54+'App.2-CB_NewCGAAP_DepExp_2012'!O54-J54), 0, +I54+'App.2-CB_NewCGAAP_DepExp_2012'!O54-J54) -> -258146.6006
B55: Total | C55: =SUM(C17:C54) -> 4751135.21 | F55: =SUM(F17:F54) -> 1547164.964 | G55: -1023742.11 | H55: 2570907.074 | I55: 154293.7867 | J55: 0 | K55: 1624311.858
A57: Notes:
A58: 1 | B58: Board policy of the "half-year" rule - the applicant must ensure that additions in the year attract a half-year depreciation expense in the first year. Deviations from this standard practice must be supported in the application.
A59: 2 | B59: The applicant must provide an explanation of material variances in evidence.
A60: 3 | B60: This column refers to the calculated full year depreciation but excludes the depreciation expense on assets fully depreciated during the year. This column is used for the purpose of calculating depreciation expense in the following year on the next worksheet.
A62: General: | B62: Applicants must provide a breakdown of depreciation and amortization expense in the above format for all relevant accounts. Asset Retirement Obligations (AROs), depreciation and accretion expense should be disclosed separately consistent with the Notes of historical Audited Financial Statements.

Sheet App.2-CD_MIFRS_DepExp_2014
J1: File Number: | K1: =EBNUMBER -> EB-2016-0086
J2: Exhibit:
J3: Tab:
J4: Schedule:
J5: Page:
J7: Date: | K7: 2016-05-20
A9: Appendix 2-CD
A10: Depreciation and Amortization Expense
A11: Assumes the applicant made capitalization and depreciation expense accounting policy changes under CGAAP effective January 1, 2012 and has adopted IFRS for financial reporting purposes effective January 1, 2015.
E13: 2014 | F13: MIFRS
A15: Account | B15: Description | C15: Additions | D15: Years (new additions only) | E15: Depreciation Rate on New Additions | F15: 2014 Depreciation Expense 1 | G15: 2014 Depreciation Expense per Apppendix 2-BA Fixed Assets, Column J (l) | H15: Variance 2 | I15: Depreciation Expense on 2014 Full Year Additions | J15: Less Depreciation Expense on Assets Fully Depreciated during the year (o) | K15: 2014 Full Year Depreciation 3
C16: (d) | D16: (f) | E16: (g) = 1 / (f) | F16: (h)=2013 Full Year Deprecation + ((d)*0.5)/(f) | H16: (m) = (h) - (l) | I16: (n)=((d))/(f) | K16: (p) = 2013 Full Year Depreciation + (n) - (o)
A17: 1611 | B17: Computer Software (Formally known as Account 1925) | C17: ='[14]FA Continuity MIFRS 2014'!$E$50 -> 198584.75 | D17: 5 | E17: =IF(D17=0,0,1/D17) -> 0.2 | F17: =IF(D17=0,+'App.2-CC_NewCGAAP_DepExp_2013'!K17,+'App.2-CC_NewCGAAP_DepExp_2013'!K17+((C17*0.5)/D17)) -> 122954.1044 | G17: ='[14]FA Continuity MIFRS 2014'!$J$50 -> -133980.8 | H17: =IF(ISERROR(+F17-G17), 0, +F17-G17) -> 256934.9044 | I17: =IF(D17=0,0,+(C17)/D17) -> 39716.95 | K17: =IF(ISERROR(+I17+'App.2-CC_NewCGAAP_DepExp_2013'!K17-J17), 0, +I17+'App.2-CC_NewCGAAP_DepExp_2013'!K17-J17) -> 142812.5794
A18: 1612 | B18: Land Rights (Formally known as Account 1906) | D18: 5 | E18: 0.2 | F18: =IF(D18=0,+'App.2-CC_NewCGAAP_DepExp_2013'!K18,+'App.2-CC_NewCGAAP_DepExp_2013'!K18+((C18*0.5)/D18)) -> 14570.14342 | G18: ='[14]FA Continuity MIFRS 2014'!$J$10 -> -15126 | H18: 29696.14342 | I18: =IF(D18=0,0,+(C18)/D18) -> 0 | K18: =IF(ISERROR(+I18+'App.2-CC_NewCGAAP_DepExp_2013'!K18-J18), 0, +I18+'App.2-CC_NewCGAAP_DepExp_2013'!K18-J18) -> 14570.14342
A19: 1805 | B19: Land | D19: 0 | E19: 0 | F19: =IF(D19=0,+'App.2-CC_NewCGAAP_DepExp_2013'!K19,+'App.2-CC_NewCGAAP_DepExp_2013'!K19+((C19*0.5)/D19)) -> 0 | H19: 0 | I19: 0 | K19: =IF(ISERROR(+I19+'App.2-CC_NewCGAAP_DepExp_2013'!K19-J19), 0, +I19+'App.2-CC_NewCGAAP_DepExp_2013'!K19-J19) -> 0
A20: 1808 | B20: Buildings | D20: 10 | E20: 0.1 | F20: =IF(D20=0,+'App.2-CC_NewCGAAP_DepExp_2013'!K20,+'App.2-CC_NewCGAAP_DepExp_2013'!K20+((C20*0.5)/D20)) -> 0 | H20: 0 | I20: 0 | K20: =IF(ISERROR(+I20+'App.2-CC_NewCGAAP_DepExp_2013'!K20-J20), 0, +I20+'App.2-CC_NewCGAAP_DepExp_2013'!K20-J20) -> 0
A21: 1810 | B21: Leasehold Improvements | E21: 0 | F21: =IF(D21=0,+'App.2-CC_NewCGAAP_DepExp_2013'!K21,+'App.2-CC_NewCGAAP_DepExp_2013'!K21+((C21*0.5)/D21)) -> 3312.128 | H21: 3312.128 | I21: 0 | K21: =IF(ISERROR(+I21+'App.2-CC_NewCGAAP_DepExp_2013'!K21-J21), 0, +I21+'App.2-CC_NewCGAAP_DepExp_2013'!K21-J21) -> 3312.128
A22: 1815 | B22: Transformer Station Equipment >50 kV | E22: 0 | F22: =IF(D22=0,+'App.2-CC_NewCGAAP_DepExp_2013'!K22,+'App.2-CC_NewCGAAP_DepExp_2013'!K22+((C22*0.5)/D22)) -> 0 | H22: 0 | I22: 0 | K22: =IF(ISERROR(+I22+'App.2-CC_NewCGAAP_DepExp_2013'!K22-J22), 0, +I22+'App.2-CC_NewCGAAP_DepExp_2013'!K22-J22) -> 0
A23: 1820 | B23: Distribution Station Equipment <50 kV | C23: ='[14]FA Continuity MIFRS 2014'!$E$14 -> 2895486.45 | D23: 40 | E23: 0.025 | F23: =IF(D23=0,+'App.2-CC_NewCGAAP_DepExp_2013'!K23,+'App.2-CC_NewCGAAP_DepExp_2013'!K23+((C23*0.5)/D23)) -> 129558.7941 | G23: ='[14]FA Continuity MIFRS 2014'!$J$14 -> -133796.77 | H23: 263355.5641 | I23: 72387.16125 | K23: =IF(ISERROR(+I23+'App.2-CC_NewCGAAP_DepExp_2013'!K23-J23), 0, +I23+'App.2-CC_NewCGAAP_DepExp_2013'!K23-J23) -> 165752.3747
A24: 1825 | B24: Storage Battery Equipment | E24: 0 | F24: =IF(D24=0,+'App.2-CC_NewCGAAP_DepExp_2013'!K24,+'App.2-CC_NewCGAAP_DepExp_2013'!K24+((C24*0.5)/D24)) -> 0 | H24: 0 | I24: 0 | K24: =IF(ISERROR(+I24+'App.2-CC_NewCGAAP_DepExp_2013'!K24-J24), 0, +I24+'App.2-CC_NewCGAAP_DepExp_2013'!K24-J24) -> 0
A25: 1830 | B25: Poles, Towers & Fixtures | C25: ='[14]FA Continuity MIFRS 2014'!$E$18 -> 576010.85 | D25: 40 | E25: 0.025 | F25: =IF(D25=0,+'App.2-CC_NewCGAAP_DepExp_2013'!K25,+'App.2-CC_NewCGAAP_DepExp_2013'!K25+((C25*0.5)/D25)) -> 234802.8251 | G25: ='[14]FA Continuity MIFRS 2014'!$J$18 -> -214178.88 | H25: 448981.7051 | I25: 14400.27125 | K25: =IF(ISERROR(+I25+'App.2-CC_NewCGAAP_DepExp_2013'!K25-J25), 0, +I25+'App.2-CC_NewCGAAP_DepExp_2013'!K25-J25) -> 242002.9607
A26: 1835 | B26: Overhead Conductors & Devices | C26: ='[14]FA Continuity MIFRS 2014'!$E$21 -> 724698.04 | D26: 60 | E26: 0.01666666667 | F26: =IF(D26=0,+'App.2-CC_NewCGAAP_DepExp_2013'!K26,+'App.2-CC_NewCGAAP_DepExp_2013'!K26+((C26*0.5)/D26)) -> 182806.6164 | G26: ='[14]FA Continuity MIFRS 2014'!$J$21 -> -206930.88 | H26: 389737.4964 | I26: 12078.30067 | K26: =IF(ISERROR(+I26+'App.2-CC_NewCGAAP_DepExp_2013'!K26-J26), 0, +I26+'App.2-CC_NewCGAAP_DepExp_2013'!K26-J26) -> 188845.7667
A27: 1840 | B27: Underground Conduit | C27: ='[14]FA Continuity MIFRS 2014'!$E$26 -> 320502.08 | D27: 60 | E27: 0.01666666667 | F27: =IF(D27=0,+'App.2-CC_NewCGAAP_DepExp_2013'!K27,+'App.2-CC_NewCGAAP_DepExp_2013'!K27+((C27*0.5)/D27)) -> 61411.32487 | G27: ='[14]FA Continuity MIFRS 2014'!$J$26 -> -70930.88 | H27: 132342.2049 | I27: 5341.701333 | K27: =IF(ISERROR(+I27+'App.2-CC_NewCGAAP_DepExp_2013'!K27-J27), 0, +I27+'App.2-CC_NewCGAAP_DepExp_2013'!K27-J27) -> 64082.17554
A28: 1845 | B28: Underground Conductors & Devices | C28: ='[14]FA Continuity MIFRS 2014'!$E$29 -> 279956.42 | D28: 40 | E28: 0.025 | F28: =IF(D28=0,+'App.2-CC_NewCGAAP_DepExp_2013'!K28,+'App.2-CC_NewCGAAP_DepExp_2013'!K28+((C28*0.5)/D28)) -> 323100.9366 | G28: ='[14]FA Continuity MIFRS 2014'!$J$29 -> -247482.95 | H28: 570583.8866 | I28: 6998.9105 | K28: =IF(ISERROR(+I28+'App.2-CC_NewCGAAP_DepExp_2013'!K28-J28), 0, +I28+'App.2-CC_NewCGAAP_DepExp_2013'!K28-J28) -> 326600.3918
A29: 1850 | B29: Line Transformers | C29: ='[14]FA Continuity MIFRS 2014'!$E$34 -> 556533.29 | D29: 40 | E29: 0.025 | F29: =IF(D29=0,+'App.2-CC_NewCGAAP_DepExp_2013'!K29,+'App.2-CC_NewCGAAP_DepExp_2013'!K29+((C29*0.5)/D29)) -> 229857.7086 | G29: ='[14]FA Continuity MIFRS 2014'!$J$34 -> -146575.75 | H29: 376433.4586 | I29: 13913.33225 | K29: =IF(ISERROR(+I29+'App.2-CC_NewCGAAP_DepExp_2013'!K29-J29), 0, +I29+'App.2-CC_NewCGAAP_DepExp_2013'!K29-J29) -> 236814.3747
A30: 1855 | B30: Services (Overhead & Underground) | C30: ='[14]FA Continuity MIFRS 2014'!$E$37 -> 519763.79 | D30: 40 | E30: 0.025 | F30: =IF(D30=0,+'App.2-CC_NewCGAAP_DepExp_2013'!K30,+'App.2-CC_NewCGAAP_DepExp_2013'!K30+((C30*0.5)/D30)) -> 94313.50143 | G30: ='[14]FA Continuity MIFRS 2014'!$J$37 -> -81169.09 | H30: 175482.5914 | I30: 12994.09475 | K30: =IF(ISERROR(+I30+'App.2-CC_NewCGAAP_DepExp_2013'!K30-J30), 0, +I30+'App.2-CC_NewCGAAP_DepExp_2013'!K30-J30) -> 100810.5488
A31: 1860 | B31: Meters | C31: ='[14]FA Continuity MIFRS 2014'!$E$39 -> 131826.75 | D31: 25 | E31: 0.04 | F31: =IF(D31=0,+'App.2-CC_NewCGAAP_DepExp_2013'!K31,+'App.2-CC_NewCGAAP_DepExp_2013'!K31+((C31*0.5)/D31)) -> 19206.20814 | G31: ='[14]FA Continuity MIFRS 2014'!$J$39 -> -176031.72 | H31: 195237.9281 | I31: 5273.07 | K31: =IF(ISERROR(+I31+'App.2-CC_NewCGAAP_DepExp_2013'!K31-J31), 0, +I31+'App.2-CC_NewCGAAP_DepExp_2013'!K31-J31) -> 21842.74314
A32: 1860 | B32: Meters (Smart Meters) | D32: 15 | E32: 0.06666666667 | F32: =IF(D32=0,+'App.2-CC_NewCGAAP_DepExp_2013'!K32,+'App.2-CC_NewCGAAP_DepExp_2013'!K32+((C32*0.5)/D32)) -> 148236.258 | H32: 148236.258 | I32: 0 | K32: =IF(ISERROR(+I32+'App.2-CC_NewCGAAP_DepExp_2013'!K32-J32), 0, +I32+'App.2-CC_NewCGAAP_DepExp_2013'!K32-J32) -> 148236.258
A33: 1905 | B33: Land | D33: 0 | E33: 0 | F33: =IF(D33=0,+'App.2-CC_NewCGAAP_DepExp_2013'!K33,+'App.2-CC_NewCGAAP_DepExp_2013'!K33+((C33*0.5)/D33)) -> 0 | H33: 0 | I33: 0 | K33: =IF(ISERROR(+I33+'App.2-CC_NewCGAAP_DepExp_2013'!K33-J33), 0, +I33+'App.2-CC_NewCGAAP_DepExp_2013'!K33-J33) -> 0
A34: 1908 | B34: Buildings & Fixtures | E34: 0 | F34: =IF(D34=0,+'App.2-CC_NewCGAAP_DepExp_2013'!K34,+'App.2-CC_NewCGAAP_DepExp_2013'!K34+((C34*0.5)/D34)) -> -11295.25324 | G34: ='[14]FA Continuity MIFRS 2014'!$J$45 -> -11367.21 | H34: 71.95675883 | I34: 0 | K34: =IF(ISERROR(+I34+'App.2-CC_NewCGAAP_DepExp_2013'!K34-J34), 0, +I34+'App.2-CC_NewCGAAP_DepExp_2013'!K34-J34) -> -11295.25324
A35: 1910 | B35: Leasehold Improvements | E35: 0 | F35: =IF(D35=0,+'App.2-CC_NewCGAAP_DepExp_2013'!K35,+'App.2-CC_NewCGAAP_DepExp_2013'!K35+((C35*0.5)/D35)) -> 0 | H35: 0 | I35: 0 | K35: =IF(ISERROR(+I35+'App.2-CC_NewCGAAP_DepExp_2013'!K35-J35), 0, +I35+'App.2-CC_NewCGAAP_DepExp_2013'!K35-J35) -> 0
A36: 1915 | B36: Office Furniture & Equipment (10 years) | C36: ='[14]FA Continuity MIFRS 2014'!$E$47 -> 9292 | D36: 5 | E36: 0.2 | F36: =IF(D36=0,+'App.2-CC_NewCGAAP_DepExp_2013'!K36,+'App.2-CC_NewCGAAP_DepExp_2013'!K36+((C36*0.5)/D36)) -> 15197.13045 | G36: ='[14]FA Continuity MIFRS 2014'!$J$47 -> -14034 | H36: 29231.13045 | I36: 1858.4 | K36: =IF(ISERROR(+I36+'App.2-CC_NewCGAAP_DepExp_2013'!K36-J36), 0, +I36+'App.2-CC_NewCGAAP_DepExp_2013'!K36-J36) -> 16126.33045
A37: 1915 | B37: Office Furniture & Equipment (5 years) | D37: 5 | E37: 0.2 | F37: =IF(D37=0,+'App.2-CC_NewCGAAP_DepExp_2013'!K37,+'App.2-CC_NewCGAAP_DepExp_2013'!K37+((C37*0.5)/D37)) -> 0 | H37: 0 | I37: 0 | K37: =IF(ISERROR(+I37+'App.2-CC_NewCGAAP_DepExp_2013'!K37-J37), 0, +I37+'App.2-CC_NewCGAAP_DepExp_2013'!K37-J37) -> 0
A38: 1920 | B38: Computer Equipment - Hardware | C38: ='[14]FA Continuity MIFRS 2014'!$E$48 -> 80063.46 | D38: 5 | E38: 0.2 | F38: =IF(D38=0,+'App.2-CC_NewCGAAP_DepExp_2013'!K38,+'App.2-CC_NewCGAAP_DepExp_2013'!K38+((C38*0.5)/D38)) -> 86853.60705 | G38: ='[14]FA Continuity MIFRS 2014'!$J$48 -> -70671.01 | H38: 157524.617 | I38: 16012.692 | K38: =IF(ISERROR(+I38+'App.2-CC_NewCGAAP_DepExp_2013'!K38-J38), 0, +I38+'App.2-CC_NewCGAAP_DepExp_2013'!K38-J38) -> 94859.95305
A39: 1920 | B39: Computer Equip.-Hardware(Post Mar. 22/04) | E39: 0 | F39: =IF(D39=0,+'App.2-CC_NewCGAAP_DepExp_2013'!K39,+'App.2-CC_NewCGAAP_DepExp_2013'!K39+((C39*0.5)/D39)) -> 0 | H39: 0 | I39: 0 | K39: =IF(ISERROR(+I39+'App.2-CC_NewCGAAP_DepExp_2013'!K39-J39), 0, +I39+'App.2-CC_NewCGAAP_DepExp_2013'!K39-J39) -> 0
A40: 1920 | B40: Computer Equip.-Hardware(Post Mar. 19/07) | E40: 0 | F40: =IF(D40=0,+'App.2-CC_NewCGAAP_DepExp_2013'!K40,+'App.2-CC_NewCGAAP_DepExp_2013'!K40+((C40*0.5)/D40)) -> 0 | H40: 0 | I40: 0 | K40: =IF(ISERROR(+I40+'App.2-CC_NewCGAAP_DepExp_2013'!K40-J40), 0, +I40+'App.2-CC_NewCGAAP_DepExp_2013'!K40-J40) -> 0
A41: 1930 | B41: Transportation Equipment | C41: ='[14]FA Continuity MIFRS 2014'!$E$51 -> 3267.67 | D41: 5 | E41: 0.2 | F41: =IF(D41=0,+'App.2-CC_NewCGAAP_DepExp_2013'!K41,+'App.2-CC_NewCGAAP_DepExp_2013'!K41+((C41*0.5)/D41)) -> 172206.8652 | G41: ='[14]FA Continuity MIFRS 2014'!$J$51 -> -139931.45 | H41: 312138.3152 | I41: 653.534 | K41: =IF(ISERROR(+I41+'App.2-CC_NewCGAAP_DepExp_2013'!K41-J41), 0, +I41+'App.2-CC_NewCGAAP_DepExp_2013'!K41-J41) -> 172533.6322
A42: 1935 | B42: Stores Equipment | C42: ='[14]FA Continuity MIFRS 2014'!$E$52 -> 4787.59 | E42: 0 | F42: =IF(D42=0,+'App.2-CC_NewCGAAP_DepExp_2013'!K42,+'App.2-CC_NewCGAAP_DepExp_2013'!K42+((C42*0.5)/D42)) -> 2199.728773 | G42: ='[14]FA Continuity MIFRS 2014'!$J$52 -> -2588.65 | H42: 4788.378773 | I42: 0 | K42: =IF(ISERROR(+I42+'App.2-CC_NewCGAAP_DepExp_2013'!K42-J42), 0, +I42+'App.2-CC_NewCGAAP_DepExp_2013'!K42-J42) -> 2199.728773
A43: 1940 | B43: Tools, Shop & Garage Equipment | C43: ='[14]FA Continuity MIFRS 2014'!$E$53 -> 17552.58 | D43: 10 | E43: 0.1 | F43: =IF(D43=0,+'App.2-CC_NewCGAAP_DepExp_2013'!K43,+'App.2-CC_NewCGAAP_DepExp_2013'!K43+((C43*0.5)/D43)) -> 33788.78663 | G43: ='[14]FA Continuity MIFRS 2014'!$J$53 -> -38485.83 | H43: 72274.61663 | I43: 1755.258 | K43: =IF(ISERROR(+I43+'App.2-CC_NewCGAAP_DepExp_2013'!K43-J43), 0, +I43+'App.2-CC_NewCGAAP_DepExp_2013'!K43-J43) -> 34666.41563
A44: 1945 | B44: Measurement & Testing Equipment | C44: ='[14]FA Continuity MIFRS 2014'!$E$54 -> 4066.7 | D44: 10 | E44: 0.1 | F44: =IF(D44=0,+'App.2-CC_NewCGAAP_DepExp_2013'!K44,+'App.2-CC_NewCGAAP_DepExp_2013'!K44+((C44*0.5)/D44)) -> 3726.316932 | G44: ='[14]FA Continuity MIFRS 2014'!$J$54 -> -3979.35 | H44: 7705.666932 | I44: 406.67 | K44: =IF(ISERROR(+I44+'App.2-CC_NewCGAAP_DepExp_2013'!K44-J44), 0, +I44+'App.2-CC_NewCGAAP_DepExp_2013'!K44-J44) -> 3929.651932
A45: 1950 | B45: Power Operated Equipment | E45: 0 | F45: =IF(D45=0,+'App.2-CC_NewCGAAP_DepExp_2013'!K45,+'App.2-CC_NewCGAAP_DepExp_2013'!K45+((C45*0.5)/D45)) -> 0 | H45: 0 | I45: 0 | K45: =IF(ISERROR(+I45+'App.2-CC_NewCGAAP_DepExp_2013'!K45-J45), 0, +I45+'App.2-CC_NewCGAAP_DepExp_2013'!K45-J45) -> 0
A46: 1955 | B46: Communications Equipment | D46: 10 | E46: 0.1 | F46: =IF(D46=0,+'App.2-CC_NewCGAAP_DepExp_2013'!K46,+'App.2-CC_NewCGAAP_DepExp_2013'!K46+((C46*0.5)/D46)) -> 0 | H46: 0 | I46: 0 | K46: =IF(ISERROR(+I46+'App.2-CC_NewCGAAP_DepExp_2013'!K46-J46), 0, +I46+'App.2-CC_NewCGAAP_DepExp_2013'!K46-J46) -> 0
A47: 1955 | B47: Communication Equipment (Smart Meters) | D47: 10 | E47: 0.1 | F47: =IF(D47=0,+'App.2-CC_NewCGAAP_DepExp_2013'!K47,+'App.2-CC_NewCGAAP_DepExp_2013'!K47+((C47*0.5)/D47)) -> 0 | H47: 0 | I47: 0 | K47: =IF(ISERROR(+I47+'App.2-CC_NewCGAAP_DepExp_2013'!K47-J47), 0, +I47+'App.2-CC_NewCGAAP_DepExp_2013'!K47-J47) -> 0
A48: 1960 | B48: Miscellaneous Equipment | D48: 15 | E48: 0.06666666667 | F48: =IF(D48=0,+'App.2-CC_NewCGAAP_DepExp_2013'!K48,+'App.2-CC_NewCGAAP_DepExp_2013'!K48+((C48*0.5)/D48)) -> 0 | H48: 0 | I48: 0 | K48: =IF(ISERROR(+I48+'App.2-CC_NewCGAAP_DepExp_2013'!K48-J48), 0, +I48+'App.2-CC_NewCGAAP_DepExp_2013'!K48-J48) -> 0
A49: 1970 | B49: Load Management Controls Customer Premises | E49: 0 | F49: =IF(D49=0,+'App.2-CC_NewCGAAP_DepExp_2013'!K49,+'App.2-CC_NewCGAAP_DepExp_2013'!K49+((C49*0.5)/D49)) -> 0 | H49: 0 | I49: 0 | K49: =IF(ISERROR(+I49+'App.2-CC_NewCGAAP_DepExp_2013'!K49-J49), 0, +I49+'App.2-CC_NewCGAAP_DepExp_2013'!K49-J49) -> 0
A50: 1975 | B50: Load Management Controls Utility Premises | E50: 0 | F50: =IF(D50=0,+'App.2-CC_NewCGAAP_DepExp_2013'!K50,+'App.2-CC_NewCGAAP_DepExp_2013'!K50+((C50*0.5)/D50)) -> 0 | H50: 0 | I50: 0 | K50: =IF(ISERROR(+I50+'App.2-CC_NewCGAAP_DepExp_2013'!K50-J50), 0, +I50+'App.2-CC_NewCGAAP_DepExp_2013'!K50-J50) -> 0
A51: 1980 | B51: System Supervisor Equipment | C51: ='[14]FA Continuity MIFRS 2014'!$E$58 -> 125462.03 | D51: 15 | E51: 0.06666666667 | F51: =IF(D51=0,+'App.2-CC_NewCGAAP_DepExp_2013'!K51,+'App.2-CC_NewCGAAP_DepExp_2013'!K51+((C51*0.5)/D51)) -> 121727.968 | G51: ='[14]FA Continuity MIFRS 2014'!$J$58 -> -118906.41 | H51: 240634.378 | I51: 8364.135333 | K51: =IF(ISERROR(+I51+'App.2-CC_NewCGAAP_DepExp_2013'!K51-J51), 0, +I51+'App.2-CC_NewCGAAP_DepExp_2013'!K51-J51) -> 125910.0357
A52: 1985 | B52: Miscellaneous Fixed Assets | E52: 0 | F52: =IF(D52=0,+'App.2-CC_NewCGAAP_DepExp_2013'!K52,+'App.2-CC_NewCGAAP_DepExp_2013'!K52+((C52*0.5)/D52)) -> 0 | H52: 0 | I52: 0 | K52: =IF(ISERROR(+I52+'App.2-CC_NewCGAAP_DepExp_2013'!K52-J52), 0, +I52+'App.2-CC_NewCGAAP_DepExp_2013'!K52-J52) -> 0
A53: 1990 | B53: Other Tangible Property | E53: 0 | F53: =IF(D53=0,+'App.2-CC_NewCGAAP_DepExp_2013'!K53,+'App.2-CC_NewCGAAP_DepExp_2013'!K53+((C53*0.5)/D53)) -> 0 | H53: 0 | I53: 0 | K53: =IF(ISERROR(+I53+'App.2-CC_NewCGAAP_DepExp_2013'!K53-J53), 0, +I53+'App.2-CC_NewCGAAP_DepExp_2013'!K53-J53) -> 0
A54: 1995 | B54: Contributions & Grants | C54: ='[14]FA Continuity MIFRS 2014'!$E$63 -> -1416471.4 | E54: =IF(D54=0,0,1/D54) -> 0 | F54: =IF(D54=0,+'App.2-CC_NewCGAAP_DepExp_2013'!K54,+'App.2-CC_NewCGAAP_DepExp_2013'!K54+((C54*0.5)/D54)) -> -258146.6006 | G54: ='[14]FA Continuity MIFRS 2014'!$J$63 -> 268928.62 | H54: -527075.2206 | I54: 0 | K54: =IF(ISERROR(+I54+'App.2-CC_NewCGAAP_DepExp_2013'!K54-J54), 0, +I54+'App.2-CC_NewCGAAP_DepExp_2013'!K54-J54) -> -258146.6006
B55: Total | C55: =SUM(C17:C54) -> 5031383.05 | F55: =SUM(F17:F54) -> 1730389.098 | G55: -1557239.01 | H55: 3287628.108 | I55: 212154.4813 | J55: 0 | K55: 1836466.339
B56: Depreciation exp. adj. from gain or loss on the retirement of assets (pool of like assets)
B57: Total Depreciation Expense | F57: =+F56+F55 -> 1730389.098
A59: Notes:
A60: 1 | B60: Board policy of the "half-year" rule - the applicant must ensure that additions in the year attract a half-year depreciation expense in the first year. Deviations from this standard practice must be supported in the application.
A61: 2 | B61: The applicant must provide an explanation of material variances in evidence.
A62: 3 | B62: This column refers to the calculated full year depreciation but excludes the depreciation expense on assets fully depreciated during the year. This column is used for the purpose of calculating depreciation expense in the following year on the next worksheet.
A64: General: | B64: Applicants must provide a breakdown of depreciation and amortization expense in the above format for all relevant accounts. Asset Retirement Obligations (AROs), depreciation and accretion expense should be disclosed separately consistent with the Notes of historical Audited Financial Statements.

Sheet App.2-CE_MIFRS_DepExp_2015
G1: File Number: | H1: =EBNUMBER -> EB-2016-0086
G2: Exhibit:
G3: Tab:
G4: Schedule:
G5: Page:
G7: Date: | H7: 2016-05-20
A9: Appendix 2-CE
A10: Depreciation and Amortization Expense
A11: Assumes the applicant made capitalization and depreciation expense accounting policy changes under CGAAP effective January 1, 2012 and has adopted IFRS for financial reporting purposes effective January 1, 2015.
C13: 2015 | D13: MIFRS
A15: Account | B15: Description | C15: Additions | D15: Years (new additions only) | E15: Depreciation Rate on New Additions | F15: 2015 Depreciation Expense 1 | G15: 2015 Depreciation Expense per Appendix 2-BA Fixed Assets, Column J (l) | H15: Variance 2 | I15: Depreciation Expense on 2015 Full Year Additions | J15: Less Depreciation Expense on Assets Fully Depreciated during the year (o) | K15: 2015 Full Year Depreciation 3
C16: (d) | D16: (f) | E16: (g) = 1 / (f) | F16: (h)=2014 Full Year Depreciation + ((d)*0.5)/(f) | H16: (m) = (h) - (l) | I16: (n)=((d))/(f) | K16: (p) = 2014 Full Year Depreciation + (n) - (o)
A17: 1611 | B17: Computer Software (Formally known as Account 1925) | C17: ='[14]FA Continuity MIFRS 2015'!$E$50 -> 185053 | D17: 5 | E17: =IF(D17=0,0,1/D17) -> 0.2 | F17: =IF(D17=0,'App.2-CD_MIFRS_DepExp_2014'!K17,+'App.2-CD_MIFRS_DepExp_2014'!K17+((C17*0.5)/D17)) -> 161317.8794 | G17: ='[14]FA Continuity MIFRS 2015'!$J$50 -> -169499 | H17: =IF(ISERROR(+F17-G17), 0, +F17-G17) -> 330816.8794 | I17: =IF(D17=0,0,+(C17)/D17) -> 37010.6 | K17: =IF(ISERROR(+I17+'App.2-CD_MIFRS_DepExp_2014'!K17-J17), 0, +I17+'App.2-CD_MIFRS_DepExp_2014'!K17-J17) -> 179823.1794
A18: 1612 | B18: Land Rights (Formally known as Account 1906) | D18: 5 | E18: 0.2 | F18: =IF(D18=0,'App.2-CD_MIFRS_DepExp_2014'!K18,+'App.2-CD_MIFRS_DepExp_2014'!K18+((C18*0.5)/D18)) -> 14570.14342 | G18: ='[14]FA Continuity MIFRS 2015'!$J$10 -> -12699 | H18: 27269.14342 | I18: =IF(D18=0,0,+(C18)/D18) -> 0 | K18: =IF(ISERROR(+I18+'App.2-CD_MIFRS_DepExp_2014'!K18-J18), 0, +I18+'App.2-CD_MIFRS_DepExp_2014'!K18-J18) -> 14570.14342
A19: 1805 | B19: Land | C19: 77556 | D19: 0 | E19: 0 | F19: =IF(D19=0,'App.2-CD_MIFRS_DepExp_2014'!K19,+'App.2-CD_MIFRS_DepExp_2014'!K19+((C19*0.5)/D19)) -> 0 | G19: 0 | H19: 0 | I19: 0 | K19: =IF(ISERROR(+I19+'App.2-CD_MIFRS_DepExp_2014'!K19-J19), 0, +I19+'App.2-CD_MIFRS_DepExp_2014'!K19-J19) -> 0
A20: 1808 | B20: Buildings | D20: 10 | E20: 0.1 | F20: =IF(D20=0,'App.2-CD_MIFRS_DepExp_2014'!K20,+'App.2-CD_MIFRS_DepExp_2014'!K20+((C20*0.5)/D20)) -> 0 | H20: 0 | I20: 0 | K20: =IF(ISERROR(+I20+'App.2-CD_MIFRS_DepExp_2014'!K20-J20), 0, +I20+'App.2-CD_MIFRS_DepExp_2014'!K20-J20) -> 0
A21: 1810 | B21: Leasehold Improvements | E21: 0 | F21: =IF(D21=0,'App.2-CD_MIFRS_DepExp_2014'!K21,+'App.2-CD_MIFRS_DepExp_2014'!K21+((C21*0.5)/D21)) -> 3312.128 | H21: 3312.128 | I21: 0 | K21: =IF(ISERROR(+I21+'App.2-CD_MIFRS_DepExp_2014'!K21-J21), 0, +I21+'App.2-CD_MIFRS_DepExp_2014'!K21-J21) -> 3312.128
A22: 1815 | B22: Transformer Station Equipment >50 kV | E22: 0 | F22: =IF(D22=0,'App.2-CD_MIFRS_DepExp_2014'!K22,+'App.2-CD_MIFRS_DepExp_2014'!K22+((C22*0.5)/D22)) -> 0 | H22: 0 | I22: 0 | K22: =IF(ISERROR(+I22+'App.2-CD_MIFRS_DepExp_2014'!K22-J22), 0, +I22+'App.2-CD_MIFRS_DepExp_2014'!K22-J22) -> 0
A23: 1820 | B23: Distribution Station Equipment <50 kV | C23: ='[14]FA Continuity MIFRS 2015'!$E$14 -> 779993 | D23: 40 | E23: 0.025 | F23: =IF(D23=0,'App.2-CD_MIFRS_DepExp_2014'!K23,+'App.2-CD_MIFRS_DepExp_2014'!K23+((C23*0.5)/D23)) -> 175502.2872 | G23: ='[14]FA Continuity MIFRS 2015'!$J$14 -> -191509 | H23: 367011.2872 | I23: 19499.825 | K23: =IF(ISERROR(+I23+'App.2-CD_MIFRS_DepExp_2014'!K23-J23), 0, +I23+'App.2-CD_MIFRS_DepExp_2014'!K23-J23) -> 185252.1997
A24: 1825 | B24: Storage Battery Equipment | E24: 0 | F24: =IF(D24=0,'App.2-CD_MIFRS_DepExp_2014'!K24,+'App.2-CD_MIFRS_DepExp_2014'!K24+((C24*0.5)/D24)) -> 0 | H24: 0 | I24: 0 | K24: =IF(ISERROR(+I24+'App.2-CD_MIFRS_DepExp_2014'!K24-J24), 0, +I24+'App.2-CD_MIFRS_DepExp_2014'!K24-J24) -> 0
A25: 1830 | B25: Poles, Towers & Fixtures | C25: ='[14]FA Continuity MIFRS 2015'!$E$18 -> 1533272 | D25: 40 | E25: 0.025 | F25: =IF(D25=0,'App.2-CD_MIFRS_DepExp_2014'!K25,+'App.2-CD_MIFRS_DepExp_2014'!K25+((C25*0.5)/D25)) -> 261168.8607 | G25: ='[14]FA Continuity MIFRS 2015'!$J$18 -> -237728 | H25: 498896.8607 | I25: 38331.8 | K25: =IF(ISERROR(+I25+'App.2-CD_MIFRS_DepExp_2014'!K25-J25), 0, +I25+'App.2-CD_MIFRS_DepExp_2014'!K25-J25) -> 280334.7607
A26: 1835 | B26: Overhead Conductors & Devices | C26: ='[14]FA Continuity MIFRS 2015'!$E$21 -> 1390592 | D26: 60 | E26: 0.01666666667 | F26: =IF(D26=0,'App.2-CD_MIFRS_DepExp_2014'!K26,+'App.2-CD_MIFRS_DepExp_2014'!K26+((C26*0.5)/D26)) -> 200434.0334 | G26: ='[14]FA Continuity MIFRS 2015'!$J$21 -> -225949 | H26: 426383.0334 | I26: 23176.53333 | K26: =IF(ISERROR(+I26+'App.2-CD_MIFRS_DepExp_2014'!K26-J26), 0, +I26+'App.2-CD_MIFRS_DepExp_2014'!K26-J26) -> 212022.3001
A27: 1840 | B27: Underground Conduit | C27: ='[14]FA Continuity MIFRS 2015'!$E$26 -> 546399 | D27: 60 | E27: 0.01666666667 | F27: =IF(D27=0,'App.2-CD_MIFRS_DepExp_2014'!K27,+'App.2-CD_MIFRS_DepExp_2014'!K27+((C27*0.5)/D27)) -> 68635.50054 | G27: ='[14]FA Continuity MIFRS 2015'!$J$26 -> -81467 | H27: 150102.5005 | I27: 9106.65 | K27: =IF(ISERROR(+I27+'App.2-CD_MIFRS_DepExp_2014'!K27-J27), 0, +I27+'App.2-CD_MIFRS_DepExp_2014'!K27-J27) -> 73188.82554
A28: 1845 | B28: Underground Conductors & Devices | C28: ='[14]FA Continuity MIFRS 2015'!$E$29 -> 283406 | D28: 40 | E28: 0.025 | F28: =IF(D28=0,'App.2-CD_MIFRS_DepExp_2014'!K28,+'App.2-CD_MIFRS_DepExp_2014'!K28+((C28*0.5)/D28)) -> 330142.9668 | G28: ='[14]FA Continuity MIFRS 2015'!$J$29 -> -254303 | H28: 584445.9668 | I28: 7085.15 | K28: =IF(ISERROR(+I28+'App.2-CD_MIFRS_DepExp_2014'!K28-J28), 0, +I28+'App.2-CD_MIFRS_DepExp_2014'!K28-J28) -> 333685.5418
A29: 1850 | B29: Line Transformers | C29: ='[14]FA Continuity MIFRS 2015'!$E$34 -> 999677 | D29: 40 | E29: 0.025 | F29: =IF(D29=0,'App.2-CD_MIFRS_DepExp_2014'!K29,+'App.2-CD_MIFRS_DepExp_2014'!K29+((C29*0.5)/D29)) -> 249310.3372 | G29: ='[14]FA Continuity MIFRS 2015'!$J$34 -> -164241 | H29: 413551.3372 | I29: 24991.925 | K29: =IF(ISERROR(+I29+'App.2-CD_MIFRS_DepExp_2014'!K29-J29), 0, +I29+'App.2-CD_MIFRS_DepExp_2014'!K29-J29) -> 261806.2997
A30: 1855 | B30: Services (Overhead & Underground) | C30: ='[14]FA Continuity MIFRS 2015'!$E$37 -> 479966 | D30: 40 | E30: 0.025 | F30: =IF(D30=0,'App.2-CD_MIFRS_DepExp_2014'!K30,+'App.2-CD_MIFRS_DepExp_2014'!K30+((C30*0.5)/D30)) -> 106810.1238 | G30: ='[14]FA Continuity MIFRS 2015'!$J$37 -> -93028 | H30: 199838.1238 | I30: 11999.15 | K30: =IF(ISERROR(+I30+'App.2-CD_MIFRS_DepExp_2014'!K30-J30), 0, +I30+'App.2-CD_MIFRS_DepExp_2014'!K30-J30) -> 112809.6988
A31: 1860 | B31: Meters | C31: ='[14]FA Continuity MIFRS 2015'!$E$39 -> 113146 | D31: 25 | E31: 0.04 | F31: =IF(D31=0,'App.2-CD_MIFRS_DepExp_2014'!K31,+'App.2-CD_MIFRS_DepExp_2014'!K31+((C31*0.5)/D31)) -> 24105.66314 | G31: ='[14]FA Continuity MIFRS 2015'!$J$39 -> -178804 | H31: 202909.6631 | I31: 4525.84 | K31: =IF(ISERROR(+I31+'App.2-CD_MIFRS_DepExp_2014'!K31-J31), 0, +I31+'App.2-CD_MIFRS_DepExp_2014'!K31-J31) -> 26368.58314
A32: 1860 | B32: Meters (Smart Meters) | D32: 15 | E32: 0.06666666667 | F32: =IF(D32=0,'App.2-CD_MIFRS_DepExp_2014'!K32,+'App.2-CD_MIFRS_DepExp_2014'!K32+((C32*0.5)/D32)) -> 148236.258 | H32: 148236.258 | I32: 0 | K32: =IF(ISERROR(+I32+'App.2-CD_MIFRS_DepExp_2014'!K32-J32), 0, +I32+'App.2-CD_MIFRS_DepExp_2014'!K32-J32) -> 148236.258
A33: 1905 | B33: Land | D33: 0 | E33: 0 | F33: =IF(D33=0,'App.2-CD_MIFRS_DepExp_2014'!K33,+'App.2-CD_MIFRS_DepExp_2014'!K33+((C33*0.5)/D33)) -> 0 | H33: 0 | I33: 0 | K33: =IF(ISERROR(+I33+'App.2-CD_MIFRS_DepExp_2014'!K33-J33), 0, +I33+'App.2-CD_MIFRS_DepExp_2014'!K33-J33) -> 0
A34: 1908 | B34: Buildings & Fixtures | C34: ='[14]FA Continuity MIFRS 2015'!$E$45 -> 12430510 | E34: 0 | F34: =IF(D34=0,'App.2-CD_MIFRS_DepExp_2014'!K34,+'App.2-CD_MIFRS_DepExp_2014'!K34+((C34*0.5)/D34)) -> -11295.25324 | G34: ='[14]FA Continuity MIFRS 2015'!$J$45 -> -145132 | H34: 133836.7468 | I34: 0 | K34: =IF(ISERROR(+I34+'App.2-CD_MIFRS_DepExp_2014'!K34-J34), 0, +I34+'App.2-CD_MIFRS_DepExp_2014'!K34-J34) -> -11295.25324
A35: 1910 | B35: Leasehold Improvements | E35: 0 | F35: =IF(D35=0,'App.2-CD_MIFRS_DepExp_2014'!K35,+'App.2-CD_MIFRS_DepExp_2014'!K35+((C35*0.5)/D35)) -> 0 | H35: 0 | I35: 0 | K35: =IF(ISERROR(+I35+'App.2-CD_MIFRS_DepExp_2014'!K35-J35), 0, +I35+'App.2-CD_MIFRS_DepExp_2014'!K35-J35) -> 0
A36: 1915 | B36: Office Furniture & Equipment (10 years) | C36: ='[14]FA Continuity MIFRS 2015'!$E$47 -> 154231 | D36: 5 | E36: 0.2 | F36: =IF(D36=0,'App.2-CD_MIFRS_DepExp_2014'!K36,+'App.2-CD_MIFRS_DepExp_2014'!K36+((C36*0.5)/D36)) -> 31549.43045 | G36: ='[14]FA Continuity MIFRS 2015'!$J$47 -> -19569 | H36: 51118.43045 | I36: 30846.2 | K36: =IF(ISERROR(+I36+'App.2-CD_MIFRS_DepExp_2014'!K36-J36), 0, +I36+'App.2-CD_MIFRS_DepExp_2014'!K36-J36) -> 46972.53045
A37: 1915 | B37: Office Furniture & Equipment (5 years) | D37: 5 | E37: 0.2 | F37: =IF(D37=0,'App.2-CD_MIFRS_DepExp_2014'!K37,+'App.2-CD_MIFRS_DepExp_2014'!K37+((C37*0.5)/D37)) -> 0 | H37: 0 | I37: 0 | K37: =IF(ISERROR(+I37+'App.2-CD_MIFRS_DepExp_2014'!K37-J37), 0, +I37+'App.2-CD_MIFRS_DepExp_2014'!K37-J37) -> 0
A38: 1920 | B38: Computer Equipment - Hardware | C38: ='[14]FA Continuity MIFRS 2015'!$E$48 -> 149497 | D38: 5 | E38: 0.2 | F38: =IF(D38=0,'App.2-CD_MIFRS_DepExp_2014'!K38,+'App.2-CD_MIFRS_DepExp_2014'!K38+((C38*0.5)/D38)) -> 109809.653 | G38: ='[14]FA Continuity MIFRS 2015'!$J$48 -> -82659 | H38: 192468.653 | I38: 29899.4 | K38: =IF(ISERROR(+I38+'App.2-CD_MIFRS_DepExp_2014'!K38-J38), 0, +I38+'App.2-CD_MIFRS_DepExp_2014'!K38-J38) -> 124759.353
A39: 1920 | B39: Computer Equip.-Hardware(Post Mar. 22/04) | E39: 0 | F39: =IF(D39=0,'App.2-CD_MIFRS_DepExp_2014'!K39,+'App.2-CD_MIFRS_DepExp_2014'!K39+((C39*0.5)/D39)) -> 0 | H39: 0 | I39: 0 | K39: =IF(ISERROR(+I39+'App.2-CD_MIFRS_DepExp_2014'!K39-J39), 0, +I39+'App.2-CD_MIFRS_DepExp_2014'!K39-J39) -> 0
A40: 1920 | B40: Computer Equip.-Hardware(Post Mar. 19/07) | E40: 0 | F40: =IF(D40=0,'App.2-CD_MIFRS_DepExp_2014'!K40,+'App.2-CD_MIFRS_DepExp_2014'!K40+((C40*0.5)/D40)) -> 0 | H40: 0 | I40: 0 | K40: =IF(ISERROR(+I40+'App.2-CD_MIFRS_DepExp_2014'!K40-J40), 0, +I40+'App.2-CD_MIFRS_DepExp_2014'!K40-J40) -> 0
A41: 1930 | B41: Transportation Equipment | C41: ='[14]FA Continuity MIFRS 2015'!$E$51 -> 33347 | D41: 5 | E41: 0.2 | F41: =IF(D41=0,'App.2-CD_MIFRS_DepExp_2014'!K41,+'App.2-CD_MIFRS_DepExp_2014'!K41+((C41*0.5)/D41)) -> 175868.3322 | G41: ='[14]FA Continuity MIFRS 2015'!$J$51 -> -120051 | H41: 295919.3322 | I41: 6669.4 | K41: =IF(ISERROR(+I41+'App.2-CD_MIFRS_DepExp_2014'!K41-J41), 0, +I41+'App.2-CD_MIFRS_DepExp_2014'!K41-J41) -> 179203.0322
A42: 1935 | B42: Stores Equipment | C42: ='[14]FA Continuity MIFRS 2015'!$E$52 -> 117204 | E42: 0 | F42: =IF(D42=0,'App.2-CD_MIFRS_DepExp_2014'!K42,+'App.2-CD_MIFRS_DepExp_2014'!K42+((C42*0.5)/D42)) -> 2199.728773 | G42: ='[14]FA Continuity MIFRS 2015'!$J$52 -> -8603 | H42: 10802.72877 | I42: 0 | K42: =IF(ISERROR(+I42+'App.2-CD_MIFRS_DepExp_2014'!K42-J42), 0, +I42+'App.2-CD_MIFRS_DepExp_2014'!K42-J42) -> 2199.728773
A43: 1940 | B43: Tools, Shop & Garage Equipment | C43: ='[14]FA Continuity MIFRS 2015'!$E$53 -> 41581 | D43: 10 | E43: 0.1 | F43: =IF(D43=0,'App.2-CD_MIFRS_DepExp_2014'!K43,+'App.2-CD_MIFRS_DepExp_2014'!K43+((C43*0.5)/D43)) -> 36745.46563 | G43: ='[14]FA Continuity MIFRS 2015'!$J$53 -> -41285 | H43: 78030.46563 | I43: 4158.1 | K43: =IF(ISERROR(+I43+'App.2-CD_MIFRS_DepExp_2014'!K43-J43), 0, +I43+'App.2-CD_MIFRS_DepExp_2014'!K43-J43) -> 38824.51563
A44: 1945 | B44: Measurement & Testing Equipment | D44: 10 | E44: 0.1 | F44: =IF(D44=0,'App.2-CD_MIFRS_DepExp_2014'!K44,+'App.2-CD_MIFRS_DepExp_2014'!K44+((C44*0.5)/D44)) -> 3929.651932 | G44: ='[14]FA Continuity MIFRS 2015'!$J$54 -> -4161 | H44: 8090.651932 | I44: 0 | K44: =IF(ISERROR(+I44+'App.2-CD_MIFRS_DepExp_2014'!K44-J44), 0, +I44+'App.2-CD_MIFRS_DepExp_2014'!K44-J44) -> 3929.651932
A45: 1950 | B45: Power Operated Equipment | E45: 0 | F45: =IF(D45=0,'App.2-CD_MIFRS_DepExp_2014'!K45,+'App.2-CD_MIFRS_DepExp_2014'!K45+((C45*0.5)/D45)) -> 0 | H45: 0 | I45: 0 | K45: =IF(ISERROR(+I45+'App.2-CD_MIFRS_DepExp_2014'!K45-J45), 0, +I45+'App.2-CD_MIFRS_DepExp_2014'!K45-J45) -> 0
A46: 1955 | B46: Communications Equipment | D46: 10 | E46: 0.1 | F46: =IF(D46=0,'App.2-CD_MIFRS_DepExp_2014'!K46,+'App.2-CD_MIFRS_DepExp_2014'!K46+((C46*0.5)/D46)) -> 0 | H46: 0 | I46: 0 | K46: =IF(ISERROR(+I46+'App.2-CD_MIFRS_DepExp_2014'!K46-J46), 0, +I46+'App.2-CD_MIFRS_DepExp_2014'!K46-J46) -> 0
A47: 1955 | B47: Communication Equipment (Smart Meters) | D47: 10 | E47: 0.1 | F47: =IF(D47=0,'App.2-CD_MIFRS_DepExp_2014'!K47,+'App.2-CD_MIFRS_DepExp_2014'!K47+((C47*0.5)/D47)) -> 0 | H47: 0 | I47: 0 | K47: =IF(ISERROR(+I47+'App.2-CD_MIFRS_DepExp_2014'!K47-J47), 0, +I47+'App.2-CD_MIFRS_DepExp_2014'!K47-J47) -> 0
A48: 1960 | B48: Miscellaneous Equipment | D48: 15 | E48: 0.06666666667 | F48: =IF(D48=0,'App.2-CD_MIFRS_DepExp_2014'!K48,+'App.2-CD_MIFRS_DepExp_2014'!K48+((C48*0.5)/D48)) -> 0 | H48: 0 | I48: 0 | K48: =IF(ISERROR(+I48+'App.2-CD_MIFRS_DepExp_2014'!K48-J48), 0, +I48+'App.2-CD_MIFRS_DepExp_2014'!K48-J48) -> 0
A49: 1970 | B49: Load Management Controls Customer Premises | E49: 0 | F49: =IF(D49=0,'App.2-CD_MIFRS_DepExp_2014'!K49,+'App.2-CD_MIFRS_DepExp_2014'!K49+((C49*0.5)/D49)) -> 0 | H49: 0 | I49: 0 | K49: =IF(ISERROR(+I49+'App.2-CD_MIFRS_DepExp_2014'!K49-J49), 0, +I49+'App.2-CD_MIFRS_DepExp_2014'!K49-J49) -> 0
A50: 1975 | B50: Load Management Controls Utility Premises | E50: 0 | F50: =IF(D50=0,'App.2-CD_MIFRS_DepExp_2014'!K50,+'App.2-CD_MIFRS_DepExp_2014'!K50+((C50*0.5)/D50)) -> 0 | H50: 0 | I50: 0 | K50: =IF(ISERROR(+I50+'App.2-CD_MIFRS_DepExp_2014'!K50-J50), 0, +I50+'App.2-CD_MIFRS_DepExp_2014'!K50-J50) -> 0
A51: 1980 | B51: System Supervisor Equipment | C51: ='[14]FA Continuity MIFRS 2015'!$E$58 -> 569196 | D51: 15 | E51: 0.06666666667 | F51: =IF(D51=0,'App.2-CD_MIFRS_DepExp_2014'!K51,+'App.2-CD_MIFRS_DepExp_2014'!K51+((C51*0.5)/D51)) -> 144883.2357 | G51: ='[14]FA Continuity MIFRS 2015'!$J$58 -> -133510 | H51: 278393.2357 | I51: 37946.4 | K51: =IF(ISERROR(+I51+'App.2-CD_MIFRS_DepExp_2014'!K51-J51), 0, +I51+'App.2-CD_MIFRS_DepExp_2014'!K51-J51) -> 163856.4357
A52: 1985 | B52: Miscellaneous Fixed Assets | E52: 0 | F52: =IF(D52=0,'App.2-CD_MIFRS_DepExp_2014'!K52,+'App.2-CD_MIFRS_DepExp_2014'!K52+((C52*0.5)/D52)) -> 0 | H52: 0 | I52: 0 | K52: =IF(ISERROR(+I52+'App.2-CD_MIFRS_DepExp_2014'!K52-J52), 0, +I52+'App.2-CD_MIFRS_DepExp_2014'!K52-J52) -> 0
A53: 1990 | B53: Other Tangible Property | E53: 0 | F53: =IF(D53=0,'App.2-CD_MIFRS_DepExp_2014'!K53,+'App.2-CD_MIFRS_DepExp_2014'!K53+((C53*0.5)/D53)) -> 0 | H53: 0 | I53: 0 | K53: =IF(ISERROR(+I53+'App.2-CD_MIFRS_DepExp_2014'!K53-J53), 0, +I53+'App.2-CD_MIFRS_DepExp_2014'!K53-J53) -> 0
A54: 1995 | B54: Contributions & Grants | C54: ='[14]FA Continuity MIFRS 2015'!$E$63 -> -2267837 | E54: 0 | F54: =IF(D54=0,'App.2-CD_MIFRS_DepExp_2014'!K54,+'App.2-CD_MIFRS_DepExp_2014'!K54+((C54*0.5)/D54)) -> -258146.6006 | G54: ='[14]FA Continuity MIFRS 2015'!$J$63 -> 313336 | H54: -571482.6006 | I54: 0 | K54: =IF(ISERROR(+I54+'App.2-CD_MIFRS_DepExp_2014'!K54-J54), 0, +I54+'App.2-CD_MIFRS_DepExp_2014'!K54-J54) -> -258146.6006
B55: Total | C55: =SUM(C17:C54) -> 17616789 | F55: =SUM(F17:F54) -> 1979089.826 | G55: =SUM(G17:G54) -> -1850861 | H55: =SUM(H17:H54) -> 3829950.826 | I55: =SUM(I17:I54) -> 285246.9733 | J55: 0 | K55: =SUM(K17:K54) -> 2121713.312
B56: Depreciation exp. adj. from gain or loss on the retirement of assets (pool of like assets)
B57: Total Depreciation expense to be included in the test year revenue requirement | F57: =SUM(F55:F56) -> 1979089.826
A58: Notes:
A59: 1 | B59: Board policy of the "half-year" rule - the applicant must ensure that additions in the year attract a half-year depreciation expense in the first year. Deviations from this standard practice must be supported in the application.
A60: 2 | B60: The applicant must provide an explanation of material variances in evidence.
A61: 3 | B61: This column refers to the calculated full year depreciation but excludes the depreciation expense on assets fully depreciated during the year. This column is used for the purpose of calculating depreciation expense in the following year on the next worksheet.
A63: General: | B63: Applicants must provide a breakdown of depreciation and amortization expense in the above format for all relevant accounts. Asset Retirement Obligations (AROs), depreciation and accretion expense should be disclosed separately consistent with the Notes of historical Audited Financial Statements.

Sheet App.2-CF_MIFRS_DepExp_2016
G1: File Number: | H1: =EBNUMBER -> EB-2016-0086
G2: Exhibit:
G3: Tab:
G4: Schedule:
G5: Page:
G7: Date: | H7: 2016-05-20
A9: Appendix 2-CF
A10: Depreciation and Amortization Expense
A11: Assumes the applicant made capitalization and depreciation expense accounting policy changes under CGAAP effective January 1, 2012 and has adopted IFRS for financial reporting purposes effective January 1, 2015.
C13: 2016 | D13: MIFRS
A15: Account | B15: Description | C15: Additions | D15: Years (new additions only) | E15: Depreciation Rate on New Additions | F15: 2016 Depreciation Expense 1 | G15: 2016 Depreciation Expense per Appendix 2-BA Fixed Assets, Column J (l) | H15: Variance 2
C16: (d) | D16: (f) | E16: (g) = 1 / (f) | F16: (h)=2015 Full Year Depreciation + ((d)*0.5)/(f) | H16: (m) = (h) - (l)
A17: 1611 | B17: Computer Software (Formally known as Account 1925) | C17: ='[14]FA Continuity MIFRS 2016'!$E$50 -> 358500 | D17: 5 | E17: =IF(D17=0,0,1/D17) -> 0.2 | F17: =IF(D17=0,'App.2-CE_MIFRS_DepExp_2015'!K17,+'App.2-CE_MIFRS_DepExp_2015'!K17+((C17*0.5)/D17)) -> 215673.1794 | G17: ='[14]FA Continuity MIFRS 2016'!$J$50 -> -221953 | H17: =IF(ISERROR(+F17-G17), 0, +F17-G17) -> 437626.1794
A18: 1612 | B18: Land Rights (Formally known as Account 1906) | D18: 5 | E18: 0.2 | F18: =IF(D18=0,'App.2-CE_MIFRS_DepExp_2015'!K18,+'App.2-CE_MIFRS_DepExp_2015'!K18+((C18*0.5)/D18)) -> 14570.14342 | G18: ='[14]FA Continuity MIFRS 2016'!$J$10 -> -15109 | H18: 29679.14342
A19: 1805 | B19: Land | D19: 0 | E19: 0 | F19: =IF(D19=0,'App.2-CE_MIFRS_DepExp_2015'!K19,+'App.2-CE_MIFRS_DepExp_2015'!K19+((C19*0.5)/D19)) -> 0 | H19: 0
A20: 1808 | B20: Buildings | D20: 10 | E20: 0.1 | F20: =IF(D20=0,'App.2-CE_MIFRS_DepExp_2015'!K20,+'App.2-CE_MIFRS_DepExp_2015'!K20+((C20*0.5)/D20)) -> 0 | H20: 0
A21: 1810 | B21: Leasehold Improvements | E21: 0 | F21: =IF(D21=0,'App.2-CE_MIFRS_DepExp_2015'!K21,+'App.2-CE_MIFRS_DepExp_2015'!K21+((C21*0.5)/D21)) -> 3312.128 | H21: 3312.128
A22: 1815 | B22: Transformer Station Equipment >50 kV | E22: 0 | F22: =IF(D22=0,'App.2-CE_MIFRS_DepExp_2015'!K22,+'App.2-CE_MIFRS_DepExp_2015'!K22+((C22*0.5)/D22)) -> 0 | H22: 0
A23: 1820 | B23: Distribution Station Equipment <50 kV | C23: ='[14]FA Continuity MIFRS 2016'!$E$14 -> 2008854 | D23: 40 | E23: 0.025 | F23: =IF(D23=0,'App.2-CE_MIFRS_DepExp_2015'!K23,+'App.2-CE_MIFRS_DepExp_2015'!K23+((C23*0.5)/D23)) -> 210362.8747 | G23: ='[14]FA Continuity MIFRS 2016'!$J$14 -> -174908 | H23: 385270.8747
A24: 1825 | B24: Storage Battery Equipment | E24: 0 | F24: =IF(D24=0,'App.2-CE_MIFRS_DepExp_2015'!K24,+'App.2-CE_MIFRS_DepExp_2015'!K24+((C24*0.5)/D24)) -> 0 | H24: 0
A25: 1830 | B25: Poles, Towers & Fixtures | C25: ='[14]FA Continuity MIFRS 2016'!$E$18 -> 1245717 | D25: 40 | E25: 0.025 | F25: =IF(D25=0,'App.2-CE_MIFRS_DepExp_2015'!K25,+'App.2-CE_MIFRS_DepExp_2015'!K25+((C25*0.5)/D25)) -> 295906.2232 | G25: ='[14]FA Continuity MIFRS 2016'!$J$18 -> -258961 | H25: 554867.2232
A26: 1835 | B26: Overhead Conductors & Devices | C26: ='[14]FA Continuity MIFRS 2016'!$E$21 -> 1111002 | D26: 60 | E26: 0.01666666667 | F26: =IF(D26=0,'App.2-CE_MIFRS_DepExp_2015'!K26,+'App.2-CE_MIFRS_DepExp_2015'!K26+((C26*0.5)/D26)) -> 221280.6501 | G26: ='[14]FA Continuity MIFRS 2016'!$J$21 -> -245465 | H26: 466745.6501
A27: 1840 | B27: Underground Conduit | C27: ='[14]FA Continuity MIFRS 2016'!$E$26 -> 1282396 | D27: 60 | E27: 0.01666666667 | F27: =IF(D27=0,'App.2-CE_MIFRS_DepExp_2015'!K27,+'App.2-CE_MIFRS_DepExp_2015'!K27+((C27*0.5)/D27)) -> 83875.45887 | G27: ='[14]FA Continuity MIFRS 2016'!$J$26 -> -112818 | H27: 196693.4589
A28: 1845 | B28: Underground Conductors & Devices | C28: ='[14]FA Continuity MIFRS 2016'!$E$29 -> 613881 | D28: 40 | E28: 0.025 | F28: =IF(D28=0,'App.2-CE_MIFRS_DepExp_2015'!K28,+'App.2-CE_MIFRS_DepExp_2015'!K28+((C28*0.5)/D28)) -> 341359.0543 | G28: ='[14]FA Continuity MIFRS 2016'!$J$29 -> -268239 | H28: 609598.0543
A29: 1850 | B29: Line Transformers | C29: ='[14]FA Continuity MIFRS 2016'!$E$34 -> 1818685 | D29: 40 | E29: 0.025 | F29: =IF(D29=0,'App.2-CE_MIFRS_DepExp_2015'!K29,+'App.2-CE_MIFRS_DepExp_2015'!K29+((C29*0.5)/D29)) -> 284539.8622 | G29: ='[14]FA Continuity MIFRS 2016'!$J$34 -> -205772 | H29: 490311.8622
A30: 1855 | B30: Services (Overhead & Underground) | C30: ='[14]FA Continuity MIFRS 2016'!$E$37 -> 983373 | D30: 40 | E30: 0.025 | F30: =IF(D30=0,'App.2-CE_MIFRS_DepExp_2015'!K30,+'App.2-CE_MIFRS_DepExp_2015'!K30+((C30*0.5)/D30)) -> 125101.8613 | G30: ='[14]FA Continuity MIFRS 2016'!$J$37 -> -112944 | H30: 238045.8613
A31: 1860 | B31: Meters | C31: ='[14]FA Continuity MIFRS 2016'!$E$39 -> 168055 | D31: 25 | E31: 0.04 | F31: =IF(D31=0,'App.2-CE_MIFRS_DepExp_2015'!K31,+'App.2-CE_MIFRS_DepExp_2015'!K31+((C31*0.5)/D31)) -> 29729.68314 | G31: ='[14]FA Continuity MIFRS 2016'!$J$39 -> -187107 | H31: 216836.6831
A32: 1860 | B32: Meters (Smart Meters) | D32: 15 | E32: 0.06666666667 | F32: =IF(D32=0,'App.2-CE_MIFRS_DepExp_2015'!K32,+'App.2-CE_MIFRS_DepExp_2015'!K32+((C32*0.5)/D32)) -> 148236.258 | H32: 148236.258
A33: 1905 | B33: Land | D33: 0 | E33: 0 | F33: =IF(D33=0,'App.2-CE_MIFRS_DepExp_2015'!K33,+'App.2-CE_MIFRS_DepExp_2015'!K33+((C33*0.5)/D33)) -> 0 | H33: 0
A34: 1908 | B34: Buildings & Fixtures | C34: ='[14]FA Continuity MIFRS 2016'!$E$45 -> 15000 | E34: 0 | F34: =IF(D34=0,'App.2-CE_MIFRS_DepExp_2015'!K34,+'App.2-CE_MIFRS_DepExp_2015'!K34+((C34*0.5)/D34)) -> -11295.25324 | G34: ='[14]FA Continuity MIFRS 2016'!$J$45 -> -245450 | H34: 234154.7468
A35: 1910 | B35: Leasehold Improvements | E35: 0 | F35: =IF(D35=0,'App.2-CE_MIFRS_DepExp_2015'!K35,+'App.2-CE_MIFRS_DepExp_2015'!K35+((C35*0.5)/D35)) -> 0 | H35: 0
A36: 1915 | B36: Office Furniture & Equipment (10 years) | C36: ='[14]FA Continuity MIFRS 2016'!$E$47 -> 15000 | D36: 5 | E36: 0.2 | F36: =IF(D36=0,'App.2-CE_MIFRS_DepExp_2015'!K36,+'App.2-CE_MIFRS_DepExp_2015'!K36+((C36*0.5)/D36)) -> 48472.53045 | G36: ='[14]FA Continuity MIFRS 2016'!$J$47 -> -30031 | H36: 78503.53045
A37: 1915 | B37: Office Furniture & Equipment (5 years) | D37: 5 | E37: 0.2 | F37: =IF(D37=0,'App.2-CE_MIFRS_DepExp_2015'!K37,+'App.2-CE_MIFRS_DepExp_2015'!K37+((C37*0.5)/D37)) -> 0 | H37: 0
A38: 1920 | B38: Computer Equipment - Hardware | C38: ='[14]FA Continuity MIFRS 2016'!$E$48 -> 130000 | D38: 5 | E38: 0.2 | F38: =IF(D38=0,'App.2-CE_MIFRS_DepExp_2015'!K38,+'App.2-CE_MIFRS_DepExp_2015'!K38+((C38*0.5)/D38)) -> 137759.353 | G38: ='[14]FA Continuity MIFRS 2016'!$J$48 -> -119438.73 | H38: 257198.083
A39: 1920 | B39: Computer Equip.-Hardware(Post Mar. 22/04) | E39: 0 | F39: =IF(D39=0,'App.2-CE_MIFRS_DepExp_2015'!K39,+'App.2-CE_MIFRS_DepExp_2015'!K39+((C39*0.5)/D39)) -> 0 | H39: 0
A40: 1920 | B40: Computer Equip.-Hardware(Post Mar. 19/07) | E40: 0 | F40: =IF(D40=0,'App.2-CE_MIFRS_DepExp_2015'!K40,+'App.2-CE_MIFRS_DepExp_2015'!K40+((C40*0.5)/D40)) -> 0 | H40: 0
A41: 1930 | B41: Transportation Equipment | D41: 5 | E41: 0.2 | F41: =IF(D41=0,'App.2-CE_MIFRS_DepExp_2015'!K41,+'App.2-CE_MIFRS_DepExp_2015'!K41+((C41*0.5)/D41)) -> 179203.0322 | G41: ='[14]FA Continuity MIFRS 2016'!$J$51 -> -139642 | H41: 318845.0322
A42: 1935 | B42: Stores Equipment | C42: ='[14]FA Continuity MIFRS 2016'!$E$52 -> 5000 | E42: 0 | F42: =IF(D42=0,'App.2-CE_MIFRS_DepExp_2015'!K42,+'App.2-CE_MIFRS_DepExp_2015'!K42+((C42*0.5)/D42)) -> 2199.728773 | G42: ='[14]FA Continuity MIFRS 2016'!$J$52 -> -21359.61 | H42: 23559.33877
A43: 1940 | B43: Tools, Shop & Garage Equipment | C43: ='[14]FA Continuity MIFRS 2016'!$E$53 -> 38000 | D43: 10 | E43: 0.1 | F43: =IF(D43=0,'App.2-CE_MIFRS_DepExp_2015'!K43,+'App.2-CE_MIFRS_DepExp_2015'!K43+((C43*0.5)/D43)) -> 40724.51563 | G43: ='[14]FA Continuity MIFRS 2016'!$J$53 -> -45349.6 | H43: 86074.11563
A44: 1945 | B44: Measurement & Testing Equipment | C44: ='[14]FA Continuity MIFRS 2016'!$E$54 -> 15000 | D44: 10 | E44: 0.1 | F44: =IF(D44=0,'App.2-CE_MIFRS_DepExp_2015'!K44,+'App.2-CE_MIFRS_DepExp_2015'!K44+((C44*0.5)/D44)) -> 4679.651932 | G44: ='[14]FA Continuity MIFRS 2016'!$J$54 -> -4729.35 | H44: 9409.001932
A45: 1950 | B45: Power Operated Equipment | E45: 0 | F45: =IF(D45=0,'App.2-CE_MIFRS_DepExp_2015'!K45,+'App.2-CE_MIFRS_DepExp_2015'!K45+((C45*0.5)/D45)) -> 0 | H45: 0
A46: 1955 | B46: Communications Equipment | D46: 10 | E46: 0.1 | F46: =IF(D46=0,'App.2-CE_MIFRS_DepExp_2015'!K46,+'App.2-CE_MIFRS_DepExp_2015'!K46+((C46*0.5)/D46)) -> 0 | H46: 0
A47: 1955 | B47: Communication Equipment (Smart Meters) | D47: 10 | E47: 0.1 | F47: =IF(D47=0,'App.2-CE_MIFRS_DepExp_2015'!K47,+'App.2-CE_MIFRS_DepExp_2015'!K47+((C47*0.5)/D47)) -> 0 | H47: 0
A48: 1960 | B48: Miscellaneous Equipment | D48: 15 | E48: 0.06666666667 | F48: =IF(D48=0,'App.2-CE_MIFRS_DepExp_2015'!K48,+'App.2-CE_MIFRS_DepExp_2015'!K48+((C48*0.5)/D48)) -> 0 | H48: 0
A49: 1970 | B49: Load Management Controls Customer Premises | E49: 0 | F49: =IF(D49=0,'App.2-CE_MIFRS_DepExp_2015'!K49,+'App.2-CE_MIFRS_DepExp_2015'!K49+((C49*0.5)/D49)) -> 0 | H49: 0
A50: 1975 | B50: Load Management Controls Utility Premises | E50: 0 | F50: =IF(D50=0,'App.2-CE_MIFRS_DepExp_2015'!K50,+'App.2-CE_MIFRS_DepExp_2015'!K50+((C50*0.5)/D50)) -> 0 | H50: 0
A51: 1980 | B51: System Supervisor Equipment | C51: ='[14]FA Continuity MIFRS 2016'!$E$58 -> 84002 | D51: 15 | E51: 0.06666666667 | F51: ='[14]FA Continuity MIFRS 2016'!$J$58 -> -193082.6304 | G51: ='[14]FA Continuity MIFRS 2016'!$J$58 -> -193082.6304 | H51: 0
A52: 1985 | B52: Miscellaneous Fixed Assets | E52: 0 | F52: =IF(D52=0,'App.2-CE_MIFRS_DepExp_2015'!K52,+'App.2-CE_MIFRS_DepExp_2015'!K52+((C52*0.5)/D52)) -> 0 | H52: 0
A53: 1990 | B53: Other Tangible Property | E53: 0 | F53: =IF(D53=0,'App.2-CE_MIFRS_DepExp_2015'!K53,+'App.2-CE_MIFRS_DepExp_2015'!K53+((C53*0.5)/D53)) -> 0 | H53: 0
A54: 1995 | B54: Contributions & Grants | C54: ='[14]FA Continuity MIFRS 2016'!$E$63 -> -4227692 | E54: 0 | F54: ='[14]FA Continuity MIFRS 2016'!$J$63 -> 485884 | G54: ='[14]FA Continuity MIFRS 2016'!$J$63 -> 485884 | H54: 0
B55: Total | C55: =SUM(C17:C54) -> 5664773 | F55: =SUM(F17:F54) -> 2668492.305 | G55: =SUM(G17:G54) -> -2116474.92 | H55: =SUM(H17:H54) -> 4784967.225
B56: Depreciation exp. adj. from gain or loss on the retirement of assets (pool of like assets)
B57: Total Depreciation expense to be included in the test year revenue requirement | F57: =SUM(F55:F56) -> 2668492.305
A58: Notes:
A59: 1 | B59: Board policy of the "half-year" rule - the applicant must ensure that additions in the year attract a half-year depreciation expense in the first year. Deviations from this standard practice must be supported in the application.
A60: 2 | B60: The applicant must provide an explanation of material variances in evidence.
A63: General: | B63: Applicants must provide a breakdown of depreciation and amortization expense in the above format for all relevant accounts. Asset Retirement Obligations (AROs), depreciation and accretion expense should be disclosed separately consistent with the Notes of historical Audited Financial Statements.

Sheet App.2-CG_OldCGAAP_DepExp_2013
K1: File Number: | L1: =EBNUMBER -> EB-2016-0086
K2: Exhibit:
K3: Tab:
K4: Schedule:
K5: Page:
K7: Date: | L7: 2016-05-20
A9: Appendix 2-CG
A10: Depreciation and Amortization Expense
B11: Assumes the applicant made capitalization and depreciation expense accounting policy changes under CGAAP effective January 1, 2013 and has adopted IFRS for financial reporting purposes effective January 1, 2015.
C13: Year | D13: 2013 | E13: Former CGAAP
A15: Account | B15: Description | C15: Opening Regulatory Gross PP&E as at Jan 1, 2013 | D15: Less Fully Depreciated | E15: Net for Depreciation | F15: Additions | G15: Total for Depreciation 1 | H15: Years | I15: Depreciation Rate | J15: Depreciation Expense | K15: 2013 Depreciation Expense per Appendix 2-BA Fixed Assets, Column J (l) | L15: Variance 2
C16: (a) | D16: (b) | E16: (c) | F16: (d) | G16: (e) = (c) + ½ x (d) | H16: (f) | I16: (g) = 1 / (f) | J16: (h) = (e) / (f) | L16: (m) = (h) - (l)
A17: 1611 | B17: Computer Software (Formally known as Account 1925) | E17: =C17-D17 -> 0 | G17: =E17+0.5*F17 -> 0 | I17: =IF(H17=0,0,1/H17) -> 0 | J17: =IF(H17=0,0,G17/H17) -> 0 | L17: =IF(ISERROR(+J17-K17), 0, +J17-K17) -> 0
A18: 1612 | B18: Land Rights (Formally known as Account 1906) | E18: =C18-D18 -> 0 | G18: =E18+0.5*F18 -> 0 | I18: 0 | J18: 0 | L18: 0
A19: 1805 | B19: Land | E19: 0 | G19: 0 | I19: 0 | J19: 0 | L19: 0
A20: 1808 | B20: Buildings | E20: 0 | G20: 0 | I20: 0 | J20: 0 | L20: 0
A21: 1810 | B21: Leasehold Improvements | E21: 0 | G21: 0 | I21: 0 | J21: 0 | L21: 0
A22: 1815 | B22: Transformer Station Equipment >50 kV | E22: 0 | G22: 0 | I22: 0 | J22: 0 | L22: 0
A23: 1820 | B23: Distribution Station Equipment <50 kV | E23: 0 | G23: 0 | I23: 0 | J23: 0 | L23: 0
A24: 1825 | B24: Storage Battery Equipment | E24: 0 | G24: 0 | I24: 0 | J24: 0 | L24: 0
A25: 1830 | B25: Poles, Towers & Fixtures | E25: 0 | G25: 0 | I25: 0 | J25: 0 | L25: 0
A26: 1835 | B26: Overhead Conductors & Devices | E26: 0 | G26: 0 | I26: 0 | J26: 0 | L26: 0
A27: 1840 | B27: Underground Conduit | E27: 0 | G27: 0 | I27: 0 | J27: 0 | L27: 0
A28: 1845 | B28: Underground Conductors & Devices | E28: 0 | G28: 0 | I28: 0 | J28: 0 | L28: 0
A29: 1850 | B29: Line Transformers | E29: 0 | G29: 0 | I29: 0 | J29: 0 | L29: 0
A30: 1855 | B30: Services (Overhead & Underground) | E30: 0 | G30: 0 | I30: 0 | J30: 0 | L30: 0
A31: 1860 | B31: Meters | E31: 0 | G31: 0 | I31: 0 | J31: 0 | L31: 0
A32: 1860 | B32: Meters (Smart Meters) | E32: 0 | G32: 0 | I32: 0 | J32: 0 | L32: 0
A33: 1905 | B33: Land | E33: 0 | G33: 0 | I33: 0 | J33: 0 | L33: 0
A34: 1908 | B34: Buildings & Fixtures | E34: 0 | G34: 0 | I34: 0 | J34: 0 | L34: 0
A35: 1910 | B35: Leasehold Improvements | E35: 0 | G35: 0 | I35: 0 | J35: 0 | L35: 0
A36: 1915 | B36: Office Furniture & Equipment (10 years) | E36: 0 | G36: 0 | I36: 0 | J36: 0 | L36: 0
A37: 1915 | B37: Office Furniture & Equipment (5 years) | E37: 0 | G37: 0 | I37: 0 | J37: 0 | L37: 0
A38: 1920 | B38: Computer Equipment - Hardware | E38: 0 | G38: 0 | I38: 0 | J38: 0 | L38: 0
A39: 1920 | B39: Computer Equip.-Hardware(Post Mar. 22/04) | E39: 0 | G39: 0 | I39: 0 | J39: 0 | L39: 0
A40: 1920 | B40: Computer Equip.-Hardware(Post Mar. 19/07) | E40: 0 | G40: 0 | I40: 0 | J40: 0 | L40: 0
A41: 1930 | B41: Transportation Equipment | E41: 0 | G41: 0 | I41: 0 | J41: 0 | L41: 0
A42: 1935 | B42: Stores Equipment | E42: 0 | G42: 0 | I42: 0 | J42: 0 | L42: 0
A43: 1940 | B43: Tools, Shop & Garage Equipment | E43: 0 | G43: 0 | I43: 0 | J43: 0 | L43: 0
A44: 1945 | B44: Measurement & Testing Equipment | E44: 0 | G44: 0 | I44: 0 | J44: 0 | L44: 0
A45: 1950 | B45: Power Operated Equipment | E45: 0 | G45: 0 | I45: 0 | J45: 0 | L45: 0
A46: 1955 | B46: Communications Equipment | E46: 0 | G46: 0 | I46: 0 | J46: 0 | L46: 0
A47: 1955 | B47: Communication Equipment (Smart Meters) | E47: 0 | G47: 0 | I47: 0 | J47: 0 | L47: 0
A48: 1960 | B48: Miscellaneous Equipment | E48: 0 | G48: 0 | I48: 0 | J48: 0 | L48: 0
A49: 1970 | B49: Load Management Controls - Customer Premises | E49: 0 | G49: 0 | I49: 0 | J49: 0 | L49: 0
A50: 1975 | B50: Load Management Controls Utility Premises | E50: 0 | G50: 0 | I50: 0 | J50: 0 | L50: 0
A51: 1980 | B51: System Supervisor Equipment | E51: 0 | G51: 0 | I51: 0 | J51: 0 | L51: 0
A52: 1985 | B52: Miscellaneous Fixed Assets | E52: 0 | G52: 0 | I52: 0 | J52: 0 | L52: 0
A53: 1990 | B53: Other Tangible Property | E53: 0 | G53: 0 | I53: 0 | J53: 0 | L53: 0
A54: 1995 | B54: Contributions & Grants | E54: 0 | G54: 0 | I54: 0 | J54: 0 | L54: 0
B55: Total | C55: =SUM(C17:C54) -> 0 | D55: =SUM(D17:D54) -> 0 | E55: =SUM(E17:E54) -> 0 | F55: =SUM(F17:F54) -> 0 | G55: =SUM(G17:G54) -> 0 | J55: =SUM(J17:J54) -> 0 | K55: =SUM(K17:K54) -> 0 | L55: =SUM(L17:L54) -> 0
A57: Notes:
A59: 1 | B59: Board policy of the "half-year" rule - the applicant must ensure that additions in the year attract a half-year depreciation expense in the first year. Deviations from this standard practice must be supported in the application.
A60: 2 | B60: The applicant must provide an explanation of material variances in evidence.
A62: General | B62: Applicants must provide a breakdown of depreciation and amortization expense in the above format for all relevant accounts. Asset Retirement Obligations (AROs), depreciation and accretion expense should be disclosed separately consistent with the Notes of historical Audited Financial Statements.

Sheet App.2-CH_NewCGAAP_DepExp_2013
N1: File Number: | O1: =EBNUMBER -> EB-2016-0086
N2: Exhibit:
N3: Tab:
N4: Schedule:
N5: Page:
N7: Date: | O7: 2016-05-20
A9: Appendix 2-CH
A10: Depreciation and Amortization Expense
A11: Assumes the applicant made capitalization and depreciation expense accounting policy changes under CGAAP effective January 1, 2013 and has adopted IFRS for financial reporting purposes effective January 1, 2015.
C13: Year | D13: 2013 | E13: Revised CGAAP
A15: Account | B15: Description | C15: Opening NBV as at Jan 1, 2013 5 | D15: Additions | E15: Average Remaining Life of Opening NBV 4 | F15: Years (new additions only) 3 | G15: Depreciation Rate on New Additions | H15: Depreciation Expense on Opening NBV | I15: Depreciation Expense on Additions 1 | J15: 2013 Depreciation Expense | K15: 2013 Depreciation Expense per Appendix 2-BA Fixed Assets, Column J (l) | L15: Variance 2 | M15: Depreciation Expense on 2013 Full Year Additions | N15: Less Depreciation Expense on Assets Fully Depreciated during the year (o) | O15: 2013 Full Year Depreciation 6
C16: (a) | D16: (d) | E16: (i) | F16: (f) | G16: (g) = 1 / (f) | H16: (j) = (a) / (i) | I16: (h)=((d)*0.5)/(f) | J16: (k) = (j) + (h) | L16: (m) = (k) - (l) | M16: (n) = (d)/(f) | O16: (p) = (j) + (n) - (o)
A17: 1611 | B17: Computer Software (Formally known as Account 1925) | G17: =IF(F17=0,0,1/F17) -> 0 | H17: =IF(E17=0,0,+C17/E17) -> 0 | I17: =IF(F17=0,0,+(D17*0.5)/F17) -> 0 | J17: =IF(ISERROR(+H17+I17), 0, +H17+I17) -> 0 | L17: =IF(ISERROR(+J17-K17), 0, +J17-K17) -> 0 | M17: =IF(F17=0,0,+(D17)/F17) -> 0 | O17: =IF(ISERROR(+M17+H17-N17), 0, +M17+H17-N17) -> 0
A18: 1612 | B18: Land Rights (Formally known as Account 1906) | G18: 0 | H18: 0 | I18: 0 | J18: 0 | L18: 0 | M18: 0 | O18: =IF(ISERROR(+M18+H18-N18), 0, +M18+H18-N18) -> 0
A19: 1805 | B19: Land | G19: 0 | H19: 0 | I19: 0 | J19: 0 | L19: 0 | M19: 0 | O19: 0
A20: 1808 | B20: Buildings | G20: 0 | H20: 0 | I20: 0 | J20: 0 | L20: 0 | M20: 0 | O20: 0
A21: 1810 | B21: Leasehold Improvements | G21: 0 | H21: 0 | I21: 0 | J21: 0 | L21: 0 | M21: 0 | O21: 0
A22: 1815 | B22: Transformer Station Equipment >50 kV | G22: 0 | H22: 0 | I22: 0 | J22: 0 | L22: 0 | M22: 0 | O22: 0
A23: 1820 | B23: Distribution Station Equipment <50 kV | G23: 0 | H23: 0 | I23: 0 | J23: 0 | L23: 0 | M23: 0 | O23: 0
A24: 1825 | B24: Storage Battery Equipment | G24: 0 | H24: 0 | I24: 0 | J24: 0 | L24: 0 | M24: 0 | O24: 0
A25: 1830 | B25: Poles, Towers & Fixtures | G25: 0 | H25: 0 | I25: 0 | J25: 0 | L25: 0 | M25: 0 | O25: 0
A26: 1835 | B26: Overhead Conductors & Devices | G26: 0 | H26: 0 | I26: 0 | J26: 0 | L26: 0 | M26: 0 | O26: 0
A27: 1840 | B27: Underground Conduit | G27: 0 | H27: 0 | I27: 0 | J27: 0 | L27: 0 | M27: 0 | O27: 0
A28: 1845 | B28: Underground Conductors & Devices | G28: 0 | H28: 0 | I28: 0 | J28: 0 | L28: 0 | M28: 0 | O28: 0
A29: 1850 | B29: Line Transformers | G29: 0 | H29: 0 | I29: 0 | J29: 0 | L29: 0 | M29: 0 | O29: 0
A30: 1855 | B30: Services (Overhead & Underground) | G30: 0 | H30: 0 | I30: 0 | J30: 0 | L30: 0 | M30: 0 | O30: 0
A31: 1860 | B31: Meters | G31: 0 | H31: 0 | I31: 0 | J31: 0 | L31: 0 | M31: 0 | O31: 0
A32: 1860 | B32: Meters (Smart Meters) | G32: 0 | H32: 0 | I32: 0 | J32: 0 | L32: 0 | M32: 0 | O32: 0
A33: 1905 | B33: Land | G33: 0 | H33: 0 | I33: 0 | J33: 0 | L33: 0 | M33: 0 | O33: 0
A34: 1908 | B34: Buildings & Fixtures | G34: 0 | H34: 0 | I34: 0 | J34: 0 | L34: 0 | M34: 0 | O34: 0
A35: 1910 | B35: Leasehold Improvements | G35: 0 | H35: 0 | I35: 0 | J35: 0 | L35: 0 | M35: 0 | O35: 0
A36: 1915 | B36: Office Furniture & Equipment (10 years) | G36: 0 | H36: 0 | I36: 0 | J36: 0 | L36: 0 | M36: 0 | O36: 0
A37: 1915 | B37: Office Furniture & Equipment (5 years) | G37: 0 | H37: 0 | I37: 0 | J37: 0 | L37: 0 | M37: 0 | O37: 0
A38: 1920 | B38: Computer Equipment - Hardware | G38: 0 | H38: 0 | I38: 0 | J38: 0 | L38: 0 | M38: 0 | O38: 0
A39: 1920 | B39: Computer Equip.-Hardware(Post Mar. 22/04) | G39: 0 | H39: 0 | I39: 0 | J39: 0 | L39: 0 | M39: 0 | O39: 0
A40: 1920 | B40: Computer Equip.-Hardware(Post Mar. 19/07) | G40: 0 | H40: 0 | I40: 0 | J40: 0 | L40: 0 | M40: 0 | O40: 0
A41: 1930 | B41: Transportation Equipment | G41: 0 | H41: 0 | I41: 0 | J41: 0 | L41: 0 | M41: 0 | O41: 0
A42: 1935 | B42: Stores Equipment | G42: 0 | H42: 0 | I42: 0 | J42: 0 | L42: 0 | M42: 0 | O42: 0
A43: 1940 | B43: Tools, Shop & Garage Equipment | G43: 0 | H43: 0 | I43: 0 | J43: 0 | L43: 0 | M43: 0 | O43: 0
A44: 1945 | B44: Measurement & Testing Equipment | G44: 0 | H44: 0 | I44: 0 | J44: 0 | L44: 0 | M44: 0 | O44: 0
A45: 1950 | B45: Power Operated Equipment | G45: 0 | H45: 0 | I45: 0 | J45: 0 | L45: 0 | M45: 0 | O45: 0
A46: 1955 | B46: Communications Equipment | G46: 0 | H46: 0 | I46: 0 | J46: 0 | L46: 0 | M46: 0 | O46: 0
A47: 1955 | B47: Communication Equipment (Smart Meters) | G47: 0 | H47: 0 | I47: 0 | J47: 0 | L47: 0 | M47: 0 | O47: 0
A48: 1960 | B48: Miscellaneous Equipment | G48: 0 | H48: 0 | I48: 0 | J48: 0 | L48: 0 | M48: 0 | O48: 0
A49: 1970 | B49: Load Management Controls - Customer Premises | G49: 0 | H49: 0 | I49: 0 | J49: 0 | L49: 0 | M49: 0 | O49: 0
A50: 1975 | B50: Load Management Controls Utility Premises | G50: 0 | H50: 0 | I50: 0 | J50: 0 | L50: 0 | M50: 0 | O50: 0
A51: 1980 | B51: System Supervisor Equipment | G51: 0 | H51: 0 | I51: 0 | J51: 0 | L51: 0 | M51: 0 | O51: 0
A52: 1985 | B52: Miscellaneous Fixed Assets | G52: 0 | H52: 0 | I52: 0 | J52: 0 | L52: 0 | M52: 0 | O52: 0
A53: 1990 | B53: Other Tangible Property | G53: 0 | H53: 0 | I53: 0 | J53: 0 | L53: 0 | M53: 0 | O53: 0
A54: 1995 | B54: Contributions & Grants | G54: 0 | H54: 0 | I54: 0 | J54: 0 | L54: 0 | M54: 0 | O54: 0
B55: Total | C55: =SUM(C17:C54) -> 0 | D55: =SUM(D17:D54) -> 0 | H55: =SUM(H17:H54) -> 0 | I55: 0 | J55: 0 | K55: 0 | L55: 0 | M55: 0 | N55: 0 | O55: 0
A57: Notes:
A59: 1 | B59: Board policy of the "half-year" rule - the applicant must ensure that additions in the year attract a half-year depreciation expense in the first year. Deviations from this standard practice must be supported in the application.
A60: 2 | B60: The applicant must provide an explanation of material variances in evidence.
A61: 3 | B61: The applicant should ensure that the years for new additions of assets are the asset useful lives determined by management in accordance with the Board's regulatory accounting policies. The capitalization and depreciation expense accounting changes should be implemented consistent with the Board’s regulatory accounting policies as set out for MIFRS as contained in the Report of the Board, Transition to International Financial Reporting Standards, EB-2008-0408, the Kinectrics Report, and the Revised 2012 Accounting Procedures Handbook for Electricity Distributors.
A62: 4 | B62: A recalculation should be performed to determine the average remaining life of opening balance of assets (i.e. excluding 2013 additions) under the change in policies under CGAAP. For example, Asset A had a useful life of 20 years under CGAAP without the change in policies. On January 1, 2013, the effective date of the changes in policies, Asset A was 3 years depreciated. As a result, Asset A would have a remaining service life of 17 years (20 years less 3 years) as of January 1, 2013. Due to making the change in policies under CGAAP, management re-assessed the asset useful lives and concluded that the revised useful life of Asset A is now 30 years. Therefore, the average remaining useful life of the opening balance of Asset A is determined to be 27 years (30 years less 3 years) under the revised CGAAP as of January 1, 2013.
A63: 5 | B63: NBV must exclude assets still on the books but which have been fully amortized or depreciated.
A64: 6 | B64: This column refers to the calculated full year depreciation but excludes the depreciation expense on assets fully depreciated during the year. This column is used for the purpose of calculating depreciation expense in the following year on the next worksheet.
A66: General: | B66: Applicants must provide a breakdown of depreciation and amortization expense in the above format for all relevant accounts. Asset Retirement Obligations (AROs), depreciation and accretion expense should be disclosed separately consistent with the Notes of historical Audited Financial Statements.

Sheet App.2-CI_MIFRS_DepExp_2014
J1: File Number: | K1: =EBNUMBER -> EB-2016-0086
J2: Exhibit:
J3: Tab:
J4: Schedule:
J5: Page:
J7: Date: | K7: 2016-05-20
A9: Appendix 2-CI
A10: Depreciation and Amortization Expense
A11: Assumes the applicant made capitalization and depreciation expense accounting policy changes under CGAAP effective January 1, 2013 and has adopted IFRS for financial reporting purposes effective January 1, 2015.
E13: 2014 | F13: MIFRS
A15: Account | B15: Description | C15: Additions | D15: Years (new additions only) | E15: Depreciation Rate on New Additions | F15: 2014 Depreciation Expense 1 | G15: 2014 Depreciation Expense per Apppendix 2-BA Fixed Assets, Column J (l) | H15: Variance 2 | I15: Depreciation Expense on 2014 Full Year Additions | J15: Less Depreciation Expense on Assets Fully Depreciated during the year (o) | K15: 2014 Full Year Depreciation 3
C16: (d) | D16: (f) | E16: (g) = 1 / (f) | F16: (h)=2013 Full Year Deprecation + ((d)*0.5)/(f) | H16: (m) = (h) - (l) | I16: (n)=((d))/(f) | K16: (p) = 2013 Full Year Depreciation + (n) - (o)
A17: 1611 | B17: Computer Software (Formally known as Account 1925) | E17: =IF(D17=0,0,1/D17) -> 0 | F17: =IF(D17=0,+'App.2-CH_NewCGAAP_DepExp_2013'!O17,+'App.2-CH_NewCGAAP_DepExp_2013'!O17+((C17*0.5)/D17)) -> 0 | H17: =IF(ISERROR(+F17-G17), 0, +F17-G17) -> 0 | I17: =IF(D17=0,0,+(C17)/D17) -> 0 | K17: =IF(ISERROR(+I17+'App.2-CH_NewCGAAP_DepExp_2013'!O17-J17), 0, +I17+'App.2-CH_NewCGAAP_DepExp_2013'!O17-J17) -> 0
A18: 1612 | B18: Land Rights (Formally known as Account 1906) | E18: 0 | F18: =IF(D18=0,+'App.2-CH_NewCGAAP_DepExp_2013'!O18,+'App.2-CH_NewCGAAP_DepExp_2013'!O18+((C18*0.5)/D18)) -> 0 | H18: 0 | I18: 0 | K18: =IF(ISERROR(+I18+'App.2-CH_NewCGAAP_DepExp_2013'!O18-J18), 0, +I18+'App.2-CH_NewCGAAP_DepExp_2013'!O18-J18) -> 0
A19: 1805 | B19: Land | E19: 0 | F19: =IF(D19=0,+'App.2-CH_NewCGAAP_DepExp_2013'!O19,+'App.2-CH_NewCGAAP_DepExp_2013'!O19+((C19*0.5)/D19)) -> 0 | H19: 0 | I19: 0 | K19: =IF(ISERROR(+I19+'App.2-CH_NewCGAAP_DepExp_2013'!O19-J19), 0, +I19+'App.2-CH_NewCGAAP_DepExp_2013'!O19-J19) -> 0
A20: 1808 | B20: Buildings | E20: 0 | F20: =IF(D20=0,+'App.2-CH_NewCGAAP_DepExp_2013'!O20,+'App.2-CH_NewCGAAP_DepExp_2013'!O20+((C20*0.5)/D20)) -> 0 | H20: 0 | I20: 0 | K20: =IF(ISERROR(+I20+'App.2-CH_NewCGAAP_DepExp_2013'!O20-J20), 0, +I20+'App.2-CH_NewCGAAP_DepExp_2013'!O20-J20) -> 0
A21: 1810 | B21: Leasehold Improvements | E21: 0 | F21: =IF(D21=0,+'App.2-CH_NewCGAAP_DepExp_2013'!O21,+'App.2-CH_NewCGAAP_DepExp_2013'!O21+((C21*0.5)/D21)) -> 0 | H21: 0 | I21: 0 | K21: =IF(ISERROR(+I21+'App.2-CH_NewCGAAP_DepExp_2013'!O21-J21), 0, +I21+'App.2-CH_NewCGAAP_DepExp_2013'!O21-J21) -> 0
A22: 1815 | B22: Transformer Station Equipment >50 kV | E22: 0 | F22: =IF(D22=0,+'App.2-CH_NewCGAAP_DepExp_2013'!O22,+'App.2-CH_NewCGAAP_DepExp_2013'!O22+((C22*0.5)/D22)) -> 0 | H22: 0 | I22: 0 | K22: =IF(ISERROR(+I22+'App.2-CH_NewCGAAP_DepExp_2013'!O22-J22), 0, +I22+'App.2-CH_NewCGAAP_DepExp_2013'!O22-J22) -> 0
A23: 1820 | B23: Distribution Station Equipment <50 kV | E23: 0 | F23: =IF(D23=0,+'App.2-CH_NewCGAAP_DepExp_2013'!O23,+'App.2-CH_NewCGAAP_DepExp_2013'!O23+((C23*0.5)/D23)) -> 0 | H23: 0 | I23: 0 | K23: =IF(ISERROR(+I23+'App.2-CH_NewCGAAP_DepExp_2013'!O23-J23), 0, +I23+'App.2-CH_NewCGAAP_DepExp_2013'!O23-J23) -> 0
A24: 1825 | B24: Storage Battery Equipment | E24: 0 | F24: =IF(D24=0,+'App.2-CH_NewCGAAP_DepExp_2013'!O24,+'App.2-CH_NewCGAAP_DepExp_2013'!O24+((C24*0.5)/D24)) -> 0 | H24: 0 | I24: 0 | K24: =IF(ISERROR(+I24+'App.2-CH_NewCGAAP_DepExp_2013'!O24-J24), 0, +I24+'App.2-CH_NewCGAAP_DepExp_2013'!O24-J24) -> 0
A25: 1830 | B25: Poles, Towers & Fixtures | E25: 0 | F25: =IF(D25=0,+'App.2-CH_NewCGAAP_DepExp_2013'!O25,+'App.2-CH_NewCGAAP_DepExp_2013'!O25+((C25*0.5)/D25)) -> 0 | H25: 0 | I25: 0 | K25: =IF(ISERROR(+I25+'App.2-CH_NewCGAAP_DepExp_2013'!O25-J25), 0, +I25+'App.2-CH_NewCGAAP_DepExp_2013'!O25-J25) -> 0
A26: 1835 | B26: Overhead Conductors & Devices | E26: 0 | F26: =IF(D26=0,+'App.2-CH_NewCGAAP_DepExp_2013'!O26,+'App.2-CH_NewCGAAP_DepExp_2013'!O26+((C26*0.5)/D26)) -> 0 | H26: 0 | I26: 0 | K26: =IF(ISERROR(+I26+'App.2-CH_NewCGAAP_DepExp_2013'!O26-J26), 0, +I26+'App.2-CH_NewCGAAP_DepExp_2013'!O26-J26) -> 0
A27: 1840 | B27: Underground Conduit | E27: 0 | F27: =IF(D27=0,+'App.2-CH_NewCGAAP_DepExp_2013'!O27,+'App.2-CH_NewCGAAP_DepExp_2013'!O27+((C27*0.5)/D27)) -> 0 | H27: 0 | I27: 0 | K27: =IF(ISERROR(+I27+'App.2-CH_NewCGAAP_DepExp_2013'!O27-J27), 0, +I27+'App.2-CH_NewCGAAP_DepExp_2013'!O27-J27) -> 0
A28: 1845 | B28: Underground Conductors & Devices | E28: 0 | F28: =IF(D28=0,+'App.2-CH_NewCGAAP_DepExp_2013'!O28,+'App.2-CH_NewCGAAP_DepExp_2013'!O28+((C28*0.5)/D28)) -> 0 | H28: 0 | I28: 0 | K28: =IF(ISERROR(+I28+'App.2-CH_NewCGAAP_DepExp_2013'!O28-J28), 0, +I28+'App.2-CH_NewCGAAP_DepExp_2013'!O28-J28) -> 0
A29: 1850 | B29: Line Transformers | E29: 0 | F29: =IF(D29=0,+'App.2-CH_NewCGAAP_DepExp_2013'!O29,+'App.2-CH_NewCGAAP_DepExp_2013'!O29+((C29*0.5)/D29)) -> 0 | H29: 0 | I29: 0 | K29: =IF(ISERROR(+I29+'App.2-CH_NewCGAAP_DepExp_2013'!O29-J29), 0, +I29+'App.2-CH_NewCGAAP_DepExp_2013'!O29-J29) -> 0
A30: 1855 | B30: Services (Overhead & Underground) | E30: 0 | F30: =IF(D30=0,+'App.2-CH_NewCGAAP_DepExp_2013'!O30,+'App.2-CH_NewCGAAP_DepExp_2013'!O30+((C30*0.5)/D30)) -> 0 | H30: 0 | I30: 0 | K30: =IF(ISERROR(+I30+'App.2-CH_NewCGAAP_DepExp_2013'!O30-J30), 0, +I30+'App.2-CH_NewCGAAP_DepExp_2013'!O30-J30) -> 0
A31: 1860 | B31: Meters | E31: 0 | F31: =IF(D31=0,+'App.2-CH_NewCGAAP_DepExp_2013'!O31,+'App.2-CH_NewCGAAP_DepExp_2013'!O31+((C31*0.5)/D31)) -> 0 | H31: 0 | I31: 0 | K31: =IF(ISERROR(+I31+'App.2-CH_NewCGAAP_DepExp_2013'!O31-J31), 0, +I31+'App.2-CH_NewCGAAP_DepExp_2013'!O31-J31) -> 0
A32: 1860 | B32: Meters (Smart Meters) | E32: 0 | F32: =IF(D32=0,+'App.2-CH_NewCGAAP_DepExp_2013'!O32,+'App.2-CH_NewCGAAP_DepExp_2013'!O32+((C32*0.5)/D32)) -> 0 | H32: 0 | I32: 0 | K32: =IF(ISERROR(+I32+'App.2-CH_NewCGAAP_DepExp_2013'!O32-J32), 0, +I32+'App.2-CH_NewCGAAP_DepExp_2013'!O32-J32) -> 0
A33: 1905 | B33: Land | E33: 0 | F33: =IF(D33=0,+'App.2-CH_NewCGAAP_DepExp_2013'!O33,+'App.2-CH_NewCGAAP_DepExp_2013'!O33+((C33*0.5)/D33)) -> 0 | H33: 0 | I33: 0 | K33: =IF(ISERROR(+I33+'App.2-CH_NewCGAAP_DepExp_2013'!O33-J33), 0, +I33+'App.2-CH_NewCGAAP_DepExp_2013'!O33-J33) -> 0
A34: 1908 | B34: Buildings & Fixtures | E34: 0 | F34: =IF(D34=0,+'App.2-CH_NewCGAAP_DepExp_2013'!O34,+'App.2-CH_NewCGAAP_DepExp_2013'!O34+((C34*0.5)/D34)) -> 0 | H34: 0 | I34: 0 | K34: =IF(ISERROR(+I34+'App.2-CH_NewCGAAP_DepExp_2013'!O34-J34), 0, +I34+'App.2-CH_NewCGAAP_DepExp_2013'!O34-J34) -> 0
A35: 1910 | B35: Leasehold Improvements | E35: 0 | F35: =IF(D35=0,+'App.2-CH_NewCGAAP_DepExp_2013'!O35,+'App.2-CH_NewCGAAP_DepExp_2013'!O35+((C35*0.5)/D35)) -> 0 | H35: 0 | I35: 0 | K35: =IF(ISERROR(+I35+'App.2-CH_NewCGAAP_DepExp_2013'!O35-J35), 0, +I35+'App.2-CH_NewCGAAP_DepExp_2013'!O35-J35) -> 0
A36: 1915 | B36: Office Furniture & Equipment (10 years) | E36: 0 | F36: =IF(D36=0,+'App.2-CH_NewCGAAP_DepExp_2013'!O36,+'App.2-CH_NewCGAAP_DepExp_2013'!O36+((C36*0.5)/D36)) -> 0 | H36: 0 | I36: 0 | K36: =IF(ISERROR(+I36+'App.2-CH_NewCGAAP_DepExp_2013'!O36-J36), 0, +I36+'App.2-CH_NewCGAAP_DepExp_2013'!O36-J36) -> 0
A37: 1915 | B37: Office Furniture & Equipment (5 years) | E37: 0 | F37: =IF(D37=0,+'App.2-CH_NewCGAAP_DepExp_2013'!O37,+'App.2-CH_NewCGAAP_DepExp_2013'!O37+((C37*0.5)/D37)) -> 0 | H37: 0 | I37: 0 | K37: =IF(ISERROR(+I37+'App.2-CH_NewCGAAP_DepExp_2013'!O37-J37), 0, +I37+'App.2-CH_NewCGAAP_DepExp_2013'!O37-J37) -> 0
A38: 1920 | B38: Computer Equipment - Hardware | E38: 0 | F38: =IF(D38=0,+'App.2-CH_NewCGAAP_DepExp_2013'!O38,+'App.2-CH_NewCGAAP_DepExp_2013'!O38+((C38*0.5)/D38)) -> 0 | H38: 0 | I38: 0 | K38: =IF(ISERROR(+I38+'App.2-CH_NewCGAAP_DepExp_2013'!O38-J38), 0, +I38+'App.2-CH_NewCGAAP_DepExp_2013'!O38-J38) -> 0
A39: 1920 | B39: Computer Equip.-Hardware(Post Mar. 22/04) | E39: 0 | F39: =IF(D39=0,+'App.2-CH_NewCGAAP_DepExp_2013'!O39,+'App.2-CH_NewCGAAP_DepExp_2013'!O39+((C39*0.5)/D39)) -> 0 | H39: 0 | I39: 0 | K39: =IF(ISERROR(+I39+'App.2-CH_NewCGAAP_DepExp_2013'!O39-J39), 0, +I39+'App.2-CH_NewCGAAP_DepExp_2013'!O39-J39) -> 0
A40: 1920 | B40: Computer Equip.-Hardware(Post Mar. 19/07) | E40: 0 | F40: =IF(D40=0,+'App.2-CH_NewCGAAP_DepExp_2013'!O40,+'App.2-CH_NewCGAAP_DepExp_2013'!O40+((C40*0.5)/D40)) -> 0 | H40: 0 | I40: 0 | K40: =IF(ISERROR(+I40+'App.2-CH_NewCGAAP_DepExp_2013'!O40-J40), 0, +I40+'App.2-CH_NewCGAAP_DepExp_2013'!O40-J40) -> 0
A41: 1930 | B41: Transportation Equipment | E41: 0 | F41: =IF(D41=0,+'App.2-CH_NewCGAAP_DepExp_2013'!O41,+'App.2-CH_NewCGAAP_DepExp_2013'!O41+((C41*0.5)/D41)) -> 0 | H41: 0 | I41: 0 | K41: =IF(ISERROR(+I41+'App.2-CH_NewCGAAP_DepExp_2013'!O41-J41), 0, +I41+'App.2-CH_NewCGAAP_DepExp_2013'!O41-J41) -> 0
A42: 1935 | B42: Stores Equipment | E42: 0 | F42: =IF(D42=0,+'App.2-CH_NewCGAAP_DepExp_2013'!O42,+'App.2-CH_NewCGAAP_DepExp_2013'!O42+((C42*0.5)/D42)) -> 0 | H42: 0 | I42: 0 | K42: =IF(ISERROR(+I42+'App.2-CH_NewCGAAP_DepExp_2013'!O42-J42), 0, +I42+'App.2-CH_NewCGAAP_DepExp_2013'!O42-J42) -> 0
A43: 1940 | B43: Tools, Shop & Garage Equipment | E43: 0 | F43: =IF(D43=0,+'App.2-CH_NewCGAAP_DepExp_2013'!O43,+'App.2-CH_NewCGAAP_DepExp_2013'!O43+((C43*0.5)/D43)) -> 0 | H43: 0 | I43: 0 | K43: =IF(ISERROR(+I43+'App.2-CH_NewCGAAP_DepExp_2013'!O43-J43), 0, +I43+'App.2-CH_NewCGAAP_DepExp_2013'!O43-J43) -> 0
A44: 1945 | B44: Measurement & Testing Equipment | E44: 0 | F44: =IF(D44=0,+'App.2-CH_NewCGAAP_DepExp_2013'!O44,+'App.2-CH_NewCGAAP_DepExp_2013'!O44+((C44*0.5)/D44)) -> 0 | H44: 0 | I44: 0 | K44: =IF(ISERROR(+I44+'App.2-CH_NewCGAAP_DepExp_2013'!O44-J44), 0, +I44+'App.2-CH_NewCGAAP_DepExp_2013'!O44-J44) -> 0
A45: 1950 | B45: Power Operated Equipment | E45: 0 | F45: =IF(D45=0,+'App.2-CH_NewCGAAP_DepExp_2013'!O45,+'App.2-CH_NewCGAAP_DepExp_2013'!O45+((C45*0.5)/D45)) -> 0 | H45: 0 | I45: 0 | K45: =IF(ISERROR(+I45+'App.2-CH_NewCGAAP_DepExp_2013'!O45-J45), 0, +I45+'App.2-CH_NewCGAAP_DepExp_2013'!O45-J45) -> 0
A46: 1955 | B46: Communications Equipment | E46: 0 | F46: =IF(D46=0,+'App.2-CH_NewCGAAP_DepExp_2013'!O46,+'App.2-CH_NewCGAAP_DepExp_2013'!O46+((C46*0.5)/D46)) -> 0 | H46: 0 | I46: 0 | K46: =IF(ISERROR(+I46+'App.2-CH_NewCGAAP_DepExp_2013'!O46-J46), 0, +I46+'App.2-CH_NewCGAAP_DepExp_2013'!O46-J46) -> 0
A47: 1955 | B47: Communication Equipment (Smart Meters) | E47: 0 | F47: =IF(D47=0,+'App.2-CH_NewCGAAP_DepExp_2013'!O47,+'App.2-CH_NewCGAAP_DepExp_2013'!O47+((C47*0.5)/D47)) -> 0 | H47: 0 | I47: 0 | K47: =IF(ISERROR(+I47+'App.2-CH_NewCGAAP_DepExp_2013'!O47-J47), 0, +I47+'App.2-CH_NewCGAAP_DepExp_2013'!O47-J47) -> 0
A48: 1960 | B48: Miscellaneous Equipment | E48: 0 | F48: =IF(D48=0,+'App.2-CH_NewCGAAP_DepExp_2013'!O48,+'App.2-CH_NewCGAAP_DepExp_2013'!O48+((C48*0.5)/D48)) -> 0 | H48: 0 | I48: 0 | K48: =IF(ISERROR(+I48+'App.2-CH_NewCGAAP_DepExp_2013'!O48-J48), 0, +I48+'App.2-CH_NewCGAAP_DepExp_2013'!O48-J48) -> 0
A49: 1970 | B49: Load Management Controls - Customer Premises | E49: 0 | F49: =IF(D49=0,+'App.2-CH_NewCGAAP_DepExp_2013'!O49,+'App.2-CH_NewCGAAP_DepExp_2013'!O49+((C49*0.5)/D49)) -> 0 | H49: 0 | I49: 0 | K49: =IF(ISERROR(+I49+'App.2-CH_NewCGAAP_DepExp_2013'!O49-J49), 0, +I49+'App.2-CH_NewCGAAP_DepExp_2013'!O49-J49) -> 0
A50: 1975 | B50: Load Management Controls Utility Premises | E50: 0 | F50: =IF(D50=0,+'App.2-CH_NewCGAAP_DepExp_2013'!O50,+'App.2-CH_NewCGAAP_DepExp_2013'!O50+((C50*0.5)/D50)) -> 0 | H50: 0 | I50: 0 | K50: =IF(ISERROR(+I50+'App.2-CH_NewCGAAP_DepExp_2013'!O50-J50), 0, +I50+'App.2-CH_NewCGAAP_DepExp_2013'!O50-J50) -> 0
A51: 1980 | B51: System Supervisor Equipment | E51: 0 | F51: =IF(D51=0,+'App.2-CH_NewCGAAP_DepExp_2013'!O51,+'App.2-CH_NewCGAAP_DepExp_2013'!O51+((C51*0.5)/D51)) -> 0 | H51: 0 | I51: 0 | K51: =IF(ISERROR(+I51+'App.2-CH_NewCGAAP_DepExp_2013'!O51-J51), 0, +I51+'App.2-CH_NewCGAAP_DepExp_2013'!O51-J51) -> 0
A52: 1985 | B52: Miscellaneous Fixed Assets | E52: 0 | F52: =IF(D52=0,+'App.2-CH_NewCGAAP_DepExp_2013'!O52,+'App.2-CH_NewCGAAP_DepExp_2013'!O52+((C52*0.5)/D52)) -> 0 | H52: 0 | I52: 0 | K52: =IF(ISERROR(+I52+'App.2-CH_NewCGAAP_DepExp_2013'!O52-J52), 0, +I52+'App.2-CH_NewCGAAP_DepExp_2013'!O52-J52) -> 0
A53: 1990 | B53: Other Tangible Property | E53: 0 | F53: =IF(D53=0,+'App.2-CH_NewCGAAP_DepExp_2013'!O53,+'App.2-CH_NewCGAAP_DepExp_2013'!O53+((C53*0.5)/D53)) -> 0 | H53: 0 | I53: 0 | K53: =IF(ISERROR(+I53+'App.2-CH_NewCGAAP_DepExp_2013'!O53-J53), 0, +I53+'App.2-CH_NewCGAAP_DepExp_2013'!O53-J53) -> 0
A54: 1995 | B54: Contributions & Grants | E54: =IF(D54=0,0,1/D54) -> 0 | F54: =IF(D54=0,+'App.2-CH_NewCGAAP_DepExp_2013'!O54,+'App.2-CH_NewCGAAP_DepExp_2013'!O54+((C54*0.5)/D54)) -> 0 | H54: 0 | I54: 0 | K54: =IF(ISERROR(+I54+'App.2-CH_NewCGAAP_DepExp_2013'!O54-J54), 0, +I54+'App.2-CH_NewCGAAP_DepExp_2013'!O54-J54) -> 0
B55: Total | C55: =SUM(C17:C54) -> 0 | F55: =SUM(F17:F54) -> 0 | G55: 0 | H55: 0 | I55: 0 | J55: 0 | K55: 0
B56: Depreciation exp. adj. from gain or loss on the retirement of assets (pool of like assets)
B57: Total Depreciation Expense | F57: =SUM(F55:F56) -> 0
A59: Notes:
A60: 1 | B60: Board policy of the "half-year" rule - the applicant must ensure that additions in the year attract a half-year depreciation expense in the first year. Deviations from this standard practice must be supported in the application.
A61: 2 | B61: The applicant must provide an explanation of material variances in evidence.
A62: 3 | B62: This column refers to the calculated full year depreciation but excludes the depreciation expense on assets fully depreciated during the year. This column is used for the purpose of calculating depreciation expense in the following year on the next worksheet.
A64: General: | B64: Applicants must provide a breakdown of depreciation and amortization expense in the above format for all relevant accounts. Asset Retirement Obligations (AROs), depreciation and accretion expense should be disclosed separately consistent with the Notes of historical Audited Financial Statements.

Sheet App.2-CJ MIFRS_DepExp_2015
G1: File Number: | H1: =EBNUMBER -> EB-2016-0086
G2: Exhibit:
G3: Tab:
G4: Schedule:
G5: Page:
G7: Date: | H7: 2016-05-20
A9: Appendix 2-CJ
A10: Depreciation and Amortization Expense
A11: Assumes the applicant made capitalization and depreciation expense accounting policy changes under CGAAP effective January 1, 2013 and has adopted IFRS for financial reporting purposes effective January 1, 2015.
D13: 2015 | E13: MIFRS
A15: Account | B15: Description | C15: Additions | D15: Years (new additions only) | E15: Depreciation Rate on New Additions | F15: 2015 Depreciation Expense 1 | G15: 2015 Depreciation Expense per Appendix 2-BA Fixed Assets, Column J (l) | H15: Variance 2 | I15: Depreciation Expense on 2015 Full Year Additions | J15: Less Depreciation Expense on Assets Fully Depreciated during the year (o) | K15: 2015 Full Year Depreciation 3
C16: (d) | D16: (f) | E16: (g) = 1 / (f) | F16: (h)=2014 Full Year Depreciation + ((d)*0.5)/(f) | H16: (m) = (h) - (l) | I16: (n)=((d))/(f) | K16: (p) = 2014 Full Year Depreciation + (n) - (o)
A17: 1611 | B17: Computer Software (Formally known as Account 1925) | E17: =IF(D17=0,0,1/D17) -> 0 | F17: =IF(D17=0,'App.2-CI_MIFRS_DepExp_2014'!K17,+'App.2-CI_MIFRS_DepExp_2014'!K17+((C17*0.5)/D17)) -> 0 | H17: =IF(ISERROR(+F17-G17), 0, +F17-G17) -> 0 | I17: =IF(D17=0,0,+(C17)/D17) -> 0 | K17: =IF(ISERROR(+I17+'App.2-CI_MIFRS_DepExp_2014'!K17-J17), 0, +I17+'App.2-CI_MIFRS_DepExp_2014'!K17-J17) -> 0
A18: 1612 | B18: Land Rights (Formally known as Account 1906) | E18: 0 | F18: =IF(D18=0,'App.2-CI_MIFRS_DepExp_2014'!K18,+'App.2-CI_MIFRS_DepExp_2014'!K18+((C18*0.5)/D18)) -> 0 | H18: 0 | I18: =IF(D18=0,0,+(C18)/D18) -> 0 | K18: =IF(ISERROR(+I18+'App.2-CI_MIFRS_DepExp_2014'!K18-J18), 0, +I18+'App.2-CI_MIFRS_DepExp_2014'!K18-J18) -> 0
A19: 1805 | B19: Land | E19: 0 | F19: =IF(D19=0,'App.2-CI_MIFRS_DepExp_2014'!K19,+'App.2-CI_MIFRS_DepExp_2014'!K19+((C19*0.5)/D19)) -> 0 | H19: 0 | I19: 0 | K19: =IF(ISERROR(+I19+'App.2-CI_MIFRS_DepExp_2014'!K19-J19), 0, +I19+'App.2-CI_MIFRS_DepExp_2014'!K19-J19) -> 0
A20: 1808 | B20: Buildings | E20: 0 | F20: =IF(D20=0,'App.2-CI_MIFRS_DepExp_2014'!K20,+'App.2-CI_MIFRS_DepExp_2014'!K20+((C20*0.5)/D20)) -> 0 | H20: 0 | I20: 0 | K20: =IF(ISERROR(+I20+'App.2-CI_MIFRS_DepExp_2014'!K20-J20), 0, +I20+'App.2-CI_MIFRS_DepExp_2014'!K20-J20) -> 0
A21: 1810 | B21: Leasehold Improvements | E21: 0 | F21: =IF(D21=0,'App.2-CI_MIFRS_DepExp_2014'!K21,+'App.2-CI_MIFRS_DepExp_2014'!K21+((C21*0.5)/D21)) -> 0 | H21: 0 | I21: 0 | K21: =IF(ISERROR(+I21+'App.2-CI_MIFRS_DepExp_2014'!K21-J21), 0, +I21+'App.2-CI_MIFRS_DepExp_2014'!K21-J21) -> 0
A22: 1815 | B22: Transformer Station Equipment >50 kV | E22: 0 | F22: =IF(D22=0,'App.2-CI_MIFRS_DepExp_2014'!K22,+'App.2-CI_MIFRS_DepExp_2014'!K22+((C22*0.5)/D22)) -> 0 | H22: 0 | I22: 0 | K22: =IF(ISERROR(+I22+'App.2-CI_MIFRS_DepExp_2014'!K22-J22), 0, +I22+'App.2-CI_MIFRS_DepExp_2014'!K22-J22) -> 0
A23: 1820 | B23: Distribution Station Equipment <50 kV | E23: 0 | F23: =IF(D23=0,'App.2-CI_MIFRS_DepExp_2014'!K23,+'App.2-CI_MIFRS_DepExp_2014'!K23+((C23*0.5)/D23)) -> 0 | H23: 0 | I23: 0 | K23: =IF(ISERROR(+I23+'App.2-CI_MIFRS_DepExp_2014'!K23-J23), 0, +I23+'App.2-CI_MIFRS_DepExp_2014'!K23-J23) -> 0
A24: 1825 | B24: Storage Battery Equipment | E24: 0 | F24: =IF(D24=0,'App.2-CI_MIFRS_DepExp_2014'!K24,+'App.2-CI_MIFRS_DepExp_2014'!K24+((C24*0.5)/D24)) -> 0 | H24: 0 | I24: 0 | K24: =IF(ISERROR(+I24+'App.2-CI_MIFRS_DepExp_2014'!K24-J24), 0, +I24+'App.2-CI_MIFRS_DepExp_2014'!K24-J24) -> 0
A25: 1830 | B25: Poles, Towers & Fixtures | E25: 0 | F25: =IF(D25=0,'App.2-CI_MIFRS_DepExp_2014'!K25,+'App.2-CI_MIFRS_DepExp_2014'!K25+((C25*0.5)/D25)) -> 0 | H25: 0 | I25: 0 | K25: =IF(ISERROR(+I25+'App.2-CI_MIFRS_DepExp_2014'!K25-J25), 0, +I25+'App.2-CI_MIFRS_DepExp_2014'!K25-J25) -> 0
A26: 1835 | B26: Overhead Conductors & Devices | E26: 0 | F26: =IF(D26=0,'App.2-CI_MIFRS_DepExp_2014'!K26,+'App.2-CI_MIFRS_DepExp_2014'!K26+((C26*0.5)/D26)) -> 0 | H26: 0 | I26: 0 | K26: =IF(ISERROR(+I26+'App.2-CI_MIFRS_DepExp_2014'!K26-J26), 0, +I26+'App.2-CI_MIFRS_DepExp_2014'!K26-J26) -> 0
A27: 1840 | B27: Underground Conduit | E27: 0 | F27: =IF(D27=0,'App.2-CI_MIFRS_DepExp_2014'!K27,+'App.2-CI_MIFRS_DepExp_2014'!K27+((C27*0.5)/D27)) -> 0 | H27: 0 | I27: 0 | K27: =IF(ISERROR(+I27+'App.2-CI_MIFRS_DepExp_2014'!K27-J27), 0, +I27+'App.2-CI_MIFRS_DepExp_2014'!K27-J27) -> 0
A28: 1845 | B28: Underground Conductors & Devices | E28: 0 | F28: =IF(D28=0,'App.2-CI_MIFRS_DepExp_2014'!K28,+'App.2-CI_MIFRS_DepExp_2014'!K28+((C28*0.5)/D28)) -> 0 | H28: 0 | I28: 0 | K28: =IF(ISERROR(+I28+'App.2-CI_MIFRS_DepExp_2014'!K28-J28), 0, +I28+'App.2-CI_MIFRS_DepExp_2014'!K28-J28) -> 0
A29: 1850 | B29: Line Transformers | E29: 0 | F29: =IF(D29=0,'App.2-CI_MIFRS_DepExp_2014'!K29,+'App.2-CI_MIFRS_DepExp_2014'!K29+((C29*0.5)/D29)) -> 0 | H29: 0 | I29: 0 | K29: =IF(ISERROR(+I29+'App.2-CI_MIFRS_DepExp_2014'!K29-J29), 0, +I29+'App.2-CI_MIFRS_DepExp_2014'!K29-J29) -> 0
A30: 1855 | B30: Services (Overhead & Underground) | E30: 0 | F30: =IF(D30=0,'App.2-CI_MIFRS_DepExp_2014'!K30,+'App.2-CI_MIFRS_DepExp_2014'!K30+((C30*0.5)/D30)) -> 0 | H30: 0 | I30: 0 | K30: =IF(ISERROR(+I30+'App.2-CI_MIFRS_DepExp_2014'!K30-J30), 0, +I30+'App.2-CI_MIFRS_DepExp_2014'!K30-J30) -> 0
A31: 1860 | B31: Meters | E31: 0 | F31: =IF(D31=0,'App.2-CI_MIFRS_DepExp_2014'!K31,+'App.2-CI_MIFRS_DepExp_2014'!K31+((C31*0.5)/D31)) -> 0 | H31: 0 | I31: 0 | K31: =IF(ISERROR(+I31+'App.2-CI_MIFRS_DepExp_2014'!K31-J31), 0, +I31+'App.2-CI_MIFRS_DepExp_2014'!K31-J31) -> 0
A32: 1860 | B32: Meters (Smart Meters) | E32: 0 | F32: =IF(D32=0,'App.2-CI_MIFRS_DepExp_2014'!K32,+'App.2-CI_MIFRS_DepExp_2014'!K32+((C32*0.5)/D32)) -> 0 | H32: 0 | I32: 0 | K32: =IF(ISERROR(+I32+'App.2-CI_MIFRS_DepExp_2014'!K32-J32), 0, +I32+'App.2-CI_MIFRS_DepExp_2014'!K32-J32) -> 0
A33: 1905 | B33: Land | E33: 0 | F33: =IF(D33=0,'App.2-CI_MIFRS_DepExp_2014'!K33,+'App.2-CI_MIFRS_DepExp_2014'!K33+((C33*0.5)/D33)) -> 0 | H33: 0 | I33: 0 | K33: =IF(ISERROR(+I33+'App.2-CI_MIFRS_DepExp_2014'!K33-J33), 0, +I33+'App.2-CI_MIFRS_DepExp_2014'!K33-J33) -> 0
A34: 1908 | B34: Buildings & Fixtures | E34: 0 | F34: =IF(D34=0,'App.2-CI_MIFRS_DepExp_2014'!K34,+'App.2-CI_MIFRS_DepExp_2014'!K34+((C34*0.5)/D34)) -> 0 | H34: 0 | I34: 0 | K34: =IF(ISERROR(+I34+'App.2-CI_MIFRS_DepExp_2014'!K34-J34), 0, +I34+'App.2-CI_MIFRS_DepExp_2014'!K34-J34) -> 0
A35: 1910 | B35: Leasehold Improvements | E35: 0 | F35: =IF(D35=0,'App.2-CI_MIFRS_DepExp_2014'!K35,+'App.2-CI_MIFRS_DepExp_2014'!K35+((C35*0.5)/D35)) -> 0 | H35: 0 | I35: 0 | K35: =IF(ISERROR(+I35+'App.2-CI_MIFRS_DepExp_2014'!K35-J35), 0, +I35+'App.2-CI_MIFRS_DepExp_2014'!K35-J35) -> 0
A36: 1915 | B36: Office Furniture & Equipment (10 years) | E36: 0 | F36: =IF(D36=0,'App.2-CI_MIFRS_DepExp_2014'!K36,+'App.2-CI_MIFRS_DepExp_2014'!K36+((C36*0.5)/D36)) -> 0 | H36: 0 | I36: 0 | K36: =IF(ISERROR(+I36+'App.2-CI_MIFRS_DepExp_2014'!K36-J36), 0, +I36+'App.2-CI_MIFRS_DepExp_2014'!K36-J36) -> 0
A37: 1915 | B37: Office Furniture & Equipment (5 years) | E37: 0 | F37: =IF(D37=0,'App.2-CI_MIFRS_DepExp_2014'!K37,+'App.2-CI_MIFRS_DepExp_2014'!K37+((C37*0.5)/D37)) -> 0 | H37: 0 | I37: 0 | K37: =IF(ISERROR(+I37+'App.2-CI_MIFRS_DepExp_2014'!K37-J37), 0, +I37+'App.2-CI_MIFRS_DepExp_2014'!K37-J37) -> 0
A38: 1920 | B38: Computer Equipment - Hardware | E38: 0 | F38: =IF(D38=0,'App.2-CI_MIFRS_DepExp_2014'!K38,+'App.2-CI_MIFRS_DepExp_2014'!K38+((C38*0.5)/D38)) -> 0 | H38: 0 | I38: 0 | K38: =IF(ISERROR(+I38+'App.2-CI_MIFRS_DepExp_2014'!K38-J38), 0, +I38+'App.2-CI_MIFRS_DepExp_2014'!K38-J38) -> 0
A39: 1920 | B39: Computer Equip.-Hardware(Post Mar. 22/04) | E39: 0 | F39: =IF(D39=0,'App.2-CI_MIFRS_DepExp_2014'!K39,+'App.2-CI_MIFRS_DepExp_2014'!K39+((C39*0.5)/D39)) -> 0 | H39: 0 | I39: 0 | K39: =IF(ISERROR(+I39+'App.2-CI_MIFRS_DepExp_2014'!K39-J39), 0, +I39+'App.2-CI_MIFRS_DepExp_2014'!K39-J39) -> 0
A40: 1920 | B40: Computer Equip.-Hardware(Post Mar. 19/07) | E40: 0 | F40: =IF(D40=0,'App.2-CI_MIFRS_DepExp_2014'!K40,+'App.2-CI_MIFRS_DepExp_2014'!K40+((C40*0.5)/D40)) -> 0 | H40: 0 | I40: 0 | K40: =IF(ISERROR(+I40+'App.2-CI_MIFRS_DepExp_2014'!K40-J40), 0, +I40+'App.2-CI_MIFRS_DepExp_2014'!K40-J40) -> 0
A41: 1930 | B41: Transportation Equipment | E41: 0 | F41: =IF(D41=0,'App.2-CI_MIFRS_DepExp_2014'!K41,+'App.2-CI_MIFRS_DepExp_2014'!K41+((C41*0.5)/D41)) -> 0 | H41: 0 | I41: 0 | K41: =IF(ISERROR(+I41+'App.2-CI_MIFRS_DepExp_2014'!K41-J41), 0, +I41+'App.2-CI_MIFRS_DepExp_2014'!K41-J41) -> 0
A42: 1935 | B42: Stores Equipment | E42: 0 | F42: =IF(D42=0,'App.2-CI_MIFRS_DepExp_2014'!K42,+'App.2-CI_MIFRS_DepExp_2014'!K42+((C42*0.5)/D42)) -> 0 | H42: 0 | I42: 0 | K42: =IF(ISERROR(+I42+'App.2-CI_MIFRS_DepExp_2014'!K42-J42), 0, +I42+'App.2-CI_MIFRS_DepExp_2014'!K42-J42) -> 0
A43: 1940 | B43: Tools, Shop & Garage Equipment | E43: 0 | F43: =IF(D43=0,'App.2-CI_MIFRS_DepExp_2014'!K43,+'App.2-CI_MIFRS_DepExp_2014'!K43+((C43*0.5)/D43)) -> 0 | H43: 0 | I43: 0 | K43: =IF(ISERROR(+I43+'App.2-CI_MIFRS_DepExp_2014'!K43-J43), 0, +I43+'App.2-CI_MIFRS_DepExp_2014'!K43-J43) -> 0
A44: 1945 | B44: Measurement & Testing Equipment | E44: 0 | F44: =IF(D44=0,'App.2-CI_MIFRS_DepExp_2014'!K44,+'App.2-CI_MIFRS_DepExp_2014'!K44+((C44*0.5)/D44)) -> 0 | H44: 0 | I44: 0 | K44: =IF(ISERROR(+I44+'App.2-CI_MIFRS_DepExp_2014'!K44-J44), 0, +I44+'App.2-CI_MIFRS_DepExp_2014'!K44-J44) -> 0
A45: 1950 | B45: Power Operated Equipment | E45: 0 | F45: =IF(D45=0,'App.2-CI_MIFRS_DepExp_2014'!K45,+'App.2-CI_MIFRS_DepExp_2014'!K45+((C45*0.5)/D45)) -> 0 | H45: 0 | I45: 0 | K45: =IF(ISERROR(+I45+'App.2-CI_MIFRS_DepExp_2014'!K45-J45), 0, +I45+'App.2-CI_MIFRS_DepExp_2014'!K45-J45) -> 0
A46: 1955 | B46: Communications Equipment | E46: 0 | F46: =IF(D46=0,'App.2-CI_MIFRS_DepExp_2014'!K46,+'App.2-CI_MIFRS_DepExp_2014'!K46+((C46*0.5)/D46)) -> 0 | H46: 0 | I46: 0 | K46: =IF(ISERROR(+I46+'App.2-CI_MIFRS_DepExp_2014'!K46-J46), 0, +I46+'App.2-CI_MIFRS_DepExp_2014'!K46-J46) -> 0
A47: 1955 | B47: Communication Equipment (Smart Meters) | E47: 0 | F47: =IF(D47=0,'App.2-CI_MIFRS_DepExp_2014'!K47,+'App.2-CI_MIFRS_DepExp_2014'!K47+((C47*0.5)/D47)) -> 0 | H47: 0 | I47: 0 | K47: =IF(ISERROR(+I47+'App.2-CI_MIFRS_DepExp_2014'!K47-J47), 0, +I47+'App.2-CI_MIFRS_DepExp_2014'!K47-J47) -> 0
A48: 1960 | B48: Miscellaneous Equipment | E48: 0 | F48: =IF(D48=0,'App.2-CI_MIFRS_DepExp_2014'!K48,+'App.2-CI_MIFRS_DepExp_2014'!K48+((C48*0.5)/D48)) -> 0 | H48: 0 | I48: 0 | K48: =IF(ISERROR(+I48+'App.2-CI_MIFRS_DepExp_2014'!K48-J48), 0, +I48+'App.2-CI_MIFRS_DepExp_2014'!K48-J48) -> 0
A49: 1970 | B49: Load Management Controls - Customer Premises | E49: 0 | F49: =IF(D49=0,'App.2-CI_MIFRS_DepExp_2014'!K49,+'App.2-CI_MIFRS_DepExp_2014'!K49+((C49*0.5)/D49)) -> 0 | H49: 0 | I49: 0 | K49: =IF(ISERROR(+I49+'App.2-CI_MIFRS_DepExp_2014'!K49-J49), 0, +I49+'App.2-CI_MIFRS_DepExp_2014'!K49-J49) -> 0
A50: 1975 | B50: Load Management Controls Utility Premises | E50: 0 | F50: =IF(D50=0,'App.2-CI_MIFRS_DepExp_2014'!K50,+'App.2-CI_MIFRS_DepExp_2014'!K50+((C50*0.5)/D50)) -> 0 | H50: 0 | I50: 0 | K50: =IF(ISERROR(+I50+'App.2-CI_MIFRS_DepExp_2014'!K50-J50), 0, +I50+'App.2-CI_MIFRS_DepExp_2014'!K50-J50) -> 0
A51: 1980 | B51: System Supervisor Equipment | E51: 0 | F51: =IF(D51=0,'App.2-CI_MIFRS_DepExp_2014'!K51,+'App.2-CI_MIFRS_DepExp_2014'!K51+((C51*0.5)/D51)) -> 0 | H51: 0 | I51: 0 | K51: =IF(ISERROR(+I51+'App.2-CI_MIFRS_DepExp_2014'!K51-J51), 0, +I51+'App.2-CI_MIFRS_DepExp_2014'!K51-J51) -> 0
A52: 1985 | B52: Miscellaneous Fixed Assets | E52: 0 | F52: =IF(D52=0,'App.2-CI_MIFRS_DepExp_2014'!K52,+'App.2-CI_MIFRS_DepExp_2014'!K52+((C52*0.5)/D52)) -> 0 | H52: 0 | I52: 0 | K52: =IF(ISERROR(+I52+'App.2-CI_MIFRS_DepExp_2014'!K52-J52), 0, +I52+'App.2-CI_MIFRS_DepExp_2014'!K52-J52) -> 0
A53: 1990 | B53: Other Tangible Property | E53: 0 | F53: =IF(D53=0,'App.2-CI_MIFRS_DepExp_2014'!K53,+'App.2-CI_MIFRS_DepExp_2014'!K53+((C53*0.5)/D53)) -> 0 | H53: 0 | I53: 0 | K53: =IF(ISERROR(+I53+'App.2-CI_MIFRS_DepExp_2014'!K53-J53), 0, +I53+'App.2-CI_MIFRS_DepExp_2014'!K53-J53) -> 0
A54: 1995 | B54: Contributions & Grants | E54: 0 | F54: =IF(D54=0,'App.2-CI_MIFRS_DepExp_2014'!K54,+'App.2-CI_MIFRS_DepExp_2014'!K54+((C54*0.5)/D54)) -> 0 | H54: 0 | I54: 0 | K54: =IF(ISERROR(+I54+'App.2-CI_MIFRS_DepExp_2014'!K54-J54), 0, +I54+'App.2-CI_MIFRS_DepExp_2014'!K54-J54) -> 0
B55: Total | C55: =SUM(C17:C54) -> 0 | F55: =SUM(F17:F54) -> 0 | G55: =SUM(G17:G54) -> 0 | H55: =SUM(H17:H54) -> 0 | I55: =SUM(I17:I54) -> 0 | J55: 0 | K55: =SUM(K17:K54) -> 0
B56: Depreciation exp. adj. from gain or loss on the retirement of assets (pool of like assets)
B57: Total Depreciation expense to be included in the test year revenue requirement | F57: =SUM(F55:F56) -> 0
A58: Notes:
A59: 1 | B59: Board policy of the "half-year" rule - the applicant must ensure that additions in the year attract a half-year depreciation expense in the first year. Deviations from this standard practice must be supported in the application.
A60: 2 | B60: The applicant must provide an explanation of material variances in evidence.
A61: 3 | B61: This column refers to the calculated full year depreciation but excludes the depreciation expense on assets fully depreciated during the year. This column is used for the purpose of calculating depreciation expense in the following year on the next worksheet.
A64: General: | B64: Applicants must provide a breakdown of depreciation and amortization expense in the above format for all relevant accounts. Asset Retirement Obligations (AROs), depreciation and accretion expense should be disclosed separately consistent with the Notes of historical Audited Financial Statements.

Sheet App.2-CK MIFRS_DepExp_2016
G1: File Number: | H1: =EBNUMBER -> EB-2016-0086
G2: Exhibit:
G3: Tab:
G4: Schedule:
G5: Page:
G7: Date: | H7: 2016-05-20
A9: Appendix 2-CK
A10: Depreciation and Amortization Expense
A11: Assumes the applicant made capitalization and depreciation expense accounting policy changes under CGAAP effective January 1, 2013 and has adopted IFRS for financial reporting purposes effective January 1, 2015.
D13: 2016 | E13: MIFRS
A15: Account | B15: Description | C15: Additions | D15: Years (new additions only) | E15: Depreciation Rate on New Additions | F15: 2016 Depreciation Expense 1 | G15: 2016 Depreciation Expense per Appendix 2-BA Fixed Assets, Column J (l) | H15: Variance 2
C16: (d) | D16: (f) | E16: (g) = 1 / (f) | F16: (h)=2015 Full Year Depreciation + ((d)*0.5)/(f) | H16: (m) = (h) - (l)
A17: 1611 | B17: Computer Software (Formally known as Account 1925) | E17: =IF(D17=0,0,1/D17) -> 0 | F17: =IF(D17=0,'App.2-CJ MIFRS_DepExp_2015'!K17,+'App.2-CJ MIFRS_DepExp_2015'!K17+((C17*0.5)/D17)) -> 0 | H17: =IF(ISERROR(+F17-G17), 0, +F17-G17) -> 0
A18: 1612 | B18: Land Rights (Formally known as Account 1906) | E18: 0 | F18: =IF(D18=0,'App.2-CJ MIFRS_DepExp_2015'!K18,+'App.2-CJ MIFRS_DepExp_2015'!K18+((C18*0.5)/D18)) -> 0 | H18: 0
A19: 1805 | B19: Land | E19: 0 | F19: =IF(D19=0,'App.2-CJ MIFRS_DepExp_2015'!K19,+'App.2-CJ MIFRS_DepExp_2015'!K19+((C19*0.5)/D19)) -> 0 | H19: 0
A20: 1808 | B20: Buildings | E20: 0 | F20: =IF(D20=0,'App.2-CJ MIFRS_DepExp_2015'!K20,+'App.2-CJ MIFRS_DepExp_2015'!K20+((C20*0.5)/D20)) -> 0 | H20: 0
A21: 1810 | B21: Leasehold Improvements | E21: 0 | F21: =IF(D21=0,'App.2-CJ MIFRS_DepExp_2015'!K21,+'App.2-CJ MIFRS_DepExp_2015'!K21+((C21*0.5)/D21)) -> 0 | H21: 0
A22: 1815 | B22: Transformer Station Equipment >50 kV | E22: 0 | F22: =IF(D22=0,'App.2-CJ MIFRS_DepExp_2015'!K22,+'App.2-CJ MIFRS_DepExp_2015'!K22+((C22*0.5)/D22)) -> 0 | H22: 0
A23: 1820 | B23: Distribution Station Equipment <50 kV | E23: 0 | F23: =IF(D23=0,'App.2-CJ MIFRS_DepExp_2015'!K23,+'App.2-CJ MIFRS_DepExp_2015'!K23+((C23*0.5)/D23)) -> 0 | H23: 0
A24: 1825 | B24: Storage Battery Equipment | E24: 0 | F24: =IF(D24=0,'App.2-CJ MIFRS_DepExp_2015'!K24,+'App.2-CJ MIFRS_DepExp_2015'!K24+((C24*0.5)/D24)) -> 0 | H24: 0
A25: 1830 | B25: Poles, Towers & Fixtures | E25: 0 | F25: =IF(D25=0,'App.2-CJ MIFRS_DepExp_2015'!K25,+'App.2-CJ MIFRS_DepExp_2015'!K25+((C25*0.5)/D25)) -> 0 | H25: 0
A26: 1835 | B26: Overhead Conductors & Devices | E26: 0 | F26: =IF(D26=0,'App.2-CJ MIFRS_DepExp_2015'!K26,+'App.2-CJ MIFRS_DepExp_2015'!K26+((C26*0.5)/D26)) -> 0 | H26: 0
A27: 1840 | B27: Underground Conduit | E27: 0 | F27: =IF(D27=0,'App.2-CJ MIFRS_DepExp_2015'!K27,+'App.2-CJ MIFRS_DepExp_2015'!K27+((C27*0.5)/D27)) -> 0 | H27: 0
A28: 1845 | B28: Underground Conductors & Devices | E28: 0 | F28: =IF(D28=0,'App.2-CJ MIFRS_DepExp_2015'!K28,+'App.2-CJ MIFRS_DepExp_2015'!K28+((C28*0.5)/D28)) -> 0 | H28: 0
A29: 1850 | B29: Line Transformers | E29: 0 | F29: =IF(D29=0,'App.2-CJ MIFRS_DepExp_2015'!K29,+'App.2-CJ MIFRS_DepExp_2015'!K29+((C29*0.5)/D29)) -> 0 | H29: 0
A30: 1855 | B30: Services (Overhead & Underground) | E30: 0 | F30: =IF(D30=0,'App.2-CJ MIFRS_DepExp_2015'!K30,+'App.2-CJ MIFRS_DepExp_2015'!K30+((C30*0.5)/D30)) -> 0 | H30: 0
A31: 1860 | B31: Meters | E31: 0 | F31: =IF(D31=0,'App.2-CJ MIFRS_DepExp_2015'!K31,+'App.2-CJ MIFRS_DepExp_2015'!K31+((C31*0.5)/D31)) -> 0 | H31: 0
A32: 1860 | B32: Meters (Smart Meters) | E32: 0 | F32: =IF(D32=0,'App.2-CJ MIFRS_DepExp_2015'!K32,+'App.2-CJ MIFRS_DepExp_2015'!K32+((C32*0.5)/D32)) -> 0 | H32: 0
A33: 1905 | B33: Land | E33: 0 | F33: =IF(D33=0,'App.2-CJ MIFRS_DepExp_2015'!K33,+'App.2-CJ MIFRS_DepExp_2015'!K33+((C33*0.5)/D33)) -> 0 | H33: 0
A34: 1908 | B34: Buildings & Fixtures | E34: 0 | F34: =IF(D34=0,'App.2-CJ MIFRS_DepExp_2015'!K34,+'App.2-CJ MIFRS_DepExp_2015'!K34+((C34*0.5)/D34)) -> 0 | H34: 0
A35: 1910 | B35: Leasehold Improvements | E35: 0 | F35: =IF(D35=0,'App.2-CJ MIFRS_DepExp_2015'!K35,+'App.2-CJ MIFRS_DepExp_2015'!K35+((C35*0.5)/D35)) -> 0 | H35: 0
A36: 1915 | B36: Office Furniture & Equipment (10 years) | E36: 0 | F36: =IF(D36=0,'App.2-CJ MIFRS_DepExp_2015'!K36,+'App.2-CJ MIFRS_DepExp_2015'!K36+((C36*0.5)/D36)) -> 0 | H36: 0
A37: 1915 | B37: Office Furniture & Equipment (5 years) | E37: 0 | F37: =IF(D37=0,'App.2-CJ MIFRS_DepExp_2015'!K37,+'App.2-CJ MIFRS_DepExp_2015'!K37+((C37*0.5)/D37)) -> 0 | H37: 0
A38: 1920 | B38: Computer Equipment - Hardware | E38: 0 | F38: =IF(D38=0,'App.2-CJ MIFRS_DepExp_2015'!K38,+'App.2-CJ MIFRS_DepExp_2015'!K38+((C38*0.5)/D38)) -> 0 | H38: 0
A39: 1920 | B39: Computer Equip.-Hardware(Post Mar. 22/04) | E39: 0 | F39: =IF(D39=0,'App.2-CJ MIFRS_DepExp_2015'!K39,+'App.2-CJ MIFRS_DepExp_2015'!K39+((C39*0.5)/D39)) -> 0 | H39: 0
A40: 1920 | B40: Computer Equip.-Hardware(Post Mar. 19/07) | E40: 0 | F40: =IF(D40=0,'App.2-CJ MIFRS_DepExp_2015'!K40,+'App.2-CJ MIFRS_DepExp_2015'!K40+((C40*0.5)/D40)) -> 0 | H40: 0
A41: 1930 | B41: Transportation Equipment | E41: 0 | F41: =IF(D41=0,'App.2-CJ MIFRS_DepExp_2015'!K41,+'App.2-CJ MIFRS_DepExp_2015'!K41+((C41*0.5)/D41)) -> 0 | H41: 0
A42: 1935 | B42: Stores Equipment | E42: 0 | F42: =IF(D42=0,'App.2-CJ MIFRS_DepExp_2015'!K42,+'App.2-CJ MIFRS_DepExp_2015'!K42+((C42*0.5)/D42)) -> 0 | H42: 0
A43: 1940 | B43: Tools, Shop & Garage Equipment | E43: 0 | F43: =IF(D43=0,'App.2-CJ MIFRS_DepExp_2015'!K43,+'App.2-CJ MIFRS_DepExp_2015'!K43+((C43*0.5)/D43)) -> 0 | H43: 0
A44: 1945 | B44: Measurement & Testing Equipment | E44: 0 | F44: =IF(D44=0,'App.2-CJ MIFRS_DepExp_2015'!K44,+'App.2-CJ MIFRS_DepExp_2015'!K44+((C44*0.5)/D44)) -> 0 | H44: 0
A45: 1950 | B45: Power Operated Equipment | E45: 0 | F45: =IF(D45=0,'App.2-CJ MIFRS_DepExp_2015'!K45,+'App.2-CJ MIFRS_DepExp_2015'!K45+((C45*0.5)/D45)) -> 0 | H45: 0
A46: 1955 | B46: Communications Equipment | E46: 0 | F46: =IF(D46=0,'App.2-CJ MIFRS_DepExp_2015'!K46,+'App.2-CJ MIFRS_DepExp_2015'!K46+((C46*0.5)/D46)) -> 0 | H46: 0
A47: 1955 | B47: Communication Equipment (Smart Meters) | E47: 0 | F47: =IF(D47=0,'App.2-CJ MIFRS_DepExp_2015'!K47,+'App.2-CJ MIFRS_DepExp_2015'!K47+((C47*0.5)/D47)) -> 0 | H47: 0
A48: 1960 | B48: Miscellaneous Equipment | E48: 0 | F48: =IF(D48=0,'App.2-CJ MIFRS_DepExp_2015'!K48,+'App.2-CJ MIFRS_DepExp_2015'!K48+((C48*0.5)/D48)) -> 0 | H48: 0
A49: 1970 | B49: Load Management Controls - Customer Premises | E49: 0 | F49: =IF(D49=0,'App.2-CJ MIFRS_DepExp_2015'!K49,+'App.2-CJ MIFRS_DepExp_2015'!K49+((C49*0.5)/D49)) -> 0 | H49: 0
A50: 1975 | B50: Load Management Controls Utility Premises | E50: 0 | F50: =IF(D50=0,'App.2-CJ MIFRS_DepExp_2015'!K50,+'App.2-CJ MIFRS_DepExp_2015'!K50+((C50*0.5)/D50)) -> 0 | H50: 0
A51: 1980 | B51: System Supervisor Equipment | E51: 0 | F51: =IF(D51=0,'App.2-CJ MIFRS_DepExp_2015'!K51,+'App.2-CJ MIFRS_DepExp_2015'!K51+((C51*0.5)/D51)) -> 0 | H51: 0
A52: 1985 | B52: Miscellaneous Fixed Assets | E52: 0 | F52: =IF(D52=0,'App.2-CJ MIFRS_DepExp_2015'!K52,+'App.2-CJ MIFRS_DepExp_2015'!K52+((C52*0.5)/D52)) -> 0 | H52: 0
A53: 1990 | B53: Other Tangible Property | E53: 0 | F53: =IF(D53=0,'App.2-CJ MIFRS_DepExp_2015'!K53,+'App.2-CJ MIFRS_DepExp_2015'!K53+((C53*0.5)/D53)) -> 0 | H53: 0
A54: 1995 | B54: Contributions & Grants | E54: 0 | F54: =IF(D54=0,'App.2-CJ MIFRS_DepExp_2015'!K54,+'App.2-CJ MIFRS_DepExp_2015'!K54+((C54*0.5)/D54)) -> 0 | H54: 0
B55: Total | C55: =SUM(C17:C54) -> 0 | F55: =SUM(F17:F54) -> 0 | G55: =SUM(G17:G54) -> 0 | H55: =SUM(H17:H54) -> 0
B56: Depreciation exp. adj. from gain or loss on the retirement of assets (pool of like assets)
B57: Total Depreciation expense to be included in the test year revenue requirement | F57: =SUM(F55:F56) -> 0
A58: Notes:
A59: 1 | B59: Board policy of the "half-year" rule - the applicant must ensure that additions in the year attract a half-year depreciation expense in the first year. Deviations from this standard practice must be supported in the application.
A60: 2 | B60: The applicant must provide an explanation of material variances in evidence.
A62: General: | B62: Applicants must provide a breakdown of depreciation and amortization expense in the above format for all relevant accounts. Asset Retirement Obligations (AROs), depreciation and accretion expense should be disclosed separately consistent with the Notes of historical Audited Financial Statements.

Sheet App.2-D_Overhead
F1: File Number: | G1: =EBNUMBER -> EB-2016-0086
F2: Exhibit:
F3: Tab:
F4: Schedule:
F5: Page:
F7: Date: | G7: 2016-05-20
A9: Appendix 2-D
A10: Overhead Expense
A12: Applicants are to provide a breakdown of OM&A before capitalization in the below table. OM&A before capitalization may be broken down by cost center, program, drivers or another format best suited to focus on capitalized vs. uncapitalized OM&A.
A14: OM&A Before Capitalization
B15: 2013 | C15: 2014 | D15: 2015 | E15: 2016 | F15: 2017
B16: Historical Year | C16: Historical Year | D16: Historical Year | E16: Bridge Year | F16: Test Year
A27: Total OM&A Before Capitalization (B) | B27: =SUM(B17:B26) -> 0 | C27: =SUM(C17:C26) -> 0 | D27: 0 | E27: 0 | F27: 0
A29: Applicants are to provide a breakdown of capitalized OM&A in the below table. Capitalized OM&A may be broken down using the categories listed in the table below if possible. Otherwise, applicants are to provide its own break down of capitalized OM&A.
A31: Capitalized OM&A | G31: Directly | H31: Explanation for Change in Overhead Capitalized
B32: 2013 | C32: 2014 | D32: 2015 | E32: 2016 | F32: 2017 | G32: Attributable?
B33: Historical Year | C33: Historical Year | D33: Historical Year | E33: Bridge Year | F33: Test Year | G33: (Y/N)
A34: employee benefits
A35: costs of site preparation
A36: initial delivery and handling costs
A37: costs of testing whether the asset is functioning properly
A38: professional fees
A40: costs of opening a new facility
A41: costs of introducing a new product or service (including costs of advertising and promotional activities)
A42: costs of conducting business in a new location or with a new class of customer (including costs of staff training)
A43: administration and other general overhead costs
A45: Insert description of additional item(s) and new rows if needed
A47: Total Capitalized OM&A (A) | B47: =SUM(B34:B46) -> 0 | C47: =SUM(C34:C46) -> 0 | D47: =SUM(D34:D46) -> 0 | E47: =SUM(E34:E46) -> 0 | F47: =SUM(F34:F46) -> 0
A49: % of Capitalized OM&A (=A/B) | B49: =IF(ISERROR(B47/B27),"0%",B47/B27) -> 0% | C49: =IF(ISERROR(C47/C27),"0%",C47/C27) -> 0% | D49: 0% | E49: 0% | F49: 0%

Sheet App.2-EA_Account 1575 (2015)
I1: File Number: | J1: =EBNUMBER -> EB-2016-0086
I2: Exhibit:
I3: Tab:
I4: Schedule:
I5: Page:
I7: Date: | J7: 2016-05-20
A9: Appendix 2-EA
A10: Account 1575 - IFRS-CGAAP Transitional PP&E Amounts
A11: 2015 Adopters of IFRS for Financial Reporting Purposes
A13: For applicants that adopted IFRS on January 1, 2015 for financial reporting purposes
B17: =RebaseYear &" Rebasing Year" -> 2013 Rebasing Year | C17: 2012 | D17: 2013 | E17: 2014 | F17: 2015 | G17: 2016 Rebasing Year
A18: Reporting Basis | B18: CGAAP | C18: CGAAP | D18: CGAAP | E18: CGAAP | F18: MIFRS | G18: MIFRS
B19: Forecast | C19: Actual | D19: Actual | E19: Actual | F19: Forecast | G19: Forecast
E20: $ | F20: $
A21: PP&E Values under CGAAP
A22: Opening net PP&E - Note 1 | F22: =+E25 -> 0
A23: Net Additions - Note 4
A24: Net Depreciation (amounts should be negative) - Note 4
A25: Closing net PP&E (1) | E25: =E22+E23+E24 -> 0 | F25: =SUM(F22:F24) -> 0
A27: PP&E Values under MIFRS (Starts from 2014, the transition year)
A28: Opening net PP&E - Note 1 | F28: =+E31 -> 0
A29: Net Additions - Note 4
A30: Net Depreciation (amounts should be negative) - Note 4
A31: Closing net PP&E (2) | E31: =SUM(E28:E30) -> 0 | F31: =SUM(F28:F30) -> 0
A33: Difference in Closing net PP&E, former CGAAP vs. revised CGAAP | E33: =E25-E31 -> 0 | F33: =F25-F31 -> 0
A36: Effect on Deferral and Variance Account Rate Riders
A37: Closing balance in Account 1576 | G37: =IF(ISERROR(F33), 0, F33) -> 0 | I37: WACC
A38: Return on Rate Base Associated with Account 1576 balance at WACC - Note 2 | G38: =F33*J37*J38 -> 0 | H38: # of years of rate rider disposition period
A39: Amount included in Deferral and Variance Account Rate Rider Calculation | G39: =G37+G38 -> 0
A41: Notes:
A42: 1 For an applicant that adopted IFRS on January 1, 2015, the PP&E values as of January 1, 2014 under both CGAAP and MIFRS should be the same.
A43: 2 Return on rate base associated with deferred balance is calculated as:
A44: the deferral account closing balance as of 2015 rebasing year x WACC X # of years of rate rider disposition period
A45: * Please note that the calculation should be adjusted once WACC is updated and finalized in the rate application.
A46: 3 The PP&E deferral account is cleared by including the total balance in the deferral and variance account rate rider calculation.
A47: 4 Net additions are additions net of disposals; Net depreciation is additions to depreciation net of disposals.

Sheet App.2-EB_Account 1576 (2012)
I1: File Number: | J1: =EBNUMBER -> EB-2016-0086
I2: Exhibit:
I3: Tab:
I4: Schedule:
I5: Page:
I7: Date: | J7: 2016-05-20
A9: Appendix 2-EB
A10: Account 1576 - Accounting Changes under CGAAP
A11: 2012 Changes in Accounting Policies under CGAAP
A13: For applicants that made capitalization and depreciation expense accounting policy changes under CGAAP effective January 1, 2012
B17: =RebaseYear &" Rebasing Year" -> 2013 Rebasing Year | C17: 2013 | D17: 2014 | E17: 2015 | F17: 2016 | G17: =TestYear & " Rebasing Year" -> 2017 Rebasing Year
A18: Reporting Basis | B18: CGAAP | C18: CGAAP | D18: CGAAP | E18: CGAAP | F18: MIFRS | G18: MIFRS
B19: Forecast | C19: Actual | D19: Actual | E19: Actual | F19: Forecast | G19: Forecast
C20: $ | D20: $ | E20: $ | F20: $
A21: PP&E Values under former CGAAP
A22: Opening net PP&E - Note 1 | D22: =+C25 -> 0 | E22: =+D25 -> 0 | F22: =+E25 -> 0
A23: Net Additions - Note 4
A24: Net Depreciation (amounts should be negative) - Note 4
A25: Closing net PP&E (1) | C25: =C22+C23+C24 -> 0 | D25: =D22+D23+D24 -> 0 | E25: =E22+E23+E24 -> 0 | F25: =F22+F23+F24 -> 0
A27: PP&E Values under revised CGAAP (Starts from 2012)
A28: Opening net PP&E - Note 1 | D28: =+C31 -> 0 | E28: =+D31 -> 0 | F28: =+E31 -> 0
A29: Net Additions - Note 4
A30: Net Depreciation (amounts should be negative) - Note 4
A31: Closing net PP&E (2) | C31: =SUM(C28:C30) -> 0 | D31: =SUM(D28:D30) -> 0 | E31: =SUM(E28:E30) -> 0 | F31: =SUM(F28:F30) -> 0
A33: Difference in Closing net PP&E, former CGAAP vs. revised CGAAP | C33: =C25-C31 -> 0 | D33: =D25-D31 -> 0 | E33: =E25-E31 -> 0 | F33: =F25-F31 -> 0
A36: Effect on Deferral and Variance Account Rate Riders
A37: Closing balance in Account 1576 | G37: =IF(ISERROR(F33), 0, F33) -> 0 | I37: WACC
A38: Return on Rate Base Associated with Account 1576 balance at WACC - Note 2 | G38: =F33*J37*J38 -> 0 | H38: # of years of rate rider disposition period
A39: Amount included in Deferral and Variance Account Rate Rider Calculation | G39: =G37+G38 -> 0
A41: Notes:
A42: 1 For an applicant that made the capitalization and depreciation expense accounting policy changes on January 1, 2012, the PP&E values as of January 1, 2012 under both former CGAAP and revised CGAAP should be the same.
A43: 2 Return on rate base associated with Account 1576 balance is calculated as:
A44: the variance account ending balance as of 2015 rebasing year x WACC X # of years of rate rider disposition period
A45: * Please note that the calculation should be adjusted once WACC is updated and finalized in the rate application.
A46: 3 Account 1576 is cleared by including the total balance in the deferral and variance account rate rider calculation.
A47: 4 Net additions are additions net of disposals; Net depreciation is additions to depreciation net of disposals.

Sheet App.2-EC_Account 1576 (2013)
I1: File Number: | J1: =EBNUMBER -> EB-2016-0086
I2: Exhibit:
I3: Tab:
I4: Schedule:
I5: Page:
I7: Date: | J7: 2016-05-20
A9: Appendix 2-EC
A10: Account 1576 - Accounting Changes under CGAAP
A11: 2013 Changes in Accounting Policies under CGAAP
A13: For applicants that made capitalization and depreciation expense accounting policy changes under CGAAP effective January 1, 2013
B17: =RebaseYear &" Rebasing Year" -> 2013 Rebasing Year | C17: 2012 | D17: 2013 | E17: 2014 | F17: 2015 | G17: 2016 Rebasing Year
A18: Reporting Basis | B18: CGAAP | C18: CGAAP | D18: CGAAP | E18: CGAAP | F18: MIFRS | G18: MIFRS
B19: Forecast | C19: Actual | D19: Actual | E19: Actual | F19: Forecast | G19: Forecast
D20: $ | E20: $ | F20: $
A21: PP&E Values under former CGAAP
A22: Opening net PP&E - Note 1 | E22: =+D25 -> 0 | F22: =+E25 -> 0
A23: Net Additions - Note 4
A24: Net Depreciation (amounts should be negative) - Note 4
A25: Closing net PP&E (1) | D25: =D22+D23+D24 -> 0 | E25: =E22+E23+E24 -> 0 | F25: =F22+F23+F24 -> 0
A27: PP&E Values under revised CGAAP (Starts from 2012)
A28: Opening net PP&E - Note 1 | E28: =+D31 -> 0 | F28: =+E31 -> 0
A29: Net Additions - Note 4
A30: Net Depreciation (amounts should be negative) - Note 4
A31: Closing net PP&E (2) | D31: =SUM(D28:D30) -> 0 | E31: =SUM(E28:E30) -> 0 | F31: =SUM(F28:F30) -> 0
A33: Difference in Closing net PP&E, former CGAAP vs. revised CGAAP | D33: =D25-D31 -> 0 | E33: =E25-E31 -> 0 | F33: =F25-F31 -> 0
A36: Effect on Deferral and Variance Account Rate Riders
A37: Closing balance in Account 1576 | G37: =IF(ISERROR(F33), 0, F33) -> 0 | I37: WACC
A38: Return on Rate Base Associated with Account 1576 balance at WACC - Note 2 | G38: =F33*J37*J38 -> 0 | H38: # of years of rate rider disposition period
A39: Amount included in Deferral and Variance Account Rate Rider Calculation | G39: =G37+G38 -> 0
A41: Notes:
A42: 1 For an applicant that made the capitalization and depreciation expense accounting policy changes on January 1, 2013, the PP&E values as of January 1, 2013 under both former CGAAP and revised CGAAP should be the same.
A43: 2 Return on rate base associated with Account 1576 balance is calculated as:
A44: the variance account ending balance as of 2015 rebasing year x WACC X # of years of rate rider disposition period
A45: * Please note that the calculation should be adjusted once WACC is updated and finalized in the rate application.
A46: 3 Account 1576 is cleared by including the total balance in the deferral and variance account rate rider calculation.
A47: 4 Net additions are additions net of disposals; Net depreciation is additions to depreciation net of disposals.

Sheet App.2-FA Proposed REG Invest.
J1: File Number: | K1: =EBNUMBER -> EB-2016-0086
J2: Exhibit:
J3: Tab:
J4: Schedule:
J5: Page:
J7: Date: | K7: 2016-05-20
A9: Appendix 2-FA
A10: Renewable Generation Connection Investment Summary (past investments or over the future rate setting period)
A12: Enter the details of the Renewable Generation Connection projects as described in the appropriate section of the Filing Requirements.
A13: All costs entered on this page will be transferred to the appropriate cells in the appendices that follow.
A14: For Part A, Renewable Enabling Improvements (REI), these amounts will be transferred to Appendix 2 - FB
A15: For Part B, Expansions, these amounts will be transferred to Appendix 2 - FC
A17: If there are more than five projects proposed to be in-service in a certain year, please amend the tables below and ensure that the formulae for the Total Amounts in any given rate year are updated.
A18: Based on the current methodology and allocation, amounts allocated represent 6% for REI Connection Investments and 17% for Expansion Investments. (EB-2009-0349, 6-10-2010, p. 15, note 9)
A20: There are two scenarios described below. Separate sets of spreadsheets (2-FA, 2-FB, 2-FC) should be submited for each scenario as required.
A21: Scenario 1: Past Investments with No Recovery. The distributor has made investments in the past (during the IRM Years), but has not received approval for these projects and therefore did not receive
A22: revenue from the IESO under Regulation 330/09 and did not receive ratepayer revenue for the direct benefit portion of the investment.
A23: The WCA percentage, debt percentages, interest rates, kWh, tax rates, amortization period, CCA Class and percentage should correspond to the distributor's last Cost of Service approval.
A24: The Direct Benefit portion of the calculated Revenue Requirement for each year should be summed and can be applied for recovery from the distributor's ratepayers through a rate rider.
A25: The Provincial Recovery portion of the calculated Revenue Requirement for each year should be summed and can be applied for recovery from the IESO through a separate order.
A27: Scenario 2: Investments in the Test Year and Beyond. Distributor plans to make investments in 2016 and/or beyond. These investments should be added to 2-FA in the appropriate year.
A28: The WCA percentage, debt percentages, interest rates, kWh, tax rates, amortization period, CCA Class and percentage should correspond to the distributor's current application.
A30: Part A | G30: Test Year
A31: REI Investments (Direct Benefit at 6%) | C31: 2012 | D31: 2013 | E31: 2014 | F31: 2015 | G31: 2016 | H31: =G31+1 -> 2017 | I31: =H31+1 -> 2018 | J31: 2019 | K31: 2020
A32: Project 1
A33: Name: REI Connection Project
A34: Capital Costs | C34: 0 | D34: 0 | E34: 0 | F34: 0 | G34: 0 | H34: 0 | I34: 0 | J34: 0 | K34: 0
A35: OM&A (Start-Up) | C35: 0 | D35: 0 | E35: 0 | F35: 0 | G35: 0 | H35: 0 | I35: 0 | J35: 0 | K35: 0
A36: OM&A (Ongoing) | C36: 0 | D36: 0 | E36: 0 | F36: 0 | G36: 0 | H36: 0 | I36: 0 | J36: 0 | K36: 0
A38: Project 2
A39: Name: REI Connection Project
A40: Capital Costs | C40: 0 | D40: 0 | E40: 0 | F40: 0 | G40: 0 | H40: 0 | I40: 0 | J40: 0 | K40: 0
A41: OM&A (Start-Up) | C41: 0 | D41: 0 | E41: 0 | F41: 0 | G41: 0 | H41: 0 | I41: 0 | J41: 0 | K41: 0
A42: OM&A (Ongoing) | C42: 0 | D42: 0 | E42: 0 | F42: 0 | G42: 0 | H42: 0 | I42: 0 | J42: 0 | K42: 0
A44: Project 3
A45: Name: REI Connection Project
A46: Capital Costs | C46: 0 | D46: 0 | E46: 0 | F46: 0 | G46: 0 | H46: 0 | I46: 0 | J46: 0 | K46: 0
A47: OM&A (Start-Up) | C47: 0 | D47: 0 | E47: 0 | F47: 0 | G47: 0 | H47: 0 | I47: 0 | J47: 0 | K47: 0
A48: OM&A (Ongoing) | C48: 0 | D48: 0 | E48: 0 | F48: 0 | G48: 0 | H48: 0 | I48: 0 | J48: 0 | K48: 0
A50: Project 4
A51: Name: REI Connection Project
A52: Capital Costs | C52: 0 | D52: 0 | E52: 0 | F52: 0 | G52: 0 | H52: 0 | I52: 0 | J52: 0 | K52: 0
A53: OM&A (Start-Up) | C53: 0 | D53: 0 | E53: 0 | F53: 0 | G53: 0 | H53: 0 | I53: 0 | J53: 0 | K53: 0
A54: OM&A (Ongoing) | C54: 0 | D54: 0 | E54: 0 | F54: 0 | G54: 0 | H54: 0 | I54: 0 | J54: 0 | K54: 0
A56: Project 5
A57: Name: REI Connection Project
A58: Capital Costs | C58: 0 | D58: 0 | E58: 0 | F58: 0 | G58: 0 | H58: 0 | I58: 0 | J58: 0 | K58: 0
A59: OM&A (Start-Up) | C59: 0 | D59: 0 | E59: 0 | F59: 0 | G59: 0 | H59: 0 | I59: 0 | J59: 0 | K59: 0
A60: OM&A (Ongoing) | C60: 0 | D60: 0 | E60: 0 | F60: 0 | G60: 0 | H60: 0 | I60: 0 | J60: 0 | K60: 0
A62: Total Capital Costs | C62: =SUM(C58,C52,C46,C40,C34) -> 0 | D62: 0 | E62: 0 | F62: 0 | G62: =SUM(G58,G52,G46,G40,G34) -> 0 | H62: =SUM(H58,H52,H46,H40,H34) -> 0 | I62: 0 | J62: 0 | K62: 0
A63: Total OM&A (Start-Up) | C63: 0 | D63: 0 | E63: 0 | F63: 0 | G63: =SUM(G59,G53,G47,G41,G35) -> 0 | H63: 0 | I63: 0 | J63: 0 | K63: 0
A64: Total OM&A (Ongoing) | C64: 0 | D64: 0 | E64: 0 | F64: 0 | G64: =SUM(G60,G54,G48,G42,G36) -> 0 | H64: 0 | I64: 0 | J64: 0 | K64: 0
A67: Part B | G67: Test Year
A68: Expansion Investments (Direct Benefit at 17%) | C68: 2012 | D68: 2013 | E68: 2014 | F68: 2015 | G68: 2016 | H68: =G68+1 -> 2017 | I68: =H68+1 -> 2018 | J68: 2019 | K68: 2020
A69: Project 1
A70: Name: Expansion Connection Project
A71: Capital Costs | C71: 0 | D71: 0 | E71: 0 | F71: 0 | G71: 0 | H71: 0 | I71: 0 | J71: 0 | K71: 0
A72: OM&A (Start-Up) | C72: 0 | D72: 0 | E72: 0 | F72: 0 | G72: 0 | H72: 0 | I72: 0 | J72: 0 | K72: 0
A73: OM&A (Ongoing) | C73: 0 | D73: 0 | E73: 0 | F73: 0 | G73: 0 | H73: 0 | I73: 0 | J73: 0 | K73: 0
A75: Project 2
A76: Name: Expansion Connection Project
A77: Capital Costs | C77: 0 | D77: 0 | E77: 0 | F77: 0 | G77: 0 | H77: 0 | I77: 0 | J77: 0 | K77: 0
A78: OM&A (Start-Up) | C78: 0 | D78: 0 | E78: 0 | F78: 0 | G78: 0 | H78: 0 | I78: 0 | J78: 0 | K78: 0
A79: OM&A (Ongoing) | C79: 0 | D79: 0 | E79: 0 | F79: 0 | G79: 0 | H79: 0 | I79: 0 | J79: 0 | K79: 0
A81: Project 3
A82: Name: Expansion Connection Project
A83: Capital Costs | C83: 0 | D83: 0 | E83: 0 | F83: 0 | G83: 0 | H83: 0 | I83: 0 | J83: 0 | K83: 0
A84: OM&A (Start-Up) | C84: 0 | D84: 0 | E84: 0 | F84: 0 | G84: 0 | H84: 0 | I84: 0 | J84: 0 | K84: 0
A85: OM&A (Ongoing) | C85: 0 | D85: 0 | E85: 0 | F85: 0 | G85: 0 | H85: 0 | I85: 0 | J85: 0 | K85: 0
A87: Project 4
A88: Name: Expansion Connection Project
A89: Capital Costs | C89: 0 | D89: 0 | E89: 0 | F89: 0 | G89: 0 | H89: 0 | I89: 0 | J89: 0 | K89: 0
A90: OM&A (Start-Up) | C90: 0 | D90: 0 | E90: 0 | F90: 0 | G90: 0 | H90: 0 | I90: 0 | J90: 0 | K90: 0
A91: OM&A (Ongoing) | C91: 0 | D91: 0 | E91: 0 | F91: 0 | G91: 0 | H91: 0 | I91: 0 | J91: 0 | K91: 0
A93: Project 5
A94: Name: Expansion Connection Project
A95: Capital Costs | C95: 0 | D95: 0 | E95: 0 | F95: 0 | G95: 0 | H95: 0 | I95: 0 | J95: 0 | K95: 0
A96: OM&A (Start-Up) | C96: 0 | D96: 0 | E96: 0 | F96: 0 | G96: 0 | H96: 0 | I96: 0 | J96: 0 | K96: 0
A97: OM&A (Ongoing) | C97: 0 | D97: 0 | E97: 0 | F97: 0 | G97: 0 | H97: 0 | I97: 0 | J97: 0 | K97: 0
A99: Total Capital Costs | C99: =SUM(C95,C89,C83,C77,C71) -> 0 | D99: 0 | E99: 0 | F99: 0 | G99: =SUM(G95,G89,G83,G77,G71) -> 0 | H99: =SUM(H95,H89,H83,H77,H71) -> 0 | I99: 0 | J99: 0 | K99: 0
A100: Total OM&A (Start-Up) | C100: 0 | D100: 0 | E100: 0 | F100: 0 | G100: =SUM(G96,G90,G84,G78,G72) -> 0 | H100: 0 | I100: 0 | J100: 0 | K100: 0
A101: Total OM&A (Ongoing) | C101: 0 | D101: 0 | E101: 0 | F101: 0 | G101: =SUM(G97,G91,G85,G79,G73) -> 0 | H101: 0 | I101: 0 | J101: 0 | K101: 0

Sheet App.2-FB Calc of REG Improvemnt
N1: File Number: | O1: =EBNUMBER -> EB-2016-0086
N2: Exhibit:
N3: Tab:
N4: Schedule:
N5: Page:
N7: Date: | O7: 2016-05-20
A9: Appendix 2-FB
A10: Calculation of Renewable Generation Connection Direct Benefits/Provincial Amount: Renewable Enabling Improvement Investments
A12: This table will calculate the distributor/provincial shares of the investments entered in Part A of Appendix 2-FA.
A13: Enter values in green shaded cells: WCA percentage, debt percentages, interest rates, kWh, tax rates, amortization period, CCA Class and percentage.
A14: For historical investments, enter these variables for your last cost of service test year. For 2016 and beyond, enter variables as in the application.
A15: Rate Riders are not calculated for Test Year as these assets and costs are already in the distributor's rate base/revenue requirement.
C17: 2012 | F17: 2013 | I17: 2014 | L17: 2015 | O17: 2016 Test Year | R17: 2017 | U17: 2018 | V17: 2016 | X17: 2019 | AA17: 2020
D18: Direct Benefit | E18: Provincial | G18: Direct Benefit | H18: Provincial | J18: Direct Benefit | K18: Provincial | M18: Direct Benefit | N18: Provincial | P18: Direct Benefit | Q18: Provincial | S18: Direct Benefit | T18: Provincial | V18: Direct Benefit | W18: Provincial | Y18: Direct Benefit | Z18: Provincial | AB18: Direct Benefit | AC18: Provincial
C19: Total | D19: 0.06 | E19: 0.94 | F19: Total | G19: 0.06 | H19: 0.94 | I19: Total | J19: 0.06 | K19: 0.94 | L19: Total | M19: 0.06 | N19: 0.94 | O19: Total | P19: 0.06 | Q19: 0.94 | R19: Total | S19: 0.06 | T19: 0.94 | U19: Total | V19: 0.06 | W19: 0.94 | X19: Total | Y19: 0.06 | Z19: 0.94 | AA19: Total | AB19: 0.06 | AC19: 0.94
A20: Net Fixed Assets (average) | C20: =D82 -> 0 | D20: =C20*D19 -> 0 | E20: =C20*E19 -> 0 | F20: =E82 -> 0 | G20: =F20*G19 -> 0 | H20: =F20*H19 -> 0 | I20: =F82 -> 0 | J20: =I20*J19 -> 0 | K20: =I20*K19 -> 0 | L20: =G82 -> 0 | M20: =L20*M19 -> 0 | N20: =L20*N19 -> 0 | O20: =H82 -> 0 | P20: =O20*P19 -> 0 | Q20: =O20*Q19 -> 0 | R20: =I82 -> 0 | S20: =R20*S19 -> 0 | T20: =R20*T19 -> 0 | U20: =J82 -> 0 | V20: =U20*V19 -> 0 | W20: =U20*W19 -> 0 | X20: =K82 -> 0 | Y20: =X20*Y19 -> 0 | Z20: =X20*Z19 -> 0 | AA20: =L82 -> 0 | AB20: =AA20*AB19 -> 0 | AC20: =AA20*AC19 -> 0
A21: Incremental OM&A (on-going, N/A for Provincial Recovery) | C21: ='App.2-FA Proposed REG Invest.'!C64 -> 0 | D21: =C21 -> 0 | F21: ='App.2-FA Proposed REG Invest.'!D64 -> 0 | G21: =F21 -> 0 | I21: ='App.2-FA Proposed REG Invest.'!E64 -> 0 | J21: =I21 -> 0 | L21: ='App.2-FA Proposed REG Invest.'!F64 -> 0 | M21: =L21 -> 0 | O21: ='App.2-FA Proposed REG Invest.'!G64 -> 0 | P21: =O21 -> 0 | R21: ='App.2-FA Proposed REG Invest.'!H64 -> 0 | S21: =R21 -> 0 | U21: ='App.2-FA Proposed REG Invest.'!I64 -> 0 | V21: =U21 -> 0 | X21: ='App.2-FA Proposed REG Invest.'!J64 -> 0 | Y21: =X21 -> 0 | AA21: ='App.2-FA Proposed REG Invest.'!K64 -> 0 | AB21: =AA21 -> 0
A22: Incremental OM&A (start-up, applicable for Provincial Recovery) | C22: ='App.2-FA Proposed REG Invest.'!C63 -> 0 | D22: =C22*D19 -> 0 | E22: =C22*E19 -> 0 | F22: ='App.2-FA Proposed REG Invest.'!D63 -> 0 | G22: =F22*G19 -> 0 | H22: =F22*H19 -> 0 | I22: ='App.2-FA Proposed REG Invest.'!E63 -> 0 | J22: =I22*J19 -> 0 | K22: =I22*K19 -> 0 | L22: ='App.2-FA Proposed REG Invest.'!F63 -> 0 | M22: =L22*M19 -> 0 | N22: =L22*N19 -> 0 | O22: ='App.2-FA Proposed REG Invest.'!G63 -> 0 | P22: =O22*P19 -> 0 | Q22: =O22*Q19 -> 0 | R22: ='App.2-FA Proposed REG Invest.'!H63 -> 0 | S22: =R22*S19 -> 0 | T22: =R22*T19 -> 0 | U22: ='App.2-FA Proposed REG Invest.'!I63 -> 0 | V22: =U22*V19 -> 0 | W22: =U22*W19 -> 0 | X22: ='App.2-FA Proposed REG Invest.'!J63 -> 0 | Y22: =X22*Y19 -> 0 | Z22: =X22*Z19 -> 0 | AA22: ='App.2-FA Proposed REG Invest.'!K63 -> 0 | AB22: =AA22*AB19 -> 0 | AC22: =AA22*AC19 -> 0
A23: WCA | D23: =(D21+D22)*$B$23 -> 0 | E23: =E22*$B$23 -> 0 | G23: =(G21+G22)*$B$23 -> 0 | H23: =H22*$B$23 -> 0 | J23: =(J21+J22)*$B$23 -> 0 | K23: =K22*$B$23 -> 0 | M23: =(M21+M22)*$B$23 -> 0 | N23: =N22*$B$23 -> 0 | P23: =(P21+P22)*$B$23 -> 0 | Q23: =Q22*$B$23 -> 0 | S23: =(S21+S22)*$B$23 -> 0 | T23: =T22*$B$23 -> 0 | V23: =(V21+V22)*$B$23 -> 0 | W23: =W22*$B$23 -> 0 | Y23: =(Y21+Y22)*$B$23 -> 0 | Z23: =Z22*$B$23 -> 0 | AB23: =(AB21+AB22)*$B$23 -> 0 | AC23: =AC22*$B$23 -> 0
A24: Rate Base | D24: =SUM(D20+D23) -> 0 | E24: =SUM(E20+E23) -> 0 | G24: =SUM(G20+G23) -> 0 | H24: =SUM(H20+H23) -> 0 | J24: =SUM(J20+J23) -> 0 | K24: =SUM(K20+K23) -> 0 | M24: =SUM(M20+M23) -> 0 | N24: =SUM(N20+N23) -> 0 | P24: =SUM(P20+P23) -> 0 | Q24: =SUM(Q20+Q23) -> 0 | S24: =SUM(S20+S23) -> 0 | T24: =SUM(T20+T23) -> 0 | V24: =SUM(V20+V23) -> 0 | W24: =SUM(W20+W23) -> 0 | Y24: =SUM(Y20+Y23) -> 0 | Z24: =SUM(Z20+Z23) -> 0 | AB24: =SUM(AB20+AB23) -> 0 | AC24: =SUM(AC20+AC23) -> 0
A27: Deemed ST Debt | D27: =D24*$B$27 -> 0 | E27: =E24*$B$27 -> 0 | G27: =G24*$B$27 -> 0 | H27: =H24*$B$27 -> 0 | J27: =J24*$B$27 -> 0 | K27: =K24*$B$27 -> 0 | M27: =M24*$B$27 -> 0 | N27: =N24*$B$27 -> 0 | P27: =P24*$B$27 -> 0 | Q27: =Q24*$B$27 -> 0 | S27: =S24*$B$27 -> 0 | T27: =T24*$B$27 -> 0 | V27: =V24*$B$27 -> 0 | W27: =W24*$B$27 -> 0 | Y27: =Y24*$B$27 -> 0 | Z27: =Z24*$B$27 -> 0 | AB27: =AB24*$B$27 -> 0 | AC27: =AC24*$B$27 -> 0
A28: Deemed LT Debt | D28: =D24*$B$28 -> 0 | E28: =E24*$B$28 -> 0 | G28: =G24*$B$28 -> 0 | H28: =H24*$B$28 -> 0 | J28: =J24*$B$28 -> 0 | K28: =K24*$B$28 -> 0 | M28: =M24*$B$28 -> 0 | N28: =N24*$B$28 -> 0 | P28: =P24*$B$28 -> 0 | Q28: =Q24*$B$28 -> 0 | S28: =S24*$B$28 -> 0 | T28: =T24*$B$28 -> 0 | V28: =V24*$B$28 -> 0 | W28: =W24*$B$28 -> 0 | Y28: =Y24*$B$28 -> 0 | Z28: =Z24*$B$28 -> 0 | AB28: =AB24*$B$28 -> 0 | AC28: =AC24*$B$28 -> 0
A29: Deemed Equity | D29: =D24*$B$29 -> 0 | E29: =E24*$B$29 -> 0 | G29: =G24*$B$29 -> 0 | H29: =H24*$B$29 -> 0 | J29: =J24*$B$29 -> 0 | K29: =K24*$B$29 -> 0 | M29: =M24*$B$29 -> 0 | N29: =N24*$B$29 -> 0 | P29: =P24*$B$29 -> 0 | Q29: =Q24*$B$29 -> 0 | S29: =S24*$B$29 -> 0 | T29: =T24*$B$29 -> 0 | V29: =V24*$B$29 -> 0 | W29: =W24*$B$29 -> 0 | Y29: =Y24*$B$29 -> 0 | Z29: =Z24*$B$29 -> 0 | AB29: =AB24*$B$29 -> 0 | AC29: =AC24*$B$29 -> 0
A31: ST Interest | D31: =D27*$B31 -> 0 | E31: =E27*$B31 -> 0 | G31: =G27*$B31 -> 0 | H31: =H27*$B31 -> 0 | J31: =J27*$B31 -> 0 | K31: =K27*$B31 -> 0 | M31: =M27*$B31 -> 0 | N31: =N27*$B31 -> 0 | P31: =P27*$B31 -> 0 | Q31: =Q27*$B31 -> 0 | S31: =S27*$B31 -> 0 | T31: =T27*$B31 -> 0 | V31: =V27*$B31 -> 0 | W31: =W27*$B31 -> 0 | Y31: =Y27*$B31 -> 0 | Z31: =Z27*$B31 -> 0 | AB31: =AB27*$B31 -> 0 | AC31: =AC27*$B31 -> 0
A32: LT Interest | D32: =D28*$B32 -> 0 | E32: 0 | G32: =G28*$B32 -> 0 | H32: 0 | J32: =J28*$B32 -> 0 | K32: 0 | M32: =M28*$B32 -> 0 | N32: 0 | P32: =P28*$B32 -> 0 | Q32: 0 | S32: =S28*$B32 -> 0 | T32: 0 | V32: =V28*$B32 -> 0 | W32: 0 | Y32: =Y28*$B32 -> 0 | Z32: 0 | AB32: =AB28*$B32 -> 0 | AC32: 0
A33: ROE | D33: 0 | E33: 0 | G33: 0 | H33: 0 | J33: 0 | K33: 0 | M33: 0 | N33: 0 | P33: 0 | Q33: 0 | S33: 0 | T33: 0 | V33: 0 | W33: 0 | Y33: 0 | Z33: 0 | AB33: 0 | AC33: 0
A34: Cost of Capital Total | D34: =SUM(D31:D33) -> 0 | E34: =SUM(E31:E33) -> 0 | G34: =SUM(G31:G33) -> 0 | H34: =SUM(H31:H33) -> 0 | J34: =SUM(J31:J33) -> 0 | K34: =SUM(K31:K33) -> 0 | M34: =SUM(M31:M33) -> 0 | N34: =SUM(N31:N33) -> 0 | P34: =SUM(P31:P33) -> 0 | Q34: =SUM(Q31:Q33) -> 0 | S34: =SUM(S31:S33) -> 0 | T34: =SUM(T31:T33) -> 0 | V34: =SUM(V31:V33) -> 0 | W34: =SUM(W31:W33) -> 0 | Y34: =SUM(Y31:Y33) -> 0 | Z34: =SUM(Z31:Z33) -> 0 | AB34: =SUM(AB31:AB33) -> 0 | AC34: =SUM(AC31:AC33) -> 0
A36: OM&A | D36: =D21+D22 -> 0 | E36: =E22 -> 0 | G36: =G21+G22 -> 0 | H36: =H22 -> 0 | J36: =J21+J22 -> 0 | K36: =K22 -> 0 | M36: =M21+M22 -> 0 | N36: =N22 -> 0 | P36: =P21+P22 -> 0 | Q36: =Q22 -> 0 | S36: =S21+S22 -> 0 | T36: =T22 -> 0 | V36: =V21+V22 -> 0 | W36: =W22 -> 0 | Y36: =Y21+Y22 -> 0 | Z36: =Z22 -> 0 | AB36: =AB21+AB22 -> 0 | AC36: =AC22 -> 0
A37: Amortization | C37: =D77 -> 0 | D37: =C37*D$19 -> 0 | E37: =C37*E$19 -> 0 | F37: =E77 -> 0 | G37: =F37*G$19 -> 0 | H37: =F37*H$19 -> 0 | I37: =F77 -> 0 | J37: =I37*J$19 -> 0 | K37: =I37*K$19 -> 0 | L37: =G77 -> 0 | M37: =L37*M$19 -> 0 | N37: =L37*N$19 -> 0 | O37: =H77 -> 0 | P37: =O37*P$19 -> 0 | Q37: =O37*Q$19 -> 0 | R37: =I76+I77 -> 0 | S37: =R37*S$19 -> 0 | T37: =R37*T$19 -> 0 | U37: =J76+J77 -> 0 | V37: =U37*V$19 -> 0 | W37: =U37*W$19 -> 0 | X37: =K76+K77 -> 0 | Y37: =X37*Y$19 -> 0 | Z37: =X37*Z$19 -> 0 | AA37: =L76+L77 -> 0 | AB37: =AA37*AB$19 -> 0 | AC37: =AA37*AC$19 -> 0
A38: Grossed-up PILs | D38: =D65 -> 0 | E38: =E65 -> 0 | G38: =G65 -> 0 | H38: =H65 -> 0 | J38: =J65 -> 0 | K38: =K65 -> 0 | M38: =M65 -> 0 | N38: =N65 -> 0 | P38: =P65 -> 0 | Q38: =Q65 -> 0 | S38: =S65 -> 0 | T38: =T65 -> 0 | V38: =V65 -> 0 | W38: =W65 -> 0 | Y38: =Y65 -> 0 | Z38: =Z65 -> 0 | AB38: =AB65 -> 0 | AC38: =AC65 -> 0
A40: Revenue Requirement | D40: =SUM(D34:D38) -> 0 | E40: =SUM(E34:E38) -> 0 | G40: =SUM(G34:G38) -> 0 | H40: =SUM(H34:H38) -> 0 | J40: =SUM(J34:J38) -> 0 | K40: =SUM(K34:K38) -> 0 | M40: =SUM(M34:M38) -> 0 | N40: =SUM(N34:N38) -> 0 | P40: =SUM(P34:P38) -> 0 | Q40: =SUM(Q34:Q38) -> 0 | S40: =SUM(S34:S38) -> 0 | T40: =SUM(T34:T38) -> 0 | V40: =SUM(V34:V38) -> 0 | W40: =SUM(W34:W38) -> 0 | Y40: =SUM(Y34:Y38) -> 0 | Z40: =SUM(Z34:Z38) -> 0 | AB40: =SUM(AB34:AB38) -> 0 | AC40: =SUM(AC34:AC38) -> 0
A43: Provincial Rate Protection | E43: =E40 -> 0 | H43: =H40 -> 0 | K43: =K40 -> 0 | N43: =N40 -> 0 | Q43: =Q40 -> 0 | T43: =T40 -> 0 | W43: =W40 -> 0 | Z43: =Z40 -> 0 | AC43: =AC40 -> 0
A45: Monthly Amount Paid by IESO | E45: =E43/12 -> 0 | H45: =H43/12 -> 0 | K45: =K43/12 -> 0 | N45: =N43/12 -> 0 | Q45: =Q43/12 -> 0 | T45: =T43/12 -> 0 | W45: =W43/12 -> 0 | Z45: =Z43/12 -> 0 | AC45: =AC43/12 -> 0
A47: Note 1: The difference between the actual costs of approved eligible investments and revenue received from the IESO should be recorded in a variance account. The Board may provide
A48: regulatory accounting guidance regarding a variance account either in an individual proceeding or on a generic basis.
A49: Note 2: For the 2016 Test Year, Costs and Revenues of the Direct Benefit are to be included in the test year applicant Rate Base and Revenues.
A51: PILs Calculation
D52: 2012 | G52: 2013 | J52: 2014 | M52: 2015 | P52: 2016 | S52: =P52+1 -> 2017 | V52: =S52+1 -> 2018 | Y52: =V52+1 -> 2019 | AB52: =Y52+1 -> 2020
A53: Income Tax | D53: Direct Benefit | E53: Provincial | G53: Direct Benefit | H53: Provincial | J53: Direct Benefit | K53: Provincial | M53: Direct Benefit | N53: Provincial | P53: Direct Benefit | Q53: Provincial | S53: Direct Benefit | T53: Provincial | V53: Direct Benefit | W53: Provincial | Y53: Direct Benefit | Z53: Provincial | AB53: Direct Benefit | AC53: Provincial
X54: Total | AA54: Total
A55: Net Income - ROE on Rate Base | D55: =D33 -> 0 | E55: =E33 -> 0 | G55: =G33 -> 0 | H55: =H33 -> 0 | J55: =J33 -> 0 | K55: =K33 -> 0 | M55: =M33 -> 0 | N55: =N33 -> 0 | P55: =P33 -> 0 | Q55: =Q33 -> 0 | S55: =S33 -> 0 | T55: =T33 -> 0 | V55: =V33 -> 0 | W55: =W33 -> 0 | Y55: =Y33 -> 0 | Z55: =Z33 -> 0 | AB55: =AB33 -> 0 | AC55: =AC33 -> 0
A56: Amortization (6% DB and 94% P) | D56: =D37 -> 0 | E56: =E37 -> 0 | G56: =G37 -> 0 | H56: =H37 -> 0 | J56: =J37 -> 0 | K56: =K37 -> 0 | M56: =M37 -> 0 | N56: =N37 -> 0 | P56: =P37 -> 0 | Q56: =Q37 -> 0 | S56: =S37 -> 0 | T56: =T37 -> 0 | V56: =V37 -> 0 | W56: =W37 -> 0 | Y56: =Y37 -> 0 | Z56: =Z37 -> 0 | AB56: =AB37 -> 0 | AC56: =AC37 -> 0
A57: CCA (6% DB and 94% P) | D57: =-D94*D$19 -> 0 | E57: =-D94*E$19 -> 0 | G57: =-E94*G19 -> 0 | H57: =-E94*H$19 -> 0 | J57: =-F94*J$19 -> 0 | K57: =-F94*K$19 -> 0 | M57: =-G94*M$19 -> 0 | N57: =-G94*N$19 -> 0 | P57: =-H94*P$19 -> 0 | Q57: =-H94*Q$19 -> 0 | S57: =-I94*S$19 -> 0 | T57: =-I94*T$19 -> 0 | V57: =-J94*V$19 -> 0 | W57: =-J94*W$19 -> 0 | Y57: =-K94*Y$19 -> 0 | Z57: =-K94*Z$19 -> 0 | AB57: =-L94*AB$19 -> 0 | AC57: =-L94*AC$19 -> 0
A58: Taxable income | D58: =SUM(D55:D57) -> 0 | E58: =SUM(E55:E57) -> 0 | G58: =SUM(G55:G57) -> 0 | H58: =SUM(H55:H57) -> 0 | J58: =SUM(J55:J57) -> 0 | K58: =SUM(K55:K57) -> 0 | M58: =SUM(M55:M57) -> 0 | N58: =SUM(N55:N57) -> 0 | P58: =SUM(P55:P57) -> 0 | Q58: =SUM(Q55:Q57) -> 0 | S58: =SUM(S55:S57) -> 0 | T58: =SUM(T55:T57) -> 0 | V58: =SUM(V55:V57) -> 0 | W58: =SUM(W55:W57) -> 0 | Y58: =SUM(Y55:Y57) -> 0 | Z58: =SUM(Z55:Z57) -> 0 | AB58: =SUM(AB55:AB57) -> 0 | AC58: =SUM(AC55:AC57) -> 0
A60: Tax Rate (to be entered)
A62: Income Taxes Payable | D62: =D58*D60 -> 0 | E62: =E58*E60 -> 0 | G62: =G58*G60 -> 0 | H62: =H58*H60 -> 0 | J62: =J58*J60 -> 0 | K62: =K58*K60 -> 0 | M62: =M58*M60 -> 0 | N62: =N58*N60 -> 0 | P62: =P58*P60 -> 0 | Q62: =Q58*Q60 -> 0 | S62: =S58*S60 -> 0 | T62: =T58*T60 -> 0 | V62: =V58*V60 -> 0 | W62: =W58*W60 -> 0 | Y62: =Y58*Y60 -> 0 | Z62: =Z58*Z60 -> 0 | AB62: =AB58*AB60 -> 0 | AC62: =AC58*AC60 -> 0
A63: Gross Up
A64: Income Taxes Payable | D64: =D62/(1-D60) -> 0 | E64: =E62/(1-E60) -> 0 | G64: =G62/(1-G60) -> 0 | H64: =H62/(1-H60) -> 0 | J64: =J62/(1-J60) -> 0 | K64: =K62/(1-K60) -> 0 | M64: =M62/(1-M60) -> 0 | N64: =N62/(1-N60) -> 0 | P64: =P62/(1-P60) -> 0 | Q64: =Q62/(1-Q60) -> 0 | S64: =S62/(1-S60) -> 0 | T64: =T62/(1-T60) -> 0 | V64: =V62/(1-V60) -> 0 | W64: =W62/(1-W60) -> 0 | Y64: =Y62/(1-Y60) -> 0 | Z64: =Z62/(1-Z60) -> 0 | AB64: =AB62/(1-AB60) -> 0 | AC64: =AC62/(1-AC60) -> 0
A65: Grossed Up PILs | D65: =SUM(D64:D64) -> 0 | E65: =SUM(E64:E64) -> 0 | G65: =SUM(G64:G64) -> 0 | H65: =SUM(H64:H64) -> 0 | J65: =SUM(J64:J64) -> 0 | K65: =SUM(K64:K64) -> 0 | M65: =SUM(M64:M64) -> 0 | N65: =SUM(N64:N64) -> 0 | P65: =SUM(P64:P64) -> 0 | Q65: =SUM(Q64:Q64) -> 0 | S65: =SUM(S64:S64) -> 0 | T65: =SUM(T64:T64) -> 0 | V65: =SUM(V64:V64) -> 0 | W65: =SUM(W64:W64) -> 0 | Y65: =SUM(Y64:Y64) -> 0 | Z65: =SUM(Z64:Z64) -> 0 | AB65: =SUM(AB64:AB64) -> 0 | AC65: =SUM(AC64:AC64) -> 0
D68: 2012 | E68: 2013 | F68: 2014 | G68: 2015 | H68: 2016 | I68: =H68+1 -> 2017 | J68: =I68+1 -> 2018 | K68: 2019 | L68: 2020
A69: Net Fixed Assets
B70: Enter applicable amortization in years: | C70: 25
A71: Opening Gross Fixed Assets | E71: =D73 -> 0 | F71: 0 | G71: 0 | H71: 0 | I71: =H73 -> 0 | J71: =I73 -> 0 | K71: =J73 -> 0 | L71: =K73 -> 0
A72: Gross Capital Additions | D72: ='App.2-FA Proposed REG Invest.'!C62 -> 0 | E72: ='App.2-FA Proposed REG Invest.'!D62 -> 0 | F72: ='App.2-FA Proposed REG Invest.'!E62 -> 0 | G72: ='App.2-FA Proposed REG Invest.'!F62 -> 0 | H72: ='App.2-FA Proposed REG Invest.'!G62 -> 0 | I72: ='App.2-FA Proposed REG Invest.'!H62 -> 0 | J72: ='App.2-FA Proposed REG Invest.'!I62 -> 0 | K72: ='App.2-FA Proposed REG Invest.'!J62 -> 0 | L72: ='App.2-FA Proposed REG Invest.'!K62 -> 0
A73: Closing Gross Fixed Assets | D73: =SUM(D71:D72) -> 0 | E73: 0 | F73: 0 | G73: 0 | H73: =SUM(H71:H72) -> 0 | I73: =SUM(I71:I72) -> 0 | J73: 0 | K73: 0 | L73: 0
A75: Opening Accumulated Amortization | E75: =+D78 -> 0 | F75: =E78 -> 0 | G75: 0 | H75: 0 | I75: 0 | J75: 0 | K75: 0 | L75: 0
A76: Current Year Amortization (before additions) | D76: =IF(ISERROR(D71/$C$70), 0, D71/$C$70) -> 0 | E76: 0 | F76: 0 | G76: 0 | H76: 0 | I76: =IF(ISERROR(I71/$C$70), 0, I71/$C$70) -> 0 | J76: =IF(ISERROR(J71/$C$70), 0, J71/$C$70) -> 0 | K76: =IF(ISERROR(K71/$C$70), 0, K71/$C$70) -> 0 | L76: =IF(ISERROR(L71/$C$70), 0, L71/$C$70) -> 0
A77: Additions (half year) | D77: =D72/$C$70/2 -> 0 | E77: =E72/$C$70/2 -> 0 | F77: =F72/$C$70/2 -> 0 | G77: 0 | H77: =H72/$C$70/2 -> 0 | I77: =I72/C70/2 -> 0 | J77: =J72/C70/2 -> 0 | K77: =K72/C70/2 -> 0 | L77: =L72/C70/2 -> 0
A78: Closing Accumulated Amortization | D78: =SUM(D75+D76+D77) -> 0 | E78: =SUM(E75+E76+E77) -> 0 | F78: =SUM(F75+F76+F77) -> 0 | G78: =SUM(G75+G76+G77) -> 0 | H78: =SUM(H75+H76+H77) -> 0 | I78: =SUM(I75:I77) -> 0 | J78: =SUM(J75:J77) -> 0 | K78: =SUM(K75:K77) -> 0 | L78: =SUM(L75:L77) -> 0
A80: Opening Net Fixed Assets | D80: =D71-D75 -> 0 | E80: 0 | F80: =F71-F75 -> 0 | G80: 0 | H80: =H71-H75 -> 0 | I80: =H81 -> 0 | J80: =I81 -> 0 | K80: =J81 -> 0 | L80: =K81 -> 0
A81: Closing Net Fixed Assets | D81: =D73-D78 -> 0 | E81: =E73-E78 -> 0 | F81: 0 | G81: 0 | H81: =H73-H78 -> 0 | I81: =I73-I78 -> 0 | J81: =J73-J78 -> 0 | K81: =K73-K78 -> 0 | L81: =L73-L78 -> 0
A82: Average Net Fixed Assets | D82: =SUM(D80:D81)/2 -> 0 | E82: 0 | F82: 0 | G82: 0 | H82: =SUM(H80:H81)/2 -> 0 | I82: =SUM(I80:I81)/2 -> 0 | J82: =SUM(J80:J81)/2 -> 0 | K82: =SUM(K80:K81)/2 -> 0 | L82: =SUM(L80:L81)/2 -> 0
A84: UCC for PILs Calculation
D85: 2012 | E85: 2013 | F85: 2014 | G85: 2015 | H85: 2016 | I85: =H85+1 -> 2017 | J85: =I85+1 -> 2018 | K85: 2019 | L85: 2020
A87: Opening UCC | E87: =D95 -> 0 | F87: 0 | G87: 0 | H87: 0 | I87: 0 | J87: 0 | K87: 0 | L87: 0
A88: Capital Additions (from Appendix 2-FA) | D88: =D72 -> 0 | E88: 0 | F88: 0 | G88: 0 | H88: =H72 -> 0 | I88: =I72 -> 0 | J88: 0 | K88: 0 | L88: 0
A89: UCC Before Half Year Rule | D89: =SUM(D87:D88) -> 0 | E89: 0 | F89: 0 | G89: 0 | H89: =SUM(H87:H88) -> 0 | I89: =SUM(I87:I88) -> 0 | J89: =SUM(J87:J88) -> 0 | K89: =SUM(K87:K88) -> 0 | L89: =SUM(L87:L88) -> 0
A90: Half Year Rule (1/2 Additions - Disposals) | D90: =D88/2 -> 0 | E90: 0 | F90: 0 | G90: 0 | H90: =H88/2 -> 0 | I90: =I88/2 -> 0 | J90: =J88/2 -> 0 | K90: =K88/2 -> 0 | L90: =L88/2 -> 0
A91: Reduced UCC | D91: =D89-D90 -> 0 | E91: 0 | F91: 0 | G91: 0 | H91: =H89-H90 -> 0 | I91: =I89-I90 -> 0 | J91: =J89-J90 -> 0 | K91: =K89-K90 -> 0 | L91: =L89-L90 -> 0
A92: CCA Rate Class (to be entered) | C92: 47 | D92: =C92 -> 47 | E92: =D92 -> 47 | F92: 47 | G92: 47 | H92: 47 | I92: 47 | J92: 47 | K92: 47 | L92: 47
A93: CCA Rate (to be entered) | C93: 0.08 | D93: =C93 -> 0.08 | E93: 0.08 | F93: 0.08 | G93: 0.08 | H93: 0.08 | I93: 0.08 | J93: 0.08 | K93: 0.08 | L93: 0.08
A94: CCA | D94: =D91*D93 -> 0 | E94: 0 | F94: 0 | G94: 0 | H94: =H91*H93 -> 0 | I94: =I91*I93 -> 0 | J94: 0 | K94: 0 | L94: =L91*L93 -> 0
A95: Closing UCC | D95: =D89-D94 -> 0 | E95: 0 | F95: 0 | G95: 0 | H95: =H89-H94 -> 0 | I95: =I89-I94 -> 0 | J95: =J89-J94 -> 0 | K95: =K89-K94 -> 0 | L95: =L89-L94 -> 0

Sheet App.2-FC Calc of REG Expansion
N1: File Number: | O1: =EBNUMBER -> EB-2016-0086
N2: Exhibit:
N3: Tab:
N4: Schedule:
N5: Page:
N7: Date: | O7: 2016-05-20
A9: Appendix 2-FC
A10: Calculation of Renewable Generation Connection Direct Benefits/Provincial Amount: Renewable Expansion Investments
A12: This table will calculate the distributor/provincial shares of the investments entered in Part B of Appendix 2-FA.
A13: Enter values in green shaded cells: WCA percentage, debt percentages, interest rates, kWh, tax rates, amortization period, CCA Class and percentage.
A14: For historical investments, enter these variables for your last cost of service test year. For 2016 and beyond, enter variables as in the application.
A15: Rate Riders are not calculated for Test Year as these assets and costs are already in the distributor's rate base.
D18: 2012 | G18: 2013 | J18: 2014 | M18: 2015 | P18: 2016 TEST YEAR | S18: 2017 | T18: 2016 | V18: 2018 | Y18: 2019 | AB18: 2020
E19: Direct Benefit | F19: Provincial | H19: Direct Benefit | I19: Provincial | K19: Direct Benefit | L19: Provincial | N19: Direct Benefit | O19: Provincial | Q19: Direct Benefit | R19: Provincial | T19: Direct Benefit | U19: Provincial | W19: Direct Benefit | X19: Provincial | Z19: Direct Benefit | AA19: Provincial | AC19: Direct Benefit | AD19: Provincial
D20: Total | E20: 0.17 | F20: 0.83 | G20: Total | H20: 0.17 | I20: 0.83 | J20: Total | K20: 0.17 | L20: 0.83 | M20: Total | N20: 0.17 | O20: 0.83 | P20: Total | Q20: 0.17 | R20: 0.83 | S20: Total | T20: 0.17 | U20: 0.83 | V20: Total | W20: 0.17 | X20: 0.83 | Y20: Total | Z20: 0.17 | AA20: 0.83 | AB20: Total | AC20: 0.17 | AD20: 0.83
A21: Net Fixed Assets (average) | D21: =D82 -> 0 | E21: =D21*E20 -> 0 | F21: =D21*F20 -> 0 | G21: =E82 -> 0 | H21: =G21*H20 -> 0 | I21: =G21*I20 -> 0 | J21: =F82 -> 0 | K21: =J21*K20 -> 0 | L21: =J21*L20 -> 0 | M21: =G82 -> 0 | N21: =M21*N20 -> 0 | O21: =M21*O20 -> 0 | P21: =H82 -> 0 | Q21: =P21*Q20 -> 0 | R21: =P21*R20 -> 0 | S21: =I82 -> 0 | T21: =S21*T20 -> 0 | U21: =S21*U20 -> 0 | V21: =J82 -> 0 | W21: =V21*W20 -> 0 | X21: =V21*X20 -> 0 | Y21: =K82 -> 0 | Z21: =Y21*Z20 -> 0 | AA21: =Y21*AA20 -> 0 | AB21: =L82 -> 0 | AC21: =AB21*AC20 -> 0 | AD21: =AB21*AD20 -> 0
A22: Incremental OM&A (on-going, N/A for Provincial Recovery) | D22: ='App.2-FA Proposed REG Invest.'!C101 -> 0 | E22: =D22 -> 0 | G22: ='App.2-FA Proposed REG Invest.'!D$101 -> 0 | H22: =G22 -> 0 | J22: ='App.2-FA Proposed REG Invest.'!E$101 -> 0 | K22: =J22 -> 0 | M22: ='App.2-FA Proposed REG Invest.'!F$101 -> 0 | N22: =M22 -> 0 | P22: ='App.2-FA Proposed REG Invest.'!G$101 -> 0 | Q22: =P22 -> 0 | S22: ='App.2-FA Proposed REG Invest.'!H$101 -> 0 | T22: =S22 -> 0 | V22: ='App.2-FA Proposed REG Invest.'!I$101 -> 0 | W22: =V22 -> 0 | Y22: ='App.2-FA Proposed REG Invest.'!J$101 -> 0 | Z22: =Y22 -> 0 | AB22: ='App.2-FA Proposed REG Invest.'!K$101 -> 0 | AC22: =AB22 -> 0
A23: Incremental OM&A (start-up, applicable for Provincial Recovery) | D23: ='App.2-FA Proposed REG Invest.'!C100 -> 0 | E23: =D23*E20 -> 0 | F23: =D23*F20 -> 0 | G23: ='App.2-FA Proposed REG Invest.'!D$100 -> 0 | H23: =G23*H20 -> 0 | I23: =G23*I20 -> 0 | J23: ='App.2-FA Proposed REG Invest.'!E$100 -> 0 | K23: =J23*K20 -> 0 | L23: =J23*L20 -> 0 | M23: ='App.2-FA Proposed REG Invest.'!F$100 -> 0 | N23: =M23*N20 -> 0 | O23: =M23*O20 -> 0 | P23: ='App.2-FA Proposed REG Invest.'!G$100 -> 0 | Q23: =P23*Q20 -> 0 | R23: =P23*R20 -> 0 | S23: ='App.2-FA Proposed REG Invest.'!H$100 -> 0 | T23: =S23*T20 -> 0 | U23: =S23*U20 -> 0 | V23: ='App.2-FA Proposed REG Invest.'!I$100 -> 0 | W23: =V23*W20 -> 0 | X23: =V23*X20 -> 0 | Y23: ='App.2-FA Proposed REG Invest.'!J$100 -> 0 | Z23: =Y23*Z20 -> 0 | AA23: =Y23*AA20 -> 0 | AB23: ='App.2-FA Proposed REG Invest.'!K$100 -> 0 | AC23: =AB23*AC20 -> 0 | AD23: =AB23*AD20 -> 0
A24: WCA | E24: =(E22+E23)*$B$24 -> 0 | F24: =F23*$B$24 -> 0 | H24: =(H22+H23)*$B$24 -> 0 | I24: =I23*$B$24 -> 0 | K24: =(K22+K23)*$B$24 -> 0 | L24: =L23*$B$24 -> 0 | N24: =(N22+N23)*$B$24 -> 0 | O24: =O23*$B$24 -> 0 | Q24: =(Q22+Q23)*$B$24 -> 0 | R24: =R23*$B$24 -> 0 | T24: =(T22+T23)*$B$24 -> 0 | U24: =U23*$B$24 -> 0 | W24: =(W22+W23)*$B$24 -> 0 | X24: =X23*$B$24 -> 0 | Z24: =(Z22+Z23)*$B$24 -> 0 | AA24: =AA23*$B$24 -> 0 | AC24: =(AC22+AC23)*$B$24 -> 0 | AD24: =AD23*$B$24 -> 0
A25: Rate Base | E25: =SUM(E21+E24) -> 0 | F25: =SUM(F21+F24) -> 0 | H25: =SUM(H21+H24) -> 0 | I25: =SUM(I21+I24) -> 0 | K25: =SUM(K21+K24) -> 0 | L25: =SUM(L21+L24) -> 0 | N25: =SUM(N21+N24) -> 0 | O25: =SUM(O21+O24) -> 0 | Q25: =SUM(Q21+Q24) -> 0 | R25: =SUM(R21+R24) -> 0 | T25: =SUM(T21+T24) -> 0 | U25: =SUM(U21+U24) -> 0 | W25: =SUM(W21+W24) -> 0 | X25: =SUM(X21+X24) -> 0 | Z25: =SUM(Z21+Z24) -> 0 | AA25: =SUM(AA21+AA24) -> 0 | AC25: =SUM(AC21+AC24) -> 0 | AD25: =SUM(AD21+AD24) -> 0
A28: Deemed ST Debt | E28: =E25*$B$28 -> 0 | F28: =F25*$B$28 -> 0 | H28: =H25*$B$28 -> 0 | I28: =I25*$B$28 -> 0 | K28: =K25*$B$28 -> 0 | L28: =L25*$B$28 -> 0 | N28: =N25*$B$28 -> 0 | O28: =O25*$B$28 -> 0 | Q28: =Q25*$B$28 -> 0 | R28: =R25*$B$28 -> 0 | T28: =T25*$B$28 -> 0 | U28: =U25*$B$28 -> 0 | W28: =W25*$B$28 -> 0 | X28: =X25*$B$28 -> 0 | Z28: =Z25*$B$28 -> 0 | AA28: =AA25*$B$28 -> 0 | AC28: =AC25*$B$28 -> 0 | AD28: =AD25*$B$28 -> 0
A29: Deemed LT Debt | E29: =E25*$B$29 -> 0 | F29: =F25*$B$29 -> 0 | H29: =H25*$B$29 -> 0 | I29: =I25*$B$29 -> 0 | K29: =K25*$B$29 -> 0 | L29: =L25*$B$29 -> 0 | N29: =N25*$B$29 -> 0 | O29: =O25*$B$29 -> 0 | Q29: =Q25*$B$29 -> 0 | R29: =R25*$B$29 -> 0 | T29: =T25*$B$29 -> 0 | U29: =U25*$B$29 -> 0 | W29: =W25*$B$29 -> 0 | X29: =X25*$B$29 -> 0 | Z29: =Z25*$B$29 -> 0 | AA29: =AA25*$B$29 -> 0 | AC29: =AC25*$B$29 -> 0 | AD29: =AD25*$B$29 -> 0
A30: Deemed Equity | E30: =E25*$B$30 -> 0 | F30: =F25*$B$30 -> 0 | H30: =H25*$B$30 -> 0 | I30: =I25*$B$30 -> 0 | K30: =K25*$B$30 -> 0 | L30: =L25*$B$30 -> 0 | N30: =N25*$B$30 -> 0 | O30: =O25*$B$30 -> 0 | Q30: =Q25*$B$30 -> 0 | R30: =R25*$B$30 -> 0 | T30: =T25*$B$30 -> 0 | U30: =U25*$B$30 -> 0 | W30: =W25*$B$30 -> 0 | X30: =X25*$B$30 -> 0 | Z30: =Z25*$B$30 -> 0 | AA30: =AA25*$B$30 -> 0 | AC30: =AC25*$B$30 -> 0 | AD30: =AD25*$B$30 -> 0
A32: ST Interest | E32: =E28*$B$32 -> 0 | F32: =F28*$B$32 -> 0 | H32: =H28*$B$32 -> 0 | I32: =I28*$B$32 -> 0 | K32: =K28*$B$32 -> 0 | L32: =L28*$B$32 -> 0 | N32: =N28*$B$32 -> 0 | O32: =O28*$B$32 -> 0 | Q32: =Q28*$B$32 -> 0 | R32: =R28*$B$32 -> 0 | T32: =T28*$B$32 -> 0 | U32: =U28*$B$32 -> 0 | W32: =W28*$B$32 -> 0 | X32: =X28*$B$32 -> 0 | Z32: =Z28*$B$32 -> 0 | AA32: =AA28*$B$32 -> 0 | AC32: =AC28*$B$32 -> 0 | AD32: =AD28*$B$32 -> 0
A33: LT Interest | E33: =E29*$B$33 -> 0 | F33: =F29*$B$33 -> 0 | H33: =H29*$B$33 -> 0 | I33: =I29*$B$33 -> 0 | K33: =K29*$B$33 -> 0 | L33: =L29*$B$33 -> 0 | N33: =N29*$B$33 -> 0 | O33: =O29*$B$33 -> 0 | Q33: =Q29*$B$33 -> 0 | R33: =R29*$B$33 -> 0 | T33: =T29*$B$33 -> 0 | U33: =U29*$B$33 -> 0 | W33: =W29*$B$33 -> 0 | X33: =X29*$B$33 -> 0 | Z33: =Z29*$B$33 -> 0 | AA33: =AA29*$B$33 -> 0 | AC33: =AC29*$B$33 -> 0 | AD33: =AD29*$B$33 -> 0
A34: ROE | E34: =E30*$B$34 -> 0 | F34: =F30*$B$34 -> 0 | H34: =H30*$B$34 -> 0 | I34: =I30*$B$34 -> 0 | K34: =K30*$B$34 -> 0 | L34: =L30*$B$34 -> 0 | N34: =N30*$B$34 -> 0 | O34: =O30*$B$34 -> 0 | Q34: =Q30*$B$34 -> 0 | R34: =R30*$B$34 -> 0 | T34: =T30*$B$34 -> 0 | U34: =U30*$B$34 -> 0 | W34: =W30*$B$34 -> 0 | X34: =X30*$B$34 -> 0 | Z34: =Z30*$B$34 -> 0 | AA34: =AA30*$B$34 -> 0 | AC34: =AC30*$B$34 -> 0 | AD34: =AD30*$B$34 -> 0
A35: Cost of Capital Total | E35: =SUM(E32:E34) -> 0 | F35: =SUM(F32:F34) -> 0 | H35: =SUM(H32:H34) -> 0 | I35: =SUM(I32:I34) -> 0 | K35: =SUM(K32:K34) -> 0 | L35: =SUM(L32:L34) -> 0 | N35: =SUM(N32:N34) -> 0 | O35: =SUM(O32:O34) -> 0 | Q35: =SUM(Q32:Q34) -> 0 | R35: =SUM(R32:R34) -> 0 | T35: =SUM(T32:T34) -> 0 | U35: =SUM(U32:U34) -> 0 | W35: =SUM(W32:W34) -> 0 | X35: =SUM(X32:X34) -> 0 | Z35: =SUM(Z32:Z34) -> 0 | AA35: =SUM(AA32:AA34) -> 0 | AC35: =SUM(AC32:AC34) -> 0 | AD35: =SUM(AD32:AD34) -> 0
A37: OM&A | E37: =E22+E23 -> 0 | F37: =F23 -> 0 | H37: =H22+H23 -> 0 | I37: =I23 -> 0 | K37: =K22+K23 -> 0 | L37: =L23 -> 0 | N37: =N22+N23 -> 0 | O37: =O23 -> 0 | Q37: =Q22+Q23 -> 0 | R37: =R23 -> 0 | T37: =T22+T23 -> 0 | U37: =U23 -> 0 | W37: =W22+W23 -> 0 | X37: =X23 -> 0 | Z37: =Z22+Z23 -> 0 | AA37: =AA23 -> 0 | AC37: =AC22+AC23 -> 0 | AD37: =AD23 -> 0
A38: Amortization | D38: =D78 -> 0 | E38: =D38*E$20 -> 0 | F38: =D38*F$20 -> 0 | G38: =E78 -> 0 | H38: =G38*H$20 -> 0 | I38: =G38*I$20 -> 0 | J38: =F78 -> 0 | K38: =J38*K$20 -> 0 | L38: =J38*L$20 -> 0 | M38: =G78 -> 0 | N38: =M38*N$20 -> 0 | O38: =M38*O$20 -> 0 | P38: =H76+H77 -> 0 | Q38: =P38*Q$20 -> 0 | R38: =P38*R$20 -> 0 | S38: =I76+I77 -> 0 | T38: =S38*T$20 -> 0 | U38: =S38*U$20 -> 0 | V38: =J76+J77 -> 0 | W38: =V38*W$20 -> 0 | X38: =V38*X$20 -> 0 | Y38: =K76+K77 -> 0 | Z38: =Y38*Z$20 -> 0 | AA38: =Y38*AA$20 -> 0 | AB38: =L76+L77 -> 0 | AC38: =AB38*AC$20 -> 0 | AD38: =AB38*AD$20 -> 0
A39: Grossed-up PILs | E39: =E66 -> 0 | F39: =F66 -> 0 | H39: =H66 -> 0 | I39: =I66 -> 0 | K39: =K66 -> 0 | L39: =L66 -> 0 | N39: =N66 -> 0 | O39: =O66 -> 0 | Q39: =Q66 -> 0 | R39: =R66 -> 0 | T39: =T66 -> 0 | U39: =U66 -> 0 | W39: =W66 -> 0 | X39: =X66 -> 0 | Z39: =Z66 -> 0 | AA39: =AA66 -> 0 | AC39: =AC66 -> 0 | AD39: =AD66 -> 0
A41: Revenue Requirement | E41: =SUM(E35:E39) -> 0 | F41: =SUM(F35:F39) -> 0 | H41: =SUM(H35:H39) -> 0 | I41: =SUM(I35:I39) -> 0 | K41: =SUM(K35:K39) -> 0 | L41: =SUM(L35:L39) -> 0 | N41: =SUM(N35:N39) -> 0 | O41: =SUM(O35:O39) -> 0 | Q41: =SUM(Q35:Q39) -> 0 | R41: =SUM(R35:R39) -> 0 | T41: =SUM(T35:T39) -> 0 | U41: =SUM(U35:U39) -> 0 | W41: =SUM(W35:W39) -> 0 | X41: =SUM(X35:X39) -> 0 | Z41: =SUM(Z35:Z39) -> 0 | AA41: =SUM(AA35:AA39) -> 0 | AC41: =SUM(AC35:AC39) -> 0 | AD41: =SUM(AD35:AD39) -> 0
A44: Provincial Rate Protection | F44: =F41 -> 0 | I44: =I41 -> 0 | L44: =L41 -> 0 | O44: =O41 -> 0 | R44: =R41 -> 0 | U44: =U41 -> 0 | X44: =X41 -> 0 | AA44: =AA41 -> 0 | AD44: =AD41 -> 0
A46: Monthly Amount Paid by IESO | F46: =F44/12 -> 0 | I46: =I44/12 -> 0 | L46: =L44/12 -> 0 | O46: =O44/12 -> 0 | R46: =R44/12 -> 0 | U46: =U44/12 -> 0 | X46: =X44/12 -> 0 | AA46: =AA44/12 -> 0 | AD46: =AD44/12 -> 0
A48: Note 1: The difference between the actual costs of approved eligible investments and revenue received from the IESO should be recorded in a variance account. The Board may provide
A49: regulatory accounting guidance regarding a variance account either in an individual proceeding or on a generic basis.
A50: Note 2: For the 2016 Test Year, Costs and Revenues of the Direct Benefit are to be included in the test year applicant Rate Base and Revenues.
A52: PILs Calculation
E53: 2012 | H53: 2013 | K53: 2014 | N53: 2015 | Q53: 2016 TEST YEAR | T53: 2017 | W53: 2018 | Z53: 2019 | AC53: 2020
A54: Income Tax | E54: Direct Benefit | F54: Provincial | H54: Direct Benefit | I54: Provincial | K54: Direct Benefit | L54: Provincial | N54: Direct Benefit | O54: Provincial | Q54: Direct Benefit | R54: Provincial | T54: Direct Benefit | U54: Provincial | W54: Direct Benefit | X54: Provincial | Z54: Direct Benefit | AA54: Provincial | AC54: Direct Benefit | AD54: Provincial
V55: Total | Y55: Total | AB55: Total
A56: Net Income - ROE on Rate Base | E56: =E34 -> 0 | F56: =F34 -> 0 | H56: =H34 -> 0 | I56: =I34 -> 0 | K56: =K34 -> 0 | L56: =L34 -> 0 | N56: =N34 -> 0 | O56: =O34 -> 0 | Q56: =Q34 -> 0 | R56: =R34 -> 0 | T56: =T34 -> 0 | U56: =U34 -> 0 | W56: =W34 -> 0 | X56: =X34 -> 0 | Z56: =Z34 -> 0 | AA56: =AA34 -> 0 | AC56: =AC34 -> 0 | AD56: =AD34 -> 0
A57: Amortization (17% DB and 83% P) | E57: =E38 -> 0 | F57: =F38 -> 0 | H57: =H38 -> 0 | I57: =I38 -> 0 | K57: =K38 -> 0 | L57: =L38 -> 0 | N57: =N38 -> 0 | O57: =O38 -> 0 | Q57: =Q38 -> 0 | R57: =R38 -> 0 | T57: =T38 -> 0 | U57: =U38 -> 0 | W57: =W38 -> 0 | X57: =X38 -> 0 | Z57: =Z38 -> 0 | AA57: =AA38 -> 0 | AC57: =AC38 -> 0 | AD57: =AD38 -> 0
A58: CCA (17% DB and 83% P) | E58: =-D94*E$20 -> 0 | F58: =-D94*F$20 -> 0 | H58: =-E94*H$20 -> 0 | I58: =-E94*I$20 -> 0 | K58: =-F94*K$20 -> 0 | L58: =-F94*L$20 -> 0 | N58: =-G94*N$20 -> 0 | O58: =-G94*O$20 -> 0 | Q58: =-H94*Q$20 -> 0 | R58: =-H94*R$20 -> 0 | T58: =-I94*T$20 -> 0 | U58: =-I94*U$20 -> 0 | W58: =-J94*W$20 -> 0 | X58: =-J94*X$20 -> 0 | Z58: =-K94*Z$20 -> 0 | AA58: =-K94*AA$20 -> 0 | AC58: =-L94*AC$20 -> 0 | AD58: =-L94*AD$20 -> 0
A59: Taxable income | E59: =SUM(E56:E58) -> 0 | F59: =SUM(F56:F58) -> 0 | H59: =SUM(H56:H58) -> 0 | I59: =SUM(I56:I58) -> 0 | K59: =SUM(K56:K58) -> 0 | L59: =SUM(L56:L58) -> 0 | N59: =SUM(N56:N58) -> 0 | O59: =SUM(O56:O58) -> 0 | Q59: =SUM(Q56:Q58) -> 0 | R59: =SUM(R56:R58) -> 0 | T59: =SUM(T56:T58) -> 0 | U59: =SUM(U56:U58) -> 0 | W59: =SUM(W56:W58) -> 0 | X59: =SUM(X56:X58) -> 0 | Z59: =SUM(Z56:Z58) -> 0 | AA59: =SUM(AA56:AA58) -> 0 | AC59: =SUM(AC56:AC58) -> 0 | AD59: =SUM(AD56:AD58) -> 0
A61: Tax Rate (to be entered)
A63: Income Taxes Payable | E63: =E59*E61 -> 0 | F63: =F59*F61 -> 0 | H63: =H59*H61 -> 0 | I63: =I59*I61 -> 0 | K63: =K59*K61 -> 0 | L63: =L59*L61 -> 0 | N63: =N59*N61 -> 0 | O63: =O59*O61 -> 0 | Q63: =Q59*Q61 -> 0 | R63: =R59*R61 -> 0 | T63: =T59*T61 -> 0 | U63: =U59*U61 -> 0 | W63: =W59*W61 -> 0 | X63: =X59*X61 -> 0 | Z63: =Z59*Z61 -> 0 | AA63: =AA59*AA61 -> 0 | AC63: =AC59*AC61 -> 0 | AD63: =AD59*AD61 -> 0
A64: Gross Up
A65: Income Taxes Payable | E65: =E63/(1-E61) -> 0 | F65: =F63/(1-F61) -> 0 | H65: =H63/(1-H61) -> 0 | I65: =I63/(1-I61) -> 0 | K65: =K63/(1-K61) -> 0 | L65: =L63/(1-L61) -> 0 | N65: =N63/(1-N61) -> 0 | O65: =O63/(1-O61) -> 0 | Q65: =Q63/(1-Q61) -> 0 | R65: =R63/(1-R61) -> 0 | T65: =T63/(1-T61) -> 0 | U65: =U63/(1-U61) -> 0 | W65: =W63/(1-W61) -> 0 | X65: =X63/(1-X61) -> 0 | Z65: =Z63/(1-Z61) -> 0 | AA65: =AA63/(1-AA61) -> 0 | AC65: =AC63/(1-AC61) -> 0 | AD65: =AD63/(1-AD61) -> 0
A66: Grossed Up PILs | E66: =SUM(E65:E65) -> 0 | F66: =SUM(F65:F65) -> 0 | H66: =SUM(H65:H65) -> 0 | I66: =SUM(I65:I65) -> 0 | K66: =SUM(K65:K65) -> 0 | L66: =SUM(L65:L65) -> 0 | N66: =SUM(N65:N65) -> 0 | O66: =SUM(O65:O65) -> 0 | Q66: =SUM(Q65:Q65) -> 0 | R66: =SUM(R65:R65) -> 0 | T66: =SUM(T65:T65) -> 0 | U66: =SUM(U65:U65) -> 0 | W66: =SUM(W65:W65) -> 0 | X66: =SUM(X65:X65) -> 0 | Z66: =SUM(Z65:Z65) -> 0 | AA66: =SUM(AA65:AA65) -> 0 | AC66: =SUM(AC65:AC65) -> 0 | AD66: =SUM(AD65:AD65) -> 0
A69: Net Fixed Assets | D69: 2011 | E69: 2012 | F69: 2013 | G69: 2014 | H69: 2015 | I69: 2016 | J69: 2017 | K69: 2018 | L69: 2019
B70: Enter applicable amortization in years: | C70: 25
A71: Opening Gross Fixed Assets | E71: =D73 -> 0 | F71: 0 | G71: 0 | H71: 0 | I71: 0 | J71: 0 | K71: 0 | L71: 0
A72: Gross Capital Additions | D72: ='App.2-FA Proposed REG Invest.'!C99 -> 0 | E72: ='App.2-FA Proposed REG Invest.'!D99 -> 0 | F72: ='App.2-FA Proposed REG Invest.'!E99 -> 0 | G72: ='App.2-FA Proposed REG Invest.'!F99 -> 0 | H72: ='App.2-FA Proposed REG Invest.'!G99 -> 0 | I72: ='App.2-FA Proposed REG Invest.'!H99 -> 0 | J72: ='App.2-FA Proposed REG Invest.'!I99 -> 0 | K72: ='App.2-FA Proposed REG Invest.'!J99 -> 0 | L72: ='App.2-FA Proposed REG Invest.'!K99 -> 0
A73: Closing Gross Fixed Assets | D73: =SUM(D71:D72) -> 0 | E73: 0 | F73: 0 | G73: 0 | H73: 0 | I73: 0 | J73: 0 | K73: 0 | L73: 0
A75: Opening Accumulated Amortization | E75: =+D78 -> 0 | F75: =E78 -> 0 | G75: 0 | H75: =G78 -> 0 | I75: =H78 -> 0 | J75: =I78 -> 0 | K75: =J78 -> 0 | L75: =K78 -> 0
A76: Current Year Amortization (before additions) | E76: =IF(ISERROR(E71/$C$70), 0, E71/$C$70) -> 0 | F76: 0 | G76: 0 | H76: =H71/$C$70 -> 0 | I76: =I71/$C$70 -> 0 | J76: =J71/$C$70 -> 0 | K76: =K71/$C$70 -> 0 | L76: =L71/$C$70 -> 0
A77: Additions (half year) | D77: =D72/C70/2 -> 0 | E77: =E72/C70/2 -> 0 | F77: =F72/C70/2 -> 0 | G77: =G72/C70/2 -> 0 | H77: =H72/C70/2 -> 0 | I77: =I72/C70/2 -> 0 | J77: =J72/C70/2 -> 0 | K77: =K72/C70/2 -> 0 | L77: =L72/C70/2 -> 0
A78: Closing Accumulated Amortization | D78: =SUM(D75+D77) -> 0 | E78: =SUM(E75:E77) -> 0 | F78: 0 | G78: 0 | H78: 0 | I78: 0 | J78: 0 | K78: 0 | L78: 0
A80: Opening Net Fixed Assets | D80: =D71-D75 -> 0 | E80: =E71-E75 -> 0 | F80: =F71-F75 -> 0 | G80: =G71-G75 -> 0 | H80: =G81 -> 0 | I80: =H81 -> 0 | J80: =I81 -> 0 | K80: =J81 -> 0 | L80: =K81 -> 0
A81: Closing Net Fixed Assets | D81: =D73-D78 -> 0 | E81: 0 | F81: 0 | G81: 0 | H81: 0 | I81: 0 | J81: 0 | K81: 0 | L81: 0
A82: Average Net Fixed Assets | D82: =SUM(D80:D81)/2 -> 0 | E82: 0 | F82: 0 | G82: 0 | H82: 0 | I82: 0 | J82: 0 | K82: 0 | L82: 0
A84: UCC for PILs Calculation
D85: 2014 | E85: 2014 | F85: 2014 | G85: 2014 | H85: 2015 | I85: 2016 | J85: 2017 | K85: 2018 | L85: 2019
A87: Opening UCC | E87: =D95 -> 0 | F87: 0 | G87: 0 | H87: 0 | I87: 0 | J87: 0 | K87: 0 | L87: 0
A88: Capital Additions (from Appendix 2-FA) | D88: =D72 -> 0 | E88: 0 | F88: 0 | G88: 0 | H88: 0 | I88: 0 | J88: 0 | K88: 0 | L88: 0
A89: UCC Before Half Year Rule | D89: =SUM(D87:D88) -> 0 | E89: 0 | F89: 0 | G89: 0 | H89: 0 | I89: 0 | J89: 0 | K89: 0 | L89: 0
A90: Half Year Rule (1/2 Additions - Disposals) | D90: =D88/2 -> 0 | E90: 0 | F90: 0 | G90: 0 | H90: 0 | I90: 0 | J90: 0 | K90: 0 | L90: 0
A91: Reduced UCC | D91: =D89-D90 -> 0 | E91: 0 | F91: 0 | G91: 0 | H91: 0 | I91: 0 | J91: 0 | K91: 0 | L91: 0
A92: CCA Rate Class (to be entered) | C92: 47 | D92: =$C$92 -> 47 | E92: =$C$92 -> 47 | F92: 47 | G92: 47 | H92: 47 | I92: 47 | J92: 47 | K92: 47 | L92: 47
A93: CCA Rate (to be entered) | C93: 0.08 | D93: =$C$93 -> 0.08 | E93: =$C$93 -> 0.08 | F93: 0.08 | G93: 0.08 | H93: 0.08 | I93: 0.08 | J93: 0.08 | K93: 0.08 | L93: 0.08
A94: CCA | D94: =D91*D$93 -> 0 | E94: =E91*E$93 -> 0 | F94: =F91*F$93 -> 0 | G94: =G91*G$93 -> 0 | H94: =H91*H$93 -> 0 | I94: 0 | J94: 0 | K94: 0 | L94: 0
A95: Closing UCC | D95: =D89-D94 -> 0 | E95: 0 | F95: 0 | G95: 0 | H95: 0 | I95: 0 | J95: 0 | K95: 0 | L95: 0

Sheet App.2-G SQI
I1: File Number: | K1: =EBNUMBER -> EB-2016-0086
I2: Exhibit:
I3: Tab:
I4: Schedule:
I5: Page:
I7: Date: | K7: 2016-05-20
A9: Appendix 2-G
A10: Service Reliability Indicators
A11: 2012- 2015
A13: Index | B13: Including outages caused by loss of supply | G13: Excluding outages caused by loss of supply
B14: 2012 | C14: 2013 | D14: 2014 | E14: 2015 | F14: 2016 | G14: 2012 | H14: 2013 | I14: 2014 | J14: 2015 | K14: 2016
A15: SAIDI | B15: 0.98 | C15: 2.14 | D15: 4.7 | E15: 1.74 | G15: 3.11 | H15: 2.16 | I15: 5.02 | J15: 1.51
A16: SAIFI | B16: 1.11 | C16: 1.1 | D16: 3.14 | E16: 0.99 | G16: 1.69 | H16: 1.1 | I16: 3.93 | J16: 1.08
A18: 5 Year Historical Average
A19: SAIDI | F19: =IF(ISERROR(AVERAGE(B15:F15)), "", AVERAGE(B15:F15)) -> 2.39 | K19: =IF(ISERROR(AVERAGE(G15:K15)), "", AVERAGE(G15:K15)) -> 2.95
A20: SAIFI | F20: =IF(ISERROR(AVERAGE(B16:F16)), "", AVERAGE(B16:F16)) -> 1.585 | K20: =IF(ISERROR(AVERAGE(G16:K16)), "", AVERAGE(G16:K16)) -> 1.95
A22: SAIDI = System Average Interruption Duration Index
A23: SAIFI = System Average Interruption Frequency Index
A26: Indicator | C26: OEB Minimum Standard | D26: 2012 | E26: 2013 | F26: 2014 | G26: 2015 | H26: 2016
A27: Low Voltage Connections | C27: 0.9 | D27: 0.95 | E27: 0.97 | F27: 0.9643 | G27: 0.9787 | H27: 0.986
A28: High Voltage Connections | C28: 0.9 | D28: n/a | E28: n/a | F28: n/a | G28: n/a | H28: n/a
A29: Telephone Accessibility | C29: 0.65 | D29: 0.73 | E29: 0.68 | F29: 0.7057 | G29: 0.8037 | H29: 0.73
A30: Appointments Met | C30: 0.9 | D30: 0.64 | E30: 0.88 | F30: 0.9437 | G30: 0.9175 | H30: 0.9
A31: Written Response to Enquires | C31: 0.8 | D31: 1 | E31: 1 | F31: 0.984 | G31: 0.9753 | H31: 0.98
A32: Emergency Urban Response | C32: 0.8 | D32: n/a | E32: n/a | F32: n/a | G32: n/a | H32: n/a
A33: Emergency Rural Response | C33: 0.8 | D33: 1 | E33: 1 | F33: 1 | G33: 1 | H33: 1
A34: Telephone Call Abandon Rate | C34: 0.1 | D34: 0.067 | E34: 0.091 | F34: 0.0751 | G34: 0.0953 | H34: 0.082
A35: Appointment Scheduling | C35: 0.9 | D35: 0.98 | E35: 0.97 | F35: 0.9772 | G35: 0.9766 | H35: 0.976
A36: Rescheduling a Missed Appointment | C36: 1 | D36: n/a | E36: n/a | F36: n/a | G36: n/a | H36: 1
A37: Reconnection Performance Standard | C37: 0.85 | D37: 0.97 | E37: 0.99 | F37: 0.9887 | G37: 0.997 | H37: 0.986

Sheet App.2-H_Other_Oper_Rev
G1: File Number: | H1: =EBNUMBER -> EB-2016-0086
G2: Exhibit:
G3: Tab:
G4: Schedule:
G5: Page:
G7: Date: | H7: 2016-06-03
A9: Appendix 2-H
A10: Other Operating Revenue
A12: USoA # | B12: USoA Description | C12: 2013 Actual | D12: 2014 Actual | E12: 2015 Actual | F12: ="Bridge Year" & CHAR(178) -> Bridge Year² | G12: Test Year | H12: Test Year | I12: Test Year | J12: Test Year | K12: Test Year
C13: 2013 | D13: =E13-2 -> 2013 | E13: 2015 | F13: 2016 | G13: =TestYear -> 2017 | H13: 2018 | I13: 2019 | J13: 2020 | K13: 2021
B14: Reporting Basis
A15: 4235 | B15: Specific Service Charges | C15: =-'[14]2013 Income Statement'!$B$41 -> 116157 | D15: =-'[14]2014 Income Statement'!$B$41 -> 139676 | E15: =-'[14]2015 Income Statement'!$B$41 -> 156169.52 | F15: =-'[14]2016 Income Statement'!$B$41 -> 192331.31 | G15: ='[14]Revenue Requirement'!$D$30 -> 170000 | H15: ='[14]Revenue Requirement'!$E$30 -> 173300 | I15: ='[14]Revenue Requirement'!$F$30 -> 176700 | J15: ='[14]Revenue Requirement'!$G$30 -> 180200 | K15: ='[14]Revenue Requirement'!$H$30 -> 183800
A16: 4225 | B16: Late Payment Charges | C16: =-'[14]2013 Income Statement'!$B$39 -> 73904 | D16: =-'[14]2014 Income Statement'!$B$39 -> 84703 | E16: =-'[14]2015 Income Statement'!$B$39 -> 96925.26 | F16: =-'[14]2016 Income Statement'!$B$39 -> 108150 | G16: ='[14]Revenue Requirement'!$D$28 -> 78000 | H16: ='[14]Revenue Requirement'!$E$28 -> 80300 | I16: ='[14]Revenue Requirement'!$F$28 -> 82700 | J16: ='[14]Revenue Requirement'!$G$28 -> 85200 | K16: ='[14]Revenue Requirement'!$H$28 -> 87800
A17: 4210 | B17: Rent from Electric Property | C17: =-'[14]2013 Income Statement'!$B$36 -> 153289 | D17: =-'[14]2014 Income Statement'!$B$36 -> 169620 | E17: =-'[14]2015 Income Statement'!$B$36 -> 161206.8 | F17: =-'[14]2016 Income Statement'!$B$36 -> 155000 | G17: ='[14]Revenue Requirement'!$D$25 -> 326648.9126 | H17: ='[14]Revenue Requirement'!$E$25 -> 326600 | I17: ='[14]Revenue Requirement'!$F$25 -> 329900 | J17: ='[14]Revenue Requirement'!$G$25 -> 329900 | K17: ='[14]Revenue Requirement'!$H$25 -> 329900
A18: 4245 | B18: Deferred Revenues - Contributions | C18: 0 | D18: 0 | E18: =-'[14]2015 Income Statement'!$B$43 -> 313329.81 | F18: =-'[14]2016 Income Statement'!$B$43 -> 485884.4138 | G18: ='[14]Revenue Requirement'!$D$32 -> 667849.2759 | H18: ='[14]Revenue Requirement'!$E$32 -> 942892.3103 | I18: ='[14]Revenue Requirement'!$F$32 -> 1275687.672 | J18: ='[14]Revenue Requirement'!$G$32 -> 1615090.93 | K18: ='[14]Revenue Requirement'!$H$32 -> 1971564.964
A19: 4355 | B19: Gain on Dispositions | C19: 0 | D19: ='[14]2014 Income Statement'!$B$57 -> -4450 | E19: ='[14]2015 Income Statement'!$B$57 -> -440397.48 | F19: =-'[14]2016 Income Statement'!$B$57 -> -166450 | G19: ='[14]Revenue Requirement'!$D$43 -> -183094 | H19: ='[14]Revenue Requirement'!$E$43 -> -192248.7 | I19: ='[14]Revenue Requirement'!$F$43 -> -201861.135 | J19: ='[14]Revenue Requirement'!$G$43 -> -211954.1917 | K19: ='[14]Revenue Requirement'!$H$43 -> -223689.6152
A20: 4375 | B20: Revenues from Non Utility Operations | C20: =-'[14]2013 Income Statement'!$B$61 -> 682460 | D20: =-'[14]2014 Income Statement'!$B$61 -> 801855 | E20: =-'[14]2015 Income Statement'!$B$61 -> 775119.7 | F20: =-'[14]2016 Income Statement'!$B$61 -> 1077311 | G20: ='[14]Revenue Requirement'!$D$47 -> 1087311 | H20: ='[14]Revenue Requirement'!$E$47 -> 1120000 | I20: ='[14]Revenue Requirement'!$F$47 -> 1153700 | J20: ='[14]Revenue Requirement'!$G$47 -> 1188300 | K20: ='[14]Revenue Requirement'!$H$47 -> 1223900
A21: 4380 | B21: Expenses of Non Utility Operations | C21: =-'[14]2013 Income Statement'!$B$62 -> -627785 | D21: =-'[14]2014 Income Statement'!$B$62 -> -718395 | E21: =-'[14]2015 Income Statement'!$B$62 -> -689823.14 | F21: =-'[14]2016 Income Statement'!$B$62 -> -980311 | G21: ='[14]Revenue Requirement'!$D$48 -> -983861 | H21: ='[14]Revenue Requirement'!$E$48 -> -1013300 | I21: ='[14]Revenue Requirement'!$F$48 -> -1043700 | J21: ='[14]Revenue Requirement'!$G$48 -> -1075000 | K21: ='[14]Revenue Requirement'!$H$48 -> -1107300
A22: 4390 | B22: Misc Non Operating Expense | C22: =-'[14]2013 Income Statement'!$B$64 -> 11015 | D22: =-'[14]2014 Income Statement'!$B$64 -> 10882 | E22: =-'[14]2015 Income Statement'!$B$64 -> 30115.79 | F22: =-'[14]2016 Income Statement'!$B$64 -> 210000 | G22: ='[14]Revenue Requirement'!$D$50 -> 160000 | H22: ='[14]Revenue Requirement'!$E$50 -> 164800 | I22: ='[14]Revenue Requirement'!$F$50 -> 169700 | J22: ='[14]Revenue Requirement'!$G$50 -> 174800 | K22: ='[14]Revenue Requirement'!$H$50 -> 180000
A23: etc.
A28: Specific Service Charges (4235) | C28: =C15 -> 116157 | D28: 139676 | E28: 156169.52 | F28: 192331.31 | G28: =G15 -> 170000 | H28: =H15 -> 173300 | I28: 176700 | J28: 180200 | K28: 183800
A29: Late Payment Charges (4225) | C29: 73904 | D29: 84703 | E29: 96925.26 | F29: 108150 | G29: =G16 -> 78000 | H29: 80300 | I29: 82700 | J29: 85200 | K29: 87800
A30: Other Operating Revenues (4210 & 4245) | C30: =C17+C18 -> 153289 | D30: 169620 | E30: 474536.61 | F30: 640884.4138 | G30: 994498.1884 | H30: 1269492.31 | I30: 1605587.672 | J30: 1944990.93 | K30: 2301464.964
A31: Other Income or Deductions (4380 & 4390) | C31: =C19+C20+C21+C22 -> 65690 | D31: 89892 | E31: -324985.13 | F31: 140550 | G31: 80356 | H31: 79251.3 | I31: 77838.865 | J31: 76145.80825 | K31: 72910.38481
A32: Total | C32: =SUM(C28:C31) -> 409040 | D32: 483891 | E32: 402646.26 | F32: 1081915.724 | G32: 1322854.188 | H32: 1602343.61 | I32: =SUM(I28:I31) -> 1942826.537 | J32: 2286536.738 | K32: 2645975.349
A34: Description | C34: Account(s)
A35: Specific Service Charges: | C35: 4235
A36: Late Payment Charges: | C36: 4225
A37: Other Distribution Revenues: | C37: 4080, 4082, 4084, 4090, 4205, 4210, 4215, 4220, 4240, 4245
A38: Other Income and Expenses: | C38: 4305, 4310, 4315, 4320, 4325, 4330, 4335, 4340, 4345, 4350, 4355, 4360, 4365, 4370, 4375, 4380, 4385, 4390, 4395, 4398, 4405, 4415
A41: Note: Add all applicable accounts listed above to the table and include all relevant information.
A43: Account Breakdown Details
A45: For each "Other Operating Revenue" and "Other Income or Deductions" Account, a detailed breakdown of the account components is required. See the example below for Account 4405, Interest and Dividend Income.
A48: Account 4405 - Interest and Dividend Income
C49: =C12 -> 2013 Actual | D49: =D12 -> 2014 Actual | E49: 2015 Actual | F49: Bridge Year² | G49: =G12 -> Test Year | H49: Test Year
F50: =F13 -> 2016 | G50: =G13 -> 2017 | H50: =H13 -> 2018
A51: Reporting Basis | C51: =IF(C14=0, "", C14) ->  | D51: =IF(D14=0, "", D14) -> 
A52: Short-term Investment Interest
A53: Bank Deposit Interest
A54: Miscellaneous Interest Revenue
A55: etc.1
A57: Total | C57: =SUM(C52:C56) -> 0 | D57: 0 | E57: 0 | F57: 0 | G57: 0 | H57: 0
A60: Notes:
A61: 1 | B61: List and specify any other interest revenue.
A62: 2 | B62: In the transition year to IFRS, the applicant is to present information in both MIFRS and CGAAP. For the typical applicant that adopted IFRS on January 1, 2015, 2014 must be presented in both a CGAAP and MIFRS basis.

Sheet App_2-I LF_CDM
G1: File Number: | H1: =EBNUMBER -> EB-2016-0086
G2: Exhibit: | H2: 3
G3: Tab:
G4: Schedule:
G5: Page:
G7: Date: | H7: 2016-06-03
A9: Appendix 2-I
A10: Load Forecast CDM Adjustment Work Form (2016)
A12: 2014 is the last year of the current four year (2011-2014) CDM program, and 2015 is the first year of a new six year (2015-2020) CDM program, per the Ministerial directives of March 31, 2014. With 2016, there is a need to recognize the full year impact of the current 2011-2014 CDM program, as well as to estimate reasonable impacts for each year for the new 2015-2020 CDM program. These are combined to estimate the adjustment for CDM program impacts on the 2016 load forecast.
A14: Appendix 2-I was developed to help determine what would be the amount of CDM savings needed in each year to cumulatively achieve the four year 2011-2014 CDM target. This then determined the amount of kWh (and with translation, kW of demand) savings that were converted in dollars balances for the LRAMVA, and also to determine the related adjustment to the load forecast to account for OPA-reported savings. Beginning for the 2015 year, it has been adjusted because of the persistence of 2011-2014 CDM programs will be an adjustment to the load forecast in addition to the estimated savings for the first year (2015) for the new 2015-2020 CDM plan.
A16: It is assumed that the new six year (2015-2020) CDM program will work similar to the existing 2011-2014 CDM program, meaning that distributors will offer programs each year that, cumulatively over the six years (from January 1, 2015 to December 31, 2020) will cumulatively achieve the new six year CDM target. This is the approach contemplated in the Ministerial directive letters of March 31, 2014 to the Board and to the OPA. Thus, distributors will be able to offer programs on a basis so that cumulatively over the period, the impacts, including persistence, of the CDM programs will accumulate towards achieving each distributor's 2015-2020 CDM target.
A18: With this approach, it is necessary to account for estimated savings for the last year of the current program, particularly the estimated savings for new CDM programs offered in 2014, as well as the estimated savings for new CDM programs that the distributor will offer in 2015 towards achievement of the new six year (2015-2020) CDM program. This necessitates expansion of this Appendix 2-I to deal with both the 2011-2014 and 2015-2020 CDM plans. It is expected that this approach will be updated each year.
A20: 2011-2014 CDM Program - 2014, last year of the current CDM plan
A22: Input the 2011-2014 CDM target in Cell B21.
A24: Input the measured results for 2011 CDM programs for each of the years 2011 and persistence into 2012, 2013 and 2014 into cells B31 to E31. These results are taken from the final 2011 CDM Report issued by the OPA for that distributor in the fall of 2012.
A26: Measured results for 2012 CDM programs for each of the years 2012 and persistence into 2013 and 2014 are input into cells C32 to E32. These results are taken from the final 2012 CDM Report issued by the OPA for that distributor in the fall of 2013.
A28: Measured results for 2013 CDM programs for each of the years 2013 and persistence into 2014 are input into cells C33 to E33. These results are taken from the final 2013 CDM Report issued by the OPA for that distributor in the fall of 2014. Until that report is issued, the distributor should use the results from the preliminary 2013 CDM Report issued in the spring of 2014.
A30: Measured results for 2014 CDM programs for each of the years 2013 and persistence into 2014 are input into cells C33 to E33. These results are taken from the final 2013 CDM Report issued by the OPA for that distributor in the fall of 2014. Until that report is issued, the distributor should use the results from the preliminary 2013 CDM Report issued in the spring of 2014. The distributor also needs to input the persistence of 2014 CDM programs into 2015 and 2016 in cells G45 and G46.
A33: 4 Year (2011-2014) kWh Target: | G33: Persistence of 2014 CDM Program into 2015 and 2016
A34: 100000
B35: 2011 | C35: 2012 | D35: 2013 | E35: 2014 | F35: Total | G35: 2015 | H35: 2016 | K35: =B35 -> 2011 | L35: =C35 -> 2012 | M35: =D35 -> 2013 | N35: =E35 -> 2014
A36: 2011 CDM Programs | B36: =B42/$F$46 -> 0.100001 | C36: =C42/$F$46 -> 0.100001 | D36: 0.100001 | E36: 0.09500095001 | F36: =SUM(B36:E36) -> 0.39500395 | J36: =A36 -> 2011 CDM Programs | K36: =50% -> 0.5 | L36: 1 | M36: 1 | N36: 1
A37: 2012 CDM Programs | C37: 0.1200012 | D37: 0.119501195 | E37: 0.1100011 | F37: =SUM(B37:E37) -> 0.349503495 | J37: =A37 -> 2012 CDM Programs | L37: 0.5 | M37: 1 | N37: 1
A38: 2013 CDM Programs | D38: 0.08000080001 | E38: 0.07800078001 | F38: 0.15800158 | J38: =A38 -> 2013 CDM Programs | M38: 0.5 | N38: 1
A39: 2014 CDM Programs | E39: 0.09749097491 | F39: 0.09749097491 | J39: =A39 -> 2014 CDM Programs | N39: 0.5
A40: Total in Year | B40: =SUM(B36:B39) -> 0.100001 | C40: =SUM(C36:C39) -> 0.2200022 | D40: 0.299502995 | E40: 0.3804938049 | F40: =SUM(B40:E40) -> 1
A41: kWh
A42: 2011 CDM Programs | B42: 10000 | C42: 10000 | D42: 10000 | E42: 9500 | F42: =SUM(B42:E42) -> 39500
A43: 2012 CDM Programs | C43: 12000 | D43: 11950 | E43: 11000 | F43: =SUM(B43:E43) -> 34950
A44: 2013 CDM Programs | D44: 8000 | E44: 7800 | F44: 15800
A45: 2014 CDM Programs | E45: 9749 | F45: 9749
A46: Total in Year | B46: =SUM(B42:B45) -> 10000 | C46: =SUM(C42:C45) -> 22000 | D46: 29950 | E46: 38049 | F46: =SUM(F42:F45) -> 99999
A48: 2015-2020 CDM Program - 2016, second year of the current CDM plan
A50: For the first year of the new 2015-2020 CDM plan, it is assumed that each year's program will achieve an equal amount of new CDM savings. The new targets for 2015-2020 do not take into account persistence beyond the first year, but the IESO will encourage distributors to promote and implement CDM plans that will have longer term persistence of savings. This results in each year's program being about 1/6 (18.67%) of the cumulative 2015-2020 CDM target for kWh savings. A distributor may propose an alternative approach but would be expected to document in its application why it believes that its proposal is more reasonable. In its proposal, the distributor should ensure that the sum of the results for each year's CDM program from 2015 to 2020 add up to its 2015-2020 CDM target as established by the IESO.
A52: 6 Year (2015-2020) kWh Target:
A53: 125000
